Workbook

Sheet data
A2: Liu method to estimate 24-hour daily milk yield (DMY), daily fat yield (DFY) and daily protein yield (DPY) based on partial yields from either morning (AM) or evening (PM) milking.
A3: Method description can be found in: Procedure 1 of Section 2 of ICAR Guidelines - Computing 24-hour Yields
A4: https://www.icar.org/Guidelines/02-Procedure-1-Computing-24-Hour-Yield.pdf
A5: User guide: fill the green cells with information about: 1) Date of testday (format dd-mm-yyyy), morning (1) or evening (2) milking, starting time of morning milking (format hh:mm), starting time of evening milking (format hh:mm) and type of calculation (1 = alternating, one milking and one sampling, 2 = recalculation of an AT-result to the original value and 3 = milk yield from both milkings a day but only one sample (morning or evening) is taken). Individual cow data on cow id and raw data on kg of milk, fat % and protein % can be entered below for multiple cows. In the yellow cells you will see the adjustment factors that are applied.
A6: This file is created by Dr. Kai Kuwan (VIT) and kindly made available. Use of this file is at own risk. For questions about the use of the file, please contact René van der Linde (rene@icar.org).
A8: Date of test day (format dd-mm-yyyy) | E8: 2000-05-18
A9: Morning milking (1) or Evening milking (2) | E9: 2
A10: Starting time of morning milking (format hh:mm, 24-hour clock) | E10: 06:30:00
A11: Starting time of evening milking (format hh:mm, 24-hour clock ) | E11: 17:30:00
A12: AT=1 / AS=2 / AM=3 | E12: 1
A13: Time between milking | E13: =IF(E9=1,1-E11+E10,E11-E10) -> 11:00:00
A14: Minutes between milking | E14: =E13*1440 -> 660
A15: ZMZ Klasse Index | C15: =IF(E9=2,IF(E14<600,1,IF(E14<620,2,IF(E14<640,3,IF(E14<660,4,IF(E14<680,5,IF(E14<700,6,IF(E14<720,7,8))))))),IF(E14<720,1,IF(E14<740,2,IF(E14<760,3,IF(E14<780,4,IF(E14<800,5,IF(E14<820,6,IF(E14<840,7,8)))))))) -> 5
A17: raw data | G17: results
A18: cow ID | B18: calving date dd.mm.yyyy | C18: lactation number | D18: milk-kg | E18: fat % | F18: protein % | G18: milk-kg | H18: fat % | I18: protein % | J18: Lactaction number index | K18: Lactation stadium index | L18: key | M18: Regr. Coef. Milk yield | N18: Intercept Milk yield | O18: Regr. Coef. Fat | P18: Intercept Fat | Q18: Regr. Coef. Protein | R18: Intercept Protein
A19: 2132 | B19: 1999-11-28 | C19: 1 | D19: 21.2 | E19: 4.54 | F19: 3.2 | G19: =IF(D19<>"",IF($E$12=3,$D19,IF($E$12=1,$D19*$M19+$N19,($D19-$N19)/$M19)),"") -> 44.723454 | H19: =IF(AND(D19<>"",E19<>""),IF($E$12=1,(($D19*$E19/100*$O19)+$P19)/$G19*100,IF($E$12=2,(($D19*$E19/100)-$P19)/$O19/$G19*100,((($G19-$N19)/$M19)*$E19/100*$O19+$P19)/$G19*100)),"") -> 4.154369544 | I19: =IF(AND(E19<>"",F19<>""),IF($E$12=1,(($D19*$F19/100*$Q19)+$R19)/$G19*100,IF($E$12=2,(($D19*$F19/100)-$R19)/$Q19/$G19*100,((($G19-$N19)/$M19)*$F19/100*$Q19+$R19)/$G19*100)),"") -> 3.179988916 | J19: =IF($C19=1,1,IF($C19>1,2," ")) -> 1 | K19: =IF(B19<>"",IF(($E$8-$B19)<1,1,IF(($E$8-$B19)>360,7,(INT((1+($E$8-$B19)/60))))),"") -> 3 | L19: =IF(AND(J19<>"",K19<>""),$E$9*1000+$J19*100+$C$15*10+$K19,"") -> 2153 | M19: =IF(L19<>"",VLOOKUP($L19,'milk yield 2018'!$A:$H,8,FALSE),"") -> 2.00452 | N19: =IF(L19<>"",VLOOKUP($L19,'milk yield 2018'!$A:$H,7,FALSE),"") -> 2.22763 | O19: =IF(L19<>"",VLOOKUP($L19,'fat 2018'!$A:$H,8,FALSE),"") -> 1.7474 | P19: =IF(L19<>"",VLOOKUP($L19,'fat 2018'!$A:$H,7,FALSE),"") -> 0.17614 | Q19: =IF(L19<>"",VLOOKUP($L19,'protein 2018'!$A:$H,8,FALSE),"") -> 1.9782 | R19: =IF(L19<>"",VLOOKUP($L19,'protein 2018'!$A:$H,7,FALSE),"") -> 0.08019
M20: =IF(L20<>"",VLOOKUP($L20,'milk yield 2018'!$A:$H,8,FALSE),"") ->  | N20: =IF(L20<>"",VLOOKUP($L20,'milk yield 2018'!$A:$H,7,FALSE),"") ->  | O20: =IF(L20<>"",VLOOKUP($L20,'fat 2018'!$A:$H,8,FALSE),"") ->  | P20: =IF(L20<>"",VLOOKUP($L20,'fat 2018'!$A:$H,7,FALSE),"") ->  | Q20: =IF(L20<>"",VLOOKUP($L20,'protein 2018'!$A:$H,8,FALSE),"") ->  | R20: =IF(L20<>"",VLOOKUP($L20,'protein 2018'!$A:$H,7,FALSE),"") -> 
M21: =IF(L21<>"",VLOOKUP($L21,'milk yield 2018'!$A:$H,8,FALSE),"") ->  | N21: =IF(L21<>"",VLOOKUP($L21,'milk yield 2018'!$A:$H,7,FALSE),"") ->  | O21: =IF(L21<>"",VLOOKUP($L21,'fat 2018'!$A:$H,8,FALSE),"") ->  | P21: =IF(L21<>"",VLOOKUP($L21,'fat 2018'!$A:$H,7,FALSE),"") ->  | Q21: =IF(L21<>"",VLOOKUP($L21,'protein 2018'!$A:$H,8,FALSE),"") ->  | R21: =IF(L21<>"",VLOOKUP($L21,'protein 2018'!$A:$H,7,FALSE),"") -> 
M22: =IF(L22<>"",VLOOKUP($L22,'milk yield 2018'!$A:$H,8,FALSE),"") ->  | N22: =IF(L22<>"",VLOOKUP($L22,'milk yield 2018'!$A:$H,7,FALSE),"") ->  | O22: =IF(L22<>"",VLOOKUP($L22,'fat 2018'!$A:$H,8,FALSE),"") ->  | P22: =IF(L22<>"",VLOOKUP($L22,'fat 2018'!$A:$H,7,FALSE),"") ->  | Q22: =IF(L22<>"",VLOOKUP($L22,'protein 2018'!$A:$H,8,FALSE),"") ->  | R22: =IF(L22<>"",VLOOKUP($L22,'protein 2018'!$A:$H,7,FALSE),"") -> 
M23: =IF(L23<>"",VLOOKUP($L23,'milk yield 2018'!$A:$H,8,FALSE),"") ->  | N23: =IF(L23<>"",VLOOKUP($L23,'milk yield 2018'!$A:$H,7,FALSE),"") ->  | O23: =IF(L23<>"",VLOOKUP($L23,'fat 2018'!$A:$H,8,FALSE),"") ->  | P23: =IF(L23<>"",VLOOKUP($L23,'fat 2018'!$A:$H,7,FALSE),"") ->  | Q23: =IF(L23<>"",VLOOKUP($L23,'protein 2018'!$A:$H,8,FALSE),"") ->  | R23: =IF(L23<>"",VLOOKUP($L23,'protein 2018'!$A:$H,7,FALSE),"") -> 
M24: =IF(L24<>"",VLOOKUP($L24,'milk yield 2018'!$A:$H,8,FALSE),"") ->  | N24: =IF(L24<>"",VLOOKUP($L24,'milk yield 2018'!$A:$H,7,FALSE),"") ->  | O24: =IF(L24<>"",VLOOKUP($L24,'fat 2018'!$A:$H,8,FALSE),"") ->  | P24: =IF(L24<>"",VLOOKUP($L24,'fat 2018'!$A:$H,7,FALSE),"") ->  | Q24: =IF(L24<>"",VLOOKUP($L24,'protein 2018'!$A:$H,8,FALSE),"") ->  | R24: =IF(L24<>"",VLOOKUP($L24,'protein 2018'!$A:$H,7,FALSE),"") -> 
M25: =IF(L25<>"",VLOOKUP($L25,'milk yield 2018'!$A:$H,8,FALSE),"") ->  | N25: =IF(L25<>"",VLOOKUP($L25,'milk yield 2018'!$A:$H,7,FALSE),"") ->  | O25: =IF(L25<>"",VLOOKUP($L25,'fat 2018'!$A:$H,8,FALSE),"") ->  | P25: =IF(L25<>"",VLOOKUP($L25,'fat 2018'!$A:$H,7,FALSE),"") ->  | Q25: =IF(L25<>"",VLOOKUP($L25,'protein 2018'!$A:$H,8,FALSE),"") ->  | R25: =IF(L25<>"",VLOOKUP($L25,'protein 2018'!$A:$H,7,FALSE),"") -> 
M26: =IF(L26<>"",VLOOKUP($L26,'milk yield 2018'!$A:$H,8,FALSE),"") ->  | N26: =IF(L26<>"",VLOOKUP($L26,'milk yield 2018'!$A:$H,7,FALSE),"") ->  | O26: =IF(L26<>"",VLOOKUP($L26,'fat 2018'!$A:$H,8,FALSE),"") ->  | P26: =IF(L26<>"",VLOOKUP($L26,'fat 2018'!$A:$H,7,FALSE),"") ->  | Q26: =IF(L26<>"",VLOOKUP($L26,'protein 2018'!$A:$H,8,FALSE),"") ->  | R26: =IF(L26<>"",VLOOKUP($L26,'protein 2018'!$A:$H,7,FALSE),"") -> 
M27: =IF(L27<>"",VLOOKUP($L27,'milk yield 2018'!$A:$H,8,FALSE),"") ->  | N27: =IF(L27<>"",VLOOKUP($L27,'milk yield 2018'!$A:$H,7,FALSE),"") ->  | O27: =IF(L27<>"",VLOOKUP($L27,'fat 2018'!$A:$H,8,FALSE),"") ->  | P27: =IF(L27<>"",VLOOKUP($L27,'fat 2018'!$A:$H,7,FALSE),"") ->  | Q27: =IF(L27<>"",VLOOKUP($L27,'protein 2018'!$A:$H,8,FALSE),"") ->  | R27: =IF(L27<>"",VLOOKUP($L27,'protein 2018'!$A:$H,7,FALSE),"") -> 
M28: =IF(L28<>"",VLOOKUP($L28,'milk yield 2018'!$A:$H,8,FALSE),"") ->  | N28: =IF(L28<>"",VLOOKUP($L28,'milk yield 2018'!$A:$H,7,FALSE),"") ->  | O28: =IF(L28<>"",VLOOKUP($L28,'fat 2018'!$A:$H,8,FALSE),"") ->  | P28: =IF(L28<>"",VLOOKUP($L28,'fat 2018'!$A:$H,7,FALSE),"") ->  | Q28: =IF(L28<>"",VLOOKUP($L28,'protein 2018'!$A:$H,8,FALSE),"") ->  | R28: =IF(L28<>"",VLOOKUP($L28,'protein 2018'!$A:$H,7,FALSE),"") -> 
M29: =IF(L29<>"",VLOOKUP($L29,'milk yield 2018'!$A:$H,8,FALSE),"") ->  | N29: =IF(L29<>"",VLOOKUP($L29,'milk yield 2018'!$A:$H,7,FALSE),"") ->  | O29: =IF(L29<>"",VLOOKUP($L29,'fat 2018'!$A:$H,8,FALSE),"") ->  | P29: =IF(L29<>"",VLOOKUP($L29,'fat 2018'!$A:$H,7,FALSE),"") ->  | Q29: =IF(L29<>"",VLOOKUP($L29,'protein 2018'!$A:$H,8,FALSE),"") ->  | R29: =IF(L29<>"",VLOOKUP($L29,'protein 2018'!$A:$H,7,FALSE),"") -> 
M30: =IF(L30<>"",VLOOKUP($L30,'milk yield 2018'!$A:$H,8,FALSE),"") ->  | N30: =IF(L30<>"",VLOOKUP($L30,'milk yield 2018'!$A:$H,7,FALSE),"") ->  | O30: =IF(L30<>"",VLOOKUP($L30,'fat 2018'!$A:$H,8,FALSE),"") ->  | P30: =IF(L30<>"",VLOOKUP($L30,'fat 2018'!$A:$H,7,FALSE),"") ->  | Q30: =IF(L30<>"",VLOOKUP($L30,'protein 2018'!$A:$H,8,FALSE),"") ->  | R30: =IF(L30<>"",VLOOKUP($L30,'protein 2018'!$A:$H,7,FALSE),"") -> 
M31: =IF(L31<>"",VLOOKUP($L31,'milk yield 2018'!$A:$H,8,FALSE),"") ->  | N31: =IF(L31<>"",VLOOKUP($L31,'milk yield 2018'!$A:$H,7,FALSE),"") ->  | O31: =IF(L31<>"",VLOOKUP($L31,'fat 2018'!$A:$H,8,FALSE),"") ->  | P31: =IF(L31<>"",VLOOKUP($L31,'fat 2018'!$A:$H,7,FALSE),"") ->  | Q31: =IF(L31<>"",VLOOKUP($L31,'protein 2018'!$A:$H,8,FALSE),"") ->  | R31: =IF(L31<>"",VLOOKUP($L31,'protein 2018'!$A:$H,7,FALSE),"") -> 
M32: =IF(L32<>"",VLOOKUP($L32,'milk yield 2018'!$A:$H,8,FALSE),"") ->  | N32: =IF(L32<>"",VLOOKUP($L32,'milk yield 2018'!$A:$H,7,FALSE),"") ->  | O32: =IF(L32<>"",VLOOKUP($L32,'fat 2018'!$A:$H,8,FALSE),"") ->  | P32: =IF(L32<>"",VLOOKUP($L32,'fat 2018'!$A:$H,7,FALSE),"") ->  | Q32: =IF(L32<>"",VLOOKUP($L32,'protein 2018'!$A:$H,8,FALSE),"") ->  | R32: =IF(L32<>"",VLOOKUP($L32,'protein 2018'!$A:$H,7,FALSE),"") -> 
M33: =IF(L33<>"",VLOOKUP($L33,'milk yield 2018'!$A:$H,8,FALSE),"") ->  | N33: =IF(L33<>"",VLOOKUP($L33,'milk yield 2018'!$A:$H,7,FALSE),"") ->  | O33: =IF(L33<>"",VLOOKUP($L33,'fat 2018'!$A:$H,8,FALSE),"") ->  | P33: =IF(L33<>"",VLOOKUP($L33,'fat 2018'!$A:$H,7,FALSE),"") ->  | Q33: =IF(L33<>"",VLOOKUP($L33,'protein 2018'!$A:$H,8,FALSE),"") ->  | R33: =IF(L33<>"",VLOOKUP($L33,'protein 2018'!$A:$H,7,FALSE),"") -> 
M34: =IF(L34<>"",VLOOKUP($L34,'milk yield 2018'!$A:$H,8,FALSE),"") ->  | N34: =IF(L34<>"",VLOOKUP($L34,'milk yield 2018'!$A:$H,7,FALSE),"") ->  | O34: =IF(L34<>"",VLOOKUP($L34,'fat 2018'!$A:$H,8,FALSE),"") ->  | P34: =IF(L34<>"",VLOOKUP($L34,'fat 2018'!$A:$H,7,FALSE),"") ->  | Q34: =IF(L34<>"",VLOOKUP($L34,'protein 2018'!$A:$H,8,FALSE),"") ->  | R34: =IF(L34<>"",VLOOKUP($L34,'protein 2018'!$A:$H,7,FALSE),"") -> 
M35: =IF(L35<>"",VLOOKUP($L35,'milk yield 2018'!$A:$H,8,FALSE),"") ->  | N35: =IF(L35<>"",VLOOKUP($L35,'milk yield 2018'!$A:$H,7,FALSE),"") ->  | O35: =IF(L35<>"",VLOOKUP($L35,'fat 2018'!$A:$H,8,FALSE),"") ->  | P35: =IF(L35<>"",VLOOKUP($L35,'fat 2018'!$A:$H,7,FALSE),"") ->  | Q35: =IF(L35<>"",VLOOKUP($L35,'protein 2018'!$A:$H,8,FALSE),"") ->  | R35: =IF(L35<>"",VLOOKUP($L35,'protein 2018'!$A:$H,7,FALSE),"") -> 
M36: =IF(L36<>"",VLOOKUP($L36,'milk yield 2018'!$A:$H,8,FALSE),"") ->  | N36: =IF(L36<>"",VLOOKUP($L36,'milk yield 2018'!$A:$H,7,FALSE),"") ->  | O36: =IF(L36<>"",VLOOKUP($L36,'fat 2018'!$A:$H,8,FALSE),"") ->  | P36: =IF(L36<>"",VLOOKUP($L36,'fat 2018'!$A:$H,7,FALSE),"") ->  | Q36: =IF(L36<>"",VLOOKUP($L36,'protein 2018'!$A:$H,8,FALSE),"") ->  | R36: =IF(L36<>"",VLOOKUP($L36,'protein 2018'!$A:$H,7,FALSE),"") -> 
M37: =IF(L37<>"",VLOOKUP($L37,'milk yield 2018'!$A:$H,8,FALSE),"") ->  | N37: =IF(L37<>"",VLOOKUP($L37,'milk yield 2018'!$A:$H,7,FALSE),"") ->  | O37: =IF(L37<>"",VLOOKUP($L37,'fat 2018'!$A:$H,8,FALSE),"") ->  | P37: =IF(L37<>"",VLOOKUP($L37,'fat 2018'!$A:$H,7,FALSE),"") ->  | Q37: =IF(L37<>"",VLOOKUP($L37,'protein 2018'!$A:$H,8,FALSE),"") ->  | R37: =IF(L37<>"",VLOOKUP($L37,'protein 2018'!$A:$H,7,FALSE),"") -> 
M38: =IF(L38<>"",VLOOKUP($L38,'milk yield 2018'!$A:$H,8,FALSE),"") ->  | N38: =IF(L38<>"",VLOOKUP($L38,'milk yield 2018'!$A:$H,7,FALSE),"") ->  | O38: =IF(L38<>"",VLOOKUP($L38,'fat 2018'!$A:$H,8,FALSE),"") ->  | P38: =IF(L38<>"",VLOOKUP($L38,'fat 2018'!$A:$H,7,FALSE),"") ->  | Q38: =IF(L38<>"",VLOOKUP($L38,'protein 2018'!$A:$H,8,FALSE),"") ->  | R38: =IF(L38<>"",VLOOKUP($L38,'protein 2018'!$A:$H,7,FALSE),"") -> 
M39: =IF(L39<>"",VLOOKUP($L39,'milk yield 2018'!$A:$H,8,FALSE),"") ->  | N39: =IF(L39<>"",VLOOKUP($L39,'milk yield 2018'!$A:$H,7,FALSE),"") ->  | O39: =IF(L39<>"",VLOOKUP($L39,'fat 2018'!$A:$H,8,FALSE),"") ->  | P39: =IF(L39<>"",VLOOKUP($L39,'fat 2018'!$A:$H,7,FALSE),"") ->  | Q39: =IF(L39<>"",VLOOKUP($L39,'protein 2018'!$A:$H,8,FALSE),"") ->  | R39: =IF(L39<>"",VLOOKUP($L39,'protein 2018'!$A:$H,7,FALSE),"") -> 
M40: =IF(L40<>"",VLOOKUP($L40,'milk yield 2018'!$A:$H,8,FALSE),"") ->  | N40: =IF(L40<>"",VLOOKUP($L40,'milk yield 2018'!$A:$H,7,FALSE),"") ->  | O40: =IF(L40<>"",VLOOKUP($L40,'fat 2018'!$A:$H,8,FALSE),"") ->  | P40: =IF(L40<>"",VLOOKUP($L40,'fat 2018'!$A:$H,7,FALSE),"") ->  | Q40: =IF(L40<>"",VLOOKUP($L40,'protein 2018'!$A:$H,8,FALSE),"") ->  | R40: =IF(L40<>"",VLOOKUP($L40,'protein 2018'!$A:$H,7,FALSE),"") -> 
M41: =IF(L41<>"",VLOOKUP($L41,'milk yield 2018'!$A:$H,8,FALSE),"") ->  | N41: =IF(L41<>"",VLOOKUP($L41,'milk yield 2018'!$A:$H,7,FALSE),"") ->  | O41: =IF(L41<>"",VLOOKUP($L41,'fat 2018'!$A:$H,8,FALSE),"") ->  | P41: =IF(L41<>"",VLOOKUP($L41,'fat 2018'!$A:$H,7,FALSE),"") ->  | Q41: =IF(L41<>"",VLOOKUP($L41,'protein 2018'!$A:$H,8,FALSE),"") ->  | R41: =IF(L41<>"",VLOOKUP($L41,'protein 2018'!$A:$H,7,FALSE),"") -> 
M42: =IF(L42<>"",VLOOKUP($L42,'milk yield 2018'!$A:$H,8,FALSE),"") ->  | N42: =IF(L42<>"",VLOOKUP($L42,'milk yield 2018'!$A:$H,7,FALSE),"") ->  | O42: =IF(L42<>"",VLOOKUP($L42,'fat 2018'!$A:$H,8,FALSE),"") ->  | P42: =IF(L42<>"",VLOOKUP($L42,'fat 2018'!$A:$H,7,FALSE),"") ->  | Q42: =IF(L42<>"",VLOOKUP($L42,'protein 2018'!$A:$H,8,FALSE),"") ->  | R42: =IF(L42<>"",VLOOKUP($L42,'protein 2018'!$A:$H,7,FALSE),"") -> 
M43: =IF(L43<>"",VLOOKUP($L43,'milk yield 2018'!$A:$H,8,FALSE),"") ->  | N43: =IF(L43<>"",VLOOKUP($L43,'milk yield 2018'!$A:$H,7,FALSE),"") ->  | O43: =IF(L43<>"",VLOOKUP($L43,'fat 2018'!$A:$H,8,FALSE),"") ->  | P43: =IF(L43<>"",VLOOKUP($L43,'fat 2018'!$A:$H,7,FALSE),"") ->  | Q43: =IF(L43<>"",VLOOKUP($L43,'protein 2018'!$A:$H,8,FALSE),"") ->  | R43: =IF(L43<>"",VLOOKUP($L43,'protein 2018'!$A:$H,7,FALSE),"") -> 
M44: =IF(L44<>"",VLOOKUP($L44,'milk yield 2018'!$A:$H,8,FALSE),"") ->  | N44: =IF(L44<>"",VLOOKUP($L44,'milk yield 2018'!$A:$H,7,FALSE),"") ->  | O44: =IF(L44<>"",VLOOKUP($L44,'fat 2018'!$A:$H,8,FALSE),"") ->  | P44: =IF(L44<>"",VLOOKUP($L44,'fat 2018'!$A:$H,7,FALSE),"") ->  | Q44: =IF(L44<>"",VLOOKUP($L44,'protein 2018'!$A:$H,8,FALSE),"") ->  | R44: =IF(L44<>"",VLOOKUP($L44,'protein 2018'!$A:$H,7,FALSE),"") -> 
M45: =IF(L45<>"",VLOOKUP($L45,'milk yield 2018'!$A:$H,8,FALSE),"") ->  | N45: =IF(L45<>"",VLOOKUP($L45,'milk yield 2018'!$A:$H,7,FALSE),"") ->  | O45: =IF(L45<>"",VLOOKUP($L45,'fat 2018'!$A:$H,8,FALSE),"") ->  | P45: =IF(L45<>"",VLOOKUP($L45,'fat 2018'!$A:$H,7,FALSE),"") ->  | Q45: =IF(L45<>"",VLOOKUP($L45,'protein 2018'!$A:$H,8,FALSE),"") ->  | R45: =IF(L45<>"",VLOOKUP($L45,'protein 2018'!$A:$H,7,FALSE),"") -> 
M46: =IF(L46<>"",VLOOKUP($L46,'milk yield 2018'!$A:$H,8,FALSE),"") ->  | N46: =IF(L46<>"",VLOOKUP($L46,'milk yield 2018'!$A:$H,7,FALSE),"") ->  | O46: =IF(L46<>"",VLOOKUP($L46,'fat 2018'!$A:$H,8,FALSE),"") ->  | P46: =IF(L46<>"",VLOOKUP($L46,'fat 2018'!$A:$H,7,FALSE),"") ->  | Q46: =IF(L46<>"",VLOOKUP($L46,'protein 2018'!$A:$H,8,FALSE),"") ->  | R46: =IF(L46<>"",VLOOKUP($L46,'protein 2018'!$A:$H,7,FALSE),"") -> 
M47: =IF(L47<>"",VLOOKUP($L47,'milk yield 2018'!$A:$H,8,FALSE),"") ->  | N47: =IF(L47<>"",VLOOKUP($L47,'milk yield 2018'!$A:$H,7,FALSE),"") ->  | O47: =IF(L47<>"",VLOOKUP($L47,'fat 2018'!$A:$H,8,FALSE),"") ->  | P47: =IF(L47<>"",VLOOKUP($L47,'fat 2018'!$A:$H,7,FALSE),"") ->  | Q47: =IF(L47<>"",VLOOKUP($L47,'protein 2018'!$A:$H,8,FALSE),"") ->  | R47: =IF(L47<>"",VLOOKUP($L47,'protein 2018'!$A:$H,7,FALSE),"") -> 
M48: =IF(L48<>"",VLOOKUP($L48,'milk yield 2018'!$A:$H,8,FALSE),"") ->  | N48: =IF(L48<>"",VLOOKUP($L48,'milk yield 2018'!$A:$H,7,FALSE),"") ->  | O48: =IF(L48<>"",VLOOKUP($L48,'fat 2018'!$A:$H,8,FALSE),"") ->  | P48: =IF(L48<>"",VLOOKUP($L48,'fat 2018'!$A:$H,7,FALSE),"") ->  | Q48: =IF(L48<>"",VLOOKUP($L48,'protein 2018'!$A:$H,8,FALSE),"") ->  | R48: =IF(L48<>"",VLOOKUP($L48,'protein 2018'!$A:$H,7,FALSE),"") -> 
M49: =IF(L49<>"",VLOOKUP($L49,'milk yield 2018'!$A:$H,8,FALSE),"") ->  | N49: =IF(L49<>"",VLOOKUP($L49,'milk yield 2018'!$A:$H,7,FALSE),"") ->  | O49: =IF(L49<>"",VLOOKUP($L49,'fat 2018'!$A:$H,8,FALSE),"") ->  | P49: =IF(L49<>"",VLOOKUP($L49,'fat 2018'!$A:$H,7,FALSE),"") ->  | Q49: =IF(L49<>"",VLOOKUP($L49,'protein 2018'!$A:$H,8,FALSE),"") ->  | R49: =IF(L49<>"",VLOOKUP($L49,'protein 2018'!$A:$H,7,FALSE),"") -> 
M50: =IF(L50<>"",VLOOKUP($L50,'milk yield 2018'!$A:$H,8,FALSE),"") ->  | N50: =IF(L50<>"",VLOOKUP($L50,'milk yield 2018'!$A:$H,7,FALSE),"") ->  | O50: =IF(L50<>"",VLOOKUP($L50,'fat 2018'!$A:$H,8,FALSE),"") ->  | P50: =IF(L50<>"",VLOOKUP($L50,'fat 2018'!$A:$H,7,FALSE),"") ->  | Q50: =IF(L50<>"",VLOOKUP($L50,'protein 2018'!$A:$H,8,FALSE),"") ->  | R50: =IF(L50<>"",VLOOKUP($L50,'protein 2018'!$A:$H,7,FALSE),"") -> 
K51: =IF(B51<>"",IF(($E$8-$B51)<1,1,IF(($E$8-$B51)>360,7,(INT((1+($E$8-$B51)/60))))),"") ->  | L51: =IF(AND(J51<>"",K51<>""),$E$9*1000+$J51*100+$C$15*10+$K51,"") ->  | M51: =IF(L51<>"",VLOOKUP($L51,'milk yield 2018'!$A:$H,8,FALSE),"") ->  | N51: =IF(L51<>"",VLOOKUP($L51,'milk yield 2018'!$A:$H,7,FALSE),"") ->  | O51: =IF(L51<>"",VLOOKUP($L51,'fat 2018'!$A:$H,8,FALSE),"") ->  | P51: =IF(L51<>"",VLOOKUP($L51,'fat 2018'!$A:$H,7,FALSE),"") ->  | Q51: =IF(L51<>"",VLOOKUP($L51,'protein 2018'!$A:$H,8,FALSE),"") ->  | R51: =IF(L51<>"",VLOOKUP($L51,'protein 2018'!$A:$H,7,FALSE),"") -> 
M52: =IF(L52<>"",VLOOKUP($L52,'milk yield 2018'!$A:$H,8,FALSE),"") ->  | N52: =IF(L52<>"",VLOOKUP($L52,'milk yield 2018'!$A:$H,7,FALSE),"") ->  | O52: =IF(L52<>"",VLOOKUP($L52,'fat 2018'!$A:$H,8,FALSE),"") ->  | P52: =IF(L52<>"",VLOOKUP($L52,'fat 2018'!$A:$H,7,FALSE),"") ->  | Q52: =IF(L52<>"",VLOOKUP($L52,'protein 2018'!$A:$H,8,FALSE),"") ->  | R52: =IF(L52<>"",VLOOKUP($L52,'protein 2018'!$A:$H,7,FALSE),"") -> 
M53: =IF(L53<>"",VLOOKUP($L53,'milk yield 2018'!$A:$H,8,FALSE),"") ->  | N53: =IF(L53<>"",VLOOKUP($L53,'milk yield 2018'!$A:$H,7,FALSE),"") ->  | O53: =IF(L53<>"",VLOOKUP($L53,'fat 2018'!$A:$H,8,FALSE),"") ->  | P53: =IF(L53<>"",VLOOKUP($L53,'fat 2018'!$A:$H,7,FALSE),"") ->  | Q53: =IF(L53<>"",VLOOKUP($L53,'protein 2018'!$A:$H,8,FALSE),"") ->  | R53: =IF(L53<>"",VLOOKUP($L53,'protein 2018'!$A:$H,7,FALSE),"") -> 
M54: =IF(L54<>"",VLOOKUP($L54,'milk yield 2018'!$A:$H,8,FALSE),"") ->  | N54: =IF(L54<>"",VLOOKUP($L54,'milk yield 2018'!$A:$H,7,FALSE),"") ->  | O54: =IF(L54<>"",VLOOKUP($L54,'fat 2018'!$A:$H,8,FALSE),"") ->  | P54: =IF(L54<>"",VLOOKUP($L54,'fat 2018'!$A:$H,7,FALSE),"") ->  | Q54: =IF(L54<>"",VLOOKUP($L54,'protein 2018'!$A:$H,8,FALSE),"") ->  | R54: =IF(L54<>"",VLOOKUP($L54,'protein 2018'!$A:$H,7,FALSE),"") -> 
M55: =IF(L55<>"",VLOOKUP($L55,'milk yield 2018'!$A:$H,8,FALSE),"") ->  | N55: =IF(L55<>"",VLOOKUP($L55,'milk yield 2018'!$A:$H,7,FALSE),"") ->  | O55: =IF(L55<>"",VLOOKUP($L55,'fat 2018'!$A:$H,8,FALSE),"") ->  | P55: =IF(L55<>"",VLOOKUP($L55,'fat 2018'!$A:$H,7,FALSE),"") ->  | Q55: =IF(L55<>"",VLOOKUP($L55,'protein 2018'!$A:$H,8,FALSE),"") ->  | R55: =IF(L55<>"",VLOOKUP($L55,'protein 2018'!$A:$H,7,FALSE),"") -> 
M56: =IF(L56<>"",VLOOKUP($L56,'milk yield 2018'!$A:$H,8,FALSE),"") ->  | N56: =IF(L56<>"",VLOOKUP($L56,'milk yield 2018'!$A:$H,7,FALSE),"") ->  | O56: =IF(L56<>"",VLOOKUP($L56,'fat 2018'!$A:$H,8,FALSE),"") ->  | P56: =IF(L56<>"",VLOOKUP($L56,'fat 2018'!$A:$H,7,FALSE),"") ->  | Q56: =IF(L56<>"",VLOOKUP($L56,'protein 2018'!$A:$H,8,FALSE),"") ->  | R56: =IF(L56<>"",VLOOKUP($L56,'protein 2018'!$A:$H,7,FALSE),"") -> 
M57: =IF(L57<>"",VLOOKUP($L57,'milk yield 2018'!$A:$H,8,FALSE),"") ->  | N57: =IF(L57<>"",VLOOKUP($L57,'milk yield 2018'!$A:$H,7,FALSE),"") ->  | O57: =IF(L57<>"",VLOOKUP($L57,'fat 2018'!$A:$H,8,FALSE),"") ->  | P57: =IF(L57<>"",VLOOKUP($L57,'fat 2018'!$A:$H,7,FALSE),"") ->  | Q57: =IF(L57<>"",VLOOKUP($L57,'protein 2018'!$A:$H,8,FALSE),"") ->  | R57: =IF(L57<>"",VLOOKUP($L57,'protein 2018'!$A:$H,7,FALSE),"") -> 
M58: =IF(L58<>"",VLOOKUP($L58,'milk yield 2018'!$A:$H,8,FALSE),"") ->  | N58: =IF(L58<>"",VLOOKUP($L58,'milk yield 2018'!$A:$H,7,FALSE),"") ->  | O58: =IF(L58<>"",VLOOKUP($L58,'fat 2018'!$A:$H,8,FALSE),"") ->  | P58: =IF(L58<>"",VLOOKUP($L58,'fat 2018'!$A:$H,7,FALSE),"") ->  | Q58: =IF(L58<>"",VLOOKUP($L58,'protein 2018'!$A:$H,8,FALSE),"") ->  | R58: =IF(L58<>"",VLOOKUP($L58,'protein 2018'!$A:$H,7,FALSE),"") -> 
M59: =IF(L59<>"",VLOOKUP($L59,'milk yield 2018'!$A:$H,8,FALSE),"") ->  | N59: =IF(L59<>"",VLOOKUP($L59,'milk yield 2018'!$A:$H,7,FALSE),"") ->  | O59: =IF(L59<>"",VLOOKUP($L59,'fat 2018'!$A:$H,8,FALSE),"") ->  | P59: =IF(L59<>"",VLOOKUP($L59,'fat 2018'!$A:$H,7,FALSE),"") ->  | Q59: =IF(L59<>"",VLOOKUP($L59,'protein 2018'!$A:$H,8,FALSE),"") ->  | R59: =IF(L59<>"",VLOOKUP($L59,'protein 2018'!$A:$H,7,FALSE),"") -> 
M60: =IF(L60<>"",VLOOKUP($L60,'milk yield 2018'!$A:$H,8,FALSE),"") ->  | N60: =IF(L60<>"",VLOOKUP($L60,'milk yield 2018'!$A:$H,7,FALSE),"") ->  | O60: =IF(L60<>"",VLOOKUP($L60,'fat 2018'!$A:$H,8,FALSE),"") ->  | P60: =IF(L60<>"",VLOOKUP($L60,'fat 2018'!$A:$H,7,FALSE),"") ->  | Q60: =IF(L60<>"",VLOOKUP($L60,'protein 2018'!$A:$H,8,FALSE),"") ->  | R60: =IF(L60<>"",VLOOKUP($L60,'protein 2018'!$A:$H,7,FALSE),"") -> 
M61: =IF(L61<>"",VLOOKUP($L61,'milk yield 2018'!$A:$H,8,FALSE),"") ->  | N61: =IF(L61<>"",VLOOKUP($L61,'milk yield 2018'!$A:$H,7,FALSE),"") ->  | O61: =IF(L61<>"",VLOOKUP($L61,'fat 2018'!$A:$H,8,FALSE),"") ->  | P61: =IF(L61<>"",VLOOKUP($L61,'fat 2018'!$A:$H,7,FALSE),"") ->  | Q61: =IF(L61<>"",VLOOKUP($L61,'protein 2018'!$A:$H,8,FALSE),"") ->  | R61: =IF(L61<>"",VLOOKUP($L61,'protein 2018'!$A:$H,7,FALSE),"") -> 
M62: =IF(L62<>"",VLOOKUP($L62,'milk yield 2018'!$A:$H,8,FALSE),"") ->  | N62: =IF(L62<>"",VLOOKUP($L62,'milk yield 2018'!$A:$H,7,FALSE),"") ->  | O62: =IF(L62<>"",VLOOKUP($L62,'fat 2018'!$A:$H,8,FALSE),"") ->  | P62: =IF(L62<>"",VLOOKUP($L62,'fat 2018'!$A:$H,7,FALSE),"") ->  | Q62: =IF(L62<>"",VLOOKUP($L62,'protein 2018'!$A:$H,8,FALSE),"") ->  | R62: =IF(L62<>"",VLOOKUP($L62,'protein 2018'!$A:$H,7,FALSE),"") -> 
M63: =IF(L63<>"",VLOOKUP($L63,'milk yield 2018'!$A:$H,8,FALSE),"") ->  | N63: =IF(L63<>"",VLOOKUP($L63,'milk yield 2018'!$A:$H,7,FALSE),"") ->  | O63: =IF(L63<>"",VLOOKUP($L63,'fat 2018'!$A:$H,8,FALSE),"") ->  | P63: =IF(L63<>"",VLOOKUP($L63,'fat 2018'!$A:$H,7,FALSE),"") ->  | Q63: =IF(L63<>"",VLOOKUP($L63,'protein 2018'!$A:$H,8,FALSE),"") ->  | R63: =IF(L63<>"",VLOOKUP($L63,'protein 2018'!$A:$H,7,FALSE),"") -> 
M64: =IF(L64<>"",VLOOKUP($L64,'milk yield 2018'!$A:$H,8,FALSE),"") ->  | N64: =IF(L64<>"",VLOOKUP($L64,'milk yield 2018'!$A:$H,7,FALSE),"") ->  | O64: =IF(L64<>"",VLOOKUP($L64,'fat 2018'!$A:$H,8,FALSE),"") ->  | P64: =IF(L64<>"",VLOOKUP($L64,'fat 2018'!$A:$H,7,FALSE),"") ->  | Q64: =IF(L64<>"",VLOOKUP($L64,'protein 2018'!$A:$H,8,FALSE),"") ->  | R64: =IF(L64<>"",VLOOKUP($L64,'protein 2018'!$A:$H,7,FALSE),"") -> 
M65: =IF(L65<>"",VLOOKUP($L65,'milk yield 2018'!$A:$H,8,FALSE),"") ->  | N65: =IF(L65<>"",VLOOKUP($L65,'milk yield 2018'!$A:$H,7,FALSE),"") ->  | O65: =IF(L65<>"",VLOOKUP($L65,'fat 2018'!$A:$H,8,FALSE),"") ->  | P65: =IF(L65<>"",VLOOKUP($L65,'fat 2018'!$A:$H,7,FALSE),"") ->  | Q65: =IF(L65<>"",VLOOKUP($L65,'protein 2018'!$A:$H,8,FALSE),"") ->  | R65: =IF(L65<>"",VLOOKUP($L65,'protein 2018'!$A:$H,7,FALSE),"") -> 
M66: =IF(L66<>"",VLOOKUP($L66,'milk yield 2018'!$A:$H,8,FALSE),"") ->  | N66: =IF(L66<>"",VLOOKUP($L66,'milk yield 2018'!$A:$H,7,FALSE),"") ->  | O66: =IF(L66<>"",VLOOKUP($L66,'fat 2018'!$A:$H,8,FALSE),"") ->  | P66: =IF(L66<>"",VLOOKUP($L66,'fat 2018'!$A:$H,7,FALSE),"") ->  | Q66: =IF(L66<>"",VLOOKUP($L66,'protein 2018'!$A:$H,8,FALSE),"") ->  | R66: =IF(L66<>"",VLOOKUP($L66,'protein 2018'!$A:$H,7,FALSE),"") -> 
M67: =IF(L67<>"",VLOOKUP($L67,'milk yield 2018'!$A:$H,8,FALSE),"") ->  | N67: =IF(L67<>"",VLOOKUP($L67,'milk yield 2018'!$A:$H,7,FALSE),"") ->  | O67: =IF(L67<>"",VLOOKUP($L67,'fat 2018'!$A:$H,8,FALSE),"") ->  | P67: =IF(L67<>"",VLOOKUP($L67,'fat 2018'!$A:$H,7,FALSE),"") ->  | Q67: =IF(L67<>"",VLOOKUP($L67,'protein 2018'!$A:$H,8,FALSE),"") ->  | R67: =IF(L67<>"",VLOOKUP($L67,'protein 2018'!$A:$H,7,FALSE),"") -> 
M68: =IF(L68<>"",VLOOKUP($L68,'milk yield 2018'!$A:$H,8,FALSE),"") ->  | N68: =IF(L68<>"",VLOOKUP($L68,'milk yield 2018'!$A:$H,7,FALSE),"") ->  | O68: =IF(L68<>"",VLOOKUP($L68,'fat 2018'!$A:$H,8,FALSE),"") ->  | P68: =IF(L68<>"",VLOOKUP($L68,'fat 2018'!$A:$H,7,FALSE),"") ->  | Q68: =IF(L68<>"",VLOOKUP($L68,'protein 2018'!$A:$H,8,FALSE),"") ->  | R68: =IF(L68<>"",VLOOKUP($L68,'protein 2018'!$A:$H,7,FALSE),"") -> 
M69: =IF(L69<>"",VLOOKUP($L69,'milk yield 2018'!$A:$H,8,FALSE),"") ->  | N69: =IF(L69<>"",VLOOKUP($L69,'milk yield 2018'!$A:$H,7,FALSE),"") ->  | O69: =IF(L69<>"",VLOOKUP($L69,'fat 2018'!$A:$H,8,FALSE),"") ->  | P69: =IF(L69<>"",VLOOKUP($L69,'fat 2018'!$A:$H,7,FALSE),"") ->  | Q69: =IF(L69<>"",VLOOKUP($L69,'protein 2018'!$A:$H,8,FALSE),"") ->  | R69: =IF(L69<>"",VLOOKUP($L69,'protein 2018'!$A:$H,7,FALSE),"") -> 
M70: =IF(L70<>"",VLOOKUP($L70,'milk yield 2018'!$A:$H,8,FALSE),"") ->  | N70: =IF(L70<>"",VLOOKUP($L70,'milk yield 2018'!$A:$H,7,FALSE),"") ->  | O70: =IF(L70<>"",VLOOKUP($L70,'fat 2018'!$A:$H,8,FALSE),"") ->  | P70: =IF(L70<>"",VLOOKUP($L70,'fat 2018'!$A:$H,7,FALSE),"") ->  | Q70: =IF(L70<>"",VLOOKUP($L70,'protein 2018'!$A:$H,8,FALSE),"") ->  | R70: =IF(L70<>"",VLOOKUP($L70,'protein 2018'!$A:$H,7,FALSE),"") -> 
M71: =IF(L71<>"",VLOOKUP($L71,'milk yield 2018'!$A:$H,8,FALSE),"") ->  | N71: =IF(L71<>"",VLOOKUP($L71,'milk yield 2018'!$A:$H,7,FALSE),"") ->  | O71: =IF(L71<>"",VLOOKUP($L71,'fat 2018'!$A:$H,8,FALSE),"") ->  | P71: =IF(L71<>"",VLOOKUP($L71,'fat 2018'!$A:$H,7,FALSE),"") ->  | Q71: =IF(L71<>"",VLOOKUP($L71,'protein 2018'!$A:$H,8,FALSE),"") ->  | R71: =IF(L71<>"",VLOOKUP($L71,'protein 2018'!$A:$H,7,FALSE),"") -> 
M72: =IF(L72<>"",VLOOKUP($L72,'milk yield 2018'!$A:$H,8,FALSE),"") ->  | N72: =IF(L72<>"",VLOOKUP($L72,'milk yield 2018'!$A:$H,7,FALSE),"") ->  | O72: =IF(L72<>"",VLOOKUP($L72,'fat 2018'!$A:$H,8,FALSE),"") ->  | P72: =IF(L72<>"",VLOOKUP($L72,'fat 2018'!$A:$H,7,FALSE),"") ->  | Q72: =IF(L72<>"",VLOOKUP($L72,'protein 2018'!$A:$H,8,FALSE),"") ->  | R72: =IF(L72<>"",VLOOKUP($L72,'protein 2018'!$A:$H,7,FALSE),"") -> 
M73: =IF(L73<>"",VLOOKUP($L73,'milk yield 2018'!$A:$H,8,FALSE),"") ->  | N73: =IF(L73<>"",VLOOKUP($L73,'milk yield 2018'!$A:$H,7,FALSE),"") ->  | O73: =IF(L73<>"",VLOOKUP($L73,'fat 2018'!$A:$H,8,FALSE),"") ->  | P73: =IF(L73<>"",VLOOKUP($L73,'fat 2018'!$A:$H,7,FALSE),"") ->  | Q73: =IF(L73<>"",VLOOKUP($L73,'protein 2018'!$A:$H,8,FALSE),"") ->  | R73: =IF(L73<>"",VLOOKUP($L73,'protein 2018'!$A:$H,7,FALSE),"") -> 
M74: =IF(L74<>"",VLOOKUP($L74,'milk yield 2018'!$A:$H,8,FALSE),"") ->  | N74: =IF(L74<>"",VLOOKUP($L74,'milk yield 2018'!$A:$H,7,FALSE),"") ->  | O74: =IF(L74<>"",VLOOKUP($L74,'fat 2018'!$A:$H,8,FALSE),"") ->  | P74: =IF(L74<>"",VLOOKUP($L74,'fat 2018'!$A:$H,7,FALSE),"") ->  | Q74: =IF(L74<>"",VLOOKUP($L74,'protein 2018'!$A:$H,8,FALSE),"") ->  | R74: =IF(L74<>"",VLOOKUP($L74,'protein 2018'!$A:$H,7,FALSE),"") -> 
M75: =IF(L75<>"",VLOOKUP($L75,'milk yield 2018'!$A:$H,8,FALSE),"") ->  | N75: =IF(L75<>"",VLOOKUP($L75,'milk yield 2018'!$A:$H,7,FALSE),"") ->  | O75: =IF(L75<>"",VLOOKUP($L75,'fat 2018'!$A:$H,8,FALSE),"") ->  | P75: =IF(L75<>"",VLOOKUP($L75,'fat 2018'!$A:$H,7,FALSE),"") ->  | Q75: =IF(L75<>"",VLOOKUP($L75,'protein 2018'!$A:$H,8,FALSE),"") ->  | R75: =IF(L75<>"",VLOOKUP($L75,'protein 2018'!$A:$H,7,FALSE),"") -> 
M76: =IF(L76<>"",VLOOKUP($L76,'milk yield 2018'!$A:$H,8,FALSE),"") ->  | N76: =IF(L76<>"",VLOOKUP($L76,'milk yield 2018'!$A:$H,7,FALSE),"") ->  | O76: =IF(L76<>"",VLOOKUP($L76,'fat 2018'!$A:$H,8,FALSE),"") ->  | P76: =IF(L76<>"",VLOOKUP($L76,'fat 2018'!$A:$H,7,FALSE),"") ->  | Q76: =IF(L76<>"",VLOOKUP($L76,'protein 2018'!$A:$H,8,FALSE),"") ->  | R76: =IF(L76<>"",VLOOKUP($L76,'protein 2018'!$A:$H,7,FALSE),"") -> 
M77: =IF(L77<>"",VLOOKUP($L77,'milk yield 2018'!$A:$H,8,FALSE),"") ->  | N77: =IF(L77<>"",VLOOKUP($L77,'milk yield 2018'!$A:$H,7,FALSE),"") ->  | O77: =IF(L77<>"",VLOOKUP($L77,'fat 2018'!$A:$H,8,FALSE),"") ->  | P77: =IF(L77<>"",VLOOKUP($L77,'fat 2018'!$A:$H,7,FALSE),"") ->  | Q77: =IF(L77<>"",VLOOKUP($L77,'protein 2018'!$A:$H,8,FALSE),"") ->  | R77: =IF(L77<>"",VLOOKUP($L77,'protein 2018'!$A:$H,7,FALSE),"") -> 
M78: =IF(L78<>"",VLOOKUP($L78,'milk yield 2018'!$A:$H,8,FALSE),"") ->  | N78: =IF(L78<>"",VLOOKUP($L78,'milk yield 2018'!$A:$H,7,FALSE),"") ->  | O78: =IF(L78<>"",VLOOKUP($L78,'fat 2018'!$A:$H,8,FALSE),"") ->  | P78: =IF(L78<>"",VLOOKUP($L78,'fat 2018'!$A:$H,7,FALSE),"") ->  | Q78: =IF(L78<>"",VLOOKUP($L78,'protein 2018'!$A:$H,8,FALSE),"") ->  | R78: =IF(L78<>"",VLOOKUP($L78,'protein 2018'!$A:$H,7,FALSE),"") -> 
M79: =IF(L79<>"",VLOOKUP($L79,'milk yield 2018'!$A:$H,8,FALSE),"") ->  | N79: =IF(L79<>"",VLOOKUP($L79,'milk yield 2018'!$A:$H,7,FALSE),"") ->  | O79: =IF(L79<>"",VLOOKUP($L79,'fat 2018'!$A:$H,8,FALSE),"") ->  | P79: =IF(L79<>"",VLOOKUP($L79,'fat 2018'!$A:$H,7,FALSE),"") ->  | Q79: =IF(L79<>"",VLOOKUP($L79,'protein 2018'!$A:$H,8,FALSE),"") ->  | R79: =IF(L79<>"",VLOOKUP($L79,'protein 2018'!$A:$H,7,FALSE),"") -> 
M80: =IF(L80<>"",VLOOKUP($L80,'milk yield 2018'!$A:$H,8,FALSE),"") ->  | N80: =IF(L80<>"",VLOOKUP($L80,'milk yield 2018'!$A:$H,7,FALSE),"") ->  | O80: =IF(L80<>"",VLOOKUP($L80,'fat 2018'!$A:$H,8,FALSE),"") ->  | P80: =IF(L80<>"",VLOOKUP($L80,'fat 2018'!$A:$H,7,FALSE),"") ->  | Q80: =IF(L80<>"",VLOOKUP($L80,'protein 2018'!$A:$H,8,FALSE),"") ->  | R80: =IF(L80<>"",VLOOKUP($L80,'protein 2018'!$A:$H,7,FALSE),"") -> 
M81: =IF(L81<>"",VLOOKUP($L81,'milk yield 2018'!$A:$H,8,FALSE),"") ->  | N81: =IF(L81<>"",VLOOKUP($L81,'milk yield 2018'!$A:$H,7,FALSE),"") ->  | O81: =IF(L81<>"",VLOOKUP($L81,'fat 2018'!$A:$H,8,FALSE),"") ->  | P81: =IF(L81<>"",VLOOKUP($L81,'fat 2018'!$A:$H,7,FALSE),"") ->  | Q81: =IF(L81<>"",VLOOKUP($L81,'protein 2018'!$A:$H,8,FALSE),"") ->  | R81: =IF(L81<>"",VLOOKUP($L81,'protein 2018'!$A:$H,7,FALSE),"") -> 
M82: =IF(L82<>"",VLOOKUP($L82,'milk yield 2018'!$A:$H,8,FALSE),"") ->  | N82: =IF(L82<>"",VLOOKUP($L82,'milk yield 2018'!$A:$H,7,FALSE),"") ->  | O82: =IF(L82<>"",VLOOKUP($L82,'fat 2018'!$A:$H,8,FALSE),"") ->  | P82: =IF(L82<>"",VLOOKUP($L82,'fat 2018'!$A:$H,7,FALSE),"") ->  | Q82: =IF(L82<>"",VLOOKUP($L82,'protein 2018'!$A:$H,8,FALSE),"") ->  | R82: =IF(L82<>"",VLOOKUP($L82,'protein 2018'!$A:$H,7,FALSE),"") -> 
K83: =IF(B83<>"",IF(($E$8-$B83)<1,1,IF(($E$8-$B83)>360,7,(INT((1+($E$8-$B83)/60))))),"") ->  | L83: =IF(AND(J83<>"",K83<>""),$E$9*1000+$J83*100+$C$15*10+$K83,"") ->  | M83: =IF(L83<>"",VLOOKUP($L83,'milk yield 2018'!$A:$H,8,FALSE),"") ->  | N83: =IF(L83<>"",VLOOKUP($L83,'milk yield 2018'!$A:$H,7,FALSE),"") ->  | O83: =IF(L83<>"",VLOOKUP($L83,'fat 2018'!$A:$H,8,FALSE),"") ->  | P83: =IF(L83<>"",VLOOKUP($L83,'fat 2018'!$A:$H,7,FALSE),"") ->  | Q83: =IF(L83<>"",VLOOKUP($L83,'protein 2018'!$A:$H,8,FALSE),"") ->  | R83: =IF(L83<>"",VLOOKUP($L83,'protein 2018'!$A:$H,7,FALSE),"") -> 
J84: =IF($C84=1,1,IF($C84>1,2," ")) ->  | M84: =IF(L84<>"",VLOOKUP($L84,'milk yield 2018'!$A:$H,8,FALSE),"") ->  | N84: =IF(L84<>"",VLOOKUP($L84,'milk yield 2018'!$A:$H,7,FALSE),"") ->  | O84: =IF(L84<>"",VLOOKUP($L84,'fat 2018'!$A:$H,8,FALSE),"") ->  | P84: =IF(L84<>"",VLOOKUP($L84,'fat 2018'!$A:$H,7,FALSE),"") ->  | Q84: =IF(L84<>"",VLOOKUP($L84,'protein 2018'!$A:$H,8,FALSE),"") ->  | R84: =IF(L84<>"",VLOOKUP($L84,'protein 2018'!$A:$H,7,FALSE),"") -> 
M85: =IF(L85<>"",VLOOKUP($L85,'milk yield 2018'!$A:$H,8,FALSE),"") ->  | N85: =IF(L85<>"",VLOOKUP($L85,'milk yield 2018'!$A:$H,7,FALSE),"") ->  | O85: =IF(L85<>"",VLOOKUP($L85,'fat 2018'!$A:$H,8,FALSE),"") ->  | P85: =IF(L85<>"",VLOOKUP($L85,'fat 2018'!$A:$H,7,FALSE),"") ->  | Q85: =IF(L85<>"",VLOOKUP($L85,'protein 2018'!$A:$H,8,FALSE),"") ->  | R85: =IF(L85<>"",VLOOKUP($L85,'protein 2018'!$A:$H,7,FALSE),"") -> 
M86: =IF(L86<>"",VLOOKUP($L86,'milk yield 2018'!$A:$H,8,FALSE),"") ->  | N86: =IF(L86<>"",VLOOKUP($L86,'milk yield 2018'!$A:$H,7,FALSE),"") ->  | O86: =IF(L86<>"",VLOOKUP($L86,'fat 2018'!$A:$H,8,FALSE),"") ->  | P86: =IF(L86<>"",VLOOKUP($L86,'fat 2018'!$A:$H,7,FALSE),"") ->  | Q86: =IF(L86<>"",VLOOKUP($L86,'protein 2018'!$A:$H,8,FALSE),"") ->  | R86: =IF(L86<>"",VLOOKUP($L86,'protein 2018'!$A:$H,7,FALSE),"") -> 
M87: =IF(L87<>"",VLOOKUP($L87,'milk yield 2018'!$A:$H,8,FALSE),"") ->  | N87: =IF(L87<>"",VLOOKUP($L87,'milk yield 2018'!$A:$H,7,FALSE),"") ->  | O87: =IF(L87<>"",VLOOKUP($L87,'fat 2018'!$A:$H,8,FALSE),"") ->  | P87: =IF(L87<>"",VLOOKUP($L87,'fat 2018'!$A:$H,7,FALSE),"") ->  | Q87: =IF(L87<>"",VLOOKUP($L87,'protein 2018'!$A:$H,8,FALSE),"") ->  | R87: =IF(L87<>"",VLOOKUP($L87,'protein 2018'!$A:$H,7,FALSE),"") -> 
M88: =IF(L88<>"",VLOOKUP($L88,'milk yield 2018'!$A:$H,8,FALSE),"") ->  | N88: =IF(L88<>"",VLOOKUP($L88,'milk yield 2018'!$A:$H,7,FALSE),"") ->  | O88: =IF(L88<>"",VLOOKUP($L88,'fat 2018'!$A:$H,8,FALSE),"") ->  | P88: =IF(L88<>"",VLOOKUP($L88,'fat 2018'!$A:$H,7,FALSE),"") ->  | Q88: =IF(L88<>"",VLOOKUP($L88,'protein 2018'!$A:$H,8,FALSE),"") ->  | R88: =IF(L88<>"",VLOOKUP($L88,'protein 2018'!$A:$H,7,FALSE),"") -> 
M89: =IF(L89<>"",VLOOKUP($L89,'milk yield 2018'!$A:$H,8,FALSE),"") ->  | N89: =IF(L89<>"",VLOOKUP($L89,'milk yield 2018'!$A:$H,7,FALSE),"") ->  | O89: =IF(L89<>"",VLOOKUP($L89,'fat 2018'!$A:$H,8,FALSE),"") ->  | P89: =IF(L89<>"",VLOOKUP($L89,'fat 2018'!$A:$H,7,FALSE),"") ->  | Q89: =IF(L89<>"",VLOOKUP($L89,'protein 2018'!$A:$H,8,FALSE),"") ->  | R89: =IF(L89<>"",VLOOKUP($L89,'protein 2018'!$A:$H,7,FALSE),"") -> 
M90: =IF(L90<>"",VLOOKUP($L90,'milk yield 2018'!$A:$H,8,FALSE),"") ->  | N90: =IF(L90<>"",VLOOKUP($L90,'milk yield 2018'!$A:$H,7,FALSE),"") ->  | O90: =IF(L90<>"",VLOOKUP($L90,'fat 2018'!$A:$H,8,FALSE),"") ->  | P90: =IF(L90<>"",VLOOKUP($L90,'fat 2018'!$A:$H,7,FALSE),"") ->  | Q90: =IF(L90<>"",VLOOKUP($L90,'protein 2018'!$A:$H,8,FALSE),"") ->  | R90: =IF(L90<>"",VLOOKUP($L90,'protein 2018'!$A:$H,7,FALSE),"") -> 
M91: =IF(L91<>"",VLOOKUP($L91,'milk yield 2018'!$A:$H,8,FALSE),"") ->  | N91: =IF(L91<>"",VLOOKUP($L91,'milk yield 2018'!$A:$H,7,FALSE),"") ->  | O91: =IF(L91<>"",VLOOKUP($L91,'fat 2018'!$A:$H,8,FALSE),"") ->  | P91: =IF(L91<>"",VLOOKUP($L91,'fat 2018'!$A:$H,7,FALSE),"") ->  | Q91: =IF(L91<>"",VLOOKUP($L91,'protein 2018'!$A:$H,8,FALSE),"") ->  | R91: =IF(L91<>"",VLOOKUP($L91,'protein 2018'!$A:$H,7,FALSE),"") -> 
M92: =IF(L92<>"",VLOOKUP($L92,'milk yield 2018'!$A:$H,8,FALSE),"") ->  | N92: =IF(L92<>"",VLOOKUP($L92,'milk yield 2018'!$A:$H,7,FALSE),"") ->  | O92: =IF(L92<>"",VLOOKUP($L92,'fat 2018'!$A:$H,8,FALSE),"") ->  | P92: =IF(L92<>"",VLOOKUP($L92,'fat 2018'!$A:$H,7,FALSE),"") ->  | Q92: =IF(L92<>"",VLOOKUP($L92,'protein 2018'!$A:$H,8,FALSE),"") ->  | R92: =IF(L92<>"",VLOOKUP($L92,'protein 2018'!$A:$H,7,FALSE),"") -> 
M93: =IF(L93<>"",VLOOKUP($L93,'milk yield 2018'!$A:$H,8,FALSE),"") ->  | N93: =IF(L93<>"",VLOOKUP($L93,'milk yield 2018'!$A:$H,7,FALSE),"") ->  | O93: =IF(L93<>"",VLOOKUP($L93,'fat 2018'!$A:$H,8,FALSE),"") ->  | P93: =IF(L93<>"",VLOOKUP($L93,'fat 2018'!$A:$H,7,FALSE),"") ->  | Q93: =IF(L93<>"",VLOOKUP($L93,'protein 2018'!$A:$H,8,FALSE),"") ->  | R93: =IF(L93<>"",VLOOKUP($L93,'protein 2018'!$A:$H,7,FALSE),"") -> 
M94: =IF(L94<>"",VLOOKUP($L94,'milk yield 2018'!$A:$H,8,FALSE),"") ->  | N94: =IF(L94<>"",VLOOKUP($L94,'milk yield 2018'!$A:$H,7,FALSE),"") ->  | O94: =IF(L94<>"",VLOOKUP($L94,'fat 2018'!$A:$H,8,FALSE),"") ->  | P94: =IF(L94<>"",VLOOKUP($L94,'fat 2018'!$A:$H,7,FALSE),"") ->  | Q94: =IF(L94<>"",VLOOKUP($L94,'protein 2018'!$A:$H,8,FALSE),"") ->  | R94: =IF(L94<>"",VLOOKUP($L94,'protein 2018'!$A:$H,7,FALSE),"") -> 
M95: =IF(L95<>"",VLOOKUP($L95,'milk yield 2018'!$A:$H,8,FALSE),"") ->  | N95: =IF(L95<>"",VLOOKUP($L95,'milk yield 2018'!$A:$H,7,FALSE),"") ->  | O95: =IF(L95<>"",VLOOKUP($L95,'fat 2018'!$A:$H,8,FALSE),"") ->  | P95: =IF(L95<>"",VLOOKUP($L95,'fat 2018'!$A:$H,7,FALSE),"") ->  | Q95: =IF(L95<>"",VLOOKUP($L95,'protein 2018'!$A:$H,8,FALSE),"") ->  | R95: =IF(L95<>"",VLOOKUP($L95,'protein 2018'!$A:$H,7,FALSE),"") -> 
M96: =IF(L96<>"",VLOOKUP($L96,'milk yield 2018'!$A:$H,8,FALSE),"") ->  | N96: =IF(L96<>"",VLOOKUP($L96,'milk yield 2018'!$A:$H,7,FALSE),"") ->  | O96: =IF(L96<>"",VLOOKUP($L96,'fat 2018'!$A:$H,8,FALSE),"") ->  | P96: =IF(L96<>"",VLOOKUP($L96,'fat 2018'!$A:$H,7,FALSE),"") ->  | Q96: =IF(L96<>"",VLOOKUP($L96,'protein 2018'!$A:$H,8,FALSE),"") ->  | R96: =IF(L96<>"",VLOOKUP($L96,'protein 2018'!$A:$H,7,FALSE),"") -> 
M97: =IF(L97<>"",VLOOKUP($L97,'milk yield 2018'!$A:$H,8,FALSE),"") ->  | N97: =IF(L97<>"",VLOOKUP($L97,'milk yield 2018'!$A:$H,7,FALSE),"") ->  | O97: =IF(L97<>"",VLOOKUP($L97,'fat 2018'!$A:$H,8,FALSE),"") ->  | P97: =IF(L97<>"",VLOOKUP($L97,'fat 2018'!$A:$H,7,FALSE),"") ->  | Q97: =IF(L97<>"",VLOOKUP($L97,'protein 2018'!$A:$H,8,FALSE),"") ->  | R97: =IF(L97<>"",VLOOKUP($L97,'protein 2018'!$A:$H,7,FALSE),"") -> 
M98: =IF(L98<>"",VLOOKUP($L98,'milk yield 2018'!$A:$H,8,FALSE),"") ->  | N98: =IF(L98<>"",VLOOKUP($L98,'milk yield 2018'!$A:$H,7,FALSE),"") ->  | O98: =IF(L98<>"",VLOOKUP($L98,'fat 2018'!$A:$H,8,FALSE),"") ->  | P98: =IF(L98<>"",VLOOKUP($L98,'fat 2018'!$A:$H,7,FALSE),"") ->  | Q98: =IF(L98<>"",VLOOKUP($L98,'protein 2018'!$A:$H,8,FALSE),"") ->  | R98: =IF(L98<>"",VLOOKUP($L98,'protein 2018'!$A:$H,7,FALSE),"") -> 
M99: =IF(L99<>"",VLOOKUP($L99,'milk yield 2018'!$A:$H,8,FALSE),"") ->  | N99: =IF(L99<>"",VLOOKUP($L99,'milk yield 2018'!$A:$H,7,FALSE),"") ->  | O99: =IF(L99<>"",VLOOKUP($L99,'fat 2018'!$A:$H,8,FALSE),"") ->  | P99: =IF(L99<>"",VLOOKUP($L99,'fat 2018'!$A:$H,7,FALSE),"") ->  | Q99: =IF(L99<>"",VLOOKUP($L99,'protein 2018'!$A:$H,8,FALSE),"") ->  | R99: =IF(L99<>"",VLOOKUP($L99,'protein 2018'!$A:$H,7,FALSE),"") -> 
M100: =IF(L100<>"",VLOOKUP($L100,'milk yield 2018'!$A:$H,8,FALSE),"") ->  | N100: =IF(L100<>"",VLOOKUP($L100,'milk yield 2018'!$A:$H,7,FALSE),"") ->  | O100: =IF(L100<>"",VLOOKUP($L100,'fat 2018'!$A:$H,8,FALSE),"") ->  | P100: =IF(L100<>"",VLOOKUP($L100,'fat 2018'!$A:$H,7,FALSE),"") ->  | Q100: =IF(L100<>"",VLOOKUP($L100,'protein 2018'!$A:$H,8,FALSE),"") ->  | R100: =IF(L100<>"",VLOOKUP($L100,'protein 2018'!$A:$H,7,FALSE),"") -> 
M101: =IF(L101<>"",VLOOKUP($L101,'milk yield 2018'!$A:$H,8,FALSE),"") ->  | N101: =IF(L101<>"",VLOOKUP($L101,'milk yield 2018'!$A:$H,7,FALSE),"") ->  | O101: =IF(L101<>"",VLOOKUP($L101,'fat 2018'!$A:$H,8,FALSE),"") ->  | P101: =IF(L101<>"",VLOOKUP($L101,'fat 2018'!$A:$H,7,FALSE),"") ->  | Q101: =IF(L101<>"",VLOOKUP($L101,'protein 2018'!$A:$H,8,FALSE),"") ->  | R101: =IF(L101<>"",VLOOKUP($L101,'protein 2018'!$A:$H,7,FALSE),"") -> 
M102: =IF(L102<>"",VLOOKUP($L102,'milk yield 2018'!$A:$H,8,FALSE),"") ->  | N102: =IF(L102<>"",VLOOKUP($L102,'milk yield 2018'!$A:$H,7,FALSE),"") ->  | O102: =IF(L102<>"",VLOOKUP($L102,'fat 2018'!$A:$H,8,FALSE),"") ->  | P102: =IF(L102<>"",VLOOKUP($L102,'fat 2018'!$A:$H,7,FALSE),"") ->  | Q102: =IF(L102<>"",VLOOKUP($L102,'protein 2018'!$A:$H,8,FALSE),"") ->  | R102: =IF(L102<>"",VLOOKUP($L102,'protein 2018'!$A:$H,7,FALSE),"") -> 
M103: =IF(L103<>"",VLOOKUP($L103,'milk yield 2018'!$A:$H,8,FALSE),"") ->  | N103: =IF(L103<>"",VLOOKUP($L103,'milk yield 2018'!$A:$H,7,FALSE),"") ->  | O103: =IF(L103<>"",VLOOKUP($L103,'fat 2018'!$A:$H,8,FALSE),"") ->  | P103: =IF(L103<>"",VLOOKUP($L103,'fat 2018'!$A:$H,7,FALSE),"") ->  | Q103: =IF(L103<>"",VLOOKUP($L103,'protein 2018'!$A:$H,8,FALSE),"") ->  | R103: =IF(L103<>"",VLOOKUP($L103,'protein 2018'!$A:$H,7,FALSE),"") -> 
M104: =IF(L104<>"",VLOOKUP($L104,'milk yield 2018'!$A:$H,8,FALSE),"") ->  | N104: =IF(L104<>"",VLOOKUP($L104,'milk yield 2018'!$A:$H,7,FALSE),"") ->  | O104: =IF(L104<>"",VLOOKUP($L104,'fat 2018'!$A:$H,8,FALSE),"") ->  | P104: =IF(L104<>"",VLOOKUP($L104,'fat 2018'!$A:$H,7,FALSE),"") ->  | Q104: =IF(L104<>"",VLOOKUP($L104,'protein 2018'!$A:$H,8,FALSE),"") ->  | R104: =IF(L104<>"",VLOOKUP($L104,'protein 2018'!$A:$H,7,FALSE),"") -> 
M105: =IF(L105<>"",VLOOKUP($L105,'milk yield 2018'!$A:$H,8,FALSE),"") ->  | N105: =IF(L105<>"",VLOOKUP($L105,'milk yield 2018'!$A:$H,7,FALSE),"") ->  | O105: =IF(L105<>"",VLOOKUP($L105,'fat 2018'!$A:$H,8,FALSE),"") ->  | P105: =IF(L105<>"",VLOOKUP($L105,'fat 2018'!$A:$H,7,FALSE),"") ->  | Q105: =IF(L105<>"",VLOOKUP($L105,'protein 2018'!$A:$H,8,FALSE),"") ->  | R105: =IF(L105<>"",VLOOKUP($L105,'protein 2018'!$A:$H,7,FALSE),"") -> 
M106: =IF(L106<>"",VLOOKUP($L106,'milk yield 2018'!$A:$H,8,FALSE),"") ->  | N106: =IF(L106<>"",VLOOKUP($L106,'milk yield 2018'!$A:$H,7,FALSE),"") ->  | O106: =IF(L106<>"",VLOOKUP($L106,'fat 2018'!$A:$H,8,FALSE),"") ->  | P106: =IF(L106<>"",VLOOKUP($L106,'fat 2018'!$A:$H,7,FALSE),"") ->  | Q106: =IF(L106<>"",VLOOKUP($L106,'protein 2018'!$A:$H,8,FALSE),"") ->  | R106: =IF(L106<>"",VLOOKUP($L106,'protein 2018'!$A:$H,7,FALSE),"") -> 
M107: =IF(L107<>"",VLOOKUP($L107,'milk yield 2018'!$A:$H,8,FALSE),"") ->  | N107: =IF(L107<>"",VLOOKUP($L107,'milk yield 2018'!$A:$H,7,FALSE),"") ->  | O107: =IF(L107<>"",VLOOKUP($L107,'fat 2018'!$A:$H,8,FALSE),"") ->  | P107: =IF(L107<>"",VLOOKUP($L107,'fat 2018'!$A:$H,7,FALSE),"") ->  | Q107: =IF(L107<>"",VLOOKUP($L107,'protein 2018'!$A:$H,8,FALSE),"") ->  | R107: =IF(L107<>"",VLOOKUP($L107,'protein 2018'!$A:$H,7,FALSE),"") -> 
M108: =IF(L108<>"",VLOOKUP($L108,'milk yield 2018'!$A:$H,8,FALSE),"") ->  | N108: =IF(L108<>"",VLOOKUP($L108,'milk yield 2018'!$A:$H,7,FALSE),"") ->  | O108: =IF(L108<>"",VLOOKUP($L108,'fat 2018'!$A:$H,8,FALSE),"") ->  | P108: =IF(L108<>"",VLOOKUP($L108,'fat 2018'!$A:$H,7,FALSE),"") ->  | Q108: =IF(L108<>"",VLOOKUP($L108,'protein 2018'!$A:$H,8,FALSE),"") ->  | R108: =IF(L108<>"",VLOOKUP($L108,'protein 2018'!$A:$H,7,FALSE),"") -> 
M109: =IF(L109<>"",VLOOKUP($L109,'milk yield 2018'!$A:$H,8,FALSE),"") ->  | N109: =IF(L109<>"",VLOOKUP($L109,'milk yield 2018'!$A:$H,7,FALSE),"") ->  | O109: =IF(L109<>"",VLOOKUP($L109,'fat 2018'!$A:$H,8,FALSE),"") ->  | P109: =IF(L109<>"",VLOOKUP($L109,'fat 2018'!$A:$H,7,FALSE),"") ->  | Q109: =IF(L109<>"",VLOOKUP($L109,'protein 2018'!$A:$H,8,FALSE),"") ->  | R109: =IF(L109<>"",VLOOKUP($L109,'protein 2018'!$A:$H,7,FALSE),"") -> 
M110: =IF(L110<>"",VLOOKUP($L110,'milk yield 2018'!$A:$H,8,FALSE),"") ->  | N110: =IF(L110<>"",VLOOKUP($L110,'milk yield 2018'!$A:$H,7,FALSE),"") ->  | O110: =IF(L110<>"",VLOOKUP($L110,'fat 2018'!$A:$H,8,FALSE),"") ->  | P110: =IF(L110<>"",VLOOKUP($L110,'fat 2018'!$A:$H,7,FALSE),"") ->  | Q110: =IF(L110<>"",VLOOKUP($L110,'protein 2018'!$A:$H,8,FALSE),"") ->  | R110: =IF(L110<>"",VLOOKUP($L110,'protein 2018'!$A:$H,7,FALSE),"") -> 
M111: =IF(L111<>"",VLOOKUP($L111,'milk yield 2018'!$A:$H,8,FALSE),"") ->  | N111: =IF(L111<>"",VLOOKUP($L111,'milk yield 2018'!$A:$H,7,FALSE),"") ->  | O111: =IF(L111<>"",VLOOKUP($L111,'fat 2018'!$A:$H,8,FALSE),"") ->  | P111: =IF(L111<>"",VLOOKUP($L111,'fat 2018'!$A:$H,7,FALSE),"") ->  | Q111: =IF(L111<>"",VLOOKUP($L111,'protein 2018'!$A:$H,8,FALSE),"") ->  | R111: =IF(L111<>"",VLOOKUP($L111,'protein 2018'!$A:$H,7,FALSE),"") -> 
M112: =IF(L112<>"",VLOOKUP($L112,'milk yield 2018'!$A:$H,8,FALSE),"") ->  | N112: =IF(L112<>"",VLOOKUP($L112,'milk yield 2018'!$A:$H,7,FALSE),"") ->  | O112: =IF(L112<>"",VLOOKUP($L112,'fat 2018'!$A:$H,8,FALSE),"") ->  | P112: =IF(L112<>"",VLOOKUP($L112,'fat 2018'!$A:$H,7,FALSE),"") ->  | Q112: =IF(L112<>"",VLOOKUP($L112,'protein 2018'!$A:$H,8,FALSE),"") ->  | R112: =IF(L112<>"",VLOOKUP($L112,'protein 2018'!$A:$H,7,FALSE),"") -> 
M113: =IF(L113<>"",VLOOKUP($L113,'milk yield 2018'!$A:$H,8,FALSE),"") ->  | N113: =IF(L113<>"",VLOOKUP($L113,'milk yield 2018'!$A:$H,7,FALSE),"") ->  | O113: =IF(L113<>"",VLOOKUP($L113,'fat 2018'!$A:$H,8,FALSE),"") ->  | P113: =IF(L113<>"",VLOOKUP($L113,'fat 2018'!$A:$H,7,FALSE),"") ->  | Q113: =IF(L113<>"",VLOOKUP($L113,'protein 2018'!$A:$H,8,FALSE),"") ->  | R113: =IF(L113<>"",VLOOKUP($L113,'protein 2018'!$A:$H,7,FALSE),"") -> 
M114: =IF(L114<>"",VLOOKUP($L114,'milk yield 2018'!$A:$H,8,FALSE),"") ->  | N114: =IF(L114<>"",VLOOKUP($L114,'milk yield 2018'!$A:$H,7,FALSE),"") ->  | O114: =IF(L114<>"",VLOOKUP($L114,'fat 2018'!$A:$H,8,FALSE),"") ->  | P114: =IF(L114<>"",VLOOKUP($L114,'fat 2018'!$A:$H,7,FALSE),"") ->  | Q114: =IF(L114<>"",VLOOKUP($L114,'protein 2018'!$A:$H,8,FALSE),"") ->  | R114: =IF(L114<>"",VLOOKUP($L114,'protein 2018'!$A:$H,7,FALSE),"") -> 
K115: =IF(B115<>"",IF(($E$8-$B115)<1,1,IF(($E$8-$B115)>360,7,(INT((1+($E$8-$B115)/60))))),"") ->  | L115: =IF(AND(J115<>"",K115<>""),$E$9*1000+$J115*100+$C$15*10+$K115,"") ->  | M115: =IF(L115<>"",VLOOKUP($L115,'milk yield 2018'!$A:$H,8,FALSE),"") ->  | N115: =IF(L115<>"",VLOOKUP($L115,'milk yield 2018'!$A:$H,7,FALSE),"") ->  | O115: =IF(L115<>"",VLOOKUP($L115,'fat 2018'!$A:$H,8,FALSE),"") ->  | P115: =IF(L115<>"",VLOOKUP($L115,'fat 2018'!$A:$H,7,FALSE),"") ->  | Q115: =IF(L115<>"",VLOOKUP($L115,'protein 2018'!$A:$H,8,FALSE),"") ->  | R115: =IF(L115<>"",VLOOKUP($L115,'protein 2018'!$A:$H,7,FALSE),"") -> 
M116: =IF(L116<>"",VLOOKUP($L116,'milk yield 2018'!$A:$H,8,FALSE),"") ->  | N116: =IF(L116<>"",VLOOKUP($L116,'milk yield 2018'!$A:$H,7,FALSE),"") ->  | O116: =IF(L116<>"",VLOOKUP($L116,'fat 2018'!$A:$H,8,FALSE),"") ->  | P116: =IF(L116<>"",VLOOKUP($L116,'fat 2018'!$A:$H,7,FALSE),"") ->  | Q116: =IF(L116<>"",VLOOKUP($L116,'protein 2018'!$A:$H,8,FALSE),"") ->  | R116: =IF(L116<>"",VLOOKUP($L116,'protein 2018'!$A:$H,7,FALSE),"") -> 
M117: =IF(L117<>"",VLOOKUP($L117,'milk yield 2018'!$A:$H,8,FALSE),"") ->  | N117: =IF(L117<>"",VLOOKUP($L117,'milk yield 2018'!$A:$H,7,FALSE),"") ->  | O117: =IF(L117<>"",VLOOKUP($L117,'fat 2018'!$A:$H,8,FALSE),"") ->  | P117: =IF(L117<>"",VLOOKUP($L117,'fat 2018'!$A:$H,7,FALSE),"") ->  | Q117: =IF(L117<>"",VLOOKUP($L117,'protein 2018'!$A:$H,8,FALSE),"") ->  | R117: =IF(L117<>"",VLOOKUP($L117,'protein 2018'!$A:$H,7,FALSE),"") -> 
M118: =IF(L118<>"",VLOOKUP($L118,'milk yield 2018'!$A:$H,8,FALSE),"") ->  | N118: =IF(L118<>"",VLOOKUP($L118,'milk yield 2018'!$A:$H,7,FALSE),"") ->  | O118: =IF(L118<>"",VLOOKUP($L118,'fat 2018'!$A:$H,8,FALSE),"") ->  | P118: =IF(L118<>"",VLOOKUP($L118,'fat 2018'!$A:$H,7,FALSE),"") ->  | Q118: =IF(L118<>"",VLOOKUP($L118,'protein 2018'!$A:$H,8,FALSE),"") ->  | R118: =IF(L118<>"",VLOOKUP($L118,'protein 2018'!$A:$H,7,FALSE),"") -> 
M119: =IF(L119<>"",VLOOKUP($L119,'milk yield 2018'!$A:$H,8,FALSE),"") ->  | N119: =IF(L119<>"",VLOOKUP($L119,'milk yield 2018'!$A:$H,7,FALSE),"") ->  | O119: =IF(L119<>"",VLOOKUP($L119,'fat 2018'!$A:$H,8,FALSE),"") ->  | P119: =IF(L119<>"",VLOOKUP($L119,'fat 2018'!$A:$H,7,FALSE),"") ->  | Q119: =IF(L119<>"",VLOOKUP($L119,'protein 2018'!$A:$H,8,FALSE),"") ->  | R119: =IF(L119<>"",VLOOKUP($L119,'protein 2018'!$A:$H,7,FALSE),"") -> 
M120: =IF(L120<>"",VLOOKUP($L120,'milk yield 2018'!$A:$H,8,FALSE),"") ->  | N120: =IF(L120<>"",VLOOKUP($L120,'milk yield 2018'!$A:$H,7,FALSE),"") ->  | O120: =IF(L120<>"",VLOOKUP($L120,'fat 2018'!$A:$H,8,FALSE),"") ->  | P120: =IF(L120<>"",VLOOKUP($L120,'fat 2018'!$A:$H,7,FALSE),"") ->  | Q120: =IF(L120<>"",VLOOKUP($L120,'protein 2018'!$A:$H,8,FALSE),"") ->  | R120: =IF(L120<>"",VLOOKUP($L120,'protein 2018'!$A:$H,7,FALSE),"") -> 
M121: =IF(L121<>"",VLOOKUP($L121,'milk yield 2018'!$A:$H,8,FALSE),"") ->  | N121: =IF(L121<>"",VLOOKUP($L121,'milk yield 2018'!$A:$H,7,FALSE),"") ->  | O121: =IF(L121<>"",VLOOKUP($L121,'fat 2018'!$A:$H,8,FALSE),"") ->  | P121: =IF(L121<>"",VLOOKUP($L121,'fat 2018'!$A:$H,7,FALSE),"") ->  | Q121: =IF(L121<>"",VLOOKUP($L121,'protein 2018'!$A:$H,8,FALSE),"") ->  | R121: =IF(L121<>"",VLOOKUP($L121,'protein 2018'!$A:$H,7,FALSE),"") -> 
M122: =IF(L122<>"",VLOOKUP($L122,'milk yield 2018'!$A:$H,8,FALSE),"") ->  | N122: =IF(L122<>"",VLOOKUP($L122,'milk yield 2018'!$A:$H,7,FALSE),"") ->  | O122: =IF(L122<>"",VLOOKUP($L122,'fat 2018'!$A:$H,8,FALSE),"") ->  | P122: =IF(L122<>"",VLOOKUP($L122,'fat 2018'!$A:$H,7,FALSE),"") ->  | Q122: =IF(L122<>"",VLOOKUP($L122,'protein 2018'!$A:$H,8,FALSE),"") ->  | R122: =IF(L122<>"",VLOOKUP($L122,'protein 2018'!$A:$H,7,FALSE),"") -> 
M123: =IF(L123<>"",VLOOKUP($L123,'milk yield 2018'!$A:$H,8,FALSE),"") ->  | N123: =IF(L123<>"",VLOOKUP($L123,'milk yield 2018'!$A:$H,7,FALSE),"") ->  | O123: =IF(L123<>"",VLOOKUP($L123,'fat 2018'!$A:$H,8,FALSE),"") ->  | P123: =IF(L123<>"",VLOOKUP($L123,'fat 2018'!$A:$H,7,FALSE),"") ->  | Q123: =IF(L123<>"",VLOOKUP($L123,'protein 2018'!$A:$H,8,FALSE),"") ->  | R123: =IF(L123<>"",VLOOKUP($L123,'protein 2018'!$A:$H,7,FALSE),"") -> 
M124: =IF(L124<>"",VLOOKUP($L124,'milk yield 2018'!$A:$H,8,FALSE),"") ->  | N124: =IF(L124<>"",VLOOKUP($L124,'milk yield 2018'!$A:$H,7,FALSE),"") ->  | O124: =IF(L124<>"",VLOOKUP($L124,'fat 2018'!$A:$H,8,FALSE),"") ->  | P124: =IF(L124<>"",VLOOKUP($L124,'fat 2018'!$A:$H,7,FALSE),"") ->  | Q124: =IF(L124<>"",VLOOKUP($L124,'protein 2018'!$A:$H,8,FALSE),"") ->  | R124: =IF(L124<>"",VLOOKUP($L124,'protein 2018'!$A:$H,7,FALSE),"") -> 
M125: =IF(L125<>"",VLOOKUP($L125,'milk yield 2018'!$A:$H,8,FALSE),"") ->  | N125: =IF(L125<>"",VLOOKUP($L125,'milk yield 2018'!$A:$H,7,FALSE),"") ->  | O125: =IF(L125<>"",VLOOKUP($L125,'fat 2018'!$A:$H,8,FALSE),"") ->  | P125: =IF(L125<>"",VLOOKUP($L125,'fat 2018'!$A:$H,7,FALSE),"") ->  | Q125: =IF(L125<>"",VLOOKUP($L125,'protein 2018'!$A:$H,8,FALSE),"") ->  | R125: =IF(L125<>"",VLOOKUP($L125,'protein 2018'!$A:$H,7,FALSE),"") -> 
M126: =IF(L126<>"",VLOOKUP($L126,'milk yield 2018'!$A:$H,8,FALSE),"") ->  | N126: =IF(L126<>"",VLOOKUP($L126,'milk yield 2018'!$A:$H,7,FALSE),"") ->  | O126: =IF(L126<>"",VLOOKUP($L126,'fat 2018'!$A:$H,8,FALSE),"") ->  | P126: =IF(L126<>"",VLOOKUP($L126,'fat 2018'!$A:$H,7,FALSE),"") ->  | Q126: =IF(L126<>"",VLOOKUP($L126,'protein 2018'!$A:$H,8,FALSE),"") ->  | R126: =IF(L126<>"",VLOOKUP($L126,'protein 2018'!$A:$H,7,FALSE),"") -> 
M127: =IF(L127<>"",VLOOKUP($L127,'milk yield 2018'!$A:$H,8,FALSE),"") ->  | N127: =IF(L127<>"",VLOOKUP($L127,'milk yield 2018'!$A:$H,7,FALSE),"") ->  | O127: =IF(L127<>"",VLOOKUP($L127,'fat 2018'!$A:$H,8,FALSE),"") ->  | P127: =IF(L127<>"",VLOOKUP($L127,'fat 2018'!$A:$H,7,FALSE),"") ->  | Q127: =IF(L127<>"",VLOOKUP($L127,'protein 2018'!$A:$H,8,FALSE),"") ->  | R127: =IF(L127<>"",VLOOKUP($L127,'protein 2018'!$A:$H,7,FALSE),"") -> 
M128: =IF(L128<>"",VLOOKUP($L128,'milk yield 2018'!$A:$H,8,FALSE),"") ->  | N128: =IF(L128<>"",VLOOKUP($L128,'milk yield 2018'!$A:$H,7,FALSE),"") ->  | O128: =IF(L128<>"",VLOOKUP($L128,'fat 2018'!$A:$H,8,FALSE),"") ->  | P128: =IF(L128<>"",VLOOKUP($L128,'fat 2018'!$A:$H,7,FALSE),"") ->  | Q128: =IF(L128<>"",VLOOKUP($L128,'protein 2018'!$A:$H,8,FALSE),"") ->  | R128: =IF(L128<>"",VLOOKUP($L128,'protein 2018'!$A:$H,7,FALSE),"") -> 
M129: =IF(L129<>"",VLOOKUP($L129,'milk yield 2018'!$A:$H,8,FALSE),"") ->  | N129: =IF(L129<>"",VLOOKUP($L129,'milk yield 2018'!$A:$H,7,FALSE),"") ->  | O129: =IF(L129<>"",VLOOKUP($L129,'fat 2018'!$A:$H,8,FALSE),"") ->  | P129: =IF(L129<>"",VLOOKUP($L129,'fat 2018'!$A:$H,7,FALSE),"") ->  | Q129: =IF(L129<>"",VLOOKUP($L129,'protein 2018'!$A:$H,8,FALSE),"") ->  | R129: =IF(L129<>"",VLOOKUP($L129,'protein 2018'!$A:$H,7,FALSE),"") -> 
M130: =IF(L130<>"",VLOOKUP($L130,'milk yield 2018'!$A:$H,8,FALSE),"") ->  | N130: =IF(L130<>"",VLOOKUP($L130,'milk yield 2018'!$A:$H,7,FALSE),"") ->  | O130: =IF(L130<>"",VLOOKUP($L130,'fat 2018'!$A:$H,8,FALSE),"") ->  | P130: =IF(L130<>"",VLOOKUP($L130,'fat 2018'!$A:$H,7,FALSE),"") ->  | Q130: =IF(L130<>"",VLOOKUP($L130,'protein 2018'!$A:$H,8,FALSE),"") ->  | R130: =IF(L130<>"",VLOOKUP($L130,'protein 2018'!$A:$H,7,FALSE),"") -> 
M131: =IF(L131<>"",VLOOKUP($L131,'milk yield 2018'!$A:$H,8,FALSE),"") ->  | N131: =IF(L131<>"",VLOOKUP($L131,'milk yield 2018'!$A:$H,7,FALSE),"") ->  | O131: =IF(L131<>"",VLOOKUP($L131,'fat 2018'!$A:$H,8,FALSE),"") ->  | P131: =IF(L131<>"",VLOOKUP($L131,'fat 2018'!$A:$H,7,FALSE),"") ->  | Q131: =IF(L131<>"",VLOOKUP($L131,'protein 2018'!$A:$H,8,FALSE),"") ->  | R131: =IF(L131<>"",VLOOKUP($L131,'protein 2018'!$A:$H,7,FALSE),"") -> 
M132: =IF(L132<>"",VLOOKUP($L132,'milk yield 2018'!$A:$H,8,FALSE),"") ->  | N132: =IF(L132<>"",VLOOKUP($L132,'milk yield 2018'!$A:$H,7,FALSE),"") ->  | O132: =IF(L132<>"",VLOOKUP($L132,'fat 2018'!$A:$H,8,FALSE),"") ->  | P132: =IF(L132<>"",VLOOKUP($L132,'fat 2018'!$A:$H,7,FALSE),"") ->  | Q132: =IF(L132<>"",VLOOKUP($L132,'protein 2018'!$A:$H,8,FALSE),"") ->  | R132: =IF(L132<>"",VLOOKUP($L132,'protein 2018'!$A:$H,7,FALSE),"") -> 
M133: =IF(L133<>"",VLOOKUP($L133,'milk yield 2018'!$A:$H,8,FALSE),"") ->  | N133: =IF(L133<>"",VLOOKUP($L133,'milk yield 2018'!$A:$H,7,FALSE),"") ->  | O133: =IF(L133<>"",VLOOKUP($L133,'fat 2018'!$A:$H,8,FALSE),"") ->  | P133: =IF(L133<>"",VLOOKUP($L133,'fat 2018'!$A:$H,7,FALSE),"") ->  | Q133: =IF(L133<>"",VLOOKUP($L133,'protein 2018'!$A:$H,8,FALSE),"") ->  | R133: =IF(L133<>"",VLOOKUP($L133,'protein 2018'!$A:$H,7,FALSE),"") -> 
M134: =IF(L134<>"",VLOOKUP($L134,'milk yield 2018'!$A:$H,8,FALSE),"") ->  | N134: =IF(L134<>"",VLOOKUP($L134,'milk yield 2018'!$A:$H,7,FALSE),"") ->  | O134: =IF(L134<>"",VLOOKUP($L134,'fat 2018'!$A:$H,8,FALSE),"") ->  | P134: =IF(L134<>"",VLOOKUP($L134,'fat 2018'!$A:$H,7,FALSE),"") ->  | Q134: =IF(L134<>"",VLOOKUP($L134,'protein 2018'!$A:$H,8,FALSE),"") ->  | R134: =IF(L134<>"",VLOOKUP($L134,'protein 2018'!$A:$H,7,FALSE),"") -> 
M135: =IF(L135<>"",VLOOKUP($L135,'milk yield 2018'!$A:$H,8,FALSE),"") ->  | N135: =IF(L135<>"",VLOOKUP($L135,'milk yield 2018'!$A:$H,7,FALSE),"") ->  | O135: =IF(L135<>"",VLOOKUP($L135,'fat 2018'!$A:$H,8,FALSE),"") ->  | P135: =IF(L135<>"",VLOOKUP($L135,'fat 2018'!$A:$H,7,FALSE),"") ->  | Q135: =IF(L135<>"",VLOOKUP($L135,'protein 2018'!$A:$H,8,FALSE),"") ->  | R135: =IF(L135<>"",VLOOKUP($L135,'protein 2018'!$A:$H,7,FALSE),"") -> 
M136: =IF(L136<>"",VLOOKUP($L136,'milk yield 2018'!$A:$H,8,FALSE),"") ->  | N136: =IF(L136<>"",VLOOKUP($L136,'milk yield 2018'!$A:$H,7,FALSE),"") ->  | O136: =IF(L136<>"",VLOOKUP($L136,'fat 2018'!$A:$H,8,FALSE),"") ->  | P136: =IF(L136<>"",VLOOKUP($L136,'fat 2018'!$A:$H,7,FALSE),"") ->  | Q136: =IF(L136<>"",VLOOKUP($L136,'protein 2018'!$A:$H,8,FALSE),"") ->  | R136: =IF(L136<>"",VLOOKUP($L136,'protein 2018'!$A:$H,7,FALSE),"") -> 
M137: =IF(L137<>"",VLOOKUP($L137,'milk yield 2018'!$A:$H,8,FALSE),"") ->  | N137: =IF(L137<>"",VLOOKUP($L137,'milk yield 2018'!$A:$H,7,FALSE),"") ->  | O137: =IF(L137<>"",VLOOKUP($L137,'fat 2018'!$A:$H,8,FALSE),"") ->  | P137: =IF(L137<>"",VLOOKUP($L137,'fat 2018'!$A:$H,7,FALSE),"") ->  | Q137: =IF(L137<>"",VLOOKUP($L137,'protein 2018'!$A:$H,8,FALSE),"") ->  | R137: =IF(L137<>"",VLOOKUP($L137,'protein 2018'!$A:$H,7,FALSE),"") -> 
M138: =IF(L138<>"",VLOOKUP($L138,'milk yield 2018'!$A:$H,8,FALSE),"") ->  | N138: =IF(L138<>"",VLOOKUP($L138,'milk yield 2018'!$A:$H,7,FALSE),"") ->  | O138: =IF(L138<>"",VLOOKUP($L138,'fat 2018'!$A:$H,8,FALSE),"") ->  | P138: =IF(L138<>"",VLOOKUP($L138,'fat 2018'!$A:$H,7,FALSE),"") ->  | Q138: =IF(L138<>"",VLOOKUP($L138,'protein 2018'!$A:$H,8,FALSE),"") ->  | R138: =IF(L138<>"",VLOOKUP($L138,'protein 2018'!$A:$H,7,FALSE),"") -> 
M139: =IF(L139<>"",VLOOKUP($L139,'milk yield 2018'!$A:$H,8,FALSE),"") ->  | N139: =IF(L139<>"",VLOOKUP($L139,'milk yield 2018'!$A:$H,7,FALSE),"") ->  | O139: =IF(L139<>"",VLOOKUP($L139,'fat 2018'!$A:$H,8,FALSE),"") ->  | P139: =IF(L139<>"",VLOOKUP($L139,'fat 2018'!$A:$H,7,FALSE),"") ->  | Q139: =IF(L139<>"",VLOOKUP($L139,'protein 2018'!$A:$H,8,FALSE),"") ->  | R139: =IF(L139<>"",VLOOKUP($L139,'protein 2018'!$A:$H,7,FALSE),"") -> 
M140: =IF(L140<>"",VLOOKUP($L140,'milk yield 2018'!$A:$H,8,FALSE),"") ->  | N140: =IF(L140<>"",VLOOKUP($L140,'milk yield 2018'!$A:$H,7,FALSE),"") ->  | O140: =IF(L140<>"",VLOOKUP($L140,'fat 2018'!$A:$H,8,FALSE),"") ->  | P140: =IF(L140<>"",VLOOKUP($L140,'fat 2018'!$A:$H,7,FALSE),"") ->  | Q140: =IF(L140<>"",VLOOKUP($L140,'protein 2018'!$A:$H,8,FALSE),"") ->  | R140: =IF(L140<>"",VLOOKUP($L140,'protein 2018'!$A:$H,7,FALSE),"") -> 
M141: =IF(L141<>"",VLOOKUP($L141,'milk yield 2018'!$A:$H,8,FALSE),"") ->  | N141: =IF(L141<>"",VLOOKUP($L141,'milk yield 2018'!$A:$H,7,FALSE),"") ->  | O141: =IF(L141<>"",VLOOKUP($L141,'fat 2018'!$A:$H,8,FALSE),"") ->  | P141: =IF(L141<>"",VLOOKUP($L141,'fat 2018'!$A:$H,7,FALSE),"") ->  | Q141: =IF(L141<>"",VLOOKUP($L141,'protein 2018'!$A:$H,8,FALSE),"") ->  | R141: =IF(L141<>"",VLOOKUP($L141,'protein 2018'!$A:$H,7,FALSE),"") -> 
M142: =IF(L142<>"",VLOOKUP($L142,'milk yield 2018'!$A:$H,8,FALSE),"") ->  | N142: =IF(L142<>"",VLOOKUP($L142,'milk yield 2018'!$A:$H,7,FALSE),"") ->  | O142: =IF(L142<>"",VLOOKUP($L142,'fat 2018'!$A:$H,8,FALSE),"") ->  | P142: =IF(L142<>"",VLOOKUP($L142,'fat 2018'!$A:$H,7,FALSE),"") ->  | Q142: =IF(L142<>"",VLOOKUP($L142,'protein 2018'!$A:$H,8,FALSE),"") ->  | R142: =IF(L142<>"",VLOOKUP($L142,'protein 2018'!$A:$H,7,FALSE),"") -> 
M143: =IF(L143<>"",VLOOKUP($L143,'milk yield 2018'!$A:$H,8,FALSE),"") ->  | N143: =IF(L143<>"",VLOOKUP($L143,'milk yield 2018'!$A:$H,7,FALSE),"") ->  | O143: =IF(L143<>"",VLOOKUP($L143,'fat 2018'!$A:$H,8,FALSE),"") ->  | P143: =IF(L143<>"",VLOOKUP($L143,'fat 2018'!$A:$H,7,FALSE),"") ->  | Q143: =IF(L143<>"",VLOOKUP($L143,'protein 2018'!$A:$H,8,FALSE),"") ->  | R143: =IF(L143<>"",VLOOKUP($L143,'protein 2018'!$A:$H,7,FALSE),"") -> 
M144: =IF(L144<>"",VLOOKUP($L144,'milk yield 2018'!$A:$H,8,FALSE),"") ->  | N144: =IF(L144<>"",VLOOKUP($L144,'milk yield 2018'!$A:$H,7,FALSE),"") ->  | O144: =IF(L144<>"",VLOOKUP($L144,'fat 2018'!$A:$H,8,FALSE),"") ->  | P144: =IF(L144<>"",VLOOKUP($L144,'fat 2018'!$A:$H,7,FALSE),"") ->  | Q144: =IF(L144<>"",VLOOKUP($L144,'protein 2018'!$A:$H,8,FALSE),"") ->  | R144: =IF(L144<>"",VLOOKUP($L144,'protein 2018'!$A:$H,7,FALSE),"") -> 
M145: =IF(L145<>"",VLOOKUP($L145,'milk yield 2018'!$A:$H,8,FALSE),"") ->  | N145: =IF(L145<>"",VLOOKUP($L145,'milk yield 2018'!$A:$H,7,FALSE),"") ->  | O145: =IF(L145<>"",VLOOKUP($L145,'fat 2018'!$A:$H,8,FALSE),"") ->  | P145: =IF(L145<>"",VLOOKUP($L145,'fat 2018'!$A:$H,7,FALSE),"") ->  | Q145: =IF(L145<>"",VLOOKUP($L145,'protein 2018'!$A:$H,8,FALSE),"") ->  | R145: =IF(L145<>"",VLOOKUP($L145,'protein 2018'!$A:$H,7,FALSE),"") -> 
M146: =IF(L146<>"",VLOOKUP($L146,'milk yield 2018'!$A:$H,8,FALSE),"") ->  | N146: =IF(L146<>"",VLOOKUP($L146,'milk yield 2018'!$A:$H,7,FALSE),"") ->  | O146: =IF(L146<>"",VLOOKUP($L146,'fat 2018'!$A:$H,8,FALSE),"") ->  | P146: =IF(L146<>"",VLOOKUP($L146,'fat 2018'!$A:$H,7,FALSE),"") ->  | Q146: =IF(L146<>"",VLOOKUP($L146,'protein 2018'!$A:$H,8,FALSE),"") ->  | R146: =IF(L146<>"",VLOOKUP($L146,'protein 2018'!$A:$H,7,FALSE),"") -> 
K147: =IF(B147<>"",IF(($E$8-$B147)<1,1,IF(($E$8-$B147)>360,7,(INT((1+($E$8-$B147)/60))))),"") ->  | L147: =IF(AND(J147<>"",K147<>""),$E$9*1000+$J147*100+$C$15*10+$K147,"") ->  | M147: =IF(L147<>"",VLOOKUP($L147,'milk yield 2018'!$A:$H,8,FALSE),"") ->  | N147: =IF(L147<>"",VLOOKUP($L147,'milk yield 2018'!$A:$H,7,FALSE),"") ->  | O147: =IF(L147<>"",VLOOKUP($L147,'fat 2018'!$A:$H,8,FALSE),"") ->  | P147: =IF(L147<>"",VLOOKUP($L147,'fat 2018'!$A:$H,7,FALSE),"") ->  | Q147: =IF(L147<>"",VLOOKUP($L147,'protein 2018'!$A:$H,8,FALSE),"") ->  | R147: =IF(L147<>"",VLOOKUP($L147,'protein 2018'!$A:$H,7,FALSE),"") -> 
J148: =IF($C148=1,1,IF($C148>1,2," ")) ->  | M148: =IF(L148<>"",VLOOKUP($L148,'milk yield 2018'!$A:$H,8,FALSE),"") ->  | N148: =IF(L148<>"",VLOOKUP($L148,'milk yield 2018'!$A:$H,7,FALSE),"") ->  | O148: =IF(L148<>"",VLOOKUP($L148,'fat 2018'!$A:$H,8,FALSE),"") ->  | P148: =IF(L148<>"",VLOOKUP($L148,'fat 2018'!$A:$H,7,FALSE),"") ->  | Q148: =IF(L148<>"",VLOOKUP($L148,'protein 2018'!$A:$H,8,FALSE),"") ->  | R148: =IF(L148<>"",VLOOKUP($L148,'protein 2018'!$A:$H,7,FALSE),"") -> 
M149: =IF(L149<>"",VLOOKUP($L149,'milk yield 2018'!$A:$H,8,FALSE),"") ->  | N149: =IF(L149<>"",VLOOKUP($L149,'milk yield 2018'!$A:$H,7,FALSE),"") ->  | O149: =IF(L149<>"",VLOOKUP($L149,'fat 2018'!$A:$H,8,FALSE),"") ->  | P149: =IF(L149<>"",VLOOKUP($L149,'fat 2018'!$A:$H,7,FALSE),"") ->  | Q149: =IF(L149<>"",VLOOKUP($L149,'protein 2018'!$A:$H,8,FALSE),"") ->  | R149: =IF(L149<>"",VLOOKUP($L149,'protein 2018'!$A:$H,7,FALSE),"") -> 
M150: =IF(L150<>"",VLOOKUP($L150,'milk yield 2018'!$A:$H,8,FALSE),"") ->  | N150: =IF(L150<>"",VLOOKUP($L150,'milk yield 2018'!$A:$H,7,FALSE),"") ->  | O150: =IF(L150<>"",VLOOKUP($L150,'fat 2018'!$A:$H,8,FALSE),"") ->  | P150: =IF(L150<>"",VLOOKUP($L150,'fat 2018'!$A:$H,7,FALSE),"") ->  | Q150: =IF(L150<>"",VLOOKUP($L150,'protein 2018'!$A:$H,8,FALSE),"") ->  | R150: =IF(L150<>"",VLOOKUP($L150,'protein 2018'!$A:$H,7,FALSE),"") -> 
M151: =IF(L151<>"",VLOOKUP($L151,'milk yield 2018'!$A:$H,8,FALSE),"") ->  | N151: =IF(L151<>"",VLOOKUP($L151,'milk yield 2018'!$A:$H,7,FALSE),"") ->  | O151: =IF(L151<>"",VLOOKUP($L151,'fat 2018'!$A:$H,8,FALSE),"") ->  | P151: =IF(L151<>"",VLOOKUP($L151,'fat 2018'!$A:$H,7,FALSE),"") ->  | Q151: =IF(L151<>"",VLOOKUP($L151,'protein 2018'!$A:$H,8,FALSE),"") ->  | R151: =IF(L151<>"",VLOOKUP($L151,'protein 2018'!$A:$H,7,FALSE),"") -> 
M152: =IF(L152<>"",VLOOKUP($L152,'milk yield 2018'!$A:$H,8,FALSE),"") ->  | N152: =IF(L152<>"",VLOOKUP($L152,'milk yield 2018'!$A:$H,7,FALSE),"") ->  | O152: =IF(L152<>"",VLOOKUP($L152,'fat 2018'!$A:$H,8,FALSE),"") ->  | P152: =IF(L152<>"",VLOOKUP($L152,'fat 2018'!$A:$H,7,FALSE),"") ->  | Q152: =IF(L152<>"",VLOOKUP($L152,'protein 2018'!$A:$H,8,FALSE),"") ->  | R152: =IF(L152<>"",VLOOKUP($L152,'protein 2018'!$A:$H,7,FALSE),"") -> 
M153: =IF(L153<>"",VLOOKUP($L153,'milk yield 2018'!$A:$H,8,FALSE),"") ->  | N153: =IF(L153<>"",VLOOKUP($L153,'milk yield 2018'!$A:$H,7,FALSE),"") ->  | O153: =IF(L153<>"",VLOOKUP($L153,'fat 2018'!$A:$H,8,FALSE),"") ->  | P153: =IF(L153<>"",VLOOKUP($L153,'fat 2018'!$A:$H,7,FALSE),"") ->  | Q153: =IF(L153<>"",VLOOKUP($L153,'protein 2018'!$A:$H,8,FALSE),"") ->  | R153: =IF(L153<>"",VLOOKUP($L153,'protein 2018'!$A:$H,7,FALSE),"") -> 
M154: =IF(L154<>"",VLOOKUP($L154,'milk yield 2018'!$A:$H,8,FALSE),"") ->  | N154: =IF(L154<>"",VLOOKUP($L154,'milk yield 2018'!$A:$H,7,FALSE),"") ->  | O154: =IF(L154<>"",VLOOKUP($L154,'fat 2018'!$A:$H,8,FALSE),"") ->  | P154: =IF(L154<>"",VLOOKUP($L154,'fat 2018'!$A:$H,7,FALSE),"") ->  | Q154: =IF(L154<>"",VLOOKUP($L154,'protein 2018'!$A:$H,8,FALSE),"") ->  | R154: =IF(L154<>"",VLOOKUP($L154,'protein 2018'!$A:$H,7,FALSE),"") -> 
M155: =IF(L155<>"",VLOOKUP($L155,'milk yield 2018'!$A:$H,8,FALSE),"") ->  | N155: =IF(L155<>"",VLOOKUP($L155,'milk yield 2018'!$A:$H,7,FALSE),"") ->  | O155: =IF(L155<>"",VLOOKUP($L155,'fat 2018'!$A:$H,8,FALSE),"") ->  | P155: =IF(L155<>"",VLOOKUP($L155,'fat 2018'!$A:$H,7,FALSE),"") ->  | Q155: =IF(L155<>"",VLOOKUP($L155,'protein 2018'!$A:$H,8,FALSE),"") ->  | R155: =IF(L155<>"",VLOOKUP($L155,'protein 2018'!$A:$H,7,FALSE),"") -> 
M156: =IF(L156<>"",VLOOKUP($L156,'milk yield 2018'!$A:$H,8,FALSE),"") ->  | N156: =IF(L156<>"",VLOOKUP($L156,'milk yield 2018'!$A:$H,7,FALSE),"") ->  | O156: =IF(L156<>"",VLOOKUP($L156,'fat 2018'!$A:$H,8,FALSE),"") ->  | P156: =IF(L156<>"",VLOOKUP($L156,'fat 2018'!$A:$H,7,FALSE),"") ->  | Q156: =IF(L156<>"",VLOOKUP($L156,'protein 2018'!$A:$H,8,FALSE),"") ->  | R156: =IF(L156<>"",VLOOKUP($L156,'protein 2018'!$A:$H,7,FALSE),"") -> 
M157: =IF(L157<>"",VLOOKUP($L157,'milk yield 2018'!$A:$H,8,FALSE),"") ->  | N157: =IF(L157<>"",VLOOKUP($L157,'milk yield 2018'!$A:$H,7,FALSE),"") ->  | O157: =IF(L157<>"",VLOOKUP($L157,'fat 2018'!$A:$H,8,FALSE),"") ->  | P157: =IF(L157<>"",VLOOKUP($L157,'fat 2018'!$A:$H,7,FALSE),"") ->  | Q157: =IF(L157<>"",VLOOKUP($L157,'protein 2018'!$A:$H,8,FALSE),"") ->  | R157: =IF(L157<>"",VLOOKUP($L157,'protein 2018'!$A:$H,7,FALSE),"") -> 
M158: =IF(L158<>"",VLOOKUP($L158,'milk yield 2018'!$A:$H,8,FALSE),"") ->  | N158: =IF(L158<>"",VLOOKUP($L158,'milk yield 2018'!$A:$H,7,FALSE),"") ->  | O158: =IF(L158<>"",VLOOKUP($L158,'fat 2018'!$A:$H,8,FALSE),"") ->  | P158: =IF(L158<>"",VLOOKUP($L158,'fat 2018'!$A:$H,7,FALSE),"") ->  | Q158: =IF(L158<>"",VLOOKUP($L158,'protein 2018'!$A:$H,8,FALSE),"") ->  | R158: =IF(L158<>"",VLOOKUP($L158,'protein 2018'!$A:$H,7,FALSE),"") -> 
M159: =IF(L159<>"",VLOOKUP($L159,'milk yield 2018'!$A:$H,8,FALSE),"") ->  | N159: =IF(L159<>"",VLOOKUP($L159,'milk yield 2018'!$A:$H,7,FALSE),"") ->  | O159: =IF(L159<>"",VLOOKUP($L159,'fat 2018'!$A:$H,8,FALSE),"") ->  | P159: =IF(L159<>"",VLOOKUP($L159,'fat 2018'!$A:$H,7,FALSE),"") ->  | Q159: =IF(L159<>"",VLOOKUP($L159,'protein 2018'!$A:$H,8,FALSE),"") ->  | R159: =IF(L159<>"",VLOOKUP($L159,'protein 2018'!$A:$H,7,FALSE),"") -> 
M160: =IF(L160<>"",VLOOKUP($L160,'milk yield 2018'!$A:$H,8,FALSE),"") ->  | N160: =IF(L160<>"",VLOOKUP($L160,'milk yield 2018'!$A:$H,7,FALSE),"") ->  | O160: =IF(L160<>"",VLOOKUP($L160,'fat 2018'!$A:$H,8,FALSE),"") ->  | P160: =IF(L160<>"",VLOOKUP($L160,'fat 2018'!$A:$H,7,FALSE),"") ->  | Q160: =IF(L160<>"",VLOOKUP($L160,'protein 2018'!$A:$H,8,FALSE),"") ->  | R160: =IF(L160<>"",VLOOKUP($L160,'protein 2018'!$A:$H,7,FALSE),"") -> 
M161: =IF(L161<>"",VLOOKUP($L161,'milk yield 2018'!$A:$H,8,FALSE),"") ->  | N161: =IF(L161<>"",VLOOKUP($L161,'milk yield 2018'!$A:$H,7,FALSE),"") ->  | O161: =IF(L161<>"",VLOOKUP($L161,'fat 2018'!$A:$H,8,FALSE),"") ->  | P161: =IF(L161<>"",VLOOKUP($L161,'fat 2018'!$A:$H,7,FALSE),"") ->  | Q161: =IF(L161<>"",VLOOKUP($L161,'protein 2018'!$A:$H,8,FALSE),"") ->  | R161: =IF(L161<>"",VLOOKUP($L161,'protein 2018'!$A:$H,7,FALSE),"") -> 
M162: =IF(L162<>"",VLOOKUP($L162,'milk yield 2018'!$A:$H,8,FALSE),"") ->  | N162: =IF(L162<>"",VLOOKUP($L162,'milk yield 2018'!$A:$H,7,FALSE),"") ->  | O162: =IF(L162<>"",VLOOKUP($L162,'fat 2018'!$A:$H,8,FALSE),"") ->  | P162: =IF(L162<>"",VLOOKUP($L162,'fat 2018'!$A:$H,7,FALSE),"") ->  | Q162: =IF(L162<>"",VLOOKUP($L162,'protein 2018'!$A:$H,8,FALSE),"") ->  | R162: =IF(L162<>"",VLOOKUP($L162,'protein 2018'!$A:$H,7,FALSE),"") -> 
M163: =IF(L163<>"",VLOOKUP($L163,'milk yield 2018'!$A:$H,8,FALSE),"") ->  | N163: =IF(L163<>"",VLOOKUP($L163,'milk yield 2018'!$A:$H,7,FALSE),"") ->  | O163: =IF(L163<>"",VLOOKUP($L163,'fat 2018'!$A:$H,8,FALSE),"") ->  | P163: =IF(L163<>"",VLOOKUP($L163,'fat 2018'!$A:$H,7,FALSE),"") ->  | Q163: =IF(L163<>"",VLOOKUP($L163,'protein 2018'!$A:$H,8,FALSE),"") ->  | R163: =IF(L163<>"",VLOOKUP($L163,'protein 2018'!$A:$H,7,FALSE),"") -> 
M164: =IF(L164<>"",VLOOKUP($L164,'milk yield 2018'!$A:$H,8,FALSE),"") ->  | N164: =IF(L164<>"",VLOOKUP($L164,'milk yield 2018'!$A:$H,7,FALSE),"") ->  | O164: =IF(L164<>"",VLOOKUP($L164,'fat 2018'!$A:$H,8,FALSE),"") ->  | P164: =IF(L164<>"",VLOOKUP($L164,'fat 2018'!$A:$H,7,FALSE),"") ->  | Q164: =IF(L164<>"",VLOOKUP($L164,'protein 2018'!$A:$H,8,FALSE),"") ->  | R164: =IF(L164<>"",VLOOKUP($L164,'protein 2018'!$A:$H,7,FALSE),"") -> 
M165: =IF(L165<>"",VLOOKUP($L165,'milk yield 2018'!$A:$H,8,FALSE),"") ->  | N165: =IF(L165<>"",VLOOKUP($L165,'milk yield 2018'!$A:$H,7,FALSE),"") ->  | O165: =IF(L165<>"",VLOOKUP($L165,'fat 2018'!$A:$H,8,FALSE),"") ->  | P165: =IF(L165<>"",VLOOKUP($L165,'fat 2018'!$A:$H,7,FALSE),"") ->  | Q165: =IF(L165<>"",VLOOKUP($L165,'protein 2018'!$A:$H,8,FALSE),"") ->  | R165: =IF(L165<>"",VLOOKUP($L165,'protein 2018'!$A:$H,7,FALSE),"") -> 
M166: =IF(L166<>"",VLOOKUP($L166,'milk yield 2018'!$A:$H,8,FALSE),"") ->  | N166: =IF(L166<>"",VLOOKUP($L166,'milk yield 2018'!$A:$H,7,FALSE),"") ->  | O166: =IF(L166<>"",VLOOKUP($L166,'fat 2018'!$A:$H,8,FALSE),"") ->  | P166: =IF(L166<>"",VLOOKUP($L166,'fat 2018'!$A:$H,7,FALSE),"") ->  | Q166: =IF(L166<>"",VLOOKUP($L166,'protein 2018'!$A:$H,8,FALSE),"") ->  | R166: =IF(L166<>"",VLOOKUP($L166,'protein 2018'!$A:$H,7,FALSE),"") -> 
M167: =IF(L167<>"",VLOOKUP($L167,'milk yield 2018'!$A:$H,8,FALSE),"") ->  | N167: =IF(L167<>"",VLOOKUP($L167,'milk yield 2018'!$A:$H,7,FALSE),"") ->  | O167: =IF(L167<>"",VLOOKUP($L167,'fat 2018'!$A:$H,8,FALSE),"") ->  | P167: =IF(L167<>"",VLOOKUP($L167,'fat 2018'!$A:$H,7,FALSE),"") ->  | Q167: =IF(L167<>"",VLOOKUP($L167,'protein 2018'!$A:$H,8,FALSE),"") ->  | R167: =IF(L167<>"",VLOOKUP($L167,'protein 2018'!$A:$H,7,FALSE),"") -> 
M168: =IF(L168<>"",VLOOKUP($L168,'milk yield 2018'!$A:$H,8,FALSE),"") ->  | N168: =IF(L168<>"",VLOOKUP($L168,'milk yield 2018'!$A:$H,7,FALSE),"") ->  | O168: =IF(L168<>"",VLOOKUP($L168,'fat 2018'!$A:$H,8,FALSE),"") ->  | P168: =IF(L168<>"",VLOOKUP($L168,'fat 2018'!$A:$H,7,FALSE),"") ->  | Q168: =IF(L168<>"",VLOOKUP($L168,'protein 2018'!$A:$H,8,FALSE),"") ->  | R168: =IF(L168<>"",VLOOKUP($L168,'protein 2018'!$A:$H,7,FALSE),"") -> 
M169: =IF(L169<>"",VLOOKUP($L169,'milk yield 2018'!$A:$H,8,FALSE),"") ->  | N169: =IF(L169<>"",VLOOKUP($L169,'milk yield 2018'!$A:$H,7,FALSE),"") ->  | O169: =IF(L169<>"",VLOOKUP($L169,'fat 2018'!$A:$H,8,FALSE),"") ->  | P169: =IF(L169<>"",VLOOKUP($L169,'fat 2018'!$A:$H,7,FALSE),"") ->  | Q169: =IF(L169<>"",VLOOKUP($L169,'protein 2018'!$A:$H,8,FALSE),"") ->  | R169: =IF(L169<>"",VLOOKUP($L169,'protein 2018'!$A:$H,7,FALSE),"") -> 
M170: =IF(L170<>"",VLOOKUP($L170,'milk yield 2018'!$A:$H,8,FALSE),"") ->  | N170: =IF(L170<>"",VLOOKUP($L170,'milk yield 2018'!$A:$H,7,FALSE),"") ->  | O170: =IF(L170<>"",VLOOKUP($L170,'fat 2018'!$A:$H,8,FALSE),"") ->  | P170: =IF(L170<>"",VLOOKUP($L170,'fat 2018'!$A:$H,7,FALSE),"") ->  | Q170: =IF(L170<>"",VLOOKUP($L170,'protein 2018'!$A:$H,8,FALSE),"") ->  | R170: =IF(L170<>"",VLOOKUP($L170,'protein 2018'!$A:$H,7,FALSE),"") -> 
M171: =IF(L171<>"",VLOOKUP($L171,'milk yield 2018'!$A:$H,8,FALSE),"") ->  | N171: =IF(L171<>"",VLOOKUP($L171,'milk yield 2018'!$A:$H,7,FALSE),"") ->  | O171: =IF(L171<>"",VLOOKUP($L171,'fat 2018'!$A:$H,8,FALSE),"") ->  | P171: =IF(L171<>"",VLOOKUP($L171,'fat 2018'!$A:$H,7,FALSE),"") ->  | Q171: =IF(L171<>"",VLOOKUP($L171,'protein 2018'!$A:$H,8,FALSE),"") ->  | R171: =IF(L171<>"",VLOOKUP($L171,'protein 2018'!$A:$H,7,FALSE),"") -> 
M172: =IF(L172<>"",VLOOKUP($L172,'milk yield 2018'!$A:$H,8,FALSE),"") ->  | N172: =IF(L172<>"",VLOOKUP($L172,'milk yield 2018'!$A:$H,7,FALSE),"") ->  | O172: =IF(L172<>"",VLOOKUP($L172,'fat 2018'!$A:$H,8,FALSE),"") ->  | P172: =IF(L172<>"",VLOOKUP($L172,'fat 2018'!$A:$H,7,FALSE),"") ->  | Q172: =IF(L172<>"",VLOOKUP($L172,'protein 2018'!$A:$H,8,FALSE),"") ->  | R172: =IF(L172<>"",VLOOKUP($L172,'protein 2018'!$A:$H,7,FALSE),"") -> 
M173: =IF(L173<>"",VLOOKUP($L173,'milk yield 2018'!$A:$H,8,FALSE),"") ->  | N173: =IF(L173<>"",VLOOKUP($L173,'milk yield 2018'!$A:$H,7,FALSE),"") ->  | O173: =IF(L173<>"",VLOOKUP($L173,'fat 2018'!$A:$H,8,FALSE),"") ->  | P173: =IF(L173<>"",VLOOKUP($L173,'fat 2018'!$A:$H,7,FALSE),"") ->  | Q173: =IF(L173<>"",VLOOKUP($L173,'protein 2018'!$A:$H,8,FALSE),"") ->  | R173: =IF(L173<>"",VLOOKUP($L173,'protein 2018'!$A:$H,7,FALSE),"") -> 
M174: =IF(L174<>"",VLOOKUP($L174,'milk yield 2018'!$A:$H,8,FALSE),"") ->  | N174: =IF(L174<>"",VLOOKUP($L174,'milk yield 2018'!$A:$H,7,FALSE),"") ->  | O174: =IF(L174<>"",VLOOKUP($L174,'fat 2018'!$A:$H,8,FALSE),"") ->  | P174: =IF(L174<>"",VLOOKUP($L174,'fat 2018'!$A:$H,7,FALSE),"") ->  | Q174: =IF(L174<>"",VLOOKUP($L174,'protein 2018'!$A:$H,8,FALSE),"") ->  | R174: =IF(L174<>"",VLOOKUP($L174,'protein 2018'!$A:$H,7,FALSE),"") -> 
M175: =IF(L175<>"",VLOOKUP($L175,'milk yield 2018'!$A:$H,8,FALSE),"") ->  | N175: =IF(L175<>"",VLOOKUP($L175,'milk yield 2018'!$A:$H,7,FALSE),"") ->  | O175: =IF(L175<>"",VLOOKUP($L175,'fat 2018'!$A:$H,8,FALSE),"") ->  | P175: =IF(L175<>"",VLOOKUP($L175,'fat 2018'!$A:$H,7,FALSE),"") ->  | Q175: =IF(L175<>"",VLOOKUP($L175,'protein 2018'!$A:$H,8,FALSE),"") ->  | R175: =IF(L175<>"",VLOOKUP($L175,'protein 2018'!$A:$H,7,FALSE),"") -> 
M176: =IF(L176<>"",VLOOKUP($L176,'milk yield 2018'!$A:$H,8,FALSE),"") ->  | N176: =IF(L176<>"",VLOOKUP($L176,'milk yield 2018'!$A:$H,7,FALSE),"") ->  | O176: =IF(L176<>"",VLOOKUP($L176,'fat 2018'!$A:$H,8,FALSE),"") ->  | P176: =IF(L176<>"",VLOOKUP($L176,'fat 2018'!$A:$H,7,FALSE),"") ->  | Q176: =IF(L176<>"",VLOOKUP($L176,'protein 2018'!$A:$H,8,FALSE),"") ->  | R176: =IF(L176<>"",VLOOKUP($L176,'protein 2018'!$A:$H,7,FALSE),"") -> 
M177: =IF(L177<>"",VLOOKUP($L177,'milk yield 2018'!$A:$H,8,FALSE),"") ->  | N177: =IF(L177<>"",VLOOKUP($L177,'milk yield 2018'!$A:$H,7,FALSE),"") ->  | O177: =IF(L177<>"",VLOOKUP($L177,'fat 2018'!$A:$H,8,FALSE),"") ->  | P177: =IF(L177<>"",VLOOKUP($L177,'fat 2018'!$A:$H,7,FALSE),"") ->  | Q177: =IF(L177<>"",VLOOKUP($L177,'protein 2018'!$A:$H,8,FALSE),"") ->  | R177: =IF(L177<>"",VLOOKUP($L177,'protein 2018'!$A:$H,7,FALSE),"") -> 
M178: =IF(L178<>"",VLOOKUP($L178,'milk yield 2018'!$A:$H,8,FALSE),"") ->  | N178: =IF(L178<>"",VLOOKUP($L178,'milk yield 2018'!$A:$H,7,FALSE),"") ->  | O178: =IF(L178<>"",VLOOKUP($L178,'fat 2018'!$A:$H,8,FALSE),"") ->  | P178: =IF(L178<>"",VLOOKUP($L178,'fat 2018'!$A:$H,7,FALSE),"") ->  | Q178: =IF(L178<>"",VLOOKUP($L178,'protein 2018'!$A:$H,8,FALSE),"") ->  | R178: =IF(L178<>"",VLOOKUP($L178,'protein 2018'!$A:$H,7,FALSE),"") -> 
K179: =IF(B179<>"",IF(($E$8-$B179)<1,1,IF(($E$8-$B179)>360,7,(INT((1+($E$8-$B179)/60))))),"") ->  | L179: =IF(AND(J179<>"",K179<>""),$E$9*1000+$J179*100+$C$15*10+$K179,"") ->  | M179: =IF(L179<>"",VLOOKUP($L179,'milk yield 2018'!$A:$H,8,FALSE),"") ->  | N179: =IF(L179<>"",VLOOKUP($L179,'milk yield 2018'!$A:$H,7,FALSE),"") ->  | O179: =IF(L179<>"",VLOOKUP($L179,'fat 2018'!$A:$H,8,FALSE),"") ->  | P179: =IF(L179<>"",VLOOKUP($L179,'fat 2018'!$A:$H,7,FALSE),"") ->  | Q179: =IF(L179<>"",VLOOKUP($L179,'protein 2018'!$A:$H,8,FALSE),"") ->  | R179: =IF(L179<>"",VLOOKUP($L179,'protein 2018'!$A:$H,7,FALSE),"") -> 
M180: =IF(L180<>"",VLOOKUP($L180,'milk yield 2018'!$A:$H,8,FALSE),"") ->  | N180: =IF(L180<>"",VLOOKUP($L180,'milk yield 2018'!$A:$H,7,FALSE),"") ->  | O180: =IF(L180<>"",VLOOKUP($L180,'fat 2018'!$A:$H,8,FALSE),"") ->  | P180: =IF(L180<>"",VLOOKUP($L180,'fat 2018'!$A:$H,7,FALSE),"") ->  | Q180: =IF(L180<>"",VLOOKUP($L180,'protein 2018'!$A:$H,8,FALSE),"") ->  | R180: =IF(L180<>"",VLOOKUP($L180,'protein 2018'!$A:$H,7,FALSE),"") -> 
M181: =IF(L181<>"",VLOOKUP($L181,'milk yield 2018'!$A:$H,8,FALSE),"") ->  | N181: =IF(L181<>"",VLOOKUP($L181,'milk yield 2018'!$A:$H,7,FALSE),"") ->  | O181: =IF(L181<>"",VLOOKUP($L181,'fat 2018'!$A:$H,8,FALSE),"") ->  | P181: =IF(L181<>"",VLOOKUP($L181,'fat 2018'!$A:$H,7,FALSE),"") ->  | Q181: =IF(L181<>"",VLOOKUP($L181,'protein 2018'!$A:$H,8,FALSE),"") ->  | R181: =IF(L181<>"",VLOOKUP($L181,'protein 2018'!$A:$H,7,FALSE),"") -> 
M182: =IF(L182<>"",VLOOKUP($L182,'milk yield 2018'!$A:$H,8,FALSE),"") ->  | N182: =IF(L182<>"",VLOOKUP($L182,'milk yield 2018'!$A:$H,7,FALSE),"") ->  | O182: =IF(L182<>"",VLOOKUP($L182,'fat 2018'!$A:$H,8,FALSE),"") ->  | P182: =IF(L182<>"",VLOOKUP($L182,'fat 2018'!$A:$H,7,FALSE),"") ->  | Q182: =IF(L182<>"",VLOOKUP($L182,'protein 2018'!$A:$H,8,FALSE),"") ->  | R182: =IF(L182<>"",VLOOKUP($L182,'protein 2018'!$A:$H,7,FALSE),"") -> 
M183: =IF(L183<>"",VLOOKUP($L183,'milk yield 2018'!$A:$H,8,FALSE),"") ->  | N183: =IF(L183<>"",VLOOKUP($L183,'milk yield 2018'!$A:$H,7,FALSE),"") ->  | O183: =IF(L183<>"",VLOOKUP($L183,'fat 2018'!$A:$H,8,FALSE),"") ->  | P183: =IF(L183<>"",VLOOKUP($L183,'fat 2018'!$A:$H,7,FALSE),"") ->  | Q183: =IF(L183<>"",VLOOKUP($L183,'protein 2018'!$A:$H,8,FALSE),"") ->  | R183: =IF(L183<>"",VLOOKUP($L183,'protein 2018'!$A:$H,7,FALSE),"") -> 
M184: =IF(L184<>"",VLOOKUP($L184,'milk yield 2018'!$A:$H,8,FALSE),"") ->  | N184: =IF(L184<>"",VLOOKUP($L184,'milk yield 2018'!$A:$H,7,FALSE),"") ->  | O184: =IF(L184<>"",VLOOKUP($L184,'fat 2018'!$A:$H,8,FALSE),"") ->  | P184: =IF(L184<>"",VLOOKUP($L184,'fat 2018'!$A:$H,7,FALSE),"") ->  | Q184: =IF(L184<>"",VLOOKUP($L184,'protein 2018'!$A:$H,8,FALSE),"") ->  | R184: =IF(L184<>"",VLOOKUP($L184,'protein 2018'!$A:$H,7,FALSE),"") -> 
M185: =IF(L185<>"",VLOOKUP($L185,'milk yield 2018'!$A:$H,8,FALSE),"") ->  | N185: =IF(L185<>"",VLOOKUP($L185,'milk yield 2018'!$A:$H,7,FALSE),"") ->  | O185: =IF(L185<>"",VLOOKUP($L185,'fat 2018'!$A:$H,8,FALSE),"") ->  | P185: =IF(L185<>"",VLOOKUP($L185,'fat 2018'!$A:$H,7,FALSE),"") ->  | Q185: =IF(L185<>"",VLOOKUP($L185,'protein 2018'!$A:$H,8,FALSE),"") ->  | R185: =IF(L185<>"",VLOOKUP($L185,'protein 2018'!$A:$H,7,FALSE),"") -> 
M186: =IF(L186<>"",VLOOKUP($L186,'milk yield 2018'!$A:$H,8,FALSE),"") ->  | N186: =IF(L186<>"",VLOOKUP($L186,'milk yield 2018'!$A:$H,7,FALSE),"") ->  | O186: =IF(L186<>"",VLOOKUP($L186,'fat 2018'!$A:$H,8,FALSE),"") ->  | P186: =IF(L186<>"",VLOOKUP($L186,'fat 2018'!$A:$H,7,FALSE),"") ->  | Q186: =IF(L186<>"",VLOOKUP($L186,'protein 2018'!$A:$H,8,FALSE),"") ->  | R186: =IF(L186<>"",VLOOKUP($L186,'protein 2018'!$A:$H,7,FALSE),"") -> 
M187: =IF(L187<>"",VLOOKUP($L187,'milk yield 2018'!$A:$H,8,FALSE),"") ->  | N187: =IF(L187<>"",VLOOKUP($L187,'milk yield 2018'!$A:$H,7,FALSE),"") ->  | O187: =IF(L187<>"",VLOOKUP($L187,'fat 2018'!$A:$H,8,FALSE),"") ->  | P187: =IF(L187<>"",VLOOKUP($L187,'fat 2018'!$A:$H,7,FALSE),"") ->  | Q187: =IF(L187<>"",VLOOKUP($L187,'protein 2018'!$A:$H,8,FALSE),"") ->  | R187: =IF(L187<>"",VLOOKUP($L187,'protein 2018'!$A:$H,7,FALSE),"") -> 
M188: =IF(L188<>"",VLOOKUP($L188,'milk yield 2018'!$A:$H,8,FALSE),"") ->  | N188: =IF(L188<>"",VLOOKUP($L188,'milk yield 2018'!$A:$H,7,FALSE),"") ->  | O188: =IF(L188<>"",VLOOKUP($L188,'fat 2018'!$A:$H,8,FALSE),"") ->  | P188: =IF(L188<>"",VLOOKUP($L188,'fat 2018'!$A:$H,7,FALSE),"") ->  | Q188: =IF(L188<>"",VLOOKUP($L188,'protein 2018'!$A:$H,8,FALSE),"") ->  | R188: =IF(L188<>"",VLOOKUP($L188,'protein 2018'!$A:$H,7,FALSE),"") -> 
M189: =IF(L189<>"",VLOOKUP($L189,'milk yield 2018'!$A:$H,8,FALSE),"") ->  | N189: =IF(L189<>"",VLOOKUP($L189,'milk yield 2018'!$A:$H,7,FALSE),"") ->  | O189: =IF(L189<>"",VLOOKUP($L189,'fat 2018'!$A:$H,8,FALSE),"") ->  | P189: =IF(L189<>"",VLOOKUP($L189,'fat 2018'!$A:$H,7,FALSE),"") ->  | Q189: =IF(L189<>"",VLOOKUP($L189,'protein 2018'!$A:$H,8,FALSE),"") ->  | R189: =IF(L189<>"",VLOOKUP($L189,'protein 2018'!$A:$H,7,FALSE),"") -> 
M190: =IF(L190<>"",VLOOKUP($L190,'milk yield 2018'!$A:$H,8,FALSE),"") ->  | N190: =IF(L190<>"",VLOOKUP($L190,'milk yield 2018'!$A:$H,7,FALSE),"") ->  | O190: =IF(L190<>"",VLOOKUP($L190,'fat 2018'!$A:$H,8,FALSE),"") ->  | P190: =IF(L190<>"",VLOOKUP($L190,'fat 2018'!$A:$H,7,FALSE),"") ->  | Q190: =IF(L190<>"",VLOOKUP($L190,'protein 2018'!$A:$H,8,FALSE),"") ->  | R190: =IF(L190<>"",VLOOKUP($L190,'protein 2018'!$A:$H,7,FALSE),"") -> 
M191: =IF(L191<>"",VLOOKUP($L191,'milk yield 2018'!$A:$H,8,FALSE),"") ->  | N191: =IF(L191<>"",VLOOKUP($L191,'milk yield 2018'!$A:$H,7,FALSE),"") ->  | O191: =IF(L191<>"",VLOOKUP($L191,'fat 2018'!$A:$H,8,FALSE),"") ->  | P191: =IF(L191<>"",VLOOKUP($L191,'fat 2018'!$A:$H,7,FALSE),"") ->  | Q191: =IF(L191<>"",VLOOKUP($L191,'protein 2018'!$A:$H,8,FALSE),"") ->  | R191: =IF(L191<>"",VLOOKUP($L191,'protein 2018'!$A:$H,7,FALSE),"") -> 
M192: =IF(L192<>"",VLOOKUP($L192,'milk yield 2018'!$A:$H,8,FALSE),"") ->  | N192: =IF(L192<>"",VLOOKUP($L192,'milk yield 2018'!$A:$H,7,FALSE),"") ->  | O192: =IF(L192<>"",VLOOKUP($L192,'fat 2018'!$A:$H,8,FALSE),"") ->  | P192: =IF(L192<>"",VLOOKUP($L192,'fat 2018'!$A:$H,7,FALSE),"") ->  | Q192: =IF(L192<>"",VLOOKUP($L192,'protein 2018'!$A:$H,8,FALSE),"") ->  | R192: =IF(L192<>"",VLOOKUP($L192,'protein 2018'!$A:$H,7,FALSE),"") -> 
M193: =IF(L193<>"",VLOOKUP($L193,'milk yield 2018'!$A:$H,8,FALSE),"") ->  | N193: =IF(L193<>"",VLOOKUP($L193,'milk yield 2018'!$A:$H,7,FALSE),"") ->  | O193: =IF(L193<>"",VLOOKUP($L193,'fat 2018'!$A:$H,8,FALSE),"") ->  | P193: =IF(L193<>"",VLOOKUP($L193,'fat 2018'!$A:$H,7,FALSE),"") ->  | Q193: =IF(L193<>"",VLOOKUP($L193,'protein 2018'!$A:$H,8,FALSE),"") ->  | R193: =IF(L193<>"",VLOOKUP($L193,'protein 2018'!$A:$H,7,FALSE),"") -> 
M194: =IF(L194<>"",VLOOKUP($L194,'milk yield 2018'!$A:$H,8,FALSE),"") ->  | N194: =IF(L194<>"",VLOOKUP($L194,'milk yield 2018'!$A:$H,7,FALSE),"") ->  | O194: =IF(L194<>"",VLOOKUP($L194,'fat 2018'!$A:$H,8,FALSE),"") ->  | P194: =IF(L194<>"",VLOOKUP($L194,'fat 2018'!$A:$H,7,FALSE),"") ->  | Q194: =IF(L194<>"",VLOOKUP($L194,'protein 2018'!$A:$H,8,FALSE),"") ->  | R194: =IF(L194<>"",VLOOKUP($L194,'protein 2018'!$A:$H,7,FALSE),"") -> 
M195: =IF(L195<>"",VLOOKUP($L195,'milk yield 2018'!$A:$H,8,FALSE),"") ->  | N195: =IF(L195<>"",VLOOKUP($L195,'milk yield 2018'!$A:$H,7,FALSE),"") ->  | O195: =IF(L195<>"",VLOOKUP($L195,'fat 2018'!$A:$H,8,FALSE),"") ->  | P195: =IF(L195<>"",VLOOKUP($L195,'fat 2018'!$A:$H,7,FALSE),"") ->  | Q195: =IF(L195<>"",VLOOKUP($L195,'protein 2018'!$A:$H,8,FALSE),"") ->  | R195: =IF(L195<>"",VLOOKUP($L195,'protein 2018'!$A:$H,7,FALSE),"") -> 
M196: =IF(L196<>"",VLOOKUP($L196,'milk yield 2018'!$A:$H,8,FALSE),"") ->  | N196: =IF(L196<>"",VLOOKUP($L196,'milk yield 2018'!$A:$H,7,FALSE),"") ->  | O196: =IF(L196<>"",VLOOKUP($L196,'fat 2018'!$A:$H,8,FALSE),"") ->  | P196: =IF(L196<>"",VLOOKUP($L196,'fat 2018'!$A:$H,7,FALSE),"") ->  | Q196: =IF(L196<>"",VLOOKUP($L196,'protein 2018'!$A:$H,8,FALSE),"") ->  | R196: =IF(L196<>"",VLOOKUP($L196,'protein 2018'!$A:$H,7,FALSE),"") -> 
M197: =IF(L197<>"",VLOOKUP($L197,'milk yield 2018'!$A:$H,8,FALSE),"") ->  | N197: =IF(L197<>"",VLOOKUP($L197,'milk yield 2018'!$A:$H,7,FALSE),"") ->  | O197: =IF(L197<>"",VLOOKUP($L197,'fat 2018'!$A:$H,8,FALSE),"") ->  | P197: =IF(L197<>"",VLOOKUP($L197,'fat 2018'!$A:$H,7,FALSE),"") ->  | Q197: =IF(L197<>"",VLOOKUP($L197,'protein 2018'!$A:$H,8,FALSE),"") ->  | R197: =IF(L197<>"",VLOOKUP($L197,'protein 2018'!$A:$H,7,FALSE),"") -> 
M198: =IF(L198<>"",VLOOKUP($L198,'milk yield 2018'!$A:$H,8,FALSE),"") ->  | N198: =IF(L198<>"",VLOOKUP($L198,'milk yield 2018'!$A:$H,7,FALSE),"") ->  | O198: =IF(L198<>"",VLOOKUP($L198,'fat 2018'!$A:$H,8,FALSE),"") ->  | P198: =IF(L198<>"",VLOOKUP($L198,'fat 2018'!$A:$H,7,FALSE),"") ->  | Q198: =IF(L198<>"",VLOOKUP($L198,'protein 2018'!$A:$H,8,FALSE),"") ->  | R198: =IF(L198<>"",VLOOKUP($L198,'protein 2018'!$A:$H,7,FALSE),"") -> 
M199: =IF(L199<>"",VLOOKUP($L199,'milk yield 2018'!$A:$H,8,FALSE),"") ->  | N199: =IF(L199<>"",VLOOKUP($L199,'milk yield 2018'!$A:$H,7,FALSE),"") ->  | O199: =IF(L199<>"",VLOOKUP($L199,'fat 2018'!$A:$H,8,FALSE),"") ->  | P199: =IF(L199<>"",VLOOKUP($L199,'fat 2018'!$A:$H,7,FALSE),"") ->  | Q199: =IF(L199<>"",VLOOKUP($L199,'protein 2018'!$A:$H,8,FALSE),"") ->  | R199: =IF(L199<>"",VLOOKUP($L199,'protein 2018'!$A:$H,7,FALSE),"") -> 
M200: =IF(L200<>"",VLOOKUP($L200,'milk yield 2018'!$A:$H,8,FALSE),"") ->  | N200: =IF(L200<>"",VLOOKUP($L200,'milk yield 2018'!$A:$H,7,FALSE),"") ->  | O200: =IF(L200<>"",VLOOKUP($L200,'fat 2018'!$A:$H,8,FALSE),"") ->  | P200: =IF(L200<>"",VLOOKUP($L200,'fat 2018'!$A:$H,7,FALSE),"") ->  | Q200: =IF(L200<>"",VLOOKUP($L200,'protein 2018'!$A:$H,8,FALSE),"") ->  | R200: =IF(L200<>"",VLOOKUP($L200,'protein 2018'!$A:$H,7,FALSE),"") -> 
M201: =IF(L201<>"",VLOOKUP($L201,'milk yield 2018'!$A:$H,8,FALSE),"") ->  | N201: =IF(L201<>"",VLOOKUP($L201,'milk yield 2018'!$A:$H,7,FALSE),"") ->  | O201: =IF(L201<>"",VLOOKUP($L201,'fat 2018'!$A:$H,8,FALSE),"") ->  | P201: =IF(L201<>"",VLOOKUP($L201,'fat 2018'!$A:$H,7,FALSE),"") ->  | Q201: =IF(L201<>"",VLOOKUP($L201,'protein 2018'!$A:$H,8,FALSE),"") ->  | R201: =IF(L201<>"",VLOOKUP($L201,'protein 2018'!$A:$H,7,FALSE),"") -> 
M202: =IF(L202<>"",VLOOKUP($L202,'milk yield 2018'!$A:$H,8,FALSE),"") ->  | N202: =IF(L202<>"",VLOOKUP($L202,'milk yield 2018'!$A:$H,7,FALSE),"") ->  | O202: =IF(L202<>"",VLOOKUP($L202,'fat 2018'!$A:$H,8,FALSE),"") ->  | P202: =IF(L202<>"",VLOOKUP($L202,'fat 2018'!$A:$H,7,FALSE),"") ->  | Q202: =IF(L202<>"",VLOOKUP($L202,'protein 2018'!$A:$H,8,FALSE),"") ->  | R202: =IF(L202<>"",VLOOKUP($L202,'protein 2018'!$A:$H,7,FALSE),"") -> 
M203: =IF(L203<>"",VLOOKUP($L203,'milk yield 2018'!$A:$H,8,FALSE),"") ->  | N203: =IF(L203<>"",VLOOKUP($L203,'milk yield 2018'!$A:$H,7,FALSE),"") ->  | O203: =IF(L203<>"",VLOOKUP($L203,'fat 2018'!$A:$H,8,FALSE),"") ->  | P203: =IF(L203<>"",VLOOKUP($L203,'fat 2018'!$A:$H,7,FALSE),"") ->  | Q203: =IF(L203<>"",VLOOKUP($L203,'protein 2018'!$A:$H,8,FALSE),"") ->  | R203: =IF(L203<>"",VLOOKUP($L203,'protein 2018'!$A:$H,7,FALSE),"") -> 
... 15 more rows

Sheet Makro1 (hidden)

Sheet results (hidden)
A2: AT calculation 2019 (Liu method)
C3: =IF(data!E12 =1,"AT calculation",IF(data!E12=2,"recalculation to original data","")) -> AT calculation
G6: out of range
G7: in the case of small milk amount or extrem ingridients
B8: cow | C8: calving date | D8: milkyield | E8: fat % | F8: protein % | G8: milkyield | H8: fat % | I8: protein %
A9: =IF(smoothing!A15="out of range","out of range","") ->  | B9: =IF(ISBLANK(data!A19),"",data!A19) -> 2132 | C9: =IF(ISBLANK(data!B19),"",data!B19) -> 1999-11-28 | D9: =IF(ISBLANK(data!$A19),"",IF(ISBLANK(data!$B19),"",IF(ISBLANK(data!$C19),"",IF(ISBLANK(data!D19),"",data!G19)))) -> 44.723454 | E9: =IF(ISBLANK(data!$A19),"",IF(ISBLANK(data!$B19),"",IF(ISBLANK(data!$C19),"",IF(ISBLANK(data!E19),"",data!H19)))) -> 4.154369544 | F9: =IF(ISBLANK(data!$A19),"",IF(ISBLANK(data!$B19),"",IF(ISBLANK(data!$C19),"",IF(ISBLANK(data!F19),"",data!I19)))) -> 3.179988916 | G9: =IF(smoothing!C15="","",smoothing!B15) ->  | H9: =IF(smoothing!G15="","",smoothing!F15) ->  | I9: =IF(smoothing!K15="","",smoothing!J15) -> 
A10: =IF(smoothing!A16="out of range","out of range","") ->  | B10: =IF(ISBLANK(data!A20),"",data!A20) ->  | C10: =IF(ISBLANK(data!B20),"",data!B20) ->  | D10: =IF(ISBLANK(data!$A20),"",IF(ISBLANK(data!$B20),"",IF(ISBLANK(data!$C20),"",IF(ISBLANK(data!D20),"",data!G20)))) ->  | E10: =IF(ISBLANK(data!$A20),"",IF(ISBLANK(data!$B20),"",IF(ISBLANK(data!$C20),"",IF(ISBLANK(data!E20),"",data!H20)))) ->  | F10: =IF(ISBLANK(data!$A20),"",IF(ISBLANK(data!$B20),"",IF(ISBLANK(data!$C20),"",IF(ISBLANK(data!F20),"",data!I20)))) ->  | G10: =IF(smoothing!C16="","",smoothing!B16) ->  | H10: =IF(smoothing!G16="","",smoothing!F16) ->  | I10: =IF(smoothing!K16="","",smoothing!J16) -> 
A11: =IF(smoothing!A17="out of range","out of range","") ->  | B11: =IF(ISBLANK(data!A21),"",data!A21) ->  | C11: =IF(ISBLANK(data!B21),"",data!B21) ->  | D11: =IF(ISBLANK(data!$A21),"",IF(ISBLANK(data!$B21),"",IF(ISBLANK(data!$C21),"",IF(ISBLANK(data!D21),"",data!G21)))) ->  | E11: =IF(ISBLANK(data!$A21),"",IF(ISBLANK(data!$B21),"",IF(ISBLANK(data!$C21),"",IF(ISBLANK(data!E21),"",data!H21)))) ->  | F11: =IF(ISBLANK(data!$A21),"",IF(ISBLANK(data!$B21),"",IF(ISBLANK(data!$C21),"",IF(ISBLANK(data!F21),"",data!I21)))) ->  | G11: =IF(smoothing!C17="","",smoothing!B17) ->  | H11: =IF(smoothing!G17="","",smoothing!F17) ->  | I11: =IF(smoothing!K17="","",smoothing!J17) -> 
A12: =IF(smoothing!A18="out of range","out of range","") ->  | B12: =IF(ISBLANK(data!A22),"",data!A22) ->  | C12: =IF(ISBLANK(data!B22),"",data!B22) ->  | D12: =IF(ISBLANK(data!$A22),"",IF(ISBLANK(data!$B22),"",IF(ISBLANK(data!$C22),"",IF(ISBLANK(data!D22),"",data!G22)))) ->  | E12: =IF(ISBLANK(data!$A22),"",IF(ISBLANK(data!$B22),"",IF(ISBLANK(data!$C22),"",IF(ISBLANK(data!E22),"",data!H22)))) ->  | F12: =IF(ISBLANK(data!$A22),"",IF(ISBLANK(data!$B22),"",IF(ISBLANK(data!$C22),"",IF(ISBLANK(data!F22),"",data!I22)))) ->  | G12: =IF(smoothing!C18="","",smoothing!B18) ->  | H12: =IF(smoothing!G18="","",smoothing!F18) ->  | I12: =IF(smoothing!K18="","",smoothing!J18) -> 
A13: =IF(smoothing!A19="out of range","out of range","") ->  | B13: =IF(ISBLANK(data!A23),"",data!A23) ->  | C13: =IF(ISBLANK(data!B23),"",data!B23) ->  | D13: =IF(ISBLANK(data!$A23),"",IF(ISBLANK(data!$B23),"",IF(ISBLANK(data!$C23),"",IF(ISBLANK(data!D23),"",data!G23)))) ->  | E13: =IF(ISBLANK(data!$A23),"",IF(ISBLANK(data!$B23),"",IF(ISBLANK(data!$C23),"",IF(ISBLANK(data!E23),"",data!H23)))) ->  | F13: =IF(ISBLANK(data!$A23),"",IF(ISBLANK(data!$B23),"",IF(ISBLANK(data!$C23),"",IF(ISBLANK(data!F23),"",data!I23)))) ->  | G13: =IF(smoothing!C19="","",smoothing!B19) ->  | H13: =IF(smoothing!G19="","",smoothing!F19) ->  | I13: =IF(smoothing!K19="","",smoothing!J19) -> 
A14: =IF(smoothing!A20="out of range","out of range","") ->  | B14: =IF(ISBLANK(data!A24),"",data!A24) ->  | C14: =IF(ISBLANK(data!B24),"",data!B24) ->  | D14: =IF(ISBLANK(data!$A24),"",IF(ISBLANK(data!$B24),"",IF(ISBLANK(data!$C24),"",IF(ISBLANK(data!D24),"",data!G24)))) ->  | E14: =IF(ISBLANK(data!$A24),"",IF(ISBLANK(data!$B24),"",IF(ISBLANK(data!$C24),"",IF(ISBLANK(data!E24),"",data!H24)))) ->  | F14: =IF(ISBLANK(data!$A24),"",IF(ISBLANK(data!$B24),"",IF(ISBLANK(data!$C24),"",IF(ISBLANK(data!F24),"",data!I24)))) ->  | G14: =IF(smoothing!C20="","",smoothing!B20) ->  | H14: =IF(smoothing!G20="","",smoothing!F20) ->  | I14: =IF(smoothing!K20="","",smoothing!J20) -> 
A15: =IF(smoothing!A21="out of range","out of range","") ->  | B15: =IF(ISBLANK(data!A25),"",data!A25) ->  | C15: =IF(ISBLANK(data!B25),"",data!B25) ->  | D15: =IF(ISBLANK(data!$A25),"",IF(ISBLANK(data!$B25),"",IF(ISBLANK(data!$C25),"",IF(ISBLANK(data!D25),"",data!G25)))) ->  | E15: =IF(ISBLANK(data!$A25),"",IF(ISBLANK(data!$B25),"",IF(ISBLANK(data!$C25),"",IF(ISBLANK(data!E25),"",data!H25)))) ->  | F15: =IF(ISBLANK(data!$A25),"",IF(ISBLANK(data!$B25),"",IF(ISBLANK(data!$C25),"",IF(ISBLANK(data!F25),"",data!I25)))) ->  | G15: =IF(smoothing!C21="","",smoothing!B21) ->  | H15: =IF(smoothing!G21="","",smoothing!F21) ->  | I15: =IF(smoothing!K21="","",smoothing!J21) -> 
A16: =IF(smoothing!A22="out of range","out of range","") ->  | B16: =IF(ISBLANK(data!A26),"",data!A26) ->  | C16: =IF(ISBLANK(data!B26),"",data!B26) ->  | D16: =IF(ISBLANK(data!$A26),"",IF(ISBLANK(data!$B26),"",IF(ISBLANK(data!$C26),"",IF(ISBLANK(data!D26),"",data!G26)))) ->  | E16: =IF(ISBLANK(data!$A26),"",IF(ISBLANK(data!$B26),"",IF(ISBLANK(data!$C26),"",IF(ISBLANK(data!E26),"",data!H26)))) ->  | F16: =IF(ISBLANK(data!$A26),"",IF(ISBLANK(data!$B26),"",IF(ISBLANK(data!$C26),"",IF(ISBLANK(data!F26),"",data!I26)))) ->  | G16: =IF(smoothing!C22="","",smoothing!B22) ->  | H16: =IF(smoothing!G22="","",smoothing!F22) ->  | I16: =IF(smoothing!K22="","",smoothing!J22) -> 
A17: =IF(smoothing!A23="out of range","out of range","") ->  | B17: =IF(ISBLANK(data!A27),"",data!A27) ->  | C17: =IF(ISBLANK(data!B27),"",data!B27) ->  | D17: =IF(ISBLANK(data!$A27),"",IF(ISBLANK(data!$B27),"",IF(ISBLANK(data!$C27),"",IF(ISBLANK(data!D27),"",data!G27)))) ->  | E17: =IF(ISBLANK(data!$A27),"",IF(ISBLANK(data!$B27),"",IF(ISBLANK(data!$C27),"",IF(ISBLANK(data!E27),"",data!H27)))) ->  | F17: =IF(ISBLANK(data!$A27),"",IF(ISBLANK(data!$B27),"",IF(ISBLANK(data!$C27),"",IF(ISBLANK(data!F27),"",data!I27)))) ->  | G17: =IF(smoothing!C23="","",smoothing!B23) ->  | H17: =IF(smoothing!G23="","",smoothing!F23) ->  | I17: =IF(smoothing!K23="","",smoothing!J23) -> 
A18: =IF(smoothing!A24="out of range","out of range","") ->  | B18: =IF(ISBLANK(data!A28),"",data!A28) ->  | C18: =IF(ISBLANK(data!B28),"",data!B28) ->  | D18: =IF(ISBLANK(data!$A28),"",IF(ISBLANK(data!$B28),"",IF(ISBLANK(data!$C28),"",IF(ISBLANK(data!D28),"",data!G28)))) ->  | E18: =IF(ISBLANK(data!$A28),"",IF(ISBLANK(data!$B28),"",IF(ISBLANK(data!$C28),"",IF(ISBLANK(data!E28),"",data!H28)))) ->  | F18: =IF(ISBLANK(data!$A28),"",IF(ISBLANK(data!$B28),"",IF(ISBLANK(data!$C28),"",IF(ISBLANK(data!F28),"",data!I28)))) ->  | G18: =IF(smoothing!C24="","",smoothing!B24) ->  | H18: =IF(smoothing!G24="","",smoothing!F24) ->  | I18: =IF(smoothing!K24="","",smoothing!J24) -> 
A19: =IF(smoothing!A25="out of range","out of range","") ->  | B19: =IF(ISBLANK(data!A29),"",data!A29) ->  | C19: =IF(ISBLANK(data!B29),"",data!B29) ->  | D19: =IF(ISBLANK(data!$A29),"",IF(ISBLANK(data!$B29),"",IF(ISBLANK(data!$C29),"",IF(ISBLANK(data!D29),"",data!G29)))) ->  | E19: =IF(ISBLANK(data!$A29),"",IF(ISBLANK(data!$B29),"",IF(ISBLANK(data!$C29),"",IF(ISBLANK(data!E29),"",data!H29)))) ->  | F19: =IF(ISBLANK(data!$A29),"",IF(ISBLANK(data!$B29),"",IF(ISBLANK(data!$C29),"",IF(ISBLANK(data!F29),"",data!I29)))) ->  | G19: =IF(smoothing!C25="","",smoothing!B25) ->  | H19: =IF(smoothing!G25="","",smoothing!F25) ->  | I19: =IF(smoothing!K25="","",smoothing!J25) -> 
A20: =IF(smoothing!A26="out of range","out of range","") ->  | B20: =IF(ISBLANK(data!A30),"",data!A30) ->  | C20: =IF(ISBLANK(data!B30),"",data!B30) ->  | D20: =IF(ISBLANK(data!$A30),"",IF(ISBLANK(data!$B30),"",IF(ISBLANK(data!$C30),"",IF(ISBLANK(data!D30),"",data!G30)))) ->  | E20: =IF(ISBLANK(data!$A30),"",IF(ISBLANK(data!$B30),"",IF(ISBLANK(data!$C30),"",IF(ISBLANK(data!E30),"",data!H30)))) ->  | F20: =IF(ISBLANK(data!$A30),"",IF(ISBLANK(data!$B30),"",IF(ISBLANK(data!$C30),"",IF(ISBLANK(data!F30),"",data!I30)))) ->  | G20: =IF(smoothing!C26="","",smoothing!B26) ->  | H20: =IF(smoothing!G26="","",smoothing!F26) ->  | I20: =IF(smoothing!K26="","",smoothing!J26) -> 
A21: =IF(smoothing!A27="out of range","out of range","") ->  | B21: =IF(ISBLANK(data!A31),"",data!A31) ->  | C21: =IF(ISBLANK(data!B31),"",data!B31) ->  | D21: =IF(ISBLANK(data!$A31),"",IF(ISBLANK(data!$B31),"",IF(ISBLANK(data!$C31),"",IF(ISBLANK(data!D31),"",data!G31)))) ->  | E21: =IF(ISBLANK(data!$A31),"",IF(ISBLANK(data!$B31),"",IF(ISBLANK(data!$C31),"",IF(ISBLANK(data!E31),"",data!H31)))) ->  | F21: =IF(ISBLANK(data!$A31),"",IF(ISBLANK(data!$B31),"",IF(ISBLANK(data!$C31),"",IF(ISBLANK(data!F31),"",data!I31)))) ->  | G21: =IF(smoothing!C27="","",smoothing!B27) ->  | H21: =IF(smoothing!G27="","",smoothing!F27) ->  | I21: =IF(smoothing!K27="","",smoothing!J27) -> 
A22: =IF(smoothing!A28="out of range","out of range","") ->  | B22: =IF(ISBLANK(data!A32),"",data!A32) ->  | C22: =IF(ISBLANK(data!B32),"",data!B32) ->  | D22: =IF(ISBLANK(data!$A32),"",IF(ISBLANK(data!$B32),"",IF(ISBLANK(data!$C32),"",IF(ISBLANK(data!D32),"",data!G32)))) ->  | E22: =IF(ISBLANK(data!$A32),"",IF(ISBLANK(data!$B32),"",IF(ISBLANK(data!$C32),"",IF(ISBLANK(data!E32),"",data!H32)))) ->  | F22: =IF(ISBLANK(data!$A32),"",IF(ISBLANK(data!$B32),"",IF(ISBLANK(data!$C32),"",IF(ISBLANK(data!F32),"",data!I32)))) ->  | G22: =IF(smoothing!C28="","",smoothing!B28) ->  | H22: =IF(smoothing!G28="","",smoothing!F28) ->  | I22: =IF(smoothing!K28="","",smoothing!J28) -> 
A23: =IF(smoothing!A29="out of range","out of range","") ->  | B23: =IF(ISBLANK(data!A33),"",data!A33) ->  | C23: =IF(ISBLANK(data!B33),"",data!B33) ->  | D23: =IF(ISBLANK(data!$A33),"",IF(ISBLANK(data!$B33),"",IF(ISBLANK(data!$C33),"",IF(ISBLANK(data!D33),"",data!G33)))) ->  | E23: =IF(ISBLANK(data!$A33),"",IF(ISBLANK(data!$B33),"",IF(ISBLANK(data!$C33),"",IF(ISBLANK(data!E33),"",data!H33)))) ->  | F23: =IF(ISBLANK(data!$A33),"",IF(ISBLANK(data!$B33),"",IF(ISBLANK(data!$C33),"",IF(ISBLANK(data!F33),"",data!I33)))) ->  | G23: =IF(smoothing!C29="","",smoothing!B29) ->  | H23: =IF(smoothing!G29="","",smoothing!F29) ->  | I23: =IF(smoothing!K29="","",smoothing!J29) -> 
A24: =IF(smoothing!A30="out of range","out of range","") ->  | B24: =IF(ISBLANK(data!A34),"",data!A34) ->  | C24: =IF(ISBLANK(data!B34),"",data!B34) ->  | D24: =IF(ISBLANK(data!$A34),"",IF(ISBLANK(data!$B34),"",IF(ISBLANK(data!$C34),"",IF(ISBLANK(data!D34),"",data!G34)))) ->  | E24: =IF(ISBLANK(data!$A34),"",IF(ISBLANK(data!$B34),"",IF(ISBLANK(data!$C34),"",IF(ISBLANK(data!E34),"",data!H34)))) ->  | F24: =IF(ISBLANK(data!$A34),"",IF(ISBLANK(data!$B34),"",IF(ISBLANK(data!$C34),"",IF(ISBLANK(data!F34),"",data!I34)))) ->  | G24: =IF(smoothing!C30="","",smoothing!B30) ->  | H24: =IF(smoothing!G30="","",smoothing!F30) ->  | I24: =IF(smoothing!K30="","",smoothing!J30) -> 
A25: =IF(smoothing!A31="out of range","out of range","") ->  | B25: =IF(ISBLANK(data!A35),"",data!A35) ->  | C25: =IF(ISBLANK(data!B35),"",data!B35) ->  | D25: =IF(ISBLANK(data!$A35),"",IF(ISBLANK(data!$B35),"",IF(ISBLANK(data!$C35),"",IF(ISBLANK(data!D35),"",data!G35)))) ->  | E25: =IF(ISBLANK(data!$A35),"",IF(ISBLANK(data!$B35),"",IF(ISBLANK(data!$C35),"",IF(ISBLANK(data!E35),"",data!H35)))) ->  | F25: =IF(ISBLANK(data!$A35),"",IF(ISBLANK(data!$B35),"",IF(ISBLANK(data!$C35),"",IF(ISBLANK(data!F35),"",data!I35)))) ->  | G25: =IF(smoothing!C31="","",smoothing!B31) ->  | H25: =IF(smoothing!G31="","",smoothing!F31) ->  | I25: =IF(smoothing!K31="","",smoothing!J31) -> 
A26: =IF(smoothing!A32="out of range","out of range","") ->  | B26: =IF(ISBLANK(data!A36),"",data!A36) ->  | C26: =IF(ISBLANK(data!B36),"",data!B36) ->  | D26: =IF(ISBLANK(data!$A36),"",IF(ISBLANK(data!$B36),"",IF(ISBLANK(data!$C36),"",IF(ISBLANK(data!D36),"",data!G36)))) ->  | E26: =IF(ISBLANK(data!$A36),"",IF(ISBLANK(data!$B36),"",IF(ISBLANK(data!$C36),"",IF(ISBLANK(data!E36),"",data!H36)))) ->  | F26: =IF(ISBLANK(data!$A36),"",IF(ISBLANK(data!$B36),"",IF(ISBLANK(data!$C36),"",IF(ISBLANK(data!F36),"",data!I36)))) ->  | G26: =IF(smoothing!C32="","",smoothing!B32) ->  | H26: =IF(smoothing!G32="","",smoothing!F32) ->  | I26: =IF(smoothing!K32="","",smoothing!J32) -> 
A27: =IF(smoothing!A33="out of range","out of range","") ->  | B27: =IF(ISBLANK(data!A37),"",data!A37) ->  | C27: =IF(ISBLANK(data!B37),"",data!B37) ->  | D27: =IF(ISBLANK(data!$A37),"",IF(ISBLANK(data!$B37),"",IF(ISBLANK(data!$C37),"",IF(ISBLANK(data!D37),"",data!G37)))) ->  | E27: =IF(ISBLANK(data!$A37),"",IF(ISBLANK(data!$B37),"",IF(ISBLANK(data!$C37),"",IF(ISBLANK(data!E37),"",data!H37)))) ->  | F27: =IF(ISBLANK(data!$A37),"",IF(ISBLANK(data!$B37),"",IF(ISBLANK(data!$C37),"",IF(ISBLANK(data!F37),"",data!I37)))) ->  | G27: =IF(smoothing!C33="","",smoothing!B33) ->  | H27: =IF(smoothing!G33="","",smoothing!F33) ->  | I27: =IF(smoothing!K33="","",smoothing!J33) -> 
A28: =IF(smoothing!A34="out of range","out of range","") ->  | B28: =IF(ISBLANK(data!A38),"",data!A38) ->  | C28: =IF(ISBLANK(data!B38),"",data!B38) ->  | D28: =IF(ISBLANK(data!$A38),"",IF(ISBLANK(data!$B38),"",IF(ISBLANK(data!$C38),"",IF(ISBLANK(data!D38),"",data!G38)))) ->  | E28: =IF(ISBLANK(data!$A38),"",IF(ISBLANK(data!$B38),"",IF(ISBLANK(data!$C38),"",IF(ISBLANK(data!E38),"",data!H38)))) ->  | F28: =IF(ISBLANK(data!$A38),"",IF(ISBLANK(data!$B38),"",IF(ISBLANK(data!$C38),"",IF(ISBLANK(data!F38),"",data!I38)))) ->  | G28: =IF(smoothing!C34="","",smoothing!B34) ->  | H28: =IF(smoothing!G34="","",smoothing!F34) ->  | I28: =IF(smoothing!K34="","",smoothing!J34) -> 
A29: =IF(smoothing!A35="out of range","out of range","") ->  | B29: =IF(ISBLANK(data!A39),"",data!A39) ->  | C29: =IF(ISBLANK(data!B39),"",data!B39) ->  | D29: =IF(ISBLANK(data!$A39),"",IF(ISBLANK(data!$B39),"",IF(ISBLANK(data!$C39),"",IF(ISBLANK(data!D39),"",data!G39)))) ->  | E29: =IF(ISBLANK(data!$A39),"",IF(ISBLANK(data!$B39),"",IF(ISBLANK(data!$C39),"",IF(ISBLANK(data!E39),"",data!H39)))) ->  | F29: =IF(ISBLANK(data!$A39),"",IF(ISBLANK(data!$B39),"",IF(ISBLANK(data!$C39),"",IF(ISBLANK(data!F39),"",data!I39)))) ->  | G29: =IF(smoothing!C35="","",smoothing!B35) ->  | H29: =IF(smoothing!G35="","",smoothing!F35) ->  | I29: =IF(smoothing!K35="","",smoothing!J35) -> 
A30: =IF(smoothing!A36="out of range","out of range","") ->  | B30: =IF(ISBLANK(data!A40),"",data!A40) ->  | C30: =IF(ISBLANK(data!B40),"",data!B40) ->  | D30: =IF(ISBLANK(data!$A40),"",IF(ISBLANK(data!$B40),"",IF(ISBLANK(data!$C40),"",IF(ISBLANK(data!D40),"",data!G40)))) ->  | E30: =IF(ISBLANK(data!$A40),"",IF(ISBLANK(data!$B40),"",IF(ISBLANK(data!$C40),"",IF(ISBLANK(data!E40),"",data!H40)))) ->  | F30: =IF(ISBLANK(data!$A40),"",IF(ISBLANK(data!$B40),"",IF(ISBLANK(data!$C40),"",IF(ISBLANK(data!F40),"",data!I40)))) ->  | G30: =IF(smoothing!C36="","",smoothing!B36) ->  | H30: =IF(smoothing!G36="","",smoothing!F36) ->  | I30: =IF(smoothing!K36="","",smoothing!J36) -> 
A31: =IF(smoothing!A37="out of range","out of range","") ->  | B31: =IF(ISBLANK(data!A41),"",data!A41) ->  | C31: =IF(ISBLANK(data!B41),"",data!B41) ->  | D31: =IF(ISBLANK(data!$A41),"",IF(ISBLANK(data!$B41),"",IF(ISBLANK(data!$C41),"",IF(ISBLANK(data!D41),"",data!G41)))) ->  | E31: =IF(ISBLANK(data!$A41),"",IF(ISBLANK(data!$B41),"",IF(ISBLANK(data!$C41),"",IF(ISBLANK(data!E41),"",data!H41)))) ->  | F31: =IF(ISBLANK(data!$A41),"",IF(ISBLANK(data!$B41),"",IF(ISBLANK(data!$C41),"",IF(ISBLANK(data!F41),"",data!I41)))) ->  | G31: =IF(smoothing!C37="","",smoothing!B37) ->  | H31: =IF(smoothing!G37="","",smoothing!F37) ->  | I31: =IF(smoothing!K37="","",smoothing!J37) -> 
A32: =IF(smoothing!A38="out of range","out of range","") ->  | B32: =IF(ISBLANK(data!A42),"",data!A42) ->  | C32: =IF(ISBLANK(data!B42),"",data!B42) ->  | D32: =IF(ISBLANK(data!$A42),"",IF(ISBLANK(data!$B42),"",IF(ISBLANK(data!$C42),"",IF(ISBLANK(data!D42),"",data!G42)))) ->  | E32: =IF(ISBLANK(data!$A42),"",IF(ISBLANK(data!$B42),"",IF(ISBLANK(data!$C42),"",IF(ISBLANK(data!E42),"",data!H42)))) ->  | F32: =IF(ISBLANK(data!$A42),"",IF(ISBLANK(data!$B42),"",IF(ISBLANK(data!$C42),"",IF(ISBLANK(data!F42),"",data!I42)))) ->  | G32: =IF(smoothing!C38="","",smoothing!B38) ->  | H32: =IF(smoothing!G38="","",smoothing!F38) ->  | I32: =IF(smoothing!K38="","",smoothing!J38) -> 
A33: =IF(smoothing!A39="out of range","out of range","") ->  | B33: =IF(ISBLANK(data!A43),"",data!A43) ->  | C33: =IF(ISBLANK(data!B43),"",data!B43) ->  | D33: =IF(ISBLANK(data!$A43),"",IF(ISBLANK(data!$B43),"",IF(ISBLANK(data!$C43),"",IF(ISBLANK(data!D43),"",data!G43)))) ->  | E33: =IF(ISBLANK(data!$A43),"",IF(ISBLANK(data!$B43),"",IF(ISBLANK(data!$C43),"",IF(ISBLANK(data!E43),"",data!H43)))) ->  | F33: =IF(ISBLANK(data!$A43),"",IF(ISBLANK(data!$B43),"",IF(ISBLANK(data!$C43),"",IF(ISBLANK(data!F43),"",data!I43)))) ->  | G33: =IF(smoothing!C39="","",smoothing!B39) ->  | H33: =IF(smoothing!G39="","",smoothing!F39) ->  | I33: =IF(smoothing!K39="","",smoothing!J39) -> 
A34: =IF(smoothing!A40="out of range","out of range","") ->  | B34: =IF(ISBLANK(data!A44),"",data!A44) ->  | C34: =IF(ISBLANK(data!B44),"",data!B44) ->  | D34: =IF(ISBLANK(data!$A44),"",IF(ISBLANK(data!$B44),"",IF(ISBLANK(data!$C44),"",IF(ISBLANK(data!D44),"",data!G44)))) ->  | E34: =IF(ISBLANK(data!$A44),"",IF(ISBLANK(data!$B44),"",IF(ISBLANK(data!$C44),"",IF(ISBLANK(data!E44),"",data!H44)))) ->  | F34: =IF(ISBLANK(data!$A44),"",IF(ISBLANK(data!$B44),"",IF(ISBLANK(data!$C44),"",IF(ISBLANK(data!F44),"",data!I44)))) ->  | G34: =IF(smoothing!C40="","",smoothing!B40) ->  | H34: =IF(smoothing!G40="","",smoothing!F40) ->  | I34: =IF(smoothing!K40="","",smoothing!J40) -> 
A35: =IF(smoothing!A41="out of range","out of range","") ->  | B35: =IF(ISBLANK(data!A45),"",data!A45) ->  | C35: =IF(ISBLANK(data!B45),"",data!B45) ->  | D35: =IF(ISBLANK(data!$A45),"",IF(ISBLANK(data!$B45),"",IF(ISBLANK(data!$C45),"",IF(ISBLANK(data!D45),"",data!G45)))) ->  | E35: =IF(ISBLANK(data!$A45),"",IF(ISBLANK(data!$B45),"",IF(ISBLANK(data!$C45),"",IF(ISBLANK(data!E45),"",data!H45)))) ->  | F35: =IF(ISBLANK(data!$A45),"",IF(ISBLANK(data!$B45),"",IF(ISBLANK(data!$C45),"",IF(ISBLANK(data!F45),"",data!I45)))) ->  | G35: =IF(smoothing!C41="","",smoothing!B41) ->  | H35: =IF(smoothing!G41="","",smoothing!F41) ->  | I35: =IF(smoothing!K41="","",smoothing!J41) -> 
A36: =IF(smoothing!A42="out of range","out of range","") ->  | B36: =IF(ISBLANK(data!A46),"",data!A46) ->  | C36: =IF(ISBLANK(data!B46),"",data!B46) ->  | D36: =IF(ISBLANK(data!$A46),"",IF(ISBLANK(data!$B46),"",IF(ISBLANK(data!$C46),"",IF(ISBLANK(data!D46),"",data!G46)))) ->  | E36: =IF(ISBLANK(data!$A46),"",IF(ISBLANK(data!$B46),"",IF(ISBLANK(data!$C46),"",IF(ISBLANK(data!E46),"",data!H46)))) ->  | F36: =IF(ISBLANK(data!$A46),"",IF(ISBLANK(data!$B46),"",IF(ISBLANK(data!$C46),"",IF(ISBLANK(data!F46),"",data!I46)))) ->  | G36: =IF(smoothing!C42="","",smoothing!B42) ->  | H36: =IF(smoothing!G42="","",smoothing!F42) ->  | I36: =IF(smoothing!K42="","",smoothing!J42) -> 
A37: =IF(smoothing!A43="out of range","out of range","") ->  | B37: =IF(ISBLANK(data!A47),"",data!A47) ->  | C37: =IF(ISBLANK(data!B47),"",data!B47) ->  | D37: =IF(ISBLANK(data!$A47),"",IF(ISBLANK(data!$B47),"",IF(ISBLANK(data!$C47),"",IF(ISBLANK(data!D47),"",data!G47)))) ->  | E37: =IF(ISBLANK(data!$A47),"",IF(ISBLANK(data!$B47),"",IF(ISBLANK(data!$C47),"",IF(ISBLANK(data!E47),"",data!H47)))) ->  | F37: =IF(ISBLANK(data!$A47),"",IF(ISBLANK(data!$B47),"",IF(ISBLANK(data!$C47),"",IF(ISBLANK(data!F47),"",data!I47)))) ->  | G37: =IF(smoothing!C43="","",smoothing!B43) ->  | H37: =IF(smoothing!G43="","",smoothing!F43) ->  | I37: =IF(smoothing!K43="","",smoothing!J43) -> 
A38: =IF(smoothing!A44="out of range","out of range","") ->  | B38: =IF(ISBLANK(data!A48),"",data!A48) ->  | C38: =IF(ISBLANK(data!B48),"",data!B48) ->  | D38: =IF(ISBLANK(data!$A48),"",IF(ISBLANK(data!$B48),"",IF(ISBLANK(data!$C48),"",IF(ISBLANK(data!D48),"",data!G48)))) ->  | E38: =IF(ISBLANK(data!$A48),"",IF(ISBLANK(data!$B48),"",IF(ISBLANK(data!$C48),"",IF(ISBLANK(data!E48),"",data!H48)))) ->  | F38: =IF(ISBLANK(data!$A48),"",IF(ISBLANK(data!$B48),"",IF(ISBLANK(data!$C48),"",IF(ISBLANK(data!F48),"",data!I48)))) ->  | G38: =IF(smoothing!C44="","",smoothing!B44) ->  | H38: =IF(smoothing!G44="","",smoothing!F44) ->  | I38: =IF(smoothing!K44="","",smoothing!J44) -> 
A39: =IF(smoothing!A45="out of range","out of range","") ->  | B39: =IF(ISBLANK(data!A49),"",data!A49) ->  | C39: =IF(ISBLANK(data!B49),"",data!B49) ->  | D39: =IF(ISBLANK(data!$A49),"",IF(ISBLANK(data!$B49),"",IF(ISBLANK(data!$C49),"",IF(ISBLANK(data!D49),"",data!G49)))) ->  | E39: =IF(ISBLANK(data!$A49),"",IF(ISBLANK(data!$B49),"",IF(ISBLANK(data!$C49),"",IF(ISBLANK(data!E49),"",data!H49)))) ->  | F39: =IF(ISBLANK(data!$A49),"",IF(ISBLANK(data!$B49),"",IF(ISBLANK(data!$C49),"",IF(ISBLANK(data!F49),"",data!I49)))) ->  | G39: =IF(smoothing!C45="","",smoothing!B45) ->  | H39: =IF(smoothing!G45="","",smoothing!F45) ->  | I39: =IF(smoothing!K45="","",smoothing!J45) -> 
A40: =IF(smoothing!A46="out of range","out of range","") ->  | B40: =IF(ISBLANK(data!A50),"",data!A50) ->  | C40: =IF(ISBLANK(data!B50),"",data!B50) ->  | D40: =IF(ISBLANK(data!$A50),"",IF(ISBLANK(data!$B50),"",IF(ISBLANK(data!$C50),"",IF(ISBLANK(data!D50),"",data!G50)))) ->  | E40: =IF(ISBLANK(data!$A50),"",IF(ISBLANK(data!$B50),"",IF(ISBLANK(data!$C50),"",IF(ISBLANK(data!E50),"",data!H50)))) ->  | F40: =IF(ISBLANK(data!$A50),"",IF(ISBLANK(data!$B50),"",IF(ISBLANK(data!$C50),"",IF(ISBLANK(data!F50),"",data!I50)))) ->  | G40: =IF(smoothing!C46="","",smoothing!B46) ->  | H40: =IF(smoothing!G46="","",smoothing!F46) ->  | I40: =IF(smoothing!K46="","",smoothing!J46) -> 
A41: =IF(smoothing!A47="out of range","out of range","") ->  | B41: =IF(ISBLANK(data!A51),"",data!A51) ->  | C41: =IF(ISBLANK(data!B51),"",data!B51) ->  | D41: =IF(ISBLANK(data!$A51),"",IF(ISBLANK(data!$B51),"",IF(ISBLANK(data!$C51),"",IF(ISBLANK(data!D51),"",data!G51)))) ->  | E41: =IF(ISBLANK(data!$A51),"",IF(ISBLANK(data!$B51),"",IF(ISBLANK(data!$C51),"",IF(ISBLANK(data!E51),"",data!H51)))) ->  | F41: =IF(ISBLANK(data!$A51),"",IF(ISBLANK(data!$B51),"",IF(ISBLANK(data!$C51),"",IF(ISBLANK(data!F51),"",data!I51)))) ->  | G41: =IF(smoothing!C47="","",smoothing!B47) ->  | H41: =IF(smoothing!G47="","",smoothing!F47) ->  | I41: =IF(smoothing!K47="","",smoothing!J47) -> 
A42: =IF(smoothing!A48="out of range","out of range","") ->  | B42: =IF(ISBLANK(data!A52),"",data!A52) ->  | C42: =IF(ISBLANK(data!B52),"",data!B52) ->  | D42: =IF(ISBLANK(data!$A52),"",IF(ISBLANK(data!$B52),"",IF(ISBLANK(data!$C52),"",IF(ISBLANK(data!D52),"",data!G52)))) ->  | E42: =IF(ISBLANK(data!$A52),"",IF(ISBLANK(data!$B52),"",IF(ISBLANK(data!$C52),"",IF(ISBLANK(data!E52),"",data!H52)))) ->  | F42: =IF(ISBLANK(data!$A52),"",IF(ISBLANK(data!$B52),"",IF(ISBLANK(data!$C52),"",IF(ISBLANK(data!F52),"",data!I52)))) ->  | G42: =IF(smoothing!C48="","",smoothing!B48) ->  | H42: =IF(smoothing!G48="","",smoothing!F48) ->  | I42: =IF(smoothing!K48="","",smoothing!J48) -> 
A43: =IF(smoothing!A49="out of range","out of range","") ->  | B43: =IF(ISBLANK(data!A53),"",data!A53) ->  | C43: =IF(ISBLANK(data!B53),"",data!B53) ->  | D43: =IF(ISBLANK(data!$A53),"",IF(ISBLANK(data!$B53),"",IF(ISBLANK(data!$C53),"",IF(ISBLANK(data!D53),"",data!G53)))) ->  | E43: =IF(ISBLANK(data!$A53),"",IF(ISBLANK(data!$B53),"",IF(ISBLANK(data!$C53),"",IF(ISBLANK(data!E53),"",data!H53)))) ->  | F43: =IF(ISBLANK(data!$A53),"",IF(ISBLANK(data!$B53),"",IF(ISBLANK(data!$C53),"",IF(ISBLANK(data!F53),"",data!I53)))) ->  | G43: =IF(smoothing!C49="","",smoothing!B49) ->  | H43: =IF(smoothing!G49="","",smoothing!F49) ->  | I43: =IF(smoothing!K49="","",smoothing!J49) -> 
A44: =IF(smoothing!A50="out of range","out of range","") ->  | B44: =IF(ISBLANK(data!A54),"",data!A54) ->  | C44: =IF(ISBLANK(data!B54),"",data!B54) ->  | D44: =IF(ISBLANK(data!$A54),"",IF(ISBLANK(data!$B54),"",IF(ISBLANK(data!$C54),"",IF(ISBLANK(data!D54),"",data!G54)))) ->  | E44: =IF(ISBLANK(data!$A54),"",IF(ISBLANK(data!$B54),"",IF(ISBLANK(data!$C54),"",IF(ISBLANK(data!E54),"",data!H54)))) ->  | F44: =IF(ISBLANK(data!$A54),"",IF(ISBLANK(data!$B54),"",IF(ISBLANK(data!$C54),"",IF(ISBLANK(data!F54),"",data!I54)))) ->  | G44: =IF(smoothing!C50="","",smoothing!B50) ->  | H44: =IF(smoothing!G50="","",smoothing!F50) ->  | I44: =IF(smoothing!K50="","",smoothing!J50) -> 
A45: =IF(smoothing!A51="out of range","out of range","") ->  | B45: =IF(ISBLANK(data!A55),"",data!A55) ->  | C45: =IF(ISBLANK(data!B55),"",data!B55) ->  | D45: =IF(ISBLANK(data!$A55),"",IF(ISBLANK(data!$B55),"",IF(ISBLANK(data!$C55),"",IF(ISBLANK(data!D55),"",data!G55)))) ->  | E45: =IF(ISBLANK(data!$A55),"",IF(ISBLANK(data!$B55),"",IF(ISBLANK(data!$C55),"",IF(ISBLANK(data!E55),"",data!H55)))) ->  | F45: =IF(ISBLANK(data!$A55),"",IF(ISBLANK(data!$B55),"",IF(ISBLANK(data!$C55),"",IF(ISBLANK(data!F55),"",data!I55)))) ->  | G45: =IF(smoothing!C51="","",smoothing!B51) ->  | H45: =IF(smoothing!G51="","",smoothing!F51) ->  | I45: =IF(smoothing!K51="","",smoothing!J51) -> 
A46: =IF(smoothing!A52="out of range","out of range","") ->  | B46: =IF(ISBLANK(data!A56),"",data!A56) ->  | C46: =IF(ISBLANK(data!B56),"",data!B56) ->  | D46: =IF(ISBLANK(data!$A56),"",IF(ISBLANK(data!$B56),"",IF(ISBLANK(data!$C56),"",IF(ISBLANK(data!D56),"",data!G56)))) ->  | E46: =IF(ISBLANK(data!$A56),"",IF(ISBLANK(data!$B56),"",IF(ISBLANK(data!$C56),"",IF(ISBLANK(data!E56),"",data!H56)))) ->  | F46: =IF(ISBLANK(data!$A56),"",IF(ISBLANK(data!$B56),"",IF(ISBLANK(data!$C56),"",IF(ISBLANK(data!F56),"",data!I56)))) ->  | G46: =IF(smoothing!C52="","",smoothing!B52) ->  | H46: =IF(smoothing!G52="","",smoothing!F52) ->  | I46: =IF(smoothing!K52="","",smoothing!J52) -> 
A47: =IF(smoothing!A53="out of range","out of range","") ->  | B47: =IF(ISBLANK(data!A57),"",data!A57) ->  | C47: =IF(ISBLANK(data!B57),"",data!B57) ->  | D47: =IF(ISBLANK(data!$A57),"",IF(ISBLANK(data!$B57),"",IF(ISBLANK(data!$C57),"",IF(ISBLANK(data!D57),"",data!G57)))) ->  | E47: =IF(ISBLANK(data!$A57),"",IF(ISBLANK(data!$B57),"",IF(ISBLANK(data!$C57),"",IF(ISBLANK(data!E57),"",data!H57)))) ->  | F47: =IF(ISBLANK(data!$A57),"",IF(ISBLANK(data!$B57),"",IF(ISBLANK(data!$C57),"",IF(ISBLANK(data!F57),"",data!I57)))) ->  | G47: =IF(smoothing!C53="","",smoothing!B53) ->  | H47: =IF(smoothing!G53="","",smoothing!F53) ->  | I47: =IF(smoothing!K53="","",smoothing!J53) -> 
A48: =IF(smoothing!A54="out of range","out of range","") ->  | B48: =IF(ISBLANK(data!A58),"",data!A58) ->  | C48: =IF(ISBLANK(data!B58),"",data!B58) ->  | D48: =IF(ISBLANK(data!$A58),"",IF(ISBLANK(data!$B58),"",IF(ISBLANK(data!$C58),"",IF(ISBLANK(data!D58),"",data!G58)))) ->  | E48: =IF(ISBLANK(data!$A58),"",IF(ISBLANK(data!$B58),"",IF(ISBLANK(data!$C58),"",IF(ISBLANK(data!E58),"",data!H58)))) ->  | F48: =IF(ISBLANK(data!$A58),"",IF(ISBLANK(data!$B58),"",IF(ISBLANK(data!$C58),"",IF(ISBLANK(data!F58),"",data!I58)))) ->  | G48: =IF(smoothing!C54="","",smoothing!B54) ->  | H48: =IF(smoothing!G54="","",smoothing!F54) ->  | I48: =IF(smoothing!K54="","",smoothing!J54) -> 
A49: =IF(smoothing!A55="out of range","out of range","") ->  | B49: =IF(ISBLANK(data!A59),"",data!A59) ->  | C49: =IF(ISBLANK(data!B59),"",data!B59) ->  | D49: =IF(ISBLANK(data!$A59),"",IF(ISBLANK(data!$B59),"",IF(ISBLANK(data!$C59),"",IF(ISBLANK(data!D59),"",data!G59)))) ->  | E49: =IF(ISBLANK(data!$A59),"",IF(ISBLANK(data!$B59),"",IF(ISBLANK(data!$C59),"",IF(ISBLANK(data!E59),"",data!H59)))) ->  | F49: =IF(ISBLANK(data!$A59),"",IF(ISBLANK(data!$B59),"",IF(ISBLANK(data!$C59),"",IF(ISBLANK(data!F59),"",data!I59)))) ->  | G49: =IF(smoothing!C55="","",smoothing!B55) ->  | H49: =IF(smoothing!G55="","",smoothing!F55) ->  | I49: =IF(smoothing!K55="","",smoothing!J55) -> 
A50: =IF(smoothing!A56="out of range","out of range","") ->  | B50: =IF(ISBLANK(data!A60),"",data!A60) ->  | C50: =IF(ISBLANK(data!B60),"",data!B60) ->  | D50: =IF(ISBLANK(data!$A60),"",IF(ISBLANK(data!$B60),"",IF(ISBLANK(data!$C60),"",IF(ISBLANK(data!D60),"",data!G60)))) ->  | E50: =IF(ISBLANK(data!$A60),"",IF(ISBLANK(data!$B60),"",IF(ISBLANK(data!$C60),"",IF(ISBLANK(data!E60),"",data!H60)))) ->  | F50: =IF(ISBLANK(data!$A60),"",IF(ISBLANK(data!$B60),"",IF(ISBLANK(data!$C60),"",IF(ISBLANK(data!F60),"",data!I60)))) ->  | G50: =IF(smoothing!C56="","",smoothing!B56) ->  | H50: =IF(smoothing!G56="","",smoothing!F56) ->  | I50: =IF(smoothing!K56="","",smoothing!J56) -> 
A51: =IF(smoothing!A57="out of range","out of range","") ->  | B51: =IF(ISBLANK(data!A61),"",data!A61) ->  | C51: =IF(ISBLANK(data!B61),"",data!B61) ->  | D51: =IF(ISBLANK(data!$A61),"",IF(ISBLANK(data!$B61),"",IF(ISBLANK(data!$C61),"",IF(ISBLANK(data!D61),"",data!G61)))) ->  | E51: =IF(ISBLANK(data!$A61),"",IF(ISBLANK(data!$B61),"",IF(ISBLANK(data!$C61),"",IF(ISBLANK(data!E61),"",data!H61)))) ->  | F51: =IF(ISBLANK(data!$A61),"",IF(ISBLANK(data!$B61),"",IF(ISBLANK(data!$C61),"",IF(ISBLANK(data!F61),"",data!I61)))) ->  | G51: =IF(smoothing!C57="","",smoothing!B57) ->  | H51: =IF(smoothing!G57="","",smoothing!F57) ->  | I51: =IF(smoothing!K57="","",smoothing!J57) -> 
A52: =IF(smoothing!A58="out of range","out of range","") ->  | B52: =IF(ISBLANK(data!A62),"",data!A62) ->  | C52: =IF(ISBLANK(data!B62),"",data!B62) ->  | D52: =IF(ISBLANK(data!$A62),"",IF(ISBLANK(data!$B62),"",IF(ISBLANK(data!$C62),"",IF(ISBLANK(data!D62),"",data!G62)))) ->  | E52: =IF(ISBLANK(data!$A62),"",IF(ISBLANK(data!$B62),"",IF(ISBLANK(data!$C62),"",IF(ISBLANK(data!E62),"",data!H62)))) ->  | F52: =IF(ISBLANK(data!$A62),"",IF(ISBLANK(data!$B62),"",IF(ISBLANK(data!$C62),"",IF(ISBLANK(data!F62),"",data!I62)))) ->  | G52: =IF(smoothing!C58="","",smoothing!B58) ->  | H52: =IF(smoothing!G58="","",smoothing!F58) ->  | I52: =IF(smoothing!K58="","",smoothing!J58) -> 
A53: =IF(smoothing!A59="out of range","out of range","") ->  | B53: =IF(ISBLANK(data!A63),"",data!A63) ->  | C53: =IF(ISBLANK(data!B63),"",data!B63) ->  | D53: =IF(ISBLANK(data!$A63),"",IF(ISBLANK(data!$B63),"",IF(ISBLANK(data!$C63),"",IF(ISBLANK(data!D63),"",data!G63)))) ->  | E53: =IF(ISBLANK(data!$A63),"",IF(ISBLANK(data!$B63),"",IF(ISBLANK(data!$C63),"",IF(ISBLANK(data!E63),"",data!H63)))) ->  | F53: =IF(ISBLANK(data!$A63),"",IF(ISBLANK(data!$B63),"",IF(ISBLANK(data!$C63),"",IF(ISBLANK(data!F63),"",data!I63)))) ->  | G53: =IF(smoothing!C59="","",smoothing!B59) ->  | H53: =IF(smoothing!G59="","",smoothing!F59) ->  | I53: =IF(smoothing!K59="","",smoothing!J59) -> 
A54: =IF(smoothing!A60="out of range","out of range","") ->  | B54: =IF(ISBLANK(data!A64),"",data!A64) ->  | C54: =IF(ISBLANK(data!B64),"",data!B64) ->  | D54: =IF(ISBLANK(data!$A64),"",IF(ISBLANK(data!$B64),"",IF(ISBLANK(data!$C64),"",IF(ISBLANK(data!D64),"",data!G64)))) ->  | E54: =IF(ISBLANK(data!$A64),"",IF(ISBLANK(data!$B64),"",IF(ISBLANK(data!$C64),"",IF(ISBLANK(data!E64),"",data!H64)))) ->  | F54: =IF(ISBLANK(data!$A64),"",IF(ISBLANK(data!$B64),"",IF(ISBLANK(data!$C64),"",IF(ISBLANK(data!F64),"",data!I64)))) ->  | G54: =IF(smoothing!C60="","",smoothing!B60) ->  | H54: =IF(smoothing!G60="","",smoothing!F60) ->  | I54: =IF(smoothing!K60="","",smoothing!J60) -> 
A55: =IF(smoothing!A61="out of range","out of range","") ->  | B55: =IF(ISBLANK(data!A65),"",data!A65) ->  | C55: =IF(ISBLANK(data!B65),"",data!B65) ->  | D55: =IF(ISBLANK(data!$A65),"",IF(ISBLANK(data!$B65),"",IF(ISBLANK(data!$C65),"",IF(ISBLANK(data!D65),"",data!G65)))) ->  | E55: =IF(ISBLANK(data!$A65),"",IF(ISBLANK(data!$B65),"",IF(ISBLANK(data!$C65),"",IF(ISBLANK(data!E65),"",data!H65)))) ->  | F55: =IF(ISBLANK(data!$A65),"",IF(ISBLANK(data!$B65),"",IF(ISBLANK(data!$C65),"",IF(ISBLANK(data!F65),"",data!I65)))) ->  | G55: =IF(smoothing!C61="","",smoothing!B61) ->  | H55: =IF(smoothing!G61="","",smoothing!F61) ->  | I55: =IF(smoothing!K61="","",smoothing!J61) -> 
A56: =IF(smoothing!A62="out of range","out of range","") ->  | B56: =IF(ISBLANK(data!A66),"",data!A66) ->  | C56: =IF(ISBLANK(data!B66),"",data!B66) ->  | D56: =IF(ISBLANK(data!$A66),"",IF(ISBLANK(data!$B66),"",IF(ISBLANK(data!$C66),"",IF(ISBLANK(data!D66),"",data!G66)))) ->  | E56: =IF(ISBLANK(data!$A66),"",IF(ISBLANK(data!$B66),"",IF(ISBLANK(data!$C66),"",IF(ISBLANK(data!E66),"",data!H66)))) ->  | F56: =IF(ISBLANK(data!$A66),"",IF(ISBLANK(data!$B66),"",IF(ISBLANK(data!$C66),"",IF(ISBLANK(data!F66),"",data!I66)))) ->  | G56: =IF(smoothing!C62="","",smoothing!B62) ->  | H56: =IF(smoothing!G62="","",smoothing!F62) ->  | I56: =IF(smoothing!K62="","",smoothing!J62) -> 
A57: =IF(smoothing!A63="out of range","out of range","") ->  | B57: =IF(ISBLANK(data!A67),"",data!A67) ->  | C57: =IF(ISBLANK(data!B67),"",data!B67) ->  | D57: =IF(ISBLANK(data!$A67),"",IF(ISBLANK(data!$B67),"",IF(ISBLANK(data!$C67),"",IF(ISBLANK(data!D67),"",data!G67)))) ->  | E57: =IF(ISBLANK(data!$A67),"",IF(ISBLANK(data!$B67),"",IF(ISBLANK(data!$C67),"",IF(ISBLANK(data!E67),"",data!H67)))) ->  | F57: =IF(ISBLANK(data!$A67),"",IF(ISBLANK(data!$B67),"",IF(ISBLANK(data!$C67),"",IF(ISBLANK(data!F67),"",data!I67)))) ->  | G57: =IF(smoothing!C63="","",smoothing!B63) ->  | H57: =IF(smoothing!G63="","",smoothing!F63) ->  | I57: =IF(smoothing!K63="","",smoothing!J63) -> 
A58: =IF(smoothing!A64="out of range","out of range","") ->  | B58: =IF(ISBLANK(data!A68),"",data!A68) ->  | C58: =IF(ISBLANK(data!B68),"",data!B68) ->  | D58: =IF(ISBLANK(data!$A68),"",IF(ISBLANK(data!$B68),"",IF(ISBLANK(data!$C68),"",IF(ISBLANK(data!D68),"",data!G68)))) ->  | E58: =IF(ISBLANK(data!$A68),"",IF(ISBLANK(data!$B68),"",IF(ISBLANK(data!$C68),"",IF(ISBLANK(data!E68),"",data!H68)))) ->  | F58: =IF(ISBLANK(data!$A68),"",IF(ISBLANK(data!$B68),"",IF(ISBLANK(data!$C68),"",IF(ISBLANK(data!F68),"",data!I68)))) ->  | G58: =IF(smoothing!C64="","",smoothing!B64) ->  | H58: =IF(smoothing!G64="","",smoothing!F64) ->  | I58: =IF(smoothing!K64="","",smoothing!J64) -> 
A59: =IF(smoothing!A65="out of range","out of range","") ->  | B59: =IF(ISBLANK(data!A69),"",data!A69) ->  | C59: =IF(ISBLANK(data!B69),"",data!B69) ->  | D59: =IF(ISBLANK(data!$A69),"",IF(ISBLANK(data!$B69),"",IF(ISBLANK(data!$C69),"",IF(ISBLANK(data!D69),"",data!G69)))) ->  | E59: =IF(ISBLANK(data!$A69),"",IF(ISBLANK(data!$B69),"",IF(ISBLANK(data!$C69),"",IF(ISBLANK(data!E69),"",data!H69)))) ->  | F59: =IF(ISBLANK(data!$A69),"",IF(ISBLANK(data!$B69),"",IF(ISBLANK(data!$C69),"",IF(ISBLANK(data!F69),"",data!I69)))) ->  | G59: =IF(smoothing!C65="","",smoothing!B65) ->  | H59: =IF(smoothing!G65="","",smoothing!F65) ->  | I59: =IF(smoothing!K65="","",smoothing!J65) -> 
A60: =IF(smoothing!A66="out of range","out of range","") ->  | B60: =IF(ISBLANK(data!A70),"",data!A70) ->  | C60: =IF(ISBLANK(data!B70),"",data!B70) ->  | D60: =IF(ISBLANK(data!$A70),"",IF(ISBLANK(data!$B70),"",IF(ISBLANK(data!$C70),"",IF(ISBLANK(data!D70),"",data!G70)))) ->  | E60: =IF(ISBLANK(data!$A70),"",IF(ISBLANK(data!$B70),"",IF(ISBLANK(data!$C70),"",IF(ISBLANK(data!E70),"",data!H70)))) ->  | F60: =IF(ISBLANK(data!$A70),"",IF(ISBLANK(data!$B70),"",IF(ISBLANK(data!$C70),"",IF(ISBLANK(data!F70),"",data!I70)))) ->  | G60: =IF(smoothing!C66="","",smoothing!B66) ->  | H60: =IF(smoothing!G66="","",smoothing!F66) ->  | I60: =IF(smoothing!K66="","",smoothing!J66) -> 
A61: =IF(smoothing!A67="out of range","out of range","") ->  | B61: =IF(ISBLANK(data!A71),"",data!A71) ->  | C61: =IF(ISBLANK(data!B71),"",data!B71) ->  | D61: =IF(ISBLANK(data!$A71),"",IF(ISBLANK(data!$B71),"",IF(ISBLANK(data!$C71),"",IF(ISBLANK(data!D71),"",data!G71)))) ->  | E61: =IF(ISBLANK(data!$A71),"",IF(ISBLANK(data!$B71),"",IF(ISBLANK(data!$C71),"",IF(ISBLANK(data!E71),"",data!H71)))) ->  | F61: =IF(ISBLANK(data!$A71),"",IF(ISBLANK(data!$B71),"",IF(ISBLANK(data!$C71),"",IF(ISBLANK(data!F71),"",data!I71)))) ->  | G61: =IF(smoothing!C67="","",smoothing!B67) ->  | H61: =IF(smoothing!G67="","",smoothing!F67) ->  | I61: =IF(smoothing!K67="","",smoothing!J67) -> 
A62: =IF(smoothing!A68="out of range","out of range","") ->  | B62: =IF(ISBLANK(data!A72),"",data!A72) ->  | C62: =IF(ISBLANK(data!B72),"",data!B72) ->  | D62: =IF(ISBLANK(data!$A72),"",IF(ISBLANK(data!$B72),"",IF(ISBLANK(data!$C72),"",IF(ISBLANK(data!D72),"",data!G72)))) ->  | E62: =IF(ISBLANK(data!$A72),"",IF(ISBLANK(data!$B72),"",IF(ISBLANK(data!$C72),"",IF(ISBLANK(data!E72),"",data!H72)))) ->  | F62: =IF(ISBLANK(data!$A72),"",IF(ISBLANK(data!$B72),"",IF(ISBLANK(data!$C72),"",IF(ISBLANK(data!F72),"",data!I72)))) ->  | G62: =IF(smoothing!C68="","",smoothing!B68) ->  | H62: =IF(smoothing!G68="","",smoothing!F68) ->  | I62: =IF(smoothing!K68="","",smoothing!J68) -> 
A63: =IF(smoothing!A69="out of range","out of range","") ->  | B63: =IF(ISBLANK(data!A73),"",data!A73) ->  | C63: =IF(ISBLANK(data!B73),"",data!B73) ->  | D63: =IF(ISBLANK(data!$A73),"",IF(ISBLANK(data!$B73),"",IF(ISBLANK(data!$C73),"",IF(ISBLANK(data!D73),"",data!G73)))) ->  | E63: =IF(ISBLANK(data!$A73),"",IF(ISBLANK(data!$B73),"",IF(ISBLANK(data!$C73),"",IF(ISBLANK(data!E73),"",data!H73)))) ->  | F63: =IF(ISBLANK(data!$A73),"",IF(ISBLANK(data!$B73),"",IF(ISBLANK(data!$C73),"",IF(ISBLANK(data!F73),"",data!I73)))) ->  | G63: =IF(smoothing!C69="","",smoothing!B69) ->  | H63: =IF(smoothing!G69="","",smoothing!F69) ->  | I63: =IF(smoothing!K69="","",smoothing!J69) -> 
A64: =IF(smoothing!A70="out of range","out of range","") ->  | B64: =IF(ISBLANK(data!A74),"",data!A74) ->  | C64: =IF(ISBLANK(data!B74),"",data!B74) ->  | D64: =IF(ISBLANK(data!$A74),"",IF(ISBLANK(data!$B74),"",IF(ISBLANK(data!$C74),"",IF(ISBLANK(data!D74),"",data!G74)))) ->  | E64: =IF(ISBLANK(data!$A74),"",IF(ISBLANK(data!$B74),"",IF(ISBLANK(data!$C74),"",IF(ISBLANK(data!E74),"",data!H74)))) ->  | F64: =IF(ISBLANK(data!$A74),"",IF(ISBLANK(data!$B74),"",IF(ISBLANK(data!$C74),"",IF(ISBLANK(data!F74),"",data!I74)))) ->  | G64: =IF(smoothing!C70="","",smoothing!B70) ->  | H64: =IF(smoothing!G70="","",smoothing!F70) ->  | I64: =IF(smoothing!K70="","",smoothing!J70) -> 
A65: =IF(smoothing!A71="out of range","out of range","") ->  | B65: =IF(ISBLANK(data!A75),"",data!A75) ->  | C65: =IF(ISBLANK(data!B75),"",data!B75) ->  | D65: =IF(ISBLANK(data!$A75),"",IF(ISBLANK(data!$B75),"",IF(ISBLANK(data!$C75),"",IF(ISBLANK(data!D75),"",data!G75)))) ->  | E65: =IF(ISBLANK(data!$A75),"",IF(ISBLANK(data!$B75),"",IF(ISBLANK(data!$C75),"",IF(ISBLANK(data!E75),"",data!H75)))) ->  | F65: =IF(ISBLANK(data!$A75),"",IF(ISBLANK(data!$B75),"",IF(ISBLANK(data!$C75),"",IF(ISBLANK(data!F75),"",data!I75)))) ->  | G65: =IF(smoothing!C71="","",smoothing!B71) ->  | H65: =IF(smoothing!G71="","",smoothing!F71) ->  | I65: =IF(smoothing!K71="","",smoothing!J71) -> 
A66: =IF(smoothing!A72="out of range","out of range","") ->  | B66: =IF(ISBLANK(data!A76),"",data!A76) ->  | C66: =IF(ISBLANK(data!B76),"",data!B76) ->  | D66: =IF(ISBLANK(data!$A76),"",IF(ISBLANK(data!$B76),"",IF(ISBLANK(data!$C76),"",IF(ISBLANK(data!D76),"",data!G76)))) ->  | E66: =IF(ISBLANK(data!$A76),"",IF(ISBLANK(data!$B76),"",IF(ISBLANK(data!$C76),"",IF(ISBLANK(data!E76),"",data!H76)))) ->  | F66: =IF(ISBLANK(data!$A76),"",IF(ISBLANK(data!$B76),"",IF(ISBLANK(data!$C76),"",IF(ISBLANK(data!F76),"",data!I76)))) ->  | G66: =IF(smoothing!C72="","",smoothing!B72) ->  | H66: =IF(smoothing!G72="","",smoothing!F72) ->  | I66: =IF(smoothing!K72="","",smoothing!J72) -> 
A67: =IF(smoothing!A73="out of range","out of range","") ->  | B67: =IF(ISBLANK(data!A77),"",data!A77) ->  | C67: =IF(ISBLANK(data!B77),"",data!B77) ->  | D67: =IF(ISBLANK(data!$A77),"",IF(ISBLANK(data!$B77),"",IF(ISBLANK(data!$C77),"",IF(ISBLANK(data!D77),"",data!G77)))) ->  | E67: =IF(ISBLANK(data!$A77),"",IF(ISBLANK(data!$B77),"",IF(ISBLANK(data!$C77),"",IF(ISBLANK(data!E77),"",data!H77)))) ->  | F67: =IF(ISBLANK(data!$A77),"",IF(ISBLANK(data!$B77),"",IF(ISBLANK(data!$C77),"",IF(ISBLANK(data!F77),"",data!I77)))) ->  | G67: =IF(smoothing!C73="","",smoothing!B73) ->  | H67: =IF(smoothing!G73="","",smoothing!F73) ->  | I67: =IF(smoothing!K73="","",smoothing!J73) -> 
A68: =IF(smoothing!A74="out of range","out of range","") ->  | B68: =IF(ISBLANK(data!A78),"",data!A78) ->  | C68: =IF(ISBLANK(data!B78),"",data!B78) ->  | D68: =IF(ISBLANK(data!$A78),"",IF(ISBLANK(data!$B78),"",IF(ISBLANK(data!$C78),"",IF(ISBLANK(data!D78),"",data!G78)))) ->  | E68: =IF(ISBLANK(data!$A78),"",IF(ISBLANK(data!$B78),"",IF(ISBLANK(data!$C78),"",IF(ISBLANK(data!E78),"",data!H78)))) ->  | F68: =IF(ISBLANK(data!$A78),"",IF(ISBLANK(data!$B78),"",IF(ISBLANK(data!$C78),"",IF(ISBLANK(data!F78),"",data!I78)))) ->  | G68: =IF(smoothing!C74="","",smoothing!B74) ->  | H68: =IF(smoothing!G74="","",smoothing!F74) ->  | I68: =IF(smoothing!K74="","",smoothing!J74) -> 
A69: =IF(smoothing!A75="out of range","out of range","") ->  | B69: =IF(ISBLANK(data!A79),"",data!A79) ->  | C69: =IF(ISBLANK(data!B79),"",data!B79) ->  | D69: =IF(ISBLANK(data!$A79),"",IF(ISBLANK(data!$B79),"",IF(ISBLANK(data!$C79),"",IF(ISBLANK(data!D79),"",data!G79)))) ->  | E69: =IF(ISBLANK(data!$A79),"",IF(ISBLANK(data!$B79),"",IF(ISBLANK(data!$C79),"",IF(ISBLANK(data!E79),"",data!H79)))) ->  | F69: =IF(ISBLANK(data!$A79),"",IF(ISBLANK(data!$B79),"",IF(ISBLANK(data!$C79),"",IF(ISBLANK(data!F79),"",data!I79)))) ->  | G69: =IF(smoothing!C75="","",smoothing!B75) ->  | H69: =IF(smoothing!G75="","",smoothing!F75) ->  | I69: =IF(smoothing!K75="","",smoothing!J75) -> 
A70: =IF(smoothing!A76="out of range","out of range","") ->  | B70: =IF(ISBLANK(data!A80),"",data!A80) ->  | C70: =IF(ISBLANK(data!B80),"",data!B80) ->  | D70: =IF(ISBLANK(data!$A80),"",IF(ISBLANK(data!$B80),"",IF(ISBLANK(data!$C80),"",IF(ISBLANK(data!D80),"",data!G80)))) ->  | E70: =IF(ISBLANK(data!$A80),"",IF(ISBLANK(data!$B80),"",IF(ISBLANK(data!$C80),"",IF(ISBLANK(data!E80),"",data!H80)))) ->  | F70: =IF(ISBLANK(data!$A80),"",IF(ISBLANK(data!$B80),"",IF(ISBLANK(data!$C80),"",IF(ISBLANK(data!F80),"",data!I80)))) ->  | G70: =IF(smoothing!C76="","",smoothing!B76) ->  | H70: =IF(smoothing!G76="","",smoothing!F76) ->  | I70: =IF(smoothing!K76="","",smoothing!J76) -> 
A71: =IF(smoothing!A77="out of range","out of range","") ->  | B71: =IF(ISBLANK(data!A81),"",data!A81) ->  | C71: =IF(ISBLANK(data!B81),"",data!B81) ->  | D71: =IF(ISBLANK(data!$A81),"",IF(ISBLANK(data!$B81),"",IF(ISBLANK(data!$C81),"",IF(ISBLANK(data!D81),"",data!G81)))) ->  | E71: =IF(ISBLANK(data!$A81),"",IF(ISBLANK(data!$B81),"",IF(ISBLANK(data!$C81),"",IF(ISBLANK(data!E81),"",data!H81)))) ->  | F71: =IF(ISBLANK(data!$A81),"",IF(ISBLANK(data!$B81),"",IF(ISBLANK(data!$C81),"",IF(ISBLANK(data!F81),"",data!I81)))) ->  | G71: =IF(smoothing!C77="","",smoothing!B77) ->  | H71: =IF(smoothing!G77="","",smoothing!F77) ->  | I71: =IF(smoothing!K77="","",smoothing!J77) -> 
A72: =IF(smoothing!A78="out of range","out of range","") ->  | B72: =IF(ISBLANK(data!A82),"",data!A82) ->  | C72: =IF(ISBLANK(data!B82),"",data!B82) ->  | D72: =IF(ISBLANK(data!$A82),"",IF(ISBLANK(data!$B82),"",IF(ISBLANK(data!$C82),"",IF(ISBLANK(data!D82),"",data!G82)))) ->  | E72: =IF(ISBLANK(data!$A82),"",IF(ISBLANK(data!$B82),"",IF(ISBLANK(data!$C82),"",IF(ISBLANK(data!E82),"",data!H82)))) ->  | F72: =IF(ISBLANK(data!$A82),"",IF(ISBLANK(data!$B82),"",IF(ISBLANK(data!$C82),"",IF(ISBLANK(data!F82),"",data!I82)))) ->  | G72: =IF(smoothing!C78="","",smoothing!B78) ->  | H72: =IF(smoothing!G78="","",smoothing!F78) ->  | I72: =IF(smoothing!K78="","",smoothing!J78) -> 
A73: =IF(smoothing!A79="out of range","out of range","") ->  | B73: =IF(ISBLANK(data!A83),"",data!A83) ->  | C73: =IF(ISBLANK(data!B83),"",data!B83) ->  | D73: =IF(ISBLANK(data!$A83),"",IF(ISBLANK(data!$B83),"",IF(ISBLANK(data!$C83),"",IF(ISBLANK(data!D83),"",data!G83)))) ->  | E73: =IF(ISBLANK(data!$A83),"",IF(ISBLANK(data!$B83),"",IF(ISBLANK(data!$C83),"",IF(ISBLANK(data!E83),"",data!H83)))) ->  | F73: =IF(ISBLANK(data!$A83),"",IF(ISBLANK(data!$B83),"",IF(ISBLANK(data!$C83),"",IF(ISBLANK(data!F83),"",data!I83)))) ->  | G73: =IF(smoothing!C79="","",smoothing!B79) ->  | H73: =IF(smoothing!G79="","",smoothing!F79) ->  | I73: =IF(smoothing!K79="","",smoothing!J79) -> 
A74: =IF(smoothing!A80="out of range","out of range","") ->  | B74: =IF(ISBLANK(data!A84),"",data!A84) ->  | C74: =IF(ISBLANK(data!B84),"",data!B84) ->  | D74: =IF(ISBLANK(data!$A84),"",IF(ISBLANK(data!$B84),"",IF(ISBLANK(data!$C84),"",IF(ISBLANK(data!D84),"",data!G84)))) ->  | E74: =IF(ISBLANK(data!$A84),"",IF(ISBLANK(data!$B84),"",IF(ISBLANK(data!$C84),"",IF(ISBLANK(data!E84),"",data!H84)))) ->  | F74: =IF(ISBLANK(data!$A84),"",IF(ISBLANK(data!$B84),"",IF(ISBLANK(data!$C84),"",IF(ISBLANK(data!F84),"",data!I84)))) ->  | G74: =IF(smoothing!C80="","",smoothing!B80) ->  | H74: =IF(smoothing!G80="","",smoothing!F80) ->  | I74: =IF(smoothing!K80="","",smoothing!J80) -> 
A75: =IF(smoothing!A81="out of range","out of range","") ->  | B75: =IF(ISBLANK(data!A85),"",data!A85) ->  | C75: =IF(ISBLANK(data!B85),"",data!B85) ->  | D75: =IF(ISBLANK(data!$A85),"",IF(ISBLANK(data!$B85),"",IF(ISBLANK(data!$C85),"",IF(ISBLANK(data!D85),"",data!G85)))) ->  | E75: =IF(ISBLANK(data!$A85),"",IF(ISBLANK(data!$B85),"",IF(ISBLANK(data!$C85),"",IF(ISBLANK(data!E85),"",data!H85)))) ->  | F75: =IF(ISBLANK(data!$A85),"",IF(ISBLANK(data!$B85),"",IF(ISBLANK(data!$C85),"",IF(ISBLANK(data!F85),"",data!I85)))) ->  | G75: =IF(smoothing!C81="","",smoothing!B81) ->  | H75: =IF(smoothing!G81="","",smoothing!F81) ->  | I75: =IF(smoothing!K81="","",smoothing!J81) -> 
A76: =IF(smoothing!A82="out of range","out of range","") ->  | B76: =IF(ISBLANK(data!A86),"",data!A86) ->  | C76: =IF(ISBLANK(data!B86),"",data!B86) ->  | D76: =IF(ISBLANK(data!$A86),"",IF(ISBLANK(data!$B86),"",IF(ISBLANK(data!$C86),"",IF(ISBLANK(data!D86),"",data!G86)))) ->  | E76: =IF(ISBLANK(data!$A86),"",IF(ISBLANK(data!$B86),"",IF(ISBLANK(data!$C86),"",IF(ISBLANK(data!E86),"",data!H86)))) ->  | F76: =IF(ISBLANK(data!$A86),"",IF(ISBLANK(data!$B86),"",IF(ISBLANK(data!$C86),"",IF(ISBLANK(data!F86),"",data!I86)))) ->  | G76: =IF(smoothing!C82="","",smoothing!B82) ->  | H76: =IF(smoothing!G82="","",smoothing!F82) ->  | I76: =IF(smoothing!K82="","",smoothing!J82) -> 
A77: =IF(smoothing!A83="out of range","out of range","") ->  | B77: =IF(ISBLANK(data!A87),"",data!A87) ->  | C77: =IF(ISBLANK(data!B87),"",data!B87) ->  | D77: =IF(ISBLANK(data!$A87),"",IF(ISBLANK(data!$B87),"",IF(ISBLANK(data!$C87),"",IF(ISBLANK(data!D87),"",data!G87)))) ->  | E77: =IF(ISBLANK(data!$A87),"",IF(ISBLANK(data!$B87),"",IF(ISBLANK(data!$C87),"",IF(ISBLANK(data!E87),"",data!H87)))) ->  | F77: =IF(ISBLANK(data!$A87),"",IF(ISBLANK(data!$B87),"",IF(ISBLANK(data!$C87),"",IF(ISBLANK(data!F87),"",data!I87)))) ->  | G77: =IF(smoothing!C83="","",smoothing!B83) ->  | H77: =IF(smoothing!G83="","",smoothing!F83) ->  | I77: =IF(smoothing!K83="","",smoothing!J83) -> 
A78: =IF(smoothing!A84="out of range","out of range","") ->  | B78: =IF(ISBLANK(data!A88),"",data!A88) ->  | C78: =IF(ISBLANK(data!B88),"",data!B88) ->  | D78: =IF(ISBLANK(data!$A88),"",IF(ISBLANK(data!$B88),"",IF(ISBLANK(data!$C88),"",IF(ISBLANK(data!D88),"",data!G88)))) ->  | E78: =IF(ISBLANK(data!$A88),"",IF(ISBLANK(data!$B88),"",IF(ISBLANK(data!$C88),"",IF(ISBLANK(data!E88),"",data!H88)))) ->  | F78: =IF(ISBLANK(data!$A88),"",IF(ISBLANK(data!$B88),"",IF(ISBLANK(data!$C88),"",IF(ISBLANK(data!F88),"",data!I88)))) ->  | G78: =IF(smoothing!C84="","",smoothing!B84) ->  | H78: =IF(smoothing!G84="","",smoothing!F84) ->  | I78: =IF(smoothing!K84="","",smoothing!J84) -> 
A79: =IF(smoothing!A85="out of range","out of range","") ->  | B79: =IF(ISBLANK(data!A89),"",data!A89) ->  | C79: =IF(ISBLANK(data!B89),"",data!B89) ->  | D79: =IF(ISBLANK(data!$A89),"",IF(ISBLANK(data!$B89),"",IF(ISBLANK(data!$C89),"",IF(ISBLANK(data!D89),"",data!G89)))) ->  | E79: =IF(ISBLANK(data!$A89),"",IF(ISBLANK(data!$B89),"",IF(ISBLANK(data!$C89),"",IF(ISBLANK(data!E89),"",data!H89)))) ->  | F79: =IF(ISBLANK(data!$A89),"",IF(ISBLANK(data!$B89),"",IF(ISBLANK(data!$C89),"",IF(ISBLANK(data!F89),"",data!I89)))) ->  | G79: =IF(smoothing!C85="","",smoothing!B85) ->  | H79: =IF(smoothing!G85="","",smoothing!F85) ->  | I79: =IF(smoothing!K85="","",smoothing!J85) -> 
A80: =IF(smoothing!A86="out of range","out of range","") ->  | B80: =IF(ISBLANK(data!A90),"",data!A90) ->  | C80: =IF(ISBLANK(data!B90),"",data!B90) ->  | D80: =IF(ISBLANK(data!$A90),"",IF(ISBLANK(data!$B90),"",IF(ISBLANK(data!$C90),"",IF(ISBLANK(data!D90),"",data!G90)))) ->  | E80: =IF(ISBLANK(data!$A90),"",IF(ISBLANK(data!$B90),"",IF(ISBLANK(data!$C90),"",IF(ISBLANK(data!E90),"",data!H90)))) ->  | F80: =IF(ISBLANK(data!$A90),"",IF(ISBLANK(data!$B90),"",IF(ISBLANK(data!$C90),"",IF(ISBLANK(data!F90),"",data!I90)))) ->  | G80: =IF(smoothing!C86="","",smoothing!B86) ->  | H80: =IF(smoothing!G86="","",smoothing!F86) ->  | I80: =IF(smoothing!K86="","",smoothing!J86) -> 
A81: =IF(smoothing!A87="out of range","out of range","") ->  | B81: =IF(ISBLANK(data!A91),"",data!A91) ->  | C81: =IF(ISBLANK(data!B91),"",data!B91) ->  | D81: =IF(ISBLANK(data!$A91),"",IF(ISBLANK(data!$B91),"",IF(ISBLANK(data!$C91),"",IF(ISBLANK(data!D91),"",data!G91)))) ->  | E81: =IF(ISBLANK(data!$A91),"",IF(ISBLANK(data!$B91),"",IF(ISBLANK(data!$C91),"",IF(ISBLANK(data!E91),"",data!H91)))) ->  | F81: =IF(ISBLANK(data!$A91),"",IF(ISBLANK(data!$B91),"",IF(ISBLANK(data!$C91),"",IF(ISBLANK(data!F91),"",data!I91)))) ->  | G81: =IF(smoothing!C87="","",smoothing!B87) ->  | H81: =IF(smoothing!G87="","",smoothing!F87) ->  | I81: =IF(smoothing!K87="","",smoothing!J87) -> 
A82: =IF(smoothing!A88="out of range","out of range","") ->  | B82: =IF(ISBLANK(data!A92),"",data!A92) ->  | C82: =IF(ISBLANK(data!B92),"",data!B92) ->  | D82: =IF(ISBLANK(data!$A92),"",IF(ISBLANK(data!$B92),"",IF(ISBLANK(data!$C92),"",IF(ISBLANK(data!D92),"",data!G92)))) ->  | E82: =IF(ISBLANK(data!$A92),"",IF(ISBLANK(data!$B92),"",IF(ISBLANK(data!$C92),"",IF(ISBLANK(data!E92),"",data!H92)))) ->  | F82: =IF(ISBLANK(data!$A92),"",IF(ISBLANK(data!$B92),"",IF(ISBLANK(data!$C92),"",IF(ISBLANK(data!F92),"",data!I92)))) ->  | G82: =IF(smoothing!C88="","",smoothing!B88) ->  | H82: =IF(smoothing!G88="","",smoothing!F88) ->  | I82: =IF(smoothing!K88="","",smoothing!J88) -> 
A83: =IF(smoothing!A89="out of range","out of range","") ->  | B83: =IF(ISBLANK(data!A93),"",data!A93) ->  | C83: =IF(ISBLANK(data!B93),"",data!B93) ->  | D83: =IF(ISBLANK(data!$A93),"",IF(ISBLANK(data!$B93),"",IF(ISBLANK(data!$C93),"",IF(ISBLANK(data!D93),"",data!G93)))) ->  | E83: =IF(ISBLANK(data!$A93),"",IF(ISBLANK(data!$B93),"",IF(ISBLANK(data!$C93),"",IF(ISBLANK(data!E93),"",data!H93)))) ->  | F83: =IF(ISBLANK(data!$A93),"",IF(ISBLANK(data!$B93),"",IF(ISBLANK(data!$C93),"",IF(ISBLANK(data!F93),"",data!I93)))) ->  | G83: =IF(smoothing!C89="","",smoothing!B89) ->  | H83: =IF(smoothing!G89="","",smoothing!F89) ->  | I83: =IF(smoothing!K89="","",smoothing!J89) -> 
A84: =IF(smoothing!A90="out of range","out of range","") ->  | B84: =IF(ISBLANK(data!A94),"",data!A94) ->  | C84: =IF(ISBLANK(data!B94),"",data!B94) ->  | D84: =IF(ISBLANK(data!$A94),"",IF(ISBLANK(data!$B94),"",IF(ISBLANK(data!$C94),"",IF(ISBLANK(data!D94),"",data!G94)))) ->  | E84: =IF(ISBLANK(data!$A94),"",IF(ISBLANK(data!$B94),"",IF(ISBLANK(data!$C94),"",IF(ISBLANK(data!E94),"",data!H94)))) ->  | F84: =IF(ISBLANK(data!$A94),"",IF(ISBLANK(data!$B94),"",IF(ISBLANK(data!$C94),"",IF(ISBLANK(data!F94),"",data!I94)))) ->  | G84: =IF(smoothing!C90="","",smoothing!B90) ->  | H84: =IF(smoothing!G90="","",smoothing!F90) ->  | I84: =IF(smoothing!K90="","",smoothing!J90) -> 
A85: =IF(smoothing!A91="out of range","out of range","") ->  | B85: =IF(ISBLANK(data!A95),"",data!A95) ->  | C85: =IF(ISBLANK(data!B95),"",data!B95) ->  | D85: =IF(ISBLANK(data!$A95),"",IF(ISBLANK(data!$B95),"",IF(ISBLANK(data!$C95),"",IF(ISBLANK(data!D95),"",data!G95)))) ->  | E85: =IF(ISBLANK(data!$A95),"",IF(ISBLANK(data!$B95),"",IF(ISBLANK(data!$C95),"",IF(ISBLANK(data!E95),"",data!H95)))) ->  | F85: =IF(ISBLANK(data!$A95),"",IF(ISBLANK(data!$B95),"",IF(ISBLANK(data!$C95),"",IF(ISBLANK(data!F95),"",data!I95)))) ->  | G85: =IF(smoothing!C91="","",smoothing!B91) ->  | H85: =IF(smoothing!G91="","",smoothing!F91) ->  | I85: =IF(smoothing!K91="","",smoothing!J91) -> 
A86: =IF(smoothing!A92="out of range","out of range","") ->  | B86: =IF(ISBLANK(data!A96),"",data!A96) ->  | C86: =IF(ISBLANK(data!B96),"",data!B96) ->  | D86: =IF(ISBLANK(data!$A96),"",IF(ISBLANK(data!$B96),"",IF(ISBLANK(data!$C96),"",IF(ISBLANK(data!D96),"",data!G96)))) ->  | E86: =IF(ISBLANK(data!$A96),"",IF(ISBLANK(data!$B96),"",IF(ISBLANK(data!$C96),"",IF(ISBLANK(data!E96),"",data!H96)))) ->  | F86: =IF(ISBLANK(data!$A96),"",IF(ISBLANK(data!$B96),"",IF(ISBLANK(data!$C96),"",IF(ISBLANK(data!F96),"",data!I96)))) ->  | G86: =IF(smoothing!C92="","",smoothing!B92) ->  | H86: =IF(smoothing!G92="","",smoothing!F92) ->  | I86: =IF(smoothing!K92="","",smoothing!J92) -> 
A87: =IF(smoothing!A93="out of range","out of range","") ->  | B87: =IF(ISBLANK(data!A97),"",data!A97) ->  | C87: =IF(ISBLANK(data!B97),"",data!B97) ->  | D87: =IF(ISBLANK(data!$A97),"",IF(ISBLANK(data!$B97),"",IF(ISBLANK(data!$C97),"",IF(ISBLANK(data!D97),"",data!G97)))) ->  | E87: =IF(ISBLANK(data!$A97),"",IF(ISBLANK(data!$B97),"",IF(ISBLANK(data!$C97),"",IF(ISBLANK(data!E97),"",data!H97)))) ->  | F87: =IF(ISBLANK(data!$A97),"",IF(ISBLANK(data!$B97),"",IF(ISBLANK(data!$C97),"",IF(ISBLANK(data!F97),"",data!I97)))) ->  | G87: =IF(smoothing!C93="","",smoothing!B93) ->  | H87: =IF(smoothing!G93="","",smoothing!F93) ->  | I87: =IF(smoothing!K93="","",smoothing!J93) -> 
A88: =IF(smoothing!A94="out of range","out of range","") ->  | B88: =IF(ISBLANK(data!A98),"",data!A98) ->  | C88: =IF(ISBLANK(data!B98),"",data!B98) ->  | D88: =IF(ISBLANK(data!$A98),"",IF(ISBLANK(data!$B98),"",IF(ISBLANK(data!$C98),"",IF(ISBLANK(data!D98),"",data!G98)))) ->  | E88: =IF(ISBLANK(data!$A98),"",IF(ISBLANK(data!$B98),"",IF(ISBLANK(data!$C98),"",IF(ISBLANK(data!E98),"",data!H98)))) ->  | F88: =IF(ISBLANK(data!$A98),"",IF(ISBLANK(data!$B98),"",IF(ISBLANK(data!$C98),"",IF(ISBLANK(data!F98),"",data!I98)))) ->  | G88: =IF(smoothing!C94="","",smoothing!B94) ->  | H88: =IF(smoothing!G94="","",smoothing!F94) ->  | I88: =IF(smoothing!K94="","",smoothing!J94) -> 
A89: =IF(smoothing!A95="out of range","out of range","") ->  | B89: =IF(ISBLANK(data!A99),"",data!A99) ->  | C89: =IF(ISBLANK(data!B99),"",data!B99) ->  | D89: =IF(ISBLANK(data!$A99),"",IF(ISBLANK(data!$B99),"",IF(ISBLANK(data!$C99),"",IF(ISBLANK(data!D99),"",data!G99)))) ->  | E89: =IF(ISBLANK(data!$A99),"",IF(ISBLANK(data!$B99),"",IF(ISBLANK(data!$C99),"",IF(ISBLANK(data!E99),"",data!H99)))) ->  | F89: =IF(ISBLANK(data!$A99),"",IF(ISBLANK(data!$B99),"",IF(ISBLANK(data!$C99),"",IF(ISBLANK(data!F99),"",data!I99)))) ->  | G89: =IF(smoothing!C95="","",smoothing!B95) ->  | H89: =IF(smoothing!G95="","",smoothing!F95) ->  | I89: =IF(smoothing!K95="","",smoothing!J95) -> 
A90: =IF(smoothing!A96="out of range","out of range","") ->  | B90: =IF(ISBLANK(data!A100),"",data!A100) ->  | C90: =IF(ISBLANK(data!B100),"",data!B100) ->  | D90: =IF(ISBLANK(data!$A100),"",IF(ISBLANK(data!$B100),"",IF(ISBLANK(data!$C100),"",IF(ISBLANK(data!D100),"",data!G100)))) ->  | E90: =IF(ISBLANK(data!$A100),"",IF(ISBLANK(data!$B100),"",IF(ISBLANK(data!$C100),"",IF(ISBLANK(data!E100),"",data!H100)))) ->  | F90: =IF(ISBLANK(data!$A100),"",IF(ISBLANK(data!$B100),"",IF(ISBLANK(data!$C100),"",IF(ISBLANK(data!F100),"",data!I100)))) ->  | G90: =IF(smoothing!C96="","",smoothing!B96) ->  | H90: =IF(smoothing!G96="","",smoothing!F96) ->  | I90: =IF(smoothing!K96="","",smoothing!J96) -> 
A91: =IF(smoothing!A97="out of range","out of range","") ->  | B91: =IF(ISBLANK(data!A101),"",data!A101) ->  | C91: =IF(ISBLANK(data!B101),"",data!B101) ->  | D91: =IF(ISBLANK(data!$A101),"",IF(ISBLANK(data!$B101),"",IF(ISBLANK(data!$C101),"",IF(ISBLANK(data!D101),"",data!G101)))) ->  | E91: =IF(ISBLANK(data!$A101),"",IF(ISBLANK(data!$B101),"",IF(ISBLANK(data!$C101),"",IF(ISBLANK(data!E101),"",data!H101)))) ->  | F91: =IF(ISBLANK(data!$A101),"",IF(ISBLANK(data!$B101),"",IF(ISBLANK(data!$C101),"",IF(ISBLANK(data!F101),"",data!I101)))) ->  | G91: =IF(smoothing!C97="","",smoothing!B97) ->  | H91: =IF(smoothing!G97="","",smoothing!F97) ->  | I91: =IF(smoothing!K97="","",smoothing!J97) -> 
A92: =IF(smoothing!A98="out of range","out of range","") ->  | B92: =IF(ISBLANK(data!A102),"",data!A102) ->  | C92: =IF(ISBLANK(data!B102),"",data!B102) ->  | D92: =IF(ISBLANK(data!$A102),"",IF(ISBLANK(data!$B102),"",IF(ISBLANK(data!$C102),"",IF(ISBLANK(data!D102),"",data!G102)))) ->  | E92: =IF(ISBLANK(data!$A102),"",IF(ISBLANK(data!$B102),"",IF(ISBLANK(data!$C102),"",IF(ISBLANK(data!E102),"",data!H102)))) ->  | F92: =IF(ISBLANK(data!$A102),"",IF(ISBLANK(data!$B102),"",IF(ISBLANK(data!$C102),"",IF(ISBLANK(data!F102),"",data!I102)))) ->  | G92: =IF(smoothing!C98="","",smoothing!B98) ->  | H92: =IF(smoothing!G98="","",smoothing!F98) ->  | I92: =IF(smoothing!K98="","",smoothing!J98) -> 
A93: =IF(smoothing!A99="out of range","out of range","") ->  | B93: =IF(ISBLANK(data!A103),"",data!A103) ->  | C93: =IF(ISBLANK(data!B103),"",data!B103) ->  | D93: =IF(ISBLANK(data!$A103),"",IF(ISBLANK(data!$B103),"",IF(ISBLANK(data!$C103),"",IF(ISBLANK(data!D103),"",data!G103)))) ->  | E93: =IF(ISBLANK(data!$A103),"",IF(ISBLANK(data!$B103),"",IF(ISBLANK(data!$C103),"",IF(ISBLANK(data!E103),"",data!H103)))) ->  | F93: =IF(ISBLANK(data!$A103),"",IF(ISBLANK(data!$B103),"",IF(ISBLANK(data!$C103),"",IF(ISBLANK(data!F103),"",data!I103)))) ->  | G93: =IF(smoothing!C99="","",smoothing!B99) ->  | H93: =IF(smoothing!G99="","",smoothing!F99) ->  | I93: =IF(smoothing!K99="","",smoothing!J99) -> 
A94: =IF(smoothing!A100="out of range","out of range","") ->  | B94: =IF(ISBLANK(data!A104),"",data!A104) ->  | C94: =IF(ISBLANK(data!B104),"",data!B104) ->  | D94: =IF(ISBLANK(data!$A104),"",IF(ISBLANK(data!$B104),"",IF(ISBLANK(data!$C104),"",IF(ISBLANK(data!D104),"",data!G104)))) ->  | E94: =IF(ISBLANK(data!$A104),"",IF(ISBLANK(data!$B104),"",IF(ISBLANK(data!$C104),"",IF(ISBLANK(data!E104),"",data!H104)))) ->  | F94: =IF(ISBLANK(data!$A104),"",IF(ISBLANK(data!$B104),"",IF(ISBLANK(data!$C104),"",IF(ISBLANK(data!F104),"",data!I104)))) ->  | G94: =IF(smoothing!C100="","",smoothing!B100) ->  | H94: =IF(smoothing!G100="","",smoothing!F100) ->  | I94: =IF(smoothing!K100="","",smoothing!J100) -> 
A95: =IF(smoothing!A101="out of range","out of range","") ->  | B95: =IF(ISBLANK(data!A105),"",data!A105) ->  | C95: =IF(ISBLANK(data!B105),"",data!B105) ->  | D95: =IF(ISBLANK(data!$A105),"",IF(ISBLANK(data!$B105),"",IF(ISBLANK(data!$C105),"",IF(ISBLANK(data!D105),"",data!G105)))) ->  | E95: =IF(ISBLANK(data!$A105),"",IF(ISBLANK(data!$B105),"",IF(ISBLANK(data!$C105),"",IF(ISBLANK(data!E105),"",data!H105)))) ->  | F95: =IF(ISBLANK(data!$A105),"",IF(ISBLANK(data!$B105),"",IF(ISBLANK(data!$C105),"",IF(ISBLANK(data!F105),"",data!I105)))) ->  | G95: =IF(smoothing!C101="","",smoothing!B101) ->  | H95: =IF(smoothing!G101="","",smoothing!F101) ->  | I95: =IF(smoothing!K101="","",smoothing!J101) -> 
A96: =IF(smoothing!A102="out of range","out of range","") ->  | B96: =IF(ISBLANK(data!A106),"",data!A106) ->  | C96: =IF(ISBLANK(data!B106),"",data!B106) ->  | D96: =IF(ISBLANK(data!$A106),"",IF(ISBLANK(data!$B106),"",IF(ISBLANK(data!$C106),"",IF(ISBLANK(data!D106),"",data!G106)))) ->  | E96: =IF(ISBLANK(data!$A106),"",IF(ISBLANK(data!$B106),"",IF(ISBLANK(data!$C106),"",IF(ISBLANK(data!E106),"",data!H106)))) ->  | F96: =IF(ISBLANK(data!$A106),"",IF(ISBLANK(data!$B106),"",IF(ISBLANK(data!$C106),"",IF(ISBLANK(data!F106),"",data!I106)))) ->  | G96: =IF(smoothing!C102="","",smoothing!B102) ->  | H96: =IF(smoothing!G102="","",smoothing!F102) ->  | I96: =IF(smoothing!K102="","",smoothing!J102) -> 
A97: =IF(smoothing!A103="out of range","out of range","") ->  | B97: =IF(ISBLANK(data!A107),"",data!A107) ->  | C97: =IF(ISBLANK(data!B107),"",data!B107) ->  | D97: =IF(ISBLANK(data!$A107),"",IF(ISBLANK(data!$B107),"",IF(ISBLANK(data!$C107),"",IF(ISBLANK(data!D107),"",data!G107)))) ->  | E97: =IF(ISBLANK(data!$A107),"",IF(ISBLANK(data!$B107),"",IF(ISBLANK(data!$C107),"",IF(ISBLANK(data!E107),"",data!H107)))) ->  | F97: =IF(ISBLANK(data!$A107),"",IF(ISBLANK(data!$B107),"",IF(ISBLANK(data!$C107),"",IF(ISBLANK(data!F107),"",data!I107)))) ->  | G97: =IF(smoothing!C103="","",smoothing!B103) ->  | H97: =IF(smoothing!G103="","",smoothing!F103) ->  | I97: =IF(smoothing!K103="","",smoothing!J103) -> 
A98: =IF(smoothing!A104="out of range","out of range","") ->  | B98: =IF(ISBLANK(data!A108),"",data!A108) ->  | C98: =IF(ISBLANK(data!B108),"",data!B108) ->  | D98: =IF(ISBLANK(data!$A108),"",IF(ISBLANK(data!$B108),"",IF(ISBLANK(data!$C108),"",IF(ISBLANK(data!D108),"",data!G108)))) ->  | E98: =IF(ISBLANK(data!$A108),"",IF(ISBLANK(data!$B108),"",IF(ISBLANK(data!$C108),"",IF(ISBLANK(data!E108),"",data!H108)))) ->  | F98: =IF(ISBLANK(data!$A108),"",IF(ISBLANK(data!$B108),"",IF(ISBLANK(data!$C108),"",IF(ISBLANK(data!F108),"",data!I108)))) ->  | G98: =IF(smoothing!C104="","",smoothing!B104) ->  | H98: =IF(smoothing!G104="","",smoothing!F104) ->  | I98: =IF(smoothing!K104="","",smoothing!J104) -> 
A99: =IF(smoothing!A105="out of range","out of range","") ->  | B99: =IF(ISBLANK(data!A109),"",data!A109) ->  | C99: =IF(ISBLANK(data!B109),"",data!B109) ->  | D99: =IF(ISBLANK(data!$A109),"",IF(ISBLANK(data!$B109),"",IF(ISBLANK(data!$C109),"",IF(ISBLANK(data!D109),"",data!G109)))) ->  | E99: =IF(ISBLANK(data!$A109),"",IF(ISBLANK(data!$B109),"",IF(ISBLANK(data!$C109),"",IF(ISBLANK(data!E109),"",data!H109)))) ->  | F99: =IF(ISBLANK(data!$A109),"",IF(ISBLANK(data!$B109),"",IF(ISBLANK(data!$C109),"",IF(ISBLANK(data!F109),"",data!I109)))) ->  | G99: =IF(smoothing!C105="","",smoothing!B105) ->  | H99: =IF(smoothing!G105="","",smoothing!F105) ->  | I99: =IF(smoothing!K105="","",smoothing!J105) -> 
A100: =IF(smoothing!A106="out of range","out of range","") ->  | B100: =IF(ISBLANK(data!A110),"",data!A110) ->  | C100: =IF(ISBLANK(data!B110),"",data!B110) ->  | D100: =IF(ISBLANK(data!$A110),"",IF(ISBLANK(data!$B110),"",IF(ISBLANK(data!$C110),"",IF(ISBLANK(data!D110),"",data!G110)))) ->  | E100: =IF(ISBLANK(data!$A110),"",IF(ISBLANK(data!$B110),"",IF(ISBLANK(data!$C110),"",IF(ISBLANK(data!E110),"",data!H110)))) ->  | F100: =IF(ISBLANK(data!$A110),"",IF(ISBLANK(data!$B110),"",IF(ISBLANK(data!$C110),"",IF(ISBLANK(data!F110),"",data!I110)))) ->  | G100: =IF(smoothing!C106="","",smoothing!B106) ->  | H100: =IF(smoothing!G106="","",smoothing!F106) ->  | I100: =IF(smoothing!K106="","",smoothing!J106) -> 
A101: =IF(smoothing!A107="out of range","out of range","") ->  | B101: =IF(ISBLANK(data!A111),"",data!A111) ->  | C101: =IF(ISBLANK(data!B111),"",data!B111) ->  | D101: =IF(ISBLANK(data!$A111),"",IF(ISBLANK(data!$B111),"",IF(ISBLANK(data!$C111),"",IF(ISBLANK(data!D111),"",data!G111)))) ->  | E101: =IF(ISBLANK(data!$A111),"",IF(ISBLANK(data!$B111),"",IF(ISBLANK(data!$C111),"",IF(ISBLANK(data!E111),"",data!H111)))) ->  | F101: =IF(ISBLANK(data!$A111),"",IF(ISBLANK(data!$B111),"",IF(ISBLANK(data!$C111),"",IF(ISBLANK(data!F111),"",data!I111)))) ->  | G101: =IF(smoothing!C107="","",smoothing!B107) ->  | H101: =IF(smoothing!G107="","",smoothing!F107) ->  | I101: =IF(smoothing!K107="","",smoothing!J107) -> 
A102: =IF(smoothing!A108="out of range","out of range","") ->  | B102: =IF(ISBLANK(data!A112),"",data!A112) ->  | C102: =IF(ISBLANK(data!B112),"",data!B112) ->  | D102: =IF(ISBLANK(data!$A112),"",IF(ISBLANK(data!$B112),"",IF(ISBLANK(data!$C112),"",IF(ISBLANK(data!D112),"",data!G112)))) ->  | E102: =IF(ISBLANK(data!$A112),"",IF(ISBLANK(data!$B112),"",IF(ISBLANK(data!$C112),"",IF(ISBLANK(data!E112),"",data!H112)))) ->  | F102: =IF(ISBLANK(data!$A112),"",IF(ISBLANK(data!$B112),"",IF(ISBLANK(data!$C112),"",IF(ISBLANK(data!F112),"",data!I112)))) ->  | G102: =IF(smoothing!C108="","",smoothing!B108) ->  | H102: =IF(smoothing!G108="","",smoothing!F108) ->  | I102: =IF(smoothing!K108="","",smoothing!J108) -> 
A103: =IF(smoothing!A109="out of range","out of range","") ->  | B103: =IF(ISBLANK(data!A113),"",data!A113) ->  | C103: =IF(ISBLANK(data!B113),"",data!B113) ->  | D103: =IF(ISBLANK(data!$A113),"",IF(ISBLANK(data!$B113),"",IF(ISBLANK(data!$C113),"",IF(ISBLANK(data!D113),"",data!G113)))) ->  | E103: =IF(ISBLANK(data!$A113),"",IF(ISBLANK(data!$B113),"",IF(ISBLANK(data!$C113),"",IF(ISBLANK(data!E113),"",data!H113)))) ->  | F103: =IF(ISBLANK(data!$A113),"",IF(ISBLANK(data!$B113),"",IF(ISBLANK(data!$C113),"",IF(ISBLANK(data!F113),"",data!I113)))) ->  | G103: =IF(smoothing!C109="","",smoothing!B109) ->  | H103: =IF(smoothing!G109="","",smoothing!F109) ->  | I103: =IF(smoothing!K109="","",smoothing!J109) -> 
A104: =IF(smoothing!A110="out of range","out of range","") ->  | B104: =IF(ISBLANK(data!A114),"",data!A114) ->  | C104: =IF(ISBLANK(data!B114),"",data!B114) ->  | D104: =IF(ISBLANK(data!$A114),"",IF(ISBLANK(data!$B114),"",IF(ISBLANK(data!$C114),"",IF(ISBLANK(data!D114),"",data!G114)))) ->  | E104: =IF(ISBLANK(data!$A114),"",IF(ISBLANK(data!$B114),"",IF(ISBLANK(data!$C114),"",IF(ISBLANK(data!E114),"",data!H114)))) ->  | F104: =IF(ISBLANK(data!$A114),"",IF(ISBLANK(data!$B114),"",IF(ISBLANK(data!$C114),"",IF(ISBLANK(data!F114),"",data!I114)))) ->  | G104: =IF(smoothing!C110="","",smoothing!B110) ->  | H104: =IF(smoothing!G110="","",smoothing!F110) ->  | I104: =IF(smoothing!K110="","",smoothing!J110) -> 
A105: =IF(smoothing!A111="out of range","out of range","") ->  | B105: =IF(ISBLANK(data!A115),"",data!A115) ->  | C105: =IF(ISBLANK(data!B115),"",data!B115) ->  | D105: =IF(ISBLANK(data!$A115),"",IF(ISBLANK(data!$B115),"",IF(ISBLANK(data!$C115),"",IF(ISBLANK(data!D115),"",data!G115)))) ->  | E105: =IF(ISBLANK(data!$A115),"",IF(ISBLANK(data!$B115),"",IF(ISBLANK(data!$C115),"",IF(ISBLANK(data!E115),"",data!H115)))) ->  | F105: =IF(ISBLANK(data!$A115),"",IF(ISBLANK(data!$B115),"",IF(ISBLANK(data!$C115),"",IF(ISBLANK(data!F115),"",data!I115)))) ->  | G105: =IF(smoothing!C111="","",smoothing!B111) ->  | H105: =IF(smoothing!G111="","",smoothing!F111) ->  | I105: =IF(smoothing!K111="","",smoothing!J111) -> 
A106: =IF(smoothing!A112="out of range","out of range","") ->  | B106: =IF(ISBLANK(data!A116),"",data!A116) ->  | C106: =IF(ISBLANK(data!B116),"",data!B116) ->  | D106: =IF(ISBLANK(data!$A116),"",IF(ISBLANK(data!$B116),"",IF(ISBLANK(data!$C116),"",IF(ISBLANK(data!D116),"",data!G116)))) ->  | E106: =IF(ISBLANK(data!$A116),"",IF(ISBLANK(data!$B116),"",IF(ISBLANK(data!$C116),"",IF(ISBLANK(data!E116),"",data!H116)))) ->  | F106: =IF(ISBLANK(data!$A116),"",IF(ISBLANK(data!$B116),"",IF(ISBLANK(data!$C116),"",IF(ISBLANK(data!F116),"",data!I116)))) ->  | G106: =IF(smoothing!C112="","",smoothing!B112) ->  | H106: =IF(smoothing!G112="","",smoothing!F112) ->  | I106: =IF(smoothing!K112="","",smoothing!J112) -> 
A107: =IF(smoothing!A113="out of range","out of range","") ->  | B107: =IF(ISBLANK(data!A117),"",data!A117) ->  | C107: =IF(ISBLANK(data!B117),"",data!B117) ->  | D107: =IF(ISBLANK(data!$A117),"",IF(ISBLANK(data!$B117),"",IF(ISBLANK(data!$C117),"",IF(ISBLANK(data!D117),"",data!G117)))) ->  | E107: =IF(ISBLANK(data!$A117),"",IF(ISBLANK(data!$B117),"",IF(ISBLANK(data!$C117),"",IF(ISBLANK(data!E117),"",data!H117)))) ->  | F107: =IF(ISBLANK(data!$A117),"",IF(ISBLANK(data!$B117),"",IF(ISBLANK(data!$C117),"",IF(ISBLANK(data!F117),"",data!I117)))) ->  | G107: =IF(smoothing!C113="","",smoothing!B113) ->  | H107: =IF(smoothing!G113="","",smoothing!F113) ->  | I107: =IF(smoothing!K113="","",smoothing!J113) -> 
A108: =IF(smoothing!A114="out of range","out of range","") ->  | B108: =IF(ISBLANK(data!A118),"",data!A118) ->  | C108: =IF(ISBLANK(data!B118),"",data!B118) ->  | D108: =IF(ISBLANK(data!$A118),"",IF(ISBLANK(data!$B118),"",IF(ISBLANK(data!$C118),"",IF(ISBLANK(data!D118),"",data!G118)))) ->  | E108: =IF(ISBLANK(data!$A118),"",IF(ISBLANK(data!$B118),"",IF(ISBLANK(data!$C118),"",IF(ISBLANK(data!E118),"",data!H118)))) ->  | F108: =IF(ISBLANK(data!$A118),"",IF(ISBLANK(data!$B118),"",IF(ISBLANK(data!$C118),"",IF(ISBLANK(data!F118),"",data!I118)))) ->  | G108: =IF(smoothing!C114="","",smoothing!B114) ->  | H108: =IF(smoothing!G114="","",smoothing!F114) ->  | I108: =IF(smoothing!K114="","",smoothing!J114) -> 
A109: =IF(smoothing!A115="out of range","out of range","") ->  | B109: =IF(ISBLANK(data!A119),"",data!A119) ->  | C109: =IF(ISBLANK(data!B119),"",data!B119) ->  | D109: =IF(ISBLANK(data!$A119),"",IF(ISBLANK(data!$B119),"",IF(ISBLANK(data!$C119),"",IF(ISBLANK(data!D119),"",data!G119)))) ->  | E109: =IF(ISBLANK(data!$A119),"",IF(ISBLANK(data!$B119),"",IF(ISBLANK(data!$C119),"",IF(ISBLANK(data!E119),"",data!H119)))) ->  | F109: =IF(ISBLANK(data!$A119),"",IF(ISBLANK(data!$B119),"",IF(ISBLANK(data!$C119),"",IF(ISBLANK(data!F119),"",data!I119)))) ->  | G109: =IF(smoothing!C115="","",smoothing!B115) ->  | H109: =IF(smoothing!G115="","",smoothing!F115) ->  | I109: =IF(smoothing!K115="","",smoothing!J115) -> 
A110: =IF(smoothing!A116="out of range","out of range","") ->  | B110: =IF(ISBLANK(data!A120),"",data!A120) ->  | C110: =IF(ISBLANK(data!B120),"",data!B120) ->  | D110: =IF(ISBLANK(data!$A120),"",IF(ISBLANK(data!$B120),"",IF(ISBLANK(data!$C120),"",IF(ISBLANK(data!D120),"",data!G120)))) ->  | E110: =IF(ISBLANK(data!$A120),"",IF(ISBLANK(data!$B120),"",IF(ISBLANK(data!$C120),"",IF(ISBLANK(data!E120),"",data!H120)))) ->  | F110: =IF(ISBLANK(data!$A120),"",IF(ISBLANK(data!$B120),"",IF(ISBLANK(data!$C120),"",IF(ISBLANK(data!F120),"",data!I120)))) ->  | G110: =IF(smoothing!C116="","",smoothing!B116) ->  | H110: =IF(smoothing!G116="","",smoothing!F116) ->  | I110: =IF(smoothing!K116="","",smoothing!J116) -> 
A111: =IF(smoothing!A117="out of range","out of range","") ->  | B111: =IF(ISBLANK(data!A121),"",data!A121) ->  | C111: =IF(ISBLANK(data!B121),"",data!B121) ->  | D111: =IF(ISBLANK(data!$A121),"",IF(ISBLANK(data!$B121),"",IF(ISBLANK(data!$C121),"",IF(ISBLANK(data!D121),"",data!G121)))) ->  | E111: =IF(ISBLANK(data!$A121),"",IF(ISBLANK(data!$B121),"",IF(ISBLANK(data!$C121),"",IF(ISBLANK(data!E121),"",data!H121)))) ->  | F111: =IF(ISBLANK(data!$A121),"",IF(ISBLANK(data!$B121),"",IF(ISBLANK(data!$C121),"",IF(ISBLANK(data!F121),"",data!I121)))) ->  | G111: =IF(smoothing!C117="","",smoothing!B117) ->  | H111: =IF(smoothing!G117="","",smoothing!F117) ->  | I111: =IF(smoothing!K117="","",smoothing!J117) -> 
A112: =IF(smoothing!A118="out of range","out of range","") ->  | B112: =IF(ISBLANK(data!A122),"",data!A122) ->  | C112: =IF(ISBLANK(data!B122),"",data!B122) ->  | D112: =IF(ISBLANK(data!$A122),"",IF(ISBLANK(data!$B122),"",IF(ISBLANK(data!$C122),"",IF(ISBLANK(data!D122),"",data!G122)))) ->  | E112: =IF(ISBLANK(data!$A122),"",IF(ISBLANK(data!$B122),"",IF(ISBLANK(data!$C122),"",IF(ISBLANK(data!E122),"",data!H122)))) ->  | F112: =IF(ISBLANK(data!$A122),"",IF(ISBLANK(data!$B122),"",IF(ISBLANK(data!$C122),"",IF(ISBLANK(data!F122),"",data!I122)))) ->  | G112: =IF(smoothing!C118="","",smoothing!B118) ->  | H112: =IF(smoothing!G118="","",smoothing!F118) ->  | I112: =IF(smoothing!K118="","",smoothing!J118) -> 
A113: =IF(smoothing!A119="out of range","out of range","") ->  | B113: =IF(ISBLANK(data!A123),"",data!A123) ->  | C113: =IF(ISBLANK(data!B123),"",data!B123) ->  | D113: =IF(ISBLANK(data!$A123),"",IF(ISBLANK(data!$B123),"",IF(ISBLANK(data!$C123),"",IF(ISBLANK(data!D123),"",data!G123)))) ->  | E113: =IF(ISBLANK(data!$A123),"",IF(ISBLANK(data!$B123),"",IF(ISBLANK(data!$C123),"",IF(ISBLANK(data!E123),"",data!H123)))) ->  | F113: =IF(ISBLANK(data!$A123),"",IF(ISBLANK(data!$B123),"",IF(ISBLANK(data!$C123),"",IF(ISBLANK(data!F123),"",data!I123)))) ->  | G113: =IF(smoothing!C119="","",smoothing!B119) ->  | H113: =IF(smoothing!G119="","",smoothing!F119) ->  | I113: =IF(smoothing!K119="","",smoothing!J119) -> 
A114: =IF(smoothing!A120="out of range","out of range","") ->  | B114: =IF(ISBLANK(data!A124),"",data!A124) ->  | C114: =IF(ISBLANK(data!B124),"",data!B124) ->  | D114: =IF(ISBLANK(data!$A124),"",IF(ISBLANK(data!$B124),"",IF(ISBLANK(data!$C124),"",IF(ISBLANK(data!D124),"",data!G124)))) ->  | E114: =IF(ISBLANK(data!$A124),"",IF(ISBLANK(data!$B124),"",IF(ISBLANK(data!$C124),"",IF(ISBLANK(data!E124),"",data!H124)))) ->  | F114: =IF(ISBLANK(data!$A124),"",IF(ISBLANK(data!$B124),"",IF(ISBLANK(data!$C124),"",IF(ISBLANK(data!F124),"",data!I124)))) ->  | G114: =IF(smoothing!C120="","",smoothing!B120) ->  | H114: =IF(smoothing!G120="","",smoothing!F120) ->  | I114: =IF(smoothing!K120="","",smoothing!J120) -> 
A115: =IF(smoothing!A121="out of range","out of range","") ->  | B115: =IF(ISBLANK(data!A125),"",data!A125) ->  | C115: =IF(ISBLANK(data!B125),"",data!B125) ->  | D115: =IF(ISBLANK(data!$A125),"",IF(ISBLANK(data!$B125),"",IF(ISBLANK(data!$C125),"",IF(ISBLANK(data!D125),"",data!G125)))) ->  | E115: =IF(ISBLANK(data!$A125),"",IF(ISBLANK(data!$B125),"",IF(ISBLANK(data!$C125),"",IF(ISBLANK(data!E125),"",data!H125)))) ->  | F115: =IF(ISBLANK(data!$A125),"",IF(ISBLANK(data!$B125),"",IF(ISBLANK(data!$C125),"",IF(ISBLANK(data!F125),"",data!I125)))) ->  | G115: =IF(smoothing!C121="","",smoothing!B121) ->  | H115: =IF(smoothing!G121="","",smoothing!F121) ->  | I115: =IF(smoothing!K121="","",smoothing!J121) -> 
A116: =IF(smoothing!A122="out of range","out of range","") ->  | B116: =IF(ISBLANK(data!A126),"",data!A126) ->  | C116: =IF(ISBLANK(data!B126),"",data!B126) ->  | D116: =IF(ISBLANK(data!$A126),"",IF(ISBLANK(data!$B126),"",IF(ISBLANK(data!$C126),"",IF(ISBLANK(data!D126),"",data!G126)))) ->  | E116: =IF(ISBLANK(data!$A126),"",IF(ISBLANK(data!$B126),"",IF(ISBLANK(data!$C126),"",IF(ISBLANK(data!E126),"",data!H126)))) ->  | F116: =IF(ISBLANK(data!$A126),"",IF(ISBLANK(data!$B126),"",IF(ISBLANK(data!$C126),"",IF(ISBLANK(data!F126),"",data!I126)))) ->  | G116: =IF(smoothing!C122="","",smoothing!B122) ->  | H116: =IF(smoothing!G122="","",smoothing!F122) ->  | I116: =IF(smoothing!K122="","",smoothing!J122) -> 
A117: =IF(smoothing!A123="out of range","out of range","") ->  | B117: =IF(ISBLANK(data!A127),"",data!A127) ->  | C117: =IF(ISBLANK(data!B127),"",data!B127) ->  | D117: =IF(ISBLANK(data!$A127),"",IF(ISBLANK(data!$B127),"",IF(ISBLANK(data!$C127),"",IF(ISBLANK(data!D127),"",data!G127)))) ->  | E117: =IF(ISBLANK(data!$A127),"",IF(ISBLANK(data!$B127),"",IF(ISBLANK(data!$C127),"",IF(ISBLANK(data!E127),"",data!H127)))) ->  | F117: =IF(ISBLANK(data!$A127),"",IF(ISBLANK(data!$B127),"",IF(ISBLANK(data!$C127),"",IF(ISBLANK(data!F127),"",data!I127)))) ->  | G117: =IF(smoothing!C123="","",smoothing!B123) ->  | H117: =IF(smoothing!G123="","",smoothing!F123) ->  | I117: =IF(smoothing!K123="","",smoothing!J123) -> 
A118: =IF(smoothing!A124="out of range","out of range","") ->  | B118: =IF(ISBLANK(data!A128),"",data!A128) ->  | C118: =IF(ISBLANK(data!B128),"",data!B128) ->  | D118: =IF(ISBLANK(data!$A128),"",IF(ISBLANK(data!$B128),"",IF(ISBLANK(data!$C128),"",IF(ISBLANK(data!D128),"",data!G128)))) ->  | E118: =IF(ISBLANK(data!$A128),"",IF(ISBLANK(data!$B128),"",IF(ISBLANK(data!$C128),"",IF(ISBLANK(data!E128),"",data!H128)))) ->  | F118: =IF(ISBLANK(data!$A128),"",IF(ISBLANK(data!$B128),"",IF(ISBLANK(data!$C128),"",IF(ISBLANK(data!F128),"",data!I128)))) ->  | G118: =IF(smoothing!C124="","",smoothing!B124) ->  | H118: =IF(smoothing!G124="","",smoothing!F124) ->  | I118: =IF(smoothing!K124="","",smoothing!J124) -> 
A119: =IF(smoothing!A125="out of range","out of range","") ->  | B119: =IF(ISBLANK(data!A129),"",data!A129) ->  | C119: =IF(ISBLANK(data!B129),"",data!B129) ->  | D119: =IF(ISBLANK(data!$A129),"",IF(ISBLANK(data!$B129),"",IF(ISBLANK(data!$C129),"",IF(ISBLANK(data!D129),"",data!G129)))) ->  | E119: =IF(ISBLANK(data!$A129),"",IF(ISBLANK(data!$B129),"",IF(ISBLANK(data!$C129),"",IF(ISBLANK(data!E129),"",data!H129)))) ->  | F119: =IF(ISBLANK(data!$A129),"",IF(ISBLANK(data!$B129),"",IF(ISBLANK(data!$C129),"",IF(ISBLANK(data!F129),"",data!I129)))) ->  | G119: =IF(smoothing!C125="","",smoothing!B125) ->  | H119: =IF(smoothing!G125="","",smoothing!F125) ->  | I119: =IF(smoothing!K125="","",smoothing!J125) -> 
A120: =IF(smoothing!A126="out of range","out of range","") ->  | B120: =IF(ISBLANK(data!A130),"",data!A130) ->  | C120: =IF(ISBLANK(data!B130),"",data!B130) ->  | D120: =IF(ISBLANK(data!$A130),"",IF(ISBLANK(data!$B130),"",IF(ISBLANK(data!$C130),"",IF(ISBLANK(data!D130),"",data!G130)))) ->  | E120: =IF(ISBLANK(data!$A130),"",IF(ISBLANK(data!$B130),"",IF(ISBLANK(data!$C130),"",IF(ISBLANK(data!E130),"",data!H130)))) ->  | F120: =IF(ISBLANK(data!$A130),"",IF(ISBLANK(data!$B130),"",IF(ISBLANK(data!$C130),"",IF(ISBLANK(data!F130),"",data!I130)))) ->  | G120: =IF(smoothing!C126="","",smoothing!B126) ->  | H120: =IF(smoothing!G126="","",smoothing!F126) ->  | I120: =IF(smoothing!K126="","",smoothing!J126) -> 
A121: =IF(smoothing!A127="out of range","out of range","") ->  | B121: =IF(ISBLANK(data!A131),"",data!A131) ->  | C121: =IF(ISBLANK(data!B131),"",data!B131) ->  | D121: =IF(ISBLANK(data!$A131),"",IF(ISBLANK(data!$B131),"",IF(ISBLANK(data!$C131),"",IF(ISBLANK(data!D131),"",data!G131)))) ->  | E121: =IF(ISBLANK(data!$A131),"",IF(ISBLANK(data!$B131),"",IF(ISBLANK(data!$C131),"",IF(ISBLANK(data!E131),"",data!H131)))) ->  | F121: =IF(ISBLANK(data!$A131),"",IF(ISBLANK(data!$B131),"",IF(ISBLANK(data!$C131),"",IF(ISBLANK(data!F131),"",data!I131)))) ->  | G121: =IF(smoothing!C127="","",smoothing!B127) ->  | H121: =IF(smoothing!G127="","",smoothing!F127) ->  | I121: =IF(smoothing!K127="","",smoothing!J127) -> 
A122: =IF(smoothing!A128="out of range","out of range","") ->  | B122: =IF(ISBLANK(data!A132),"",data!A132) ->  | C122: =IF(ISBLANK(data!B132),"",data!B132) ->  | D122: =IF(ISBLANK(data!$A132),"",IF(ISBLANK(data!$B132),"",IF(ISBLANK(data!$C132),"",IF(ISBLANK(data!D132),"",data!G132)))) ->  | E122: =IF(ISBLANK(data!$A132),"",IF(ISBLANK(data!$B132),"",IF(ISBLANK(data!$C132),"",IF(ISBLANK(data!E132),"",data!H132)))) ->  | F122: =IF(ISBLANK(data!$A132),"",IF(ISBLANK(data!$B132),"",IF(ISBLANK(data!$C132),"",IF(ISBLANK(data!F132),"",data!I132)))) ->  | G122: =IF(smoothing!C128="","",smoothing!B128) ->  | H122: =IF(smoothing!G128="","",smoothing!F128) ->  | I122: =IF(smoothing!K128="","",smoothing!J128) -> 
A123: =IF(smoothing!A129="out of range","out of range","") ->  | B123: =IF(ISBLANK(data!A133),"",data!A133) ->  | C123: =IF(ISBLANK(data!B133),"",data!B133) ->  | D123: =IF(ISBLANK(data!$A133),"",IF(ISBLANK(data!$B133),"",IF(ISBLANK(data!$C133),"",IF(ISBLANK(data!D133),"",data!G133)))) ->  | E123: =IF(ISBLANK(data!$A133),"",IF(ISBLANK(data!$B133),"",IF(ISBLANK(data!$C133),"",IF(ISBLANK(data!E133),"",data!H133)))) ->  | F123: =IF(ISBLANK(data!$A133),"",IF(ISBLANK(data!$B133),"",IF(ISBLANK(data!$C133),"",IF(ISBLANK(data!F133),"",data!I133)))) ->  | G123: =IF(smoothing!C129="","",smoothing!B129) ->  | H123: =IF(smoothing!G129="","",smoothing!F129) ->  | I123: =IF(smoothing!K129="","",smoothing!J129) -> 
A124: =IF(smoothing!A130="out of range","out of range","") ->  | B124: =IF(ISBLANK(data!A134),"",data!A134) ->  | C124: =IF(ISBLANK(data!B134),"",data!B134) ->  | D124: =IF(ISBLANK(data!$A134),"",IF(ISBLANK(data!$B134),"",IF(ISBLANK(data!$C134),"",IF(ISBLANK(data!D134),"",data!G134)))) ->  | E124: =IF(ISBLANK(data!$A134),"",IF(ISBLANK(data!$B134),"",IF(ISBLANK(data!$C134),"",IF(ISBLANK(data!E134),"",data!H134)))) ->  | F124: =IF(ISBLANK(data!$A134),"",IF(ISBLANK(data!$B134),"",IF(ISBLANK(data!$C134),"",IF(ISBLANK(data!F134),"",data!I134)))) ->  | G124: =IF(smoothing!C130="","",smoothing!B130) ->  | H124: =IF(smoothing!G130="","",smoothing!F130) ->  | I124: =IF(smoothing!K130="","",smoothing!J130) -> 
A125: =IF(smoothing!A131="out of range","out of range","") ->  | B125: =IF(ISBLANK(data!A135),"",data!A135) ->  | C125: =IF(ISBLANK(data!B135),"",data!B135) ->  | D125: =IF(ISBLANK(data!$A135),"",IF(ISBLANK(data!$B135),"",IF(ISBLANK(data!$C135),"",IF(ISBLANK(data!D135),"",data!G135)))) ->  | E125: =IF(ISBLANK(data!$A135),"",IF(ISBLANK(data!$B135),"",IF(ISBLANK(data!$C135),"",IF(ISBLANK(data!E135),"",data!H135)))) ->  | F125: =IF(ISBLANK(data!$A135),"",IF(ISBLANK(data!$B135),"",IF(ISBLANK(data!$C135),"",IF(ISBLANK(data!F135),"",data!I135)))) ->  | G125: =IF(smoothing!C131="","",smoothing!B131) ->  | H125: =IF(smoothing!G131="","",smoothing!F131) ->  | I125: =IF(smoothing!K131="","",smoothing!J131) -> 
A126: =IF(smoothing!A132="out of range","out of range","") ->  | B126: =IF(ISBLANK(data!A136),"",data!A136) ->  | C126: =IF(ISBLANK(data!B136),"",data!B136) ->  | D126: =IF(ISBLANK(data!$A136),"",IF(ISBLANK(data!$B136),"",IF(ISBLANK(data!$C136),"",IF(ISBLANK(data!D136),"",data!G136)))) ->  | E126: =IF(ISBLANK(data!$A136),"",IF(ISBLANK(data!$B136),"",IF(ISBLANK(data!$C136),"",IF(ISBLANK(data!E136),"",data!H136)))) ->  | F126: =IF(ISBLANK(data!$A136),"",IF(ISBLANK(data!$B136),"",IF(ISBLANK(data!$C136),"",IF(ISBLANK(data!F136),"",data!I136)))) ->  | G126: =IF(smoothing!C132="","",smoothing!B132) ->  | H126: =IF(smoothing!G132="","",smoothing!F132) ->  | I126: =IF(smoothing!K132="","",smoothing!J132) -> 
A127: =IF(smoothing!A133="out of range","out of range","") ->  | B127: =IF(ISBLANK(data!A137),"",data!A137) ->  | C127: =IF(ISBLANK(data!B137),"",data!B137) ->  | D127: =IF(ISBLANK(data!$A137),"",IF(ISBLANK(data!$B137),"",IF(ISBLANK(data!$C137),"",IF(ISBLANK(data!D137),"",data!G137)))) ->  | E127: =IF(ISBLANK(data!$A137),"",IF(ISBLANK(data!$B137),"",IF(ISBLANK(data!$C137),"",IF(ISBLANK(data!E137),"",data!H137)))) ->  | F127: =IF(ISBLANK(data!$A137),"",IF(ISBLANK(data!$B137),"",IF(ISBLANK(data!$C137),"",IF(ISBLANK(data!F137),"",data!I137)))) ->  | G127: =IF(smoothing!C133="","",smoothing!B133) ->  | H127: =IF(smoothing!G133="","",smoothing!F133) ->  | I127: =IF(smoothing!K133="","",smoothing!J133) -> 
A128: =IF(smoothing!A134="out of range","out of range","") ->  | B128: =IF(ISBLANK(data!A138),"",data!A138) ->  | C128: =IF(ISBLANK(data!B138),"",data!B138) ->  | D128: =IF(ISBLANK(data!$A138),"",IF(ISBLANK(data!$B138),"",IF(ISBLANK(data!$C138),"",IF(ISBLANK(data!D138),"",data!G138)))) ->  | E128: =IF(ISBLANK(data!$A138),"",IF(ISBLANK(data!$B138),"",IF(ISBLANK(data!$C138),"",IF(ISBLANK(data!E138),"",data!H138)))) ->  | F128: =IF(ISBLANK(data!$A138),"",IF(ISBLANK(data!$B138),"",IF(ISBLANK(data!$C138),"",IF(ISBLANK(data!F138),"",data!I138)))) ->  | G128: =IF(smoothing!C134="","",smoothing!B134) ->  | H128: =IF(smoothing!G134="","",smoothing!F134) ->  | I128: =IF(smoothing!K134="","",smoothing!J134) -> 
A129: =IF(smoothing!A135="out of range","out of range","") ->  | B129: =IF(ISBLANK(data!A139),"",data!A139) ->  | C129: =IF(ISBLANK(data!B139),"",data!B139) ->  | D129: =IF(ISBLANK(data!$A139),"",IF(ISBLANK(data!$B139),"",IF(ISBLANK(data!$C139),"",IF(ISBLANK(data!D139),"",data!G139)))) ->  | E129: =IF(ISBLANK(data!$A139),"",IF(ISBLANK(data!$B139),"",IF(ISBLANK(data!$C139),"",IF(ISBLANK(data!E139),"",data!H139)))) ->  | F129: =IF(ISBLANK(data!$A139),"",IF(ISBLANK(data!$B139),"",IF(ISBLANK(data!$C139),"",IF(ISBLANK(data!F139),"",data!I139)))) ->  | G129: =IF(smoothing!C135="","",smoothing!B135) ->  | H129: =IF(smoothing!G135="","",smoothing!F135) ->  | I129: =IF(smoothing!K135="","",smoothing!J135) -> 
A130: =IF(smoothing!A136="out of range","out of range","") ->  | B130: =IF(ISBLANK(data!A140),"",data!A140) ->  | C130: =IF(ISBLANK(data!B140),"",data!B140) ->  | D130: =IF(ISBLANK(data!$A140),"",IF(ISBLANK(data!$B140),"",IF(ISBLANK(data!$C140),"",IF(ISBLANK(data!D140),"",data!G140)))) ->  | E130: =IF(ISBLANK(data!$A140),"",IF(ISBLANK(data!$B140),"",IF(ISBLANK(data!$C140),"",IF(ISBLANK(data!E140),"",data!H140)))) ->  | F130: =IF(ISBLANK(data!$A140),"",IF(ISBLANK(data!$B140),"",IF(ISBLANK(data!$C140),"",IF(ISBLANK(data!F140),"",data!I140)))) ->  | G130: =IF(smoothing!C136="","",smoothing!B136) ->  | H130: =IF(smoothing!G136="","",smoothing!F136) ->  | I130: =IF(smoothing!K136="","",smoothing!J136) -> 
A131: =IF(smoothing!A137="out of range","out of range","") ->  | B131: =IF(ISBLANK(data!A141),"",data!A141) ->  | C131: =IF(ISBLANK(data!B141),"",data!B141) ->  | D131: =IF(ISBLANK(data!$A141),"",IF(ISBLANK(data!$B141),"",IF(ISBLANK(data!$C141),"",IF(ISBLANK(data!D141),"",data!G141)))) ->  | E131: =IF(ISBLANK(data!$A141),"",IF(ISBLANK(data!$B141),"",IF(ISBLANK(data!$C141),"",IF(ISBLANK(data!E141),"",data!H141)))) ->  | F131: =IF(ISBLANK(data!$A141),"",IF(ISBLANK(data!$B141),"",IF(ISBLANK(data!$C141),"",IF(ISBLANK(data!F141),"",data!I141)))) ->  | G131: =IF(smoothing!C137="","",smoothing!B137) ->  | H131: =IF(smoothing!G137="","",smoothing!F137) ->  | I131: =IF(smoothing!K137="","",smoothing!J137) -> 
A132: =IF(smoothing!A138="out of range","out of range","") ->  | B132: =IF(ISBLANK(data!A142),"",data!A142) ->  | C132: =IF(ISBLANK(data!B142),"",data!B142) ->  | D132: =IF(ISBLANK(data!$A142),"",IF(ISBLANK(data!$B142),"",IF(ISBLANK(data!$C142),"",IF(ISBLANK(data!D142),"",data!G142)))) ->  | E132: =IF(ISBLANK(data!$A142),"",IF(ISBLANK(data!$B142),"",IF(ISBLANK(data!$C142),"",IF(ISBLANK(data!E142),"",data!H142)))) ->  | F132: =IF(ISBLANK(data!$A142),"",IF(ISBLANK(data!$B142),"",IF(ISBLANK(data!$C142),"",IF(ISBLANK(data!F142),"",data!I142)))) ->  | G132: =IF(smoothing!C138="","",smoothing!B138) ->  | H132: =IF(smoothing!G138="","",smoothing!F138) ->  | I132: =IF(smoothing!K138="","",smoothing!J138) -> 
A133: =IF(smoothing!A139="out of range","out of range","") ->  | B133: =IF(ISBLANK(data!A143),"",data!A143) ->  | C133: =IF(ISBLANK(data!B143),"",data!B143) ->  | D133: =IF(ISBLANK(data!$A143),"",IF(ISBLANK(data!$B143),"",IF(ISBLANK(data!$C143),"",IF(ISBLANK(data!D143),"",data!G143)))) ->  | E133: =IF(ISBLANK(data!$A143),"",IF(ISBLANK(data!$B143),"",IF(ISBLANK(data!$C143),"",IF(ISBLANK(data!E143),"",data!H143)))) ->  | F133: =IF(ISBLANK(data!$A143),"",IF(ISBLANK(data!$B143),"",IF(ISBLANK(data!$C143),"",IF(ISBLANK(data!F143),"",data!I143)))) ->  | G133: =IF(smoothing!C139="","",smoothing!B139) ->  | H133: =IF(smoothing!G139="","",smoothing!F139) ->  | I133: =IF(smoothing!K139="","",smoothing!J139) -> 
A134: =IF(smoothing!A140="out of range","out of range","") ->  | B134: =IF(ISBLANK(data!A144),"",data!A144) ->  | C134: =IF(ISBLANK(data!B144),"",data!B144) ->  | D134: =IF(ISBLANK(data!$A144),"",IF(ISBLANK(data!$B144),"",IF(ISBLANK(data!$C144),"",IF(ISBLANK(data!D144),"",data!G144)))) ->  | E134: =IF(ISBLANK(data!$A144),"",IF(ISBLANK(data!$B144),"",IF(ISBLANK(data!$C144),"",IF(ISBLANK(data!E144),"",data!H144)))) ->  | F134: =IF(ISBLANK(data!$A144),"",IF(ISBLANK(data!$B144),"",IF(ISBLANK(data!$C144),"",IF(ISBLANK(data!F144),"",data!I144)))) ->  | G134: =IF(smoothing!C140="","",smoothing!B140) ->  | H134: =IF(smoothing!G140="","",smoothing!F140) ->  | I134: =IF(smoothing!K140="","",smoothing!J140) -> 
A135: =IF(smoothing!A141="out of range","out of range","") ->  | B135: =IF(ISBLANK(data!A145),"",data!A145) ->  | C135: =IF(ISBLANK(data!B145),"",data!B145) ->  | D135: =IF(ISBLANK(data!$A145),"",IF(ISBLANK(data!$B145),"",IF(ISBLANK(data!$C145),"",IF(ISBLANK(data!D145),"",data!G145)))) ->  | E135: =IF(ISBLANK(data!$A145),"",IF(ISBLANK(data!$B145),"",IF(ISBLANK(data!$C145),"",IF(ISBLANK(data!E145),"",data!H145)))) ->  | F135: =IF(ISBLANK(data!$A145),"",IF(ISBLANK(data!$B145),"",IF(ISBLANK(data!$C145),"",IF(ISBLANK(data!F145),"",data!I145)))) ->  | G135: =IF(smoothing!C141="","",smoothing!B141) ->  | H135: =IF(smoothing!G141="","",smoothing!F141) ->  | I135: =IF(smoothing!K141="","",smoothing!J141) -> 
A136: =IF(smoothing!A142="out of range","out of range","") ->  | B136: =IF(ISBLANK(data!A146),"",data!A146) ->  | C136: =IF(ISBLANK(data!B146),"",data!B146) ->  | D136: =IF(ISBLANK(data!$A146),"",IF(ISBLANK(data!$B146),"",IF(ISBLANK(data!$C146),"",IF(ISBLANK(data!D146),"",data!G146)))) ->  | E136: =IF(ISBLANK(data!$A146),"",IF(ISBLANK(data!$B146),"",IF(ISBLANK(data!$C146),"",IF(ISBLANK(data!E146),"",data!H146)))) ->  | F136: =IF(ISBLANK(data!$A146),"",IF(ISBLANK(data!$B146),"",IF(ISBLANK(data!$C146),"",IF(ISBLANK(data!F146),"",data!I146)))) ->  | G136: =IF(smoothing!C142="","",smoothing!B142) ->  | H136: =IF(smoothing!G142="","",smoothing!F142) ->  | I136: =IF(smoothing!K142="","",smoothing!J142) -> 
A137: =IF(smoothing!A143="out of range","out of range","") ->  | B137: =IF(ISBLANK(data!A147),"",data!A147) ->  | C137: =IF(ISBLANK(data!B147),"",data!B147) ->  | D137: =IF(ISBLANK(data!$A147),"",IF(ISBLANK(data!$B147),"",IF(ISBLANK(data!$C147),"",IF(ISBLANK(data!D147),"",data!G147)))) ->  | E137: =IF(ISBLANK(data!$A147),"",IF(ISBLANK(data!$B147),"",IF(ISBLANK(data!$C147),"",IF(ISBLANK(data!E147),"",data!H147)))) ->  | F137: =IF(ISBLANK(data!$A147),"",IF(ISBLANK(data!$B147),"",IF(ISBLANK(data!$C147),"",IF(ISBLANK(data!F147),"",data!I147)))) ->  | G137: =IF(smoothing!C143="","",smoothing!B143) ->  | H137: =IF(smoothing!G143="","",smoothing!F143) ->  | I137: =IF(smoothing!K143="","",smoothing!J143) -> 
A138: =IF(smoothing!A144="out of range","out of range","") ->  | B138: =IF(ISBLANK(data!A148),"",data!A148) ->  | C138: =IF(ISBLANK(data!B148),"",data!B148) ->  | D138: =IF(ISBLANK(data!$A148),"",IF(ISBLANK(data!$B148),"",IF(ISBLANK(data!$C148),"",IF(ISBLANK(data!D148),"",data!G148)))) ->  | E138: =IF(ISBLANK(data!$A148),"",IF(ISBLANK(data!$B148),"",IF(ISBLANK(data!$C148),"",IF(ISBLANK(data!E148),"",data!H148)))) ->  | F138: =IF(ISBLANK(data!$A148),"",IF(ISBLANK(data!$B148),"",IF(ISBLANK(data!$C148),"",IF(ISBLANK(data!F148),"",data!I148)))) ->  | G138: =IF(smoothing!C144="","",smoothing!B144) ->  | H138: =IF(smoothing!G144="","",smoothing!F144) ->  | I138: =IF(smoothing!K144="","",smoothing!J144) -> 
A139: =IF(smoothing!A145="out of range","out of range","") ->  | B139: =IF(ISBLANK(data!A149),"",data!A149) ->  | C139: =IF(ISBLANK(data!B149),"",data!B149) ->  | D139: =IF(ISBLANK(data!$A149),"",IF(ISBLANK(data!$B149),"",IF(ISBLANK(data!$C149),"",IF(ISBLANK(data!D149),"",data!G149)))) ->  | E139: =IF(ISBLANK(data!$A149),"",IF(ISBLANK(data!$B149),"",IF(ISBLANK(data!$C149),"",IF(ISBLANK(data!E149),"",data!H149)))) ->  | F139: =IF(ISBLANK(data!$A149),"",IF(ISBLANK(data!$B149),"",IF(ISBLANK(data!$C149),"",IF(ISBLANK(data!F149),"",data!I149)))) ->  | G139: =IF(smoothing!C145="","",smoothing!B145) ->  | H139: =IF(smoothing!G145="","",smoothing!F145) ->  | I139: =IF(smoothing!K145="","",smoothing!J145) -> 
A140: =IF(smoothing!A146="out of range","out of range","") ->  | B140: =IF(ISBLANK(data!A150),"",data!A150) ->  | C140: =IF(ISBLANK(data!B150),"",data!B150) ->  | D140: =IF(ISBLANK(data!$A150),"",IF(ISBLANK(data!$B150),"",IF(ISBLANK(data!$C150),"",IF(ISBLANK(data!D150),"",data!G150)))) ->  | E140: =IF(ISBLANK(data!$A150),"",IF(ISBLANK(data!$B150),"",IF(ISBLANK(data!$C150),"",IF(ISBLANK(data!E150),"",data!H150)))) ->  | F140: =IF(ISBLANK(data!$A150),"",IF(ISBLANK(data!$B150),"",IF(ISBLANK(data!$C150),"",IF(ISBLANK(data!F150),"",data!I150)))) ->  | G140: =IF(smoothing!C146="","",smoothing!B146) ->  | H140: =IF(smoothing!G146="","",smoothing!F146) ->  | I140: =IF(smoothing!K146="","",smoothing!J146) -> 
A141: =IF(smoothing!A147="out of range","out of range","") ->  | B141: =IF(ISBLANK(data!A151),"",data!A151) ->  | C141: =IF(ISBLANK(data!B151),"",data!B151) ->  | D141: =IF(ISBLANK(data!$A151),"",IF(ISBLANK(data!$B151),"",IF(ISBLANK(data!$C151),"",IF(ISBLANK(data!D151),"",data!G151)))) ->  | E141: =IF(ISBLANK(data!$A151),"",IF(ISBLANK(data!$B151),"",IF(ISBLANK(data!$C151),"",IF(ISBLANK(data!E151),"",data!H151)))) ->  | F141: =IF(ISBLANK(data!$A151),"",IF(ISBLANK(data!$B151),"",IF(ISBLANK(data!$C151),"",IF(ISBLANK(data!F151),"",data!I151)))) ->  | G141: =IF(smoothing!C147="","",smoothing!B147) ->  | H141: =IF(smoothing!G147="","",smoothing!F147) ->  | I141: =IF(smoothing!K147="","",smoothing!J147) -> 
A142: =IF(smoothing!A148="out of range","out of range","") ->  | B142: =IF(ISBLANK(data!A152),"",data!A152) ->  | C142: =IF(ISBLANK(data!B152),"",data!B152) ->  | D142: =IF(ISBLANK(data!$A152),"",IF(ISBLANK(data!$B152),"",IF(ISBLANK(data!$C152),"",IF(ISBLANK(data!D152),"",data!G152)))) ->  | E142: =IF(ISBLANK(data!$A152),"",IF(ISBLANK(data!$B152),"",IF(ISBLANK(data!$C152),"",IF(ISBLANK(data!E152),"",data!H152)))) ->  | F142: =IF(ISBLANK(data!$A152),"",IF(ISBLANK(data!$B152),"",IF(ISBLANK(data!$C152),"",IF(ISBLANK(data!F152),"",data!I152)))) ->  | G142: =IF(smoothing!C148="","",smoothing!B148) ->  | H142: =IF(smoothing!G148="","",smoothing!F148) ->  | I142: =IF(smoothing!K148="","",smoothing!J148) -> 
A143: =IF(smoothing!A149="out of range","out of range","") ->  | B143: =IF(ISBLANK(data!A153),"",data!A153) ->  | C143: =IF(ISBLANK(data!B153),"",data!B153) ->  | D143: =IF(ISBLANK(data!$A153),"",IF(ISBLANK(data!$B153),"",IF(ISBLANK(data!$C153),"",IF(ISBLANK(data!D153),"",data!G153)))) ->  | E143: =IF(ISBLANK(data!$A153),"",IF(ISBLANK(data!$B153),"",IF(ISBLANK(data!$C153),"",IF(ISBLANK(data!E153),"",data!H153)))) ->  | F143: =IF(ISBLANK(data!$A153),"",IF(ISBLANK(data!$B153),"",IF(ISBLANK(data!$C153),"",IF(ISBLANK(data!F153),"",data!I153)))) ->  | G143: =IF(smoothing!C149="","",smoothing!B149) ->  | H143: =IF(smoothing!G149="","",smoothing!F149) ->  | I143: =IF(smoothing!K149="","",smoothing!J149) -> 
A144: =IF(smoothing!A150="out of range","out of range","") ->  | B144: =IF(ISBLANK(data!A154),"",data!A154) ->  | C144: =IF(ISBLANK(data!B154),"",data!B154) ->  | D144: =IF(ISBLANK(data!$A154),"",IF(ISBLANK(data!$B154),"",IF(ISBLANK(data!$C154),"",IF(ISBLANK(data!D154),"",data!G154)))) ->  | E144: =IF(ISBLANK(data!$A154),"",IF(ISBLANK(data!$B154),"",IF(ISBLANK(data!$C154),"",IF(ISBLANK(data!E154),"",data!H154)))) ->  | F144: =IF(ISBLANK(data!$A154),"",IF(ISBLANK(data!$B154),"",IF(ISBLANK(data!$C154),"",IF(ISBLANK(data!F154),"",data!I154)))) ->  | G144: =IF(smoothing!C150="","",smoothing!B150) ->  | H144: =IF(smoothing!G150="","",smoothing!F150) ->  | I144: =IF(smoothing!K150="","",smoothing!J150) -> 
A145: =IF(smoothing!A151="out of range","out of range","") ->  | B145: =IF(ISBLANK(data!A155),"",data!A155) ->  | C145: =IF(ISBLANK(data!B155),"",data!B155) ->  | D145: =IF(ISBLANK(data!$A155),"",IF(ISBLANK(data!$B155),"",IF(ISBLANK(data!$C155),"",IF(ISBLANK(data!D155),"",data!G155)))) ->  | E145: =IF(ISBLANK(data!$A155),"",IF(ISBLANK(data!$B155),"",IF(ISBLANK(data!$C155),"",IF(ISBLANK(data!E155),"",data!H155)))) ->  | F145: =IF(ISBLANK(data!$A155),"",IF(ISBLANK(data!$B155),"",IF(ISBLANK(data!$C155),"",IF(ISBLANK(data!F155),"",data!I155)))) ->  | G145: =IF(smoothing!C151="","",smoothing!B151) ->  | H145: =IF(smoothing!G151="","",smoothing!F151) ->  | I145: =IF(smoothing!K151="","",smoothing!J151) -> 
A146: =IF(smoothing!A152="out of range","out of range","") ->  | B146: =IF(ISBLANK(data!A156),"",data!A156) ->  | C146: =IF(ISBLANK(data!B156),"",data!B156) ->  | D146: =IF(ISBLANK(data!$A156),"",IF(ISBLANK(data!$B156),"",IF(ISBLANK(data!$C156),"",IF(ISBLANK(data!D156),"",data!G156)))) ->  | E146: =IF(ISBLANK(data!$A156),"",IF(ISBLANK(data!$B156),"",IF(ISBLANK(data!$C156),"",IF(ISBLANK(data!E156),"",data!H156)))) ->  | F146: =IF(ISBLANK(data!$A156),"",IF(ISBLANK(data!$B156),"",IF(ISBLANK(data!$C156),"",IF(ISBLANK(data!F156),"",data!I156)))) ->  | G146: =IF(smoothing!C152="","",smoothing!B152) ->  | H146: =IF(smoothing!G152="","",smoothing!F152) ->  | I146: =IF(smoothing!K152="","",smoothing!J152) -> 
A147: =IF(smoothing!A153="out of range","out of range","") ->  | B147: =IF(ISBLANK(data!A157),"",data!A157) ->  | C147: =IF(ISBLANK(data!B157),"",data!B157) ->  | D147: =IF(ISBLANK(data!$A157),"",IF(ISBLANK(data!$B157),"",IF(ISBLANK(data!$C157),"",IF(ISBLANK(data!D157),"",data!G157)))) ->  | E147: =IF(ISBLANK(data!$A157),"",IF(ISBLANK(data!$B157),"",IF(ISBLANK(data!$C157),"",IF(ISBLANK(data!E157),"",data!H157)))) ->  | F147: =IF(ISBLANK(data!$A157),"",IF(ISBLANK(data!$B157),"",IF(ISBLANK(data!$C157),"",IF(ISBLANK(data!F157),"",data!I157)))) ->  | G147: =IF(smoothing!C153="","",smoothing!B153) ->  | H147: =IF(smoothing!G153="","",smoothing!F153) ->  | I147: =IF(smoothing!K153="","",smoothing!J153) -> 
A148: =IF(smoothing!A154="out of range","out of range","") ->  | B148: =IF(ISBLANK(data!A158),"",data!A158) ->  | C148: =IF(ISBLANK(data!B158),"",data!B158) ->  | D148: =IF(ISBLANK(data!$A158),"",IF(ISBLANK(data!$B158),"",IF(ISBLANK(data!$C158),"",IF(ISBLANK(data!D158),"",data!G158)))) ->  | E148: =IF(ISBLANK(data!$A158),"",IF(ISBLANK(data!$B158),"",IF(ISBLANK(data!$C158),"",IF(ISBLANK(data!E158),"",data!H158)))) ->  | F148: =IF(ISBLANK(data!$A158),"",IF(ISBLANK(data!$B158),"",IF(ISBLANK(data!$C158),"",IF(ISBLANK(data!F158),"",data!I158)))) ->  | G148: =IF(smoothing!C154="","",smoothing!B154) ->  | H148: =IF(smoothing!G154="","",smoothing!F154) ->  | I148: =IF(smoothing!K154="","",smoothing!J154) -> 
A149: =IF(smoothing!A155="out of range","out of range","") ->  | B149: =IF(ISBLANK(data!A159),"",data!A159) ->  | C149: =IF(ISBLANK(data!B159),"",data!B159) ->  | D149: =IF(ISBLANK(data!$A159),"",IF(ISBLANK(data!$B159),"",IF(ISBLANK(data!$C159),"",IF(ISBLANK(data!D159),"",data!G159)))) ->  | E149: =IF(ISBLANK(data!$A159),"",IF(ISBLANK(data!$B159),"",IF(ISBLANK(data!$C159),"",IF(ISBLANK(data!E159),"",data!H159)))) ->  | F149: =IF(ISBLANK(data!$A159),"",IF(ISBLANK(data!$B159),"",IF(ISBLANK(data!$C159),"",IF(ISBLANK(data!F159),"",data!I159)))) ->  | G149: =IF(smoothing!C155="","",smoothing!B155) ->  | H149: =IF(smoothing!G155="","",smoothing!F155) ->  | I149: =IF(smoothing!K155="","",smoothing!J155) -> 
A150: =IF(smoothing!A156="out of range","out of range","") ->  | B150: =IF(ISBLANK(data!A160),"",data!A160) ->  | C150: =IF(ISBLANK(data!B160),"",data!B160) ->  | D150: =IF(ISBLANK(data!$A160),"",IF(ISBLANK(data!$B160),"",IF(ISBLANK(data!$C160),"",IF(ISBLANK(data!D160),"",data!G160)))) ->  | E150: =IF(ISBLANK(data!$A160),"",IF(ISBLANK(data!$B160),"",IF(ISBLANK(data!$C160),"",IF(ISBLANK(data!E160),"",data!H160)))) ->  | F150: =IF(ISBLANK(data!$A160),"",IF(ISBLANK(data!$B160),"",IF(ISBLANK(data!$C160),"",IF(ISBLANK(data!F160),"",data!I160)))) ->  | G150: =IF(smoothing!C156="","",smoothing!B156) ->  | H150: =IF(smoothing!G156="","",smoothing!F156) ->  | I150: =IF(smoothing!K156="","",smoothing!J156) -> 
A151: =IF(smoothing!A157="out of range","out of range","") ->  | B151: =IF(ISBLANK(data!A161),"",data!A161) ->  | C151: =IF(ISBLANK(data!B161),"",data!B161) ->  | D151: =IF(ISBLANK(data!$A161),"",IF(ISBLANK(data!$B161),"",IF(ISBLANK(data!$C161),"",IF(ISBLANK(data!D161),"",data!G161)))) ->  | E151: =IF(ISBLANK(data!$A161),"",IF(ISBLANK(data!$B161),"",IF(ISBLANK(data!$C161),"",IF(ISBLANK(data!E161),"",data!H161)))) ->  | F151: =IF(ISBLANK(data!$A161),"",IF(ISBLANK(data!$B161),"",IF(ISBLANK(data!$C161),"",IF(ISBLANK(data!F161),"",data!I161)))) ->  | G151: =IF(smoothing!C157="","",smoothing!B157) ->  | H151: =IF(smoothing!G157="","",smoothing!F157) ->  | I151: =IF(smoothing!K157="","",smoothing!J157) -> 
A152: =IF(smoothing!A158="out of range","out of range","") ->  | B152: =IF(ISBLANK(data!A162),"",data!A162) ->  | C152: =IF(ISBLANK(data!B162),"",data!B162) ->  | D152: =IF(ISBLANK(data!$A162),"",IF(ISBLANK(data!$B162),"",IF(ISBLANK(data!$C162),"",IF(ISBLANK(data!D162),"",data!G162)))) ->  | E152: =IF(ISBLANK(data!$A162),"",IF(ISBLANK(data!$B162),"",IF(ISBLANK(data!$C162),"",IF(ISBLANK(data!E162),"",data!H162)))) ->  | F152: =IF(ISBLANK(data!$A162),"",IF(ISBLANK(data!$B162),"",IF(ISBLANK(data!$C162),"",IF(ISBLANK(data!F162),"",data!I162)))) ->  | G152: =IF(smoothing!C158="","",smoothing!B158) ->  | H152: =IF(smoothing!G158="","",smoothing!F158) ->  | I152: =IF(smoothing!K158="","",smoothing!J158) -> 
A153: =IF(smoothing!A159="out of range","out of range","") ->  | B153: =IF(ISBLANK(data!A163),"",data!A163) ->  | C153: =IF(ISBLANK(data!B163),"",data!B163) ->  | D153: =IF(ISBLANK(data!$A163),"",IF(ISBLANK(data!$B163),"",IF(ISBLANK(data!$C163),"",IF(ISBLANK(data!D163),"",data!G163)))) ->  | E153: =IF(ISBLANK(data!$A163),"",IF(ISBLANK(data!$B163),"",IF(ISBLANK(data!$C163),"",IF(ISBLANK(data!E163),"",data!H163)))) ->  | F153: =IF(ISBLANK(data!$A163),"",IF(ISBLANK(data!$B163),"",IF(ISBLANK(data!$C163),"",IF(ISBLANK(data!F163),"",data!I163)))) ->  | G153: =IF(smoothing!C159="","",smoothing!B159) ->  | H153: =IF(smoothing!G159="","",smoothing!F159) ->  | I153: =IF(smoothing!K159="","",smoothing!J159) -> 
A154: =IF(smoothing!A160="out of range","out of range","") ->  | B154: =IF(ISBLANK(data!A164),"",data!A164) ->  | C154: =IF(ISBLANK(data!B164),"",data!B164) ->  | D154: =IF(ISBLANK(data!$A164),"",IF(ISBLANK(data!$B164),"",IF(ISBLANK(data!$C164),"",IF(ISBLANK(data!D164),"",data!G164)))) ->  | E154: =IF(ISBLANK(data!$A164),"",IF(ISBLANK(data!$B164),"",IF(ISBLANK(data!$C164),"",IF(ISBLANK(data!E164),"",data!H164)))) ->  | F154: =IF(ISBLANK(data!$A164),"",IF(ISBLANK(data!$B164),"",IF(ISBLANK(data!$C164),"",IF(ISBLANK(data!F164),"",data!I164)))) ->  | G154: =IF(smoothing!C160="","",smoothing!B160) ->  | H154: =IF(smoothing!G160="","",smoothing!F160) ->  | I154: =IF(smoothing!K160="","",smoothing!J160) -> 
A155: =IF(smoothing!A161="out of range","out of range","") ->  | B155: =IF(ISBLANK(data!A165),"",data!A165) ->  | C155: =IF(ISBLANK(data!B165),"",data!B165) ->  | D155: =IF(ISBLANK(data!$A165),"",IF(ISBLANK(data!$B165),"",IF(ISBLANK(data!$C165),"",IF(ISBLANK(data!D165),"",data!G165)))) ->  | E155: =IF(ISBLANK(data!$A165),"",IF(ISBLANK(data!$B165),"",IF(ISBLANK(data!$C165),"",IF(ISBLANK(data!E165),"",data!H165)))) ->  | F155: =IF(ISBLANK(data!$A165),"",IF(ISBLANK(data!$B165),"",IF(ISBLANK(data!$C165),"",IF(ISBLANK(data!F165),"",data!I165)))) ->  | G155: =IF(smoothing!C161="","",smoothing!B161) ->  | H155: =IF(smoothing!G161="","",smoothing!F161) ->  | I155: =IF(smoothing!K161="","",smoothing!J161) -> 
A156: =IF(smoothing!A162="out of range","out of range","") ->  | B156: =IF(ISBLANK(data!A166),"",data!A166) ->  | C156: =IF(ISBLANK(data!B166),"",data!B166) ->  | D156: =IF(ISBLANK(data!$A166),"",IF(ISBLANK(data!$B166),"",IF(ISBLANK(data!$C166),"",IF(ISBLANK(data!D166),"",data!G166)))) ->  | E156: =IF(ISBLANK(data!$A166),"",IF(ISBLANK(data!$B166),"",IF(ISBLANK(data!$C166),"",IF(ISBLANK(data!E166),"",data!H166)))) ->  | F156: =IF(ISBLANK(data!$A166),"",IF(ISBLANK(data!$B166),"",IF(ISBLANK(data!$C166),"",IF(ISBLANK(data!F166),"",data!I166)))) ->  | G156: =IF(smoothing!C162="","",smoothing!B162) ->  | H156: =IF(smoothing!G162="","",smoothing!F162) ->  | I156: =IF(smoothing!K162="","",smoothing!J162) -> 
A157: =IF(smoothing!A163="out of range","out of range","") ->  | B157: =IF(ISBLANK(data!A167),"",data!A167) ->  | C157: =IF(ISBLANK(data!B167),"",data!B167) ->  | D157: =IF(ISBLANK(data!$A167),"",IF(ISBLANK(data!$B167),"",IF(ISBLANK(data!$C167),"",IF(ISBLANK(data!D167),"",data!G167)))) ->  | E157: =IF(ISBLANK(data!$A167),"",IF(ISBLANK(data!$B167),"",IF(ISBLANK(data!$C167),"",IF(ISBLANK(data!E167),"",data!H167)))) ->  | F157: =IF(ISBLANK(data!$A167),"",IF(ISBLANK(data!$B167),"",IF(ISBLANK(data!$C167),"",IF(ISBLANK(data!F167),"",data!I167)))) ->  | G157: =IF(smoothing!C163="","",smoothing!B163) ->  | H157: =IF(smoothing!G163="","",smoothing!F163) ->  | I157: =IF(smoothing!K163="","",smoothing!J163) -> 
A158: =IF(smoothing!A164="out of range","out of range","") ->  | B158: =IF(ISBLANK(data!A168),"",data!A168) ->  | C158: =IF(ISBLANK(data!B168),"",data!B168) ->  | D158: =IF(ISBLANK(data!$A168),"",IF(ISBLANK(data!$B168),"",IF(ISBLANK(data!$C168),"",IF(ISBLANK(data!D168),"",data!G168)))) ->  | E158: =IF(ISBLANK(data!$A168),"",IF(ISBLANK(data!$B168),"",IF(ISBLANK(data!$C168),"",IF(ISBLANK(data!E168),"",data!H168)))) ->  | F158: =IF(ISBLANK(data!$A168),"",IF(ISBLANK(data!$B168),"",IF(ISBLANK(data!$C168),"",IF(ISBLANK(data!F168),"",data!I168)))) ->  | G158: =IF(smoothing!C164="","",smoothing!B164) ->  | H158: =IF(smoothing!G164="","",smoothing!F164) ->  | I158: =IF(smoothing!K164="","",smoothing!J164) -> 
A159: =IF(smoothing!A165="out of range","out of range","") ->  | B159: =IF(ISBLANK(data!A169),"",data!A169) ->  | C159: =IF(ISBLANK(data!B169),"",data!B169) ->  | D159: =IF(ISBLANK(data!$A169),"",IF(ISBLANK(data!$B169),"",IF(ISBLANK(data!$C169),"",IF(ISBLANK(data!D169),"",data!G169)))) ->  | E159: =IF(ISBLANK(data!$A169),"",IF(ISBLANK(data!$B169),"",IF(ISBLANK(data!$C169),"",IF(ISBLANK(data!E169),"",data!H169)))) ->  | F159: =IF(ISBLANK(data!$A169),"",IF(ISBLANK(data!$B169),"",IF(ISBLANK(data!$C169),"",IF(ISBLANK(data!F169),"",data!I169)))) ->  | G159: =IF(smoothing!C165="","",smoothing!B165) ->  | H159: =IF(smoothing!G165="","",smoothing!F165) ->  | I159: =IF(smoothing!K165="","",smoothing!J165) -> 
A160: =IF(smoothing!A166="out of range","out of range","") ->  | B160: =IF(ISBLANK(data!A170),"",data!A170) ->  | C160: =IF(ISBLANK(data!B170),"",data!B170) ->  | D160: =IF(ISBLANK(data!$A170),"",IF(ISBLANK(data!$B170),"",IF(ISBLANK(data!$C170),"",IF(ISBLANK(data!D170),"",data!G170)))) ->  | E160: =IF(ISBLANK(data!$A170),"",IF(ISBLANK(data!$B170),"",IF(ISBLANK(data!$C170),"",IF(ISBLANK(data!E170),"",data!H170)))) ->  | F160: =IF(ISBLANK(data!$A170),"",IF(ISBLANK(data!$B170),"",IF(ISBLANK(data!$C170),"",IF(ISBLANK(data!F170),"",data!I170)))) ->  | G160: =IF(smoothing!C166="","",smoothing!B166) ->  | H160: =IF(smoothing!G166="","",smoothing!F166) ->  | I160: =IF(smoothing!K166="","",smoothing!J166) -> 
A161: =IF(smoothing!A167="out of range","out of range","") ->  | B161: =IF(ISBLANK(data!A171),"",data!A171) ->  | C161: =IF(ISBLANK(data!B171),"",data!B171) ->  | D161: =IF(ISBLANK(data!$A171),"",IF(ISBLANK(data!$B171),"",IF(ISBLANK(data!$C171),"",IF(ISBLANK(data!D171),"",data!G171)))) ->  | E161: =IF(ISBLANK(data!$A171),"",IF(ISBLANK(data!$B171),"",IF(ISBLANK(data!$C171),"",IF(ISBLANK(data!E171),"",data!H171)))) ->  | F161: =IF(ISBLANK(data!$A171),"",IF(ISBLANK(data!$B171),"",IF(ISBLANK(data!$C171),"",IF(ISBLANK(data!F171),"",data!I171)))) ->  | G161: =IF(smoothing!C167="","",smoothing!B167) ->  | H161: =IF(smoothing!G167="","",smoothing!F167) ->  | I161: =IF(smoothing!K167="","",smoothing!J167) -> 
A162: =IF(smoothing!A168="out of range","out of range","") ->  | B162: =IF(ISBLANK(data!A172),"",data!A172) ->  | C162: =IF(ISBLANK(data!B172),"",data!B172) ->  | D162: =IF(ISBLANK(data!$A172),"",IF(ISBLANK(data!$B172),"",IF(ISBLANK(data!$C172),"",IF(ISBLANK(data!D172),"",data!G172)))) ->  | E162: =IF(ISBLANK(data!$A172),"",IF(ISBLANK(data!$B172),"",IF(ISBLANK(data!$C172),"",IF(ISBLANK(data!E172),"",data!H172)))) ->  | F162: =IF(ISBLANK(data!$A172),"",IF(ISBLANK(data!$B172),"",IF(ISBLANK(data!$C172),"",IF(ISBLANK(data!F172),"",data!I172)))) ->  | G162: =IF(smoothing!C168="","",smoothing!B168) ->  | H162: =IF(smoothing!G168="","",smoothing!F168) ->  | I162: =IF(smoothing!K168="","",smoothing!J168) -> 
A163: =IF(smoothing!A169="out of range","out of range","") ->  | B163: =IF(ISBLANK(data!A173),"",data!A173) ->  | C163: =IF(ISBLANK(data!B173),"",data!B173) ->  | D163: =IF(ISBLANK(data!$A173),"",IF(ISBLANK(data!$B173),"",IF(ISBLANK(data!$C173),"",IF(ISBLANK(data!D173),"",data!G173)))) ->  | E163: =IF(ISBLANK(data!$A173),"",IF(ISBLANK(data!$B173),"",IF(ISBLANK(data!$C173),"",IF(ISBLANK(data!E173),"",data!H173)))) ->  | F163: =IF(ISBLANK(data!$A173),"",IF(ISBLANK(data!$B173),"",IF(ISBLANK(data!$C173),"",IF(ISBLANK(data!F173),"",data!I173)))) ->  | G163: =IF(smoothing!C169="","",smoothing!B169) ->  | H163: =IF(smoothing!G169="","",smoothing!F169) ->  | I163: =IF(smoothing!K169="","",smoothing!J169) -> 
A164: =IF(smoothing!A170="out of range","out of range","") ->  | B164: =IF(ISBLANK(data!A174),"",data!A174) ->  | C164: =IF(ISBLANK(data!B174),"",data!B174) ->  | D164: =IF(ISBLANK(data!$A174),"",IF(ISBLANK(data!$B174),"",IF(ISBLANK(data!$C174),"",IF(ISBLANK(data!D174),"",data!G174)))) ->  | E164: =IF(ISBLANK(data!$A174),"",IF(ISBLANK(data!$B174),"",IF(ISBLANK(data!$C174),"",IF(ISBLANK(data!E174),"",data!H174)))) ->  | F164: =IF(ISBLANK(data!$A174),"",IF(ISBLANK(data!$B174),"",IF(ISBLANK(data!$C174),"",IF(ISBLANK(data!F174),"",data!I174)))) ->  | G164: =IF(smoothing!C170="","",smoothing!B170) ->  | H164: =IF(smoothing!G170="","",smoothing!F170) ->  | I164: =IF(smoothing!K170="","",smoothing!J170) -> 
A165: =IF(smoothing!A171="out of range","out of range","") ->  | B165: =IF(ISBLANK(data!A175),"",data!A175) ->  | C165: =IF(ISBLANK(data!B175),"",data!B175) ->  | D165: =IF(ISBLANK(data!$A175),"",IF(ISBLANK(data!$B175),"",IF(ISBLANK(data!$C175),"",IF(ISBLANK(data!D175),"",data!G175)))) ->  | E165: =IF(ISBLANK(data!$A175),"",IF(ISBLANK(data!$B175),"",IF(ISBLANK(data!$C175),"",IF(ISBLANK(data!E175),"",data!H175)))) ->  | F165: =IF(ISBLANK(data!$A175),"",IF(ISBLANK(data!$B175),"",IF(ISBLANK(data!$C175),"",IF(ISBLANK(data!F175),"",data!I175)))) ->  | G165: =IF(smoothing!C171="","",smoothing!B171) ->  | H165: =IF(smoothing!G171="","",smoothing!F171) ->  | I165: =IF(smoothing!K171="","",smoothing!J171) -> 
A166: =IF(smoothing!A172="out of range","out of range","") ->  | B166: =IF(ISBLANK(data!A176),"",data!A176) ->  | C166: =IF(ISBLANK(data!B176),"",data!B176) ->  | D166: =IF(ISBLANK(data!$A176),"",IF(ISBLANK(data!$B176),"",IF(ISBLANK(data!$C176),"",IF(ISBLANK(data!D176),"",data!G176)))) ->  | E166: =IF(ISBLANK(data!$A176),"",IF(ISBLANK(data!$B176),"",IF(ISBLANK(data!$C176),"",IF(ISBLANK(data!E176),"",data!H176)))) ->  | F166: =IF(ISBLANK(data!$A176),"",IF(ISBLANK(data!$B176),"",IF(ISBLANK(data!$C176),"",IF(ISBLANK(data!F176),"",data!I176)))) ->  | G166: =IF(smoothing!C172="","",smoothing!B172) ->  | H166: =IF(smoothing!G172="","",smoothing!F172) ->  | I166: =IF(smoothing!K172="","",smoothing!J172) -> 
A167: =IF(smoothing!A173="out of range","out of range","") ->  | B167: =IF(ISBLANK(data!A177),"",data!A177) ->  | C167: =IF(ISBLANK(data!B177),"",data!B177) ->  | D167: =IF(ISBLANK(data!$A177),"",IF(ISBLANK(data!$B177),"",IF(ISBLANK(data!$C177),"",IF(ISBLANK(data!D177),"",data!G177)))) ->  | E167: =IF(ISBLANK(data!$A177),"",IF(ISBLANK(data!$B177),"",IF(ISBLANK(data!$C177),"",IF(ISBLANK(data!E177),"",data!H177)))) ->  | F167: =IF(ISBLANK(data!$A177),"",IF(ISBLANK(data!$B177),"",IF(ISBLANK(data!$C177),"",IF(ISBLANK(data!F177),"",data!I177)))) ->  | G167: =IF(smoothing!C173="","",smoothing!B173) ->  | H167: =IF(smoothing!G173="","",smoothing!F173) ->  | I167: =IF(smoothing!K173="","",smoothing!J173) -> 
A168: =IF(smoothing!A174="out of range","out of range","") ->  | B168: =IF(ISBLANK(data!A178),"",data!A178) ->  | C168: =IF(ISBLANK(data!B178),"",data!B178) ->  | D168: =IF(ISBLANK(data!$A178),"",IF(ISBLANK(data!$B178),"",IF(ISBLANK(data!$C178),"",IF(ISBLANK(data!D178),"",data!G178)))) ->  | E168: =IF(ISBLANK(data!$A178),"",IF(ISBLANK(data!$B178),"",IF(ISBLANK(data!$C178),"",IF(ISBLANK(data!E178),"",data!H178)))) ->  | F168: =IF(ISBLANK(data!$A178),"",IF(ISBLANK(data!$B178),"",IF(ISBLANK(data!$C178),"",IF(ISBLANK(data!F178),"",data!I178)))) ->  | G168: =IF(smoothing!C174="","",smoothing!B174) ->  | H168: =IF(smoothing!G174="","",smoothing!F174) ->  | I168: =IF(smoothing!K174="","",smoothing!J174) -> 
A169: =IF(smoothing!A175="out of range","out of range","") ->  | B169: =IF(ISBLANK(data!A179),"",data!A179) ->  | C169: =IF(ISBLANK(data!B179),"",data!B179) ->  | D169: =IF(ISBLANK(data!$A179),"",IF(ISBLANK(data!$B179),"",IF(ISBLANK(data!$C179),"",IF(ISBLANK(data!D179),"",data!G179)))) ->  | E169: =IF(ISBLANK(data!$A179),"",IF(ISBLANK(data!$B179),"",IF(ISBLANK(data!$C179),"",IF(ISBLANK(data!E179),"",data!H179)))) ->  | F169: =IF(ISBLANK(data!$A179),"",IF(ISBLANK(data!$B179),"",IF(ISBLANK(data!$C179),"",IF(ISBLANK(data!F179),"",data!I179)))) ->  | G169: =IF(smoothing!C175="","",smoothing!B175) ->  | H169: =IF(smoothing!G175="","",smoothing!F175) ->  | I169: =IF(smoothing!K175="","",smoothing!J175) -> 
A170: =IF(smoothing!A176="out of range","out of range","") ->  | B170: =IF(ISBLANK(data!A180),"",data!A180) ->  | C170: =IF(ISBLANK(data!B180),"",data!B180) ->  | D170: =IF(ISBLANK(data!$A180),"",IF(ISBLANK(data!$B180),"",IF(ISBLANK(data!$C180),"",IF(ISBLANK(data!D180),"",data!G180)))) ->  | E170: =IF(ISBLANK(data!$A180),"",IF(ISBLANK(data!$B180),"",IF(ISBLANK(data!$C180),"",IF(ISBLANK(data!E180),"",data!H180)))) ->  | F170: =IF(ISBLANK(data!$A180),"",IF(ISBLANK(data!$B180),"",IF(ISBLANK(data!$C180),"",IF(ISBLANK(data!F180),"",data!I180)))) ->  | G170: =IF(smoothing!C176="","",smoothing!B176) ->  | H170: =IF(smoothing!G176="","",smoothing!F176) ->  | I170: =IF(smoothing!K176="","",smoothing!J176) -> 
A171: =IF(smoothing!A177="out of range","out of range","") ->  | B171: =IF(ISBLANK(data!A181),"",data!A181) ->  | C171: =IF(ISBLANK(data!B181),"",data!B181) ->  | D171: =IF(ISBLANK(data!$A181),"",IF(ISBLANK(data!$B181),"",IF(ISBLANK(data!$C181),"",IF(ISBLANK(data!D181),"",data!G181)))) ->  | E171: =IF(ISBLANK(data!$A181),"",IF(ISBLANK(data!$B181),"",IF(ISBLANK(data!$C181),"",IF(ISBLANK(data!E181),"",data!H181)))) ->  | F171: =IF(ISBLANK(data!$A181),"",IF(ISBLANK(data!$B181),"",IF(ISBLANK(data!$C181),"",IF(ISBLANK(data!F181),"",data!I181)))) ->  | G171: =IF(smoothing!C177="","",smoothing!B177) ->  | H171: =IF(smoothing!G177="","",smoothing!F177) ->  | I171: =IF(smoothing!K177="","",smoothing!J177) -> 
A172: =IF(smoothing!A178="out of range","out of range","") ->  | B172: =IF(ISBLANK(data!A182),"",data!A182) ->  | C172: =IF(ISBLANK(data!B182),"",data!B182) ->  | D172: =IF(ISBLANK(data!$A182),"",IF(ISBLANK(data!$B182),"",IF(ISBLANK(data!$C182),"",IF(ISBLANK(data!D182),"",data!G182)))) ->  | E172: =IF(ISBLANK(data!$A182),"",IF(ISBLANK(data!$B182),"",IF(ISBLANK(data!$C182),"",IF(ISBLANK(data!E182),"",data!H182)))) ->  | F172: =IF(ISBLANK(data!$A182),"",IF(ISBLANK(data!$B182),"",IF(ISBLANK(data!$C182),"",IF(ISBLANK(data!F182),"",data!I182)))) ->  | G172: =IF(smoothing!C178="","",smoothing!B178) ->  | H172: =IF(smoothing!G178="","",smoothing!F178) ->  | I172: =IF(smoothing!K178="","",smoothing!J178) -> 
A173: =IF(smoothing!A179="out of range","out of range","") ->  | B173: =IF(ISBLANK(data!A183),"",data!A183) ->  | C173: =IF(ISBLANK(data!B183),"",data!B183) ->  | D173: =IF(ISBLANK(data!$A183),"",IF(ISBLANK(data!$B183),"",IF(ISBLANK(data!$C183),"",IF(ISBLANK(data!D183),"",data!G183)))) ->  | E173: =IF(ISBLANK(data!$A183),"",IF(ISBLANK(data!$B183),"",IF(ISBLANK(data!$C183),"",IF(ISBLANK(data!E183),"",data!H183)))) ->  | F173: =IF(ISBLANK(data!$A183),"",IF(ISBLANK(data!$B183),"",IF(ISBLANK(data!$C183),"",IF(ISBLANK(data!F183),"",data!I183)))) ->  | G173: =IF(smoothing!C179="","",smoothing!B179) ->  | H173: =IF(smoothing!G179="","",smoothing!F179) ->  | I173: =IF(smoothing!K179="","",smoothing!J179) -> 
A174: =IF(smoothing!A180="out of range","out of range","") ->  | B174: =IF(ISBLANK(data!A184),"",data!A184) ->  | C174: =IF(ISBLANK(data!B184),"",data!B184) ->  | D174: =IF(ISBLANK(data!$A184),"",IF(ISBLANK(data!$B184),"",IF(ISBLANK(data!$C184),"",IF(ISBLANK(data!D184),"",data!G184)))) ->  | E174: =IF(ISBLANK(data!$A184),"",IF(ISBLANK(data!$B184),"",IF(ISBLANK(data!$C184),"",IF(ISBLANK(data!E184),"",data!H184)))) ->  | F174: =IF(ISBLANK(data!$A184),"",IF(ISBLANK(data!$B184),"",IF(ISBLANK(data!$C184),"",IF(ISBLANK(data!F184),"",data!I184)))) ->  | G174: =IF(smoothing!C180="","",smoothing!B180) ->  | H174: =IF(smoothing!G180="","",smoothing!F180) ->  | I174: =IF(smoothing!K180="","",smoothing!J180) -> 
A175: =IF(smoothing!A181="out of range","out of range","") ->  | B175: =IF(ISBLANK(data!A185),"",data!A185) ->  | C175: =IF(ISBLANK(data!B185),"",data!B185) ->  | D175: =IF(ISBLANK(data!$A185),"",IF(ISBLANK(data!$B185),"",IF(ISBLANK(data!$C185),"",IF(ISBLANK(data!D185),"",data!G185)))) ->  | E175: =IF(ISBLANK(data!$A185),"",IF(ISBLANK(data!$B185),"",IF(ISBLANK(data!$C185),"",IF(ISBLANK(data!E185),"",data!H185)))) ->  | F175: =IF(ISBLANK(data!$A185),"",IF(ISBLANK(data!$B185),"",IF(ISBLANK(data!$C185),"",IF(ISBLANK(data!F185),"",data!I185)))) ->  | G175: =IF(smoothing!C181="","",smoothing!B181) ->  | H175: =IF(smoothing!G181="","",smoothing!F181) ->  | I175: =IF(smoothing!K181="","",smoothing!J181) -> 
A176: =IF(smoothing!A182="out of range","out of range","") ->  | B176: =IF(ISBLANK(data!A186),"",data!A186) ->  | C176: =IF(ISBLANK(data!B186),"",data!B186) ->  | D176: =IF(ISBLANK(data!$A186),"",IF(ISBLANK(data!$B186),"",IF(ISBLANK(data!$C186),"",IF(ISBLANK(data!D186),"",data!G186)))) ->  | E176: =IF(ISBLANK(data!$A186),"",IF(ISBLANK(data!$B186),"",IF(ISBLANK(data!$C186),"",IF(ISBLANK(data!E186),"",data!H186)))) ->  | F176: =IF(ISBLANK(data!$A186),"",IF(ISBLANK(data!$B186),"",IF(ISBLANK(data!$C186),"",IF(ISBLANK(data!F186),"",data!I186)))) ->  | G176: =IF(smoothing!C182="","",smoothing!B182) ->  | H176: =IF(smoothing!G182="","",smoothing!F182) ->  | I176: =IF(smoothing!K182="","",smoothing!J182) -> 
A177: =IF(smoothing!A183="out of range","out of range","") ->  | B177: =IF(ISBLANK(data!A187),"",data!A187) ->  | C177: =IF(ISBLANK(data!B187),"",data!B187) ->  | D177: =IF(ISBLANK(data!$A187),"",IF(ISBLANK(data!$B187),"",IF(ISBLANK(data!$C187),"",IF(ISBLANK(data!D187),"",data!G187)))) ->  | E177: =IF(ISBLANK(data!$A187),"",IF(ISBLANK(data!$B187),"",IF(ISBLANK(data!$C187),"",IF(ISBLANK(data!E187),"",data!H187)))) ->  | F177: =IF(ISBLANK(data!$A187),"",IF(ISBLANK(data!$B187),"",IF(ISBLANK(data!$C187),"",IF(ISBLANK(data!F187),"",data!I187)))) ->  | G177: =IF(smoothing!C183="","",smoothing!B183) ->  | H177: =IF(smoothing!G183="","",smoothing!F183) ->  | I177: =IF(smoothing!K183="","",smoothing!J183) -> 
A178: =IF(smoothing!A184="out of range","out of range","") ->  | B178: =IF(ISBLANK(data!A188),"",data!A188) ->  | C178: =IF(ISBLANK(data!B188),"",data!B188) ->  | D178: =IF(ISBLANK(data!$A188),"",IF(ISBLANK(data!$B188),"",IF(ISBLANK(data!$C188),"",IF(ISBLANK(data!D188),"",data!G188)))) ->  | E178: =IF(ISBLANK(data!$A188),"",IF(ISBLANK(data!$B188),"",IF(ISBLANK(data!$C188),"",IF(ISBLANK(data!E188),"",data!H188)))) ->  | F178: =IF(ISBLANK(data!$A188),"",IF(ISBLANK(data!$B188),"",IF(ISBLANK(data!$C188),"",IF(ISBLANK(data!F188),"",data!I188)))) ->  | G178: =IF(smoothing!C184="","",smoothing!B184) ->  | H178: =IF(smoothing!G184="","",smoothing!F184) ->  | I178: =IF(smoothing!K184="","",smoothing!J184) -> 
A179: =IF(smoothing!A185="out of range","out of range","") ->  | B179: =IF(ISBLANK(data!A189),"",data!A189) ->  | C179: =IF(ISBLANK(data!B189),"",data!B189) ->  | D179: =IF(ISBLANK(data!$A189),"",IF(ISBLANK(data!$B189),"",IF(ISBLANK(data!$C189),"",IF(ISBLANK(data!D189),"",data!G189)))) ->  | E179: =IF(ISBLANK(data!$A189),"",IF(ISBLANK(data!$B189),"",IF(ISBLANK(data!$C189),"",IF(ISBLANK(data!E189),"",data!H189)))) ->  | F179: =IF(ISBLANK(data!$A189),"",IF(ISBLANK(data!$B189),"",IF(ISBLANK(data!$C189),"",IF(ISBLANK(data!F189),"",data!I189)))) ->  | G179: =IF(smoothing!C185="","",smoothing!B185) ->  | H179: =IF(smoothing!G185="","",smoothing!F185) ->  | I179: =IF(smoothing!K185="","",smoothing!J185) -> 
A180: =IF(smoothing!A186="out of range","out of range","") ->  | B180: =IF(ISBLANK(data!A190),"",data!A190) ->  | C180: =IF(ISBLANK(data!B190),"",data!B190) ->  | D180: =IF(ISBLANK(data!$A190),"",IF(ISBLANK(data!$B190),"",IF(ISBLANK(data!$C190),"",IF(ISBLANK(data!D190),"",data!G190)))) ->  | E180: =IF(ISBLANK(data!$A190),"",IF(ISBLANK(data!$B190),"",IF(ISBLANK(data!$C190),"",IF(ISBLANK(data!E190),"",data!H190)))) ->  | F180: =IF(ISBLANK(data!$A190),"",IF(ISBLANK(data!$B190),"",IF(ISBLANK(data!$C190),"",IF(ISBLANK(data!F190),"",data!I190)))) ->  | G180: =IF(smoothing!C186="","",smoothing!B186) ->  | H180: =IF(smoothing!G186="","",smoothing!F186) ->  | I180: =IF(smoothing!K186="","",smoothing!J186) -> 
A181: =IF(smoothing!A187="out of range","out of range","") ->  | B181: =IF(ISBLANK(data!A191),"",data!A191) ->  | C181: =IF(ISBLANK(data!B191),"",data!B191) ->  | D181: =IF(ISBLANK(data!$A191),"",IF(ISBLANK(data!$B191),"",IF(ISBLANK(data!$C191),"",IF(ISBLANK(data!D191),"",data!G191)))) ->  | E181: =IF(ISBLANK(data!$A191),"",IF(ISBLANK(data!$B191),"",IF(ISBLANK(data!$C191),"",IF(ISBLANK(data!E191),"",data!H191)))) ->  | F181: =IF(ISBLANK(data!$A191),"",IF(ISBLANK(data!$B191),"",IF(ISBLANK(data!$C191),"",IF(ISBLANK(data!F191),"",data!I191)))) ->  | G181: =IF(smoothing!C187="","",smoothing!B187) ->  | H181: =IF(smoothing!G187="","",smoothing!F187) ->  | I181: =IF(smoothing!K187="","",smoothing!J187) -> 
A182: =IF(smoothing!A188="out of range","out of range","") ->  | B182: =IF(ISBLANK(data!A192),"",data!A192) ->  | C182: =IF(ISBLANK(data!B192),"",data!B192) ->  | D182: =IF(ISBLANK(data!$A192),"",IF(ISBLANK(data!$B192),"",IF(ISBLANK(data!$C192),"",IF(ISBLANK(data!D192),"",data!G192)))) ->  | E182: =IF(ISBLANK(data!$A192),"",IF(ISBLANK(data!$B192),"",IF(ISBLANK(data!$C192),"",IF(ISBLANK(data!E192),"",data!H192)))) ->  | F182: =IF(ISBLANK(data!$A192),"",IF(ISBLANK(data!$B192),"",IF(ISBLANK(data!$C192),"",IF(ISBLANK(data!F192),"",data!I192)))) ->  | G182: =IF(smoothing!C188="","",smoothing!B188) ->  | H182: =IF(smoothing!G188="","",smoothing!F188) ->  | I182: =IF(smoothing!K188="","",smoothing!J188) -> 
A183: =IF(smoothing!A189="out of range","out of range","") ->  | B183: =IF(ISBLANK(data!A193),"",data!A193) ->  | C183: =IF(ISBLANK(data!B193),"",data!B193) ->  | D183: =IF(ISBLANK(data!$A193),"",IF(ISBLANK(data!$B193),"",IF(ISBLANK(data!$C193),"",IF(ISBLANK(data!D193),"",data!G193)))) ->  | E183: =IF(ISBLANK(data!$A193),"",IF(ISBLANK(data!$B193),"",IF(ISBLANK(data!$C193),"",IF(ISBLANK(data!E193),"",data!H193)))) ->  | F183: =IF(ISBLANK(data!$A193),"",IF(ISBLANK(data!$B193),"",IF(ISBLANK(data!$C193),"",IF(ISBLANK(data!F193),"",data!I193)))) ->  | G183: =IF(smoothing!C189="","",smoothing!B189) ->  | H183: =IF(smoothing!G189="","",smoothing!F189) ->  | I183: =IF(smoothing!K189="","",smoothing!J189) -> 
A184: =IF(smoothing!A190="out of range","out of range","") ->  | B184: =IF(ISBLANK(data!A194),"",data!A194) ->  | C184: =IF(ISBLANK(data!B194),"",data!B194) ->  | D184: =IF(ISBLANK(data!$A194),"",IF(ISBLANK(data!$B194),"",IF(ISBLANK(data!$C194),"",IF(ISBLANK(data!D194),"",data!G194)))) ->  | E184: =IF(ISBLANK(data!$A194),"",IF(ISBLANK(data!$B194),"",IF(ISBLANK(data!$C194),"",IF(ISBLANK(data!E194),"",data!H194)))) ->  | F184: =IF(ISBLANK(data!$A194),"",IF(ISBLANK(data!$B194),"",IF(ISBLANK(data!$C194),"",IF(ISBLANK(data!F194),"",data!I194)))) ->  | G184: =IF(smoothing!C190="","",smoothing!B190) ->  | H184: =IF(smoothing!G190="","",smoothing!F190) ->  | I184: =IF(smoothing!K190="","",smoothing!J190) -> 
A185: =IF(smoothing!A191="out of range","out of range","") ->  | B185: =IF(ISBLANK(data!A195),"",data!A195) ->  | C185: =IF(ISBLANK(data!B195),"",data!B195) ->  | D185: =IF(ISBLANK(data!$A195),"",IF(ISBLANK(data!$B195),"",IF(ISBLANK(data!$C195),"",IF(ISBLANK(data!D195),"",data!G195)))) ->  | E185: =IF(ISBLANK(data!$A195),"",IF(ISBLANK(data!$B195),"",IF(ISBLANK(data!$C195),"",IF(ISBLANK(data!E195),"",data!H195)))) ->  | F185: =IF(ISBLANK(data!$A195),"",IF(ISBLANK(data!$B195),"",IF(ISBLANK(data!$C195),"",IF(ISBLANK(data!F195),"",data!I195)))) ->  | G185: =IF(smoothing!C191="","",smoothing!B191) ->  | H185: =IF(smoothing!G191="","",smoothing!F191) ->  | I185: =IF(smoothing!K191="","",smoothing!J191) -> 
A186: =IF(smoothing!A192="out of range","out of range","") ->  | B186: =IF(ISBLANK(data!A196),"",data!A196) ->  | C186: =IF(ISBLANK(data!B196),"",data!B196) ->  | D186: =IF(ISBLANK(data!$A196),"",IF(ISBLANK(data!$B196),"",IF(ISBLANK(data!$C196),"",IF(ISBLANK(data!D196),"",data!G196)))) ->  | E186: =IF(ISBLANK(data!$A196),"",IF(ISBLANK(data!$B196),"",IF(ISBLANK(data!$C196),"",IF(ISBLANK(data!E196),"",data!H196)))) ->  | F186: =IF(ISBLANK(data!$A196),"",IF(ISBLANK(data!$B196),"",IF(ISBLANK(data!$C196),"",IF(ISBLANK(data!F196),"",data!I196)))) ->  | G186: =IF(smoothing!C192="","",smoothing!B192) ->  | H186: =IF(smoothing!G192="","",smoothing!F192) ->  | I186: =IF(smoothing!K192="","",smoothing!J192) -> 
A187: =IF(smoothing!A193="out of range","out of range","") ->  | B187: =IF(ISBLANK(data!A197),"",data!A197) ->  | C187: =IF(ISBLANK(data!B197),"",data!B197) ->  | D187: =IF(ISBLANK(data!$A197),"",IF(ISBLANK(data!$B197),"",IF(ISBLANK(data!$C197),"",IF(ISBLANK(data!D197),"",data!G197)))) ->  | E187: =IF(ISBLANK(data!$A197),"",IF(ISBLANK(data!$B197),"",IF(ISBLANK(data!$C197),"",IF(ISBLANK(data!E197),"",data!H197)))) ->  | F187: =IF(ISBLANK(data!$A197),"",IF(ISBLANK(data!$B197),"",IF(ISBLANK(data!$C197),"",IF(ISBLANK(data!F197),"",data!I197)))) ->  | G187: =IF(smoothing!C193="","",smoothing!B193) ->  | H187: =IF(smoothing!G193="","",smoothing!F193) ->  | I187: =IF(smoothing!K193="","",smoothing!J193) -> 
A188: =IF(smoothing!A194="out of range","out of range","") ->  | B188: =IF(ISBLANK(data!A198),"",data!A198) ->  | C188: =IF(ISBLANK(data!B198),"",data!B198) ->  | D188: =IF(ISBLANK(data!$A198),"",IF(ISBLANK(data!$B198),"",IF(ISBLANK(data!$C198),"",IF(ISBLANK(data!D198),"",data!G198)))) ->  | E188: =IF(ISBLANK(data!$A198),"",IF(ISBLANK(data!$B198),"",IF(ISBLANK(data!$C198),"",IF(ISBLANK(data!E198),"",data!H198)))) ->  | F188: =IF(ISBLANK(data!$A198),"",IF(ISBLANK(data!$B198),"",IF(ISBLANK(data!$C198),"",IF(ISBLANK(data!F198),"",data!I198)))) ->  | G188: =IF(smoothing!C194="","",smoothing!B194) ->  | H188: =IF(smoothing!G194="","",smoothing!F194) ->  | I188: =IF(smoothing!K194="","",smoothing!J194) -> 
A189: =IF(smoothing!A195="out of range","out of range","") ->  | B189: =IF(ISBLANK(data!A199),"",data!A199) ->  | C189: =IF(ISBLANK(data!B199),"",data!B199) ->  | D189: =IF(ISBLANK(data!$A199),"",IF(ISBLANK(data!$B199),"",IF(ISBLANK(data!$C199),"",IF(ISBLANK(data!D199),"",data!G199)))) ->  | E189: =IF(ISBLANK(data!$A199),"",IF(ISBLANK(data!$B199),"",IF(ISBLANK(data!$C199),"",IF(ISBLANK(data!E199),"",data!H199)))) ->  | F189: =IF(ISBLANK(data!$A199),"",IF(ISBLANK(data!$B199),"",IF(ISBLANK(data!$C199),"",IF(ISBLANK(data!F199),"",data!I199)))) ->  | G189: =IF(smoothing!C195="","",smoothing!B195) ->  | H189: =IF(smoothing!G195="","",smoothing!F195) ->  | I189: =IF(smoothing!K195="","",smoothing!J195) -> 
A190: =IF(smoothing!A196="out of range","out of range","") ->  | B190: =IF(ISBLANK(data!A200),"",data!A200) ->  | C190: =IF(ISBLANK(data!B200),"",data!B200) ->  | D190: =IF(ISBLANK(data!$A200),"",IF(ISBLANK(data!$B200),"",IF(ISBLANK(data!$C200),"",IF(ISBLANK(data!D200),"",data!G200)))) ->  | E190: =IF(ISBLANK(data!$A200),"",IF(ISBLANK(data!$B200),"",IF(ISBLANK(data!$C200),"",IF(ISBLANK(data!E200),"",data!H200)))) ->  | F190: =IF(ISBLANK(data!$A200),"",IF(ISBLANK(data!$B200),"",IF(ISBLANK(data!$C200),"",IF(ISBLANK(data!F200),"",data!I200)))) ->  | G190: =IF(smoothing!C196="","",smoothing!B196) ->  | H190: =IF(smoothing!G196="","",smoothing!F196) ->  | I190: =IF(smoothing!K196="","",smoothing!J196) -> 
A191: =IF(smoothing!A197="out of range","out of range","") ->  | B191: =IF(ISBLANK(data!A201),"",data!A201) ->  | C191: =IF(ISBLANK(data!B201),"",data!B201) ->  | D191: =IF(ISBLANK(data!$A201),"",IF(ISBLANK(data!$B201),"",IF(ISBLANK(data!$C201),"",IF(ISBLANK(data!D201),"",data!G201)))) ->  | E191: =IF(ISBLANK(data!$A201),"",IF(ISBLANK(data!$B201),"",IF(ISBLANK(data!$C201),"",IF(ISBLANK(data!E201),"",data!H201)))) ->  | F191: =IF(ISBLANK(data!$A201),"",IF(ISBLANK(data!$B201),"",IF(ISBLANK(data!$C201),"",IF(ISBLANK(data!F201),"",data!I201)))) ->  | G191: =IF(smoothing!C197="","",smoothing!B197) ->  | H191: =IF(smoothing!G197="","",smoothing!F197) ->  | I191: =IF(smoothing!K197="","",smoothing!J197) -> 
A192: =IF(smoothing!A198="out of range","out of range","") ->  | B192: =IF(ISBLANK(data!A202),"",data!A202) ->  | C192: =IF(ISBLANK(data!B202),"",data!B202) ->  | D192: =IF(ISBLANK(data!$A202),"",IF(ISBLANK(data!$B202),"",IF(ISBLANK(data!$C202),"",IF(ISBLANK(data!D202),"",data!G202)))) ->  | E192: =IF(ISBLANK(data!$A202),"",IF(ISBLANK(data!$B202),"",IF(ISBLANK(data!$C202),"",IF(ISBLANK(data!E202),"",data!H202)))) ->  | F192: =IF(ISBLANK(data!$A202),"",IF(ISBLANK(data!$B202),"",IF(ISBLANK(data!$C202),"",IF(ISBLANK(data!F202),"",data!I202)))) ->  | G192: =IF(smoothing!C198="","",smoothing!B198) ->  | H192: =IF(smoothing!G198="","",smoothing!F198) ->  | I192: =IF(smoothing!K198="","",smoothing!J198) -> 
A193: =IF(smoothing!A199="out of range","out of range","") ->  | B193: =IF(ISBLANK(data!A203),"",data!A203) ->  | C193: =IF(ISBLANK(data!B203),"",data!B203) ->  | D193: =IF(ISBLANK(data!$A203),"",IF(ISBLANK(data!$B203),"",IF(ISBLANK(data!$C203),"",IF(ISBLANK(data!D203),"",data!G203)))) ->  | E193: =IF(ISBLANK(data!$A203),"",IF(ISBLANK(data!$B203),"",IF(ISBLANK(data!$C203),"",IF(ISBLANK(data!E203),"",data!H203)))) ->  | F193: =IF(ISBLANK(data!$A203),"",IF(ISBLANK(data!$B203),"",IF(ISBLANK(data!$C203),"",IF(ISBLANK(data!F203),"",data!I203)))) ->  | G193: =IF(smoothing!C199="","",smoothing!B199) ->  | H193: =IF(smoothing!G199="","",smoothing!F199) ->  | I193: =IF(smoothing!K199="","",smoothing!J199) -> 
A194: =IF(smoothing!A200="out of range","out of range","") ->  | B194: =IF(ISBLANK(data!A204),"",data!A204) ->  | C194: =IF(ISBLANK(data!B204),"",data!B204) ->  | D194: =IF(ISBLANK(data!$A204),"",IF(ISBLANK(data!$B204),"",IF(ISBLANK(data!$C204),"",IF(ISBLANK(data!D204),"",data!G204)))) ->  | E194: =IF(ISBLANK(data!$A204),"",IF(ISBLANK(data!$B204),"",IF(ISBLANK(data!$C204),"",IF(ISBLANK(data!E204),"",data!H204)))) ->  | F194: =IF(ISBLANK(data!$A204),"",IF(ISBLANK(data!$B204),"",IF(ISBLANK(data!$C204),"",IF(ISBLANK(data!F204),"",data!I204)))) ->  | G194: =IF(smoothing!C200="","",smoothing!B200) ->  | H194: =IF(smoothing!G200="","",smoothing!F200) ->  | I194: =IF(smoothing!K200="","",smoothing!J200) -> 
A195: =IF(smoothing!A201="out of range","out of range","") ->  | B195: =IF(ISBLANK(data!A205),"",data!A205) ->  | C195: =IF(ISBLANK(data!B205),"",data!B205) ->  | D195: =IF(ISBLANK(data!$A205),"",IF(ISBLANK(data!$B205),"",IF(ISBLANK(data!$C205),"",IF(ISBLANK(data!D205),"",data!G205)))) ->  | E195: =IF(ISBLANK(data!$A205),"",IF(ISBLANK(data!$B205),"",IF(ISBLANK(data!$C205),"",IF(ISBLANK(data!E205),"",data!H205)))) ->  | F195: =IF(ISBLANK(data!$A205),"",IF(ISBLANK(data!$B205),"",IF(ISBLANK(data!$C205),"",IF(ISBLANK(data!F205),"",data!I205)))) ->  | G195: =IF(smoothing!C201="","",smoothing!B201) ->  | H195: =IF(smoothing!G201="","",smoothing!F201) ->  | I195: =IF(smoothing!K201="","",smoothing!J201) -> 
A196: =IF(smoothing!A202="out of range","out of range","") ->  | B196: =IF(ISBLANK(data!A206),"",data!A206) ->  | C196: =IF(ISBLANK(data!B206),"",data!B206) ->  | D196: =IF(ISBLANK(data!$A206),"",IF(ISBLANK(data!$B206),"",IF(ISBLANK(data!$C206),"",IF(ISBLANK(data!D206),"",data!G206)))) ->  | E196: =IF(ISBLANK(data!$A206),"",IF(ISBLANK(data!$B206),"",IF(ISBLANK(data!$C206),"",IF(ISBLANK(data!E206),"",data!H206)))) ->  | F196: =IF(ISBLANK(data!$A206),"",IF(ISBLANK(data!$B206),"",IF(ISBLANK(data!$C206),"",IF(ISBLANK(data!F206),"",data!I206)))) ->  | G196: =IF(smoothing!C202="","",smoothing!B202) ->  | H196: =IF(smoothing!G202="","",smoothing!F202) ->  | I196: =IF(smoothing!K202="","",smoothing!J202) -> 
A197: =IF(smoothing!A203="out of range","out of range","") ->  | B197: =IF(ISBLANK(data!A207),"",data!A207) ->  | C197: =IF(ISBLANK(data!B207),"",data!B207) ->  | D197: =IF(ISBLANK(data!$A207),"",IF(ISBLANK(data!$B207),"",IF(ISBLANK(data!$C207),"",IF(ISBLANK(data!D207),"",data!G207)))) ->  | E197: =IF(ISBLANK(data!$A207),"",IF(ISBLANK(data!$B207),"",IF(ISBLANK(data!$C207),"",IF(ISBLANK(data!E207),"",data!H207)))) ->  | F197: =IF(ISBLANK(data!$A207),"",IF(ISBLANK(data!$B207),"",IF(ISBLANK(data!$C207),"",IF(ISBLANK(data!F207),"",data!I207)))) ->  | G197: =IF(smoothing!C203="","",smoothing!B203) ->  | H197: =IF(smoothing!G203="","",smoothing!F203) ->  | I197: =IF(smoothing!K203="","",smoothing!J203) -> 
A198: =IF(smoothing!A204="out of range","out of range","") ->  | B198: =IF(ISBLANK(data!A208),"",data!A208) ->  | C198: =IF(ISBLANK(data!B208),"",data!B208) ->  | D198: =IF(ISBLANK(data!$A208),"",IF(ISBLANK(data!$B208),"",IF(ISBLANK(data!$C208),"",IF(ISBLANK(data!D208),"",data!G208)))) ->  | E198: =IF(ISBLANK(data!$A208),"",IF(ISBLANK(data!$B208),"",IF(ISBLANK(data!$C208),"",IF(ISBLANK(data!E208),"",data!H208)))) ->  | F198: =IF(ISBLANK(data!$A208),"",IF(ISBLANK(data!$B208),"",IF(ISBLANK(data!$C208),"",IF(ISBLANK(data!F208),"",data!I208)))) ->  | G198: =IF(smoothing!C204="","",smoothing!B204) ->  | H198: =IF(smoothing!G204="","",smoothing!F204) ->  | I198: =IF(smoothing!K204="","",smoothing!J204) -> 
A199: =IF(smoothing!A205="out of range","out of range","") ->  | B199: =IF(ISBLANK(data!A209),"",data!A209) ->  | C199: =IF(ISBLANK(data!B209),"",data!B209) ->  | D199: =IF(ISBLANK(data!$A209),"",IF(ISBLANK(data!$B209),"",IF(ISBLANK(data!$C209),"",IF(ISBLANK(data!D209),"",data!G209)))) ->  | E199: =IF(ISBLANK(data!$A209),"",IF(ISBLANK(data!$B209),"",IF(ISBLANK(data!$C209),"",IF(ISBLANK(data!E209),"",data!H209)))) ->  | F199: =IF(ISBLANK(data!$A209),"",IF(ISBLANK(data!$B209),"",IF(ISBLANK(data!$C209),"",IF(ISBLANK(data!F209),"",data!I209)))) ->  | G199: =IF(smoothing!C205="","",smoothing!B205) ->  | H199: =IF(smoothing!G205="","",smoothing!F205) ->  | I199: =IF(smoothing!K205="","",smoothing!J205) -> 
A200: =IF(smoothing!A206="out of range","out of range","") ->  | B200: =IF(ISBLANK(data!A210),"",data!A210) ->  | C200: =IF(ISBLANK(data!B210),"",data!B210) ->  | D200: =IF(ISBLANK(data!$A210),"",IF(ISBLANK(data!$B210),"",IF(ISBLANK(data!$C210),"",IF(ISBLANK(data!D210),"",data!G210)))) ->  | E200: =IF(ISBLANK(data!$A210),"",IF(ISBLANK(data!$B210),"",IF(ISBLANK(data!$C210),"",IF(ISBLANK(data!E210),"",data!H210)))) ->  | F200: =IF(ISBLANK(data!$A210),"",IF(ISBLANK(data!$B210),"",IF(ISBLANK(data!$C210),"",IF(ISBLANK(data!F210),"",data!I210)))) ->  | G200: =IF(smoothing!C206="","",smoothing!B206) ->  | H200: =IF(smoothing!G206="","",smoothing!F206) ->  | I200: =IF(smoothing!K206="","",smoothing!J206) -> 
A201: =IF(smoothing!A207="out of range","out of range","") ->  | B201: =IF(ISBLANK(data!A211),"",data!A211) ->  | C201: =IF(ISBLANK(data!B211),"",data!B211) ->  | D201: =IF(ISBLANK(data!$A211),"",IF(ISBLANK(data!$B211),"",IF(ISBLANK(data!$C211),"",IF(ISBLANK(data!D211),"",data!G211)))) ->  | E201: =IF(ISBLANK(data!$A211),"",IF(ISBLANK(data!$B211),"",IF(ISBLANK(data!$C211),"",IF(ISBLANK(data!E211),"",data!H211)))) ->  | F201: =IF(ISBLANK(data!$A211),"",IF(ISBLANK(data!$B211),"",IF(ISBLANK(data!$C211),"",IF(ISBLANK(data!F211),"",data!I211)))) ->  | G201: =IF(smoothing!C207="","",smoothing!B207) ->  | H201: =IF(smoothing!G207="","",smoothing!F207) ->  | I201: =IF(smoothing!K207="","",smoothing!J207) -> 
A202: =IF(smoothing!A208="out of range","out of range","") ->  | B202: =IF(ISBLANK(data!A212),"",data!A212) ->  | C202: =IF(ISBLANK(data!B212),"",data!B212) ->  | D202: =IF(ISBLANK(data!$A212),"",IF(ISBLANK(data!$B212),"",IF(ISBLANK(data!$C212),"",IF(ISBLANK(data!D212),"",data!G212)))) ->  | E202: =IF(ISBLANK(data!$A212),"",IF(ISBLANK(data!$B212),"",IF(ISBLANK(data!$C212),"",IF(ISBLANK(data!E212),"",data!H212)))) ->  | F202: =IF(ISBLANK(data!$A212),"",IF(ISBLANK(data!$B212),"",IF(ISBLANK(data!$C212),"",IF(ISBLANK(data!F212),"",data!I212)))) ->  | G202: =IF(smoothing!C208="","",smoothing!B208) ->  | H202: =IF(smoothing!G208="","",smoothing!F208) ->  | I202: =IF(smoothing!K208="","",smoothing!J208) -> 
A203: =IF(smoothing!A209="out of range","out of range","") ->  | B203: =IF(ISBLANK(data!A213),"",data!A213) ->  | C203: =IF(ISBLANK(data!B213),"",data!B213) ->  | D203: =IF(ISBLANK(data!$A213),"",IF(ISBLANK(data!$B213),"",IF(ISBLANK(data!$C213),"",IF(ISBLANK(data!D213),"",data!G213)))) ->  | E203: =IF(ISBLANK(data!$A213),"",IF(ISBLANK(data!$B213),"",IF(ISBLANK(data!$C213),"",IF(ISBLANK(data!E213),"",data!H213)))) ->  | F203: =IF(ISBLANK(data!$A213),"",IF(ISBLANK(data!$B213),"",IF(ISBLANK(data!$C213),"",IF(ISBLANK(data!F213),"",data!I213)))) ->  | G203: =IF(smoothing!C209="","",smoothing!B209) ->  | H203: =IF(smoothing!G209="","",smoothing!F209) ->  | I203: =IF(smoothing!K209="","",smoothing!J209) -> 
... 5 more rows

Sheet milk yield 2018 (hidden)
B3: Morning milking
A4: key | B4: Laktation nr | C4: Milkinginterval class | D4: milkinginterval description | E4: lactation stadium class | F4: days in milk description | G4: Intercept | H4: Regr.Koeff.
A5: 1111 | B5: 1 | C5: 1 | D5: < 720 Min. | E5: 1 | F5: < 60 days | G5: 3.44076 | H5: 1.73133
A6: 1112 | B6: 1 | C6: 1 | D6: < 720 Min. | E6: 2 | F6: < 120 days | G6: 4.99596 | H6: 1.64527
A7: 1113 | B7: 1 | C7: 1 | D7: < 720 Min. | E7: 3 | F7: < 180 days | G7: 3.83372 | H7: 1.68144
A8: 1114 | B8: 1 | C8: 1 | D8: < 720 Min. | E8: 4 | F8: < 240 days | G8: 3.87034 | H8: 1.68102
A9: 1115 | B9: 1 | C9: 1 | D9: < 720 Min. | E9: 5 | F9: < 300 days | G9: 1.76134 | H9: 1.80424
A10: 1116 | B10: 1 | C10: 1 | D10: < 720 Min. | E10: 6 | F10: < 360 days | G10: 0.79304 | H10: 1.89072
A11: 1117 | B11: 1 | C11: 1 | D11: < 720 Min. | E11: 7 | F11: >= 360 days | G11: 1.43535 | H11: 1.80614
A12: 1121 | B12: 1 | C12: 2 | D12: < 740 Min. | E12: 1 | F12: < 60 days | G12: 3.72284 | H12: 1.68499
A13: 1122 | B13: 1 | C13: 2 | D13: < 740 Min. | E13: 2 | F13: < 120 days | G13: 4.42667 | H13: 1.66508
A14: 1123 | B14: 1 | C14: 2 | D14: < 740 Min. | E14: 3 | F14: < 180 days | G14: 2.7019 | H14: 1.75871
A15: 1124 | B15: 1 | C15: 2 | D15: < 740 Min. | E15: 4 | F15: < 240 days | G15: 2.41538 | H15: 1.75937
A16: 1125 | B16: 1 | C16: 2 | D16: < 740 Min. | E16: 5 | F16: < 300 days | G16: 1.65412 | H16: 1.81649
A17: 1126 | B17: 1 | C17: 2 | D17: < 740 Min. | E17: 6 | F17: < 360 days | G17: 2.0843 | H17: 1.7735
A18: 1127 | B18: 1 | C18: 2 | D18: < 740 Min. | E18: 7 | F18: >= 360 days | G18: 1.43238 | H18: 1.80651
A19: 1131 | B19: 1 | C19: 3 | D19: < 760 Min. | E19: 1 | F19: < 60 days | G19: 2.45314 | H19: 1.77068
A20: 1132 | B20: 1 | C20: 3 | D20: < 760 Min. | E20: 2 | F20: < 120 days | G20: 3.01217 | H20: 1.70966
A21: 1133 | B21: 1 | C21: 3 | D21: < 760 Min. | E21: 3 | F21: < 180 days | G21: 2.09997 | H21: 1.74945
A22: 1134 | B22: 1 | C22: 3 | D22: < 760 Min. | E22: 4 | F22: < 240 days | G22: 2.36683 | H22: 1.71741
A23: 1135 | B23: 1 | C23: 3 | D23: < 760 Min. | E23: 5 | F23: < 300 days | G23: 1.56776 | H23: 1.75755
A24: 1136 | B24: 1 | C24: 3 | D24: < 760 Min. | E24: 6 | F24: < 360 days | G24: 1.63824 | H24: 1.75452
A25: 1137 | B25: 1 | C25: 3 | D25: < 760 Min. | E25: 7 | F25: >= 360 days | G25: 0.74114 | H25: 1.83421
A26: 1141 | B26: 1 | C26: 4 | D26: < 780 Min. | E26: 1 | F26: < 60 days | G26: 1.47047 | H26: 1.78588
A27: 1142 | B27: 1 | C27: 4 | D27: < 780 Min. | E27: 2 | F27: < 120 days | G27: 2.22168 | H27: 1.72985
A28: 1143 | B28: 1 | C28: 4 | D28: < 780 Min. | E28: 3 | F28: < 180 days | G28: 2.50108 | H28: 1.69618
A29: 1144 | B29: 1 | C29: 4 | D29: < 780 Min. | E29: 4 | F29: < 240 days | G29: 1.97141 | H29: 1.7202
A30: 1145 | B30: 1 | C30: 4 | D30: < 780 Min. | E30: 5 | F30: < 300 days | G30: 1.17054 | H30: 1.75879
A31: 1146 | B31: 1 | C31: 4 | D31: < 780 Min. | E31: 6 | F31: < 360 days | G31: 1.74755 | H31: 1.70968
A32: 1147 | B32: 1 | C32: 4 | D32: < 780 Min. | E32: 7 | F32: >= 360 days | G32: 0.52482 | H32: 1.80155
A33: 1151 | B33: 1 | C33: 5 | D33: < 800 Min. | E33: 1 | F33: < 60 days | G33: 1.76464 | H33: 1.76219
A34: 1152 | B34: 1 | C34: 5 | D34: < 800 Min. | E34: 2 | F34: < 120 days | G34: 1.99594 | H34: 1.73438
A35: 1153 | B35: 1 | C35: 5 | D35: < 800 Min. | E35: 3 | F35: < 180 days | G35: 1.8804 | H35: 1.72362
A36: 1154 | B36: 1 | C36: 5 | D36: < 800 Min. | E36: 4 | F36: < 240 days | G36: 1.83337 | H36: 1.71477
A37: 1155 | B37: 1 | C37: 5 | D37: < 800 Min. | E37: 5 | F37: < 300 days | G37: 1.49752 | H37: 1.72615
A38: 1156 | B38: 1 | C38: 5 | D38: < 800 Min. | E38: 6 | F38: < 360 days | G38: 1.3042 | H38: 1.7305
A39: 1157 | B39: 1 | C39: 5 | D39: < 800 Min. | E39: 7 | F39: >= 360 days | G39: 2.00868 | H39: 1.67669
A40: 1161 | B40: 1 | C40: 6 | D40: < 820 Min. | E40: 1 | F40: < 60 days | G40: 0.84993 | H40: 1.75972
A41: 1162 | B41: 1 | C41: 6 | D41: < 820 Min. | E41: 2 | F41: < 120 days | G41: 1.93666 | H41: 1.67406
A42: 1163 | B42: 1 | C42: 6 | D42: < 820 Min. | E42: 3 | F42: < 180 days | G42: 2.12115 | H42: 1.64964
A43: 1164 | B43: 1 | C43: 6 | D43: < 820 Min. | E43: 4 | F43: < 240 days | G43: 0.68831 | H43: 1.73901
A44: 1165 | B44: 1 | C44: 6 | D44: < 820 Min. | E44: 5 | F44: < 300 days | G44: 1.13081 | H44: 1.69479
A45: 1166 | B45: 1 | C45: 6 | D45: < 820 Min. | E45: 6 | F45: < 360 days | G45: 0.5893 | H45: 1.72537
A46: 1167 | B46: 1 | C46: 6 | D46: < 820 Min. | E46: 7 | F46: >= 360 days | G46: 0.72519 | H46: 1.71955
A47: 1171 | B47: 1 | C47: 7 | D47: < 840 Min. | E47: 1 | F47: < 60 days | G47: 1.85937 | H47: 1.66064
A48: 1172 | B48: 1 | C48: 7 | D48: < 840 Min. | E48: 2 | F48: < 120 days | G48: 1.8527 | H48: 1.64892
A49: 1173 | B49: 1 | C49: 7 | D49: < 840 Min. | E49: 3 | F49: < 180 days | G49: 1.56905 | H49: 1.66084
A50: 1174 | B50: 1 | C50: 7 | D50: < 840 Min. | E50: 4 | F50: < 240 days | G50: 0.74968 | H50: 1.69857
A51: 1175 | B51: 1 | C51: 7 | D51: < 840 Min. | E51: 5 | F51: < 300 days | G51: 1.08222 | H51: 1.65925
A52: 1176 | B52: 1 | C52: 7 | D52: < 840 Min. | E52: 6 | F52: < 360 days | G52: 1.1124 | H52: 1.68059
A53: 1177 | B53: 1 | C53: 7 | D53: < 840 Min. | E53: 7 | F53: >= 360 days | G53: 0.88031 | H53: 1.6751
A54: 1181 | B54: 1 | C54: 8 | D54: >= 840 Min. | E54: 1 | F54: < 60 days | G54: 0.62802 | H54: 1.72402
A55: 1182 | B55: 1 | C55: 8 | D55: >= 840 Min. | E55: 2 | F55: < 120 days | G55: 0.83902 | H55: 1.68303
A56: 1183 | B56: 1 | C56: 8 | D56: >= 840 Min. | E56: 3 | F56: < 180 days | G56: 1.33727 | H56: 1.63407
A57: 1184 | B57: 1 | C57: 8 | D57: >= 840 Min. | E57: 4 | F57: < 240 days | G57: 1.06381 | H57: 1.64762
A58: 1185 | B58: 1 | C58: 8 | D58: >= 840 Min. | E58: 5 | F58: < 300 days | G58: 1.13714 | H58: 1.61716
A59: 1186 | B59: 1 | C59: 8 | D59: >= 840 Min. | E59: 6 | F59: < 360 days | G59: 1.19134 | H59: 1.60463
A60: 1187 | B60: 1 | C60: 8 | D60: >= 840 Min. | E60: 7 | F60: >= 360 days | G60: 1.58872 | H60: 1.60204
A61: 1211 | B61: >=2 | C61: 1 | D61: < 720 Min. | E61: 1 | F61: < 60 days | G61: 3.46775 | H61: 1.78609
A62: 1212 | B62: >=2 | C62: 1 | D62: < 720 Min. | E62: 2 | F62: < 120 days | G62: 5.69879 | H62: 1.67614
A63: 1213 | B63: >=2 | C63: 1 | D63: < 720 Min. | E63: 3 | F63: < 180 days | G63: 5.18985 | H63: 1.66571
A64: 1214 | B64: >=2 | C64: 1 | D64: < 720 Min. | E64: 4 | F64: < 240 days | G64: 3.43435 | H64: 1.74182
A65: 1215 | B65: >=2 | C65: 1 | D65: < 720 Min. | E65: 5 | F65: < 300 days | G65: 2.48643 | H65: 1.76219
A66: 1216 | B66: >=2 | C66: 1 | D66: < 720 Min. | E66: 6 | F66: < 360 days | G66: 1.41151 | H66: 1.82292
A67: 1217 | B67: >=2 | C67: 1 | D67: < 720 Min. | E67: 7 | F67: >= 360 days | G67: 0.9096 | H67: 1.8409
A68: 1221 | B68: >=2 | C68: 2 | D68: < 740 Min. | E68: 1 | F68: < 60 days | G68: 1.85358 | H68: 1.83615
A69: 1222 | B69: >=2 | C69: 2 | D69: < 740 Min. | E69: 2 | F69: < 120 days | G69: 3.81188 | H69: 1.74978
A70: 1223 | B70: >=2 | C70: 2 | D70: < 740 Min. | E70: 3 | F70: < 180 days | G70: 3.16717 | H70: 1.76679
A71: 1224 | B71: >=2 | C71: 2 | D71: < 740 Min. | E71: 4 | F71: < 240 days | G71: 2.33664 | H71: 1.78934
A72: 1225 | B72: >=2 | C72: 2 | D72: < 740 Min. | E72: 5 | F72: < 300 days | G72: 2.01675 | H72: 1.79303
A73: 1226 | B73: >=2 | C73: 2 | D73: < 740 Min. | E73: 6 | F73: < 360 days | G73: 1.80809 | H73: 1.80081
A74: 1227 | B74: >=2 | C74: 2 | D74: < 740 Min. | E74: 7 | F74: >= 360 days | G74: 1.01661 | H74: 1.8295
A75: 1231 | B75: >=2 | C75: 3 | D75: < 760 Min. | E75: 1 | F75: < 60 days | G75: 2.01474 | H75: 1.8142
A76: 1232 | B76: >=2 | C76: 3 | D76: < 760 Min. | E76: 2 | F76: < 120 days | G76: 3.53989 | H76: 1.71985
A77: 1233 | B77: >=2 | C77: 3 | D77: < 760 Min. | E77: 3 | F77: < 180 days | G77: 3.38412 | H77: 1.69907
A78: 1234 | B78: >=2 | C78: 3 | D78: < 760 Min. | E78: 4 | F78: < 240 days | G78: 2.2171 | H78: 1.74622
A79: 1235 | B79: >=2 | C79: 3 | D79: < 760 Min. | E79: 5 | F79: < 300 days | G79: 1.11799 | H79: 1.80944
A80: 1236 | B80: >=2 | C80: 3 | D80: < 760 Min. | E80: 6 | F80: < 360 days | G80: 1.40464 | H80: 1.76033
A81: 1237 | B81: >=2 | C81: 3 | D81: < 760 Min. | E81: 7 | F81: >= 360 days | G81: 0.11328 | H81: 1.8972
A82: 1241 | B82: >=2 | C82: 4 | D82: < 780 Min. | E82: 1 | F82: < 60 days | G82: 2.59777 | H82: 1.74476
A83: 1242 | B83: >=2 | C83: 4 | D83: < 780 Min. | E83: 2 | F83: < 120 days | G83: 3.53853 | H83: 1.69511
A84: 1243 | B84: >=2 | C84: 4 | D84: < 780 Min. | E84: 3 | F84: < 180 days | G84: 2.80538 | H84: 1.70587
A85: 1244 | B85: >=2 | C85: 4 | D85: < 780 Min. | E85: 4 | F85: < 240 days | G85: 2.18191 | H85: 1.72068
A86: 1245 | B86: >=2 | C86: 4 | D86: < 780 Min. | E86: 5 | F86: < 300 days | G86: 1.23383 | H86: 1.7716
A87: 1246 | B87: >=2 | C87: 4 | D87: < 780 Min. | E87: 6 | F87: < 360 days | G87: 0.85652 | H87: 1.79279
A88: 1247 | B88: >=2 | C88: 4 | D88: < 780 Min. | E88: 7 | F88: >= 360 days | G88: 0.97995 | H88: 1.77178
A89: 1251 | B89: >=2 | C89: 5 | D89: < 800 Min. | E89: 1 | F89: < 60 days | G89: 2.47016 | H89: 1.74985
A90: 1252 | B90: >=2 | C90: 5 | D90: < 800 Min. | E90: 2 | F90: < 120 days | G90: 3.76194 | H90: 1.68979
A91: 1253 | B91: >=2 | C91: 5 | D91: < 800 Min. | E91: 3 | F91: < 180 days | G91: 2.61421 | H91: 1.70766
A92: 1254 | B92: >=2 | C92: 5 | D92: < 800 Min. | E92: 4 | F92: < 240 days | G92: 1.6809 | H92: 1.74028
A93: 1255 | B93: >=2 | C93: 5 | D93: < 800 Min. | E93: 5 | F93: < 300 days | G93: 1.31241 | H93: 1.75722
A94: 1256 | B94: >=2 | C94: 5 | D94: < 800 Min. | E94: 6 | F94: < 360 days | G94: 1.66563 | H94: 1.71781
A95: 1257 | B95: >=2 | C95: 5 | D95: < 800 Min. | E95: 7 | F95: >= 360 days | G95: 0.87471 | H95: 1.74991
A96: 1261 | B96: >=2 | C96: 6 | D96: < 820 Min. | E96: 1 | F96: < 60 days | G96: 1.70055 | H96: 1.72832
A97: 1262 | B97: >=2 | C97: 6 | D97: < 820 Min. | E97: 2 | F97: < 120 days | G97: 3.20558 | H97: 1.65143
A98: 1263 | B98: >=2 | C98: 6 | D98: < 820 Min. | E98: 3 | F98: < 180 days | G98: 1.5827 | H98: 1.71538
A99: 1264 | B99: >=2 | C99: 6 | D99: < 820 Min. | E99: 4 | F99: < 240 days | G99: 1.7692 | H99: 1.69473
A100: 1265 | B100: >=2 | C100: 6 | D100: < 820 Min. | E100: 5 | F100: < 300 days | G100: 1.33003 | H100: 1.70542
A101: 1266 | B101: >=2 | C101: 6 | D101: < 820 Min. | E101: 6 | F101: < 360 days | G101: 1.01266 | H101: 1.71155
A102: 1267 | B102: >=2 | C102: 6 | D102: < 820 Min. | E102: 7 | F102: >= 360 days | G102: 0.9856 | H102: 1.70091
A103: 1271 | B103: >=2 | C103: 7 | D103: < 840 Min. | E103: 1 | F103: < 60 days | G103: 2.02441 | H103: 1.67788
A104: 1272 | B104: >=2 | C104: 7 | D104: < 840 Min. | E104: 2 | F104: < 120 days | G104: 1.43949 | H104: 1.71143
A105: 1273 | B105: >=2 | C105: 7 | D105: < 840 Min. | E105: 3 | F105: < 180 days | G105: 1.68946 | H105: 1.66442
A106: 1274 | B106: >=2 | C106: 7 | D106: < 840 Min. | E106: 4 | F106: < 240 days | G106: 1.10967 | H106: 1.68591
A107: 1275 | B107: >=2 | C107: 7 | D107: < 840 Min. | E107: 5 | F107: < 300 days | G107: 0.77866 | H107: 1.70882
A108: 1276 | B108: >=2 | C108: 7 | D108: < 840 Min. | E108: 6 | F108: < 360 days | G108: 0.67502 | H108: 1.69719
A109: 1277 | B109: >=2 | C109: 7 | D109: < 840 Min. | E109: 7 | F109: >= 360 days | G109: 0.65216 | H109: 1.70336
A110: 1281 | B110: >=2 | C110: 8 | D110: >= 840 Min. | E110: 1 | F110: < 60 days | G110: 1.33877 | H110: 1.67358
A111: 1282 | B111: >=2 | C111: 8 | D111: >= 840 Min. | E111: 2 | F111: < 120 days | G111: 0.71697 | H111: 1.71038
A112: 1283 | B112: >=2 | C112: 8 | D112: >= 840 Min. | E112: 3 | F112: < 180 days | G112: 2.13197 | H112: 1.62429
A113: 1284 | B113: >=2 | C113: 8 | D113: >= 840 Min. | E113: 4 | F113: < 240 days | G113: 1.16932 | H113: 1.66188
A114: 1285 | B114: >=2 | C114: 8 | D114: >= 840 Min. | E114: 5 | F114: < 300 days | G114: 1.48369 | H114: 1.62387
A115: 1286 | B115: >=2 | C115: 8 | D115: >= 840 Min. | E115: 6 | F115: < 360 days | G115: 1.18879 | H115: 1.65442
A116: 1287 | B116: >=2 | C116: 8 | D116: >= 840 Min. | E116: 7 | F116: >= 360 days | G116: 0.58052 | H116: 1.68546
B119: Evening milking
A120: key | B120: Laktation nr | C120: Milkinginterval class | D120: milkinginterval description | E120: lactation stadium class | F120: days in milk description | G120: Intercept | H120: Regr.Koeff.
A121: 2111 | B121: 1 | C121: 1 | D121: <=599 Min. | E121: 1 | F121: < 60 days | G121: 5.29333 | H121: 1.83283
A122: 2112 | B122: 1 | C122: 1 | D122: <=599 Min. | E122: 2 | F122: < 120 days | G122: 4.17676 | H122: 1.97447
A123: 2113 | B123: 1 | C123: 1 | D123: <=599 Min. | E123: 3 | F123: < 180 days | G123: 4.26476 | H123: 1.95945
A124: 2114 | B124: 1 | C124: 1 | D124: <=599 Min. | E124: 4 | F124: < 240 days | G124: 3.41282 | H124: 2.01814
A125: 2115 | B125: 1 | C125: 1 | D125: <=599 Min. | E125: 5 | F125: < 300 days | G125: 1.79548 | H125: 2.22665
A126: 2116 | B126: 1 | C126: 1 | D126: <=599 Min. | E126: 6 | F126: < 360 days | G126: 3.7751 | H126: 1.95508
A127: 2117 | B127: 1 | C127: 1 | D127: <=599 Min. | E127: 7 | F127: >= 360 days | G127: 1.544 | H127: 2.1478
A128: 2121 | B128: 1 | C128: 2 | D128: >= 600 Min. | E128: 1 | F128: < 60 days | G128: 5.8584 | H128: 1.79409
A129: 2122 | B129: 1 | C129: 2 | D129: >= 600 Min. | E129: 2 | F129: < 120 days | G129: 5.45524 | H129: 1.84258
A130: 2123 | B130: 1 | C130: 2 | D130: >= 600 Min. | E130: 3 | F130: < 180 days | G130: 4.64052 | H130: 1.86706
A131: 2124 | B131: 1 | C131: 2 | D131: >= 600 Min. | E131: 4 | F131: < 240 days | G131: 2.86835 | H131: 2.06209
A132: 2125 | B132: 1 | C132: 2 | D132: >= 600 Min. | E132: 5 | F132: < 300 days | G132: 2.11336 | H132: 2.12055
A133: 2126 | B133: 1 | C133: 2 | D133: >= 600 Min. | E133: 6 | F133: < 360 days | G133: 2.00673 | H133: 2.0636
A134: 2127 | B134: 1 | C134: 2 | D134: >= 600 Min. | E134: 7 | F134: >= 360 days | G134: 1.71752 | H134: 2.11269
A135: 2131 | B135: 1 | C135: 3 | D135: >= 620 Min. | E135: 1 | F135: < 60 days | G135: 2.80244 | H135: 2.02183
A136: 2132 | B136: 1 | C136: 3 | D136: >= 620 Min. | E136: 2 | F136: < 120 days | G136: 3.47396 | H136: 1.98268
A137: 2133 | B137: 1 | C137: 3 | D137: >= 620 Min. | E137: 3 | F137: < 180 days | G137: 2.81702 | H137: 2.04348
A138: 2134 | B138: 1 | C138: 3 | D138: >= 620 Min. | E138: 4 | F138: < 240 days | G138: 3.1989 | H138: 1.998
A139: 2135 | B139: 1 | C139: 3 | D139: >= 620 Min. | E139: 5 | F139: < 300 days | G139: 2.47055 | H139: 2.04826
A140: 2136 | B140: 1 | C140: 3 | D140: >= 620 Min. | E140: 6 | F140: < 360 days | G140: 1.923 | H140: 2.07728
A141: 2137 | B141: 1 | C141: 3 | D141: >= 620 Min. | E141: 7 | F141: >= 360 days | G141: 1.85264 | H141: 2.0873
A142: 2141 | B142: 1 | C142: 4 | D142: >= 640 Min. | E142: 1 | F142: < 60 days | G142: 2.75042 | H142: 1.96631
A143: 2142 | B143: 1 | C143: 4 | D143: >= 640 Min. | E143: 2 | F143: < 120 days | G143: 2.97505 | H143: 1.96711
A144: 2143 | B144: 1 | C144: 4 | D144: >= 640 Min. | E144: 3 | F144: < 180 days | G144: 2.33365 | H144: 2.02986
A145: 2144 | B145: 1 | C145: 4 | D145: >= 640 Min. | E145: 4 | F145: < 240 days | G145: 3.41505 | H145: 1.94107
A146: 2145 | B146: 1 | C146: 4 | D146: >= 640 Min. | E146: 5 | F146: < 300 days | G146: 2.67488 | H146: 1.97797
A147: 2146 | B147: 1 | C147: 4 | D147: >= 640 Min. | E147: 6 | F147: < 360 days | G147: 1.89907 | H147: 2.04841
A148: 2147 | B148: 1 | C148: 4 | D148: >= 640 Min. | E148: 7 | F148: >= 360 days | G148: 1.80326 | H148: 2.03554
A149: 2151 | B149: 1 | C149: 5 | D149: >= 660 Min. | E149: 1 | F149: < 60 days | G149: 2.76763 | H149: 1.92863
A150: 2152 | B150: 1 | C150: 5 | D150: >= 660 Min. | E150: 2 | F150: < 120 days | G150: 3.36896 | H150: 1.92048
A151: 2153 | B151: 1 | C151: 5 | D151: >= 660 Min. | E151: 3 | F151: < 180 days | G151: 2.22763 | H151: 2.00452
A152: 2154 | B152: 1 | C152: 5 | D152: >= 660 Min. | E152: 4 | F152: < 240 days | G152: 2.44625 | H152: 1.97049
A153: 2155 | B153: 1 | C153: 5 | D153: >= 660 Min. | E153: 5 | F153: < 300 days | G153: 2.379 | H153: 1.97307
A154: 2156 | B154: 1 | C154: 5 | D154: >= 660 Min. | E154: 6 | F154: < 360 days | G154: 1.62948 | H154: 2.02491
A155: 2157 | B155: 1 | C155: 5 | D155: >= 660 Min. | E155: 7 | F155: >= 360 days | G155: 1.45651 | H155: 2.0254
A156: 2161 | B156: 1 | C156: 6 | D156: >= 680 Min. | E156: 1 | F156: < 60 days | G156: 2.01088 | H156: 1.9497
A157: 2162 | B157: 1 | C157: 6 | D157: >= 680 Min. | E157: 2 | F157: < 120 days | G157: 2.96605 | H157: 1.93064
A158: 2163 | B158: 1 | C158: 6 | D158: >= 680 Min. | E158: 3 | F158: < 180 days | G158: 2.2281 | H158: 1.96085
A159: 2164 | B159: 1 | C159: 6 | D159: >= 680 Min. | E159: 4 | F159: < 240 days | G159: 2.39473 | H159: 1.952
A160: 2165 | B160: 1 | C160: 6 | D160: >= 680 Min. | E160: 5 | F160: < 300 days | G160: 2.37955 | H160: 1.94127
A161: 2166 | B161: 1 | C161: 6 | D161: >= 680 Min. | E161: 6 | F161: < 360 days | G161: 0.36203 | H161: 2.12393
A162: 2167 | B162: 1 | C162: 6 | D162: >= 680 Min. | E162: 7 | F162: >= 360 days | G162: 1.5702 | H162: 1.96794
A163: 2171 | B163: 1 | C163: 7 | D163: >= 700 Min. | E163: 1 | F163: < 60 days | G163: 3.93654 | H163: 1.82772
A164: 2172 | B164: 1 | C164: 7 | D164: >= 700 Min. | E164: 2 | F164: < 120 days | G164: 4.39662 | H164: 1.81581
A165: 2173 | B165: 1 | C165: 7 | D165: >= 700 Min. | E165: 3 | F165: < 180 days | G165: 3.78325 | H165: 1.82778
A166: 2174 | B166: 1 | C166: 7 | D166: >= 700 Min. | E166: 4 | F166: < 240 days | G166: 3.39116 | H166: 1.86302
A167: 2175 | B167: 1 | C167: 7 | D167: >= 700 Min. | E167: 5 | F167: < 300 days | G167: 3.20111 | H167: 1.83255
A168: 2176 | B168: 1 | C168: 7 | D168: >= 700 Min. | E168: 6 | F168: < 360 days | G168: 3.75639 | H168: 1.78665
A169: 2177 | B169: 1 | C169: 7 | D169: >= 700 Min. | E169: 7 | F169: >= 360 days | G169: 1.42153 | H169: 1.95649
A170: 2181 | B170: 1 | C170: 8 | D170: >= 720 Min. | E170: 1 | F170: < 60 days | G170: 2.3454 | H170: 1.90436
A171: 2182 | B171: 1 | C171: 8 | D171: >= 720 Min. | E171: 2 | F171: < 120 days | G171: 3.97557 | H171: 1.82746
A172: 2183 | B172: 1 | C172: 8 | D172: >= 720 Min. | E172: 3 | F172: < 180 days | G172: 4.26939 | H172: 1.80503
A173: 2184 | B173: 1 | C173: 8 | D173: >= 720 Min. | E173: 4 | F173: < 240 days | G173: 2.90779 | H173: 1.89861
A174: 2185 | B174: 1 | C174: 8 | D174: >= 720 Min. | E174: 5 | F174: < 300 days | G174: 2.8265 | H174: 1.87632
A175: 2186 | B175: 1 | C175: 8 | D175: >= 720 Min. | E175: 6 | F175: < 360 days | G175: 2.26312 | H175: 1.87397
A176: 2187 | B176: 1 | C176: 8 | D176: >= 720 Min. | E176: 7 | F176: >= 360 days | G176: 0.31382 | H176: 2.04402
A177: 2211 | B177: >=2 | C177: 1 | D177: <=599 Min. | E177: 1 | F177: < 60 days | G177: 4.63752 | H177: 1.99615
A178: 2212 | B178: >=2 | C178: 1 | D178: <=599 Min. | E178: 2 | F178: < 120 days | G178: 5.56226 | H178: 1.91521
A179: 2213 | B179: >=2 | C179: 1 | D179: <=599 Min. | E179: 3 | F179: < 180 days | G179: 4.51983 | H179: 1.96962
A180: 2214 | B180: >=2 | C180: 1 | D180: <=599 Min. | E180: 4 | F180: < 240 days | G180: 4.51563 | H180: 1.93033
A181: 2215 | B181: >=2 | C181: 1 | D181: <=599 Min. | E181: 5 | F181: < 300 days | G181: 2.60334 | H181: 2.07338
A182: 2216 | B182: >=2 | C182: 1 | D182: <=599 Min. | E182: 6 | F182: < 360 days | G182: 2.86068 | H182: 1.98457
A183: 2217 | B183: >=2 | C183: 1 | D183: <=599 Min. | E183: 7 | F183: >= 360 days | G183: 1.6596 | H183: 2.11753
A184: 2221 | B184: >=2 | C184: 2 | D184: >= 600 Min. | E184: 1 | F184: < 60 days | G184: 3.94656 | H184: 2.03607
A185: 2222 | B185: >=2 | C185: 2 | D185: >= 600 Min. | E185: 2 | F185: < 120 days | G185: 4.20525 | H185: 1.98621
A186: 2223 | B186: >=2 | C186: 2 | D186: >= 600 Min. | E186: 3 | F186: < 180 days | G186: 3.31729 | H186: 2.04589
A187: 2224 | B187: >=2 | C187: 2 | D187: >= 600 Min. | E187: 4 | F187: < 240 days | G187: 1.95977 | H187: 2.13926
A188: 2225 | B188: >=2 | C188: 2 | D188: >= 600 Min. | E188: 5 | F188: < 300 days | G188: 1.49014 | H188: 2.14889
A189: 2226 | B189: >=2 | C189: 2 | D189: >= 600 Min. | E189: 6 | F189: < 360 days | G189: 0.82235 | H189: 2.22517
A190: 2227 | B190: >=2 | C190: 2 | D190: >= 600 Min. | E190: 7 | F190: >= 360 days | G190: 1.53608 | H190: 2.08972
A191: 2231 | B191: >=2 | C191: 3 | D191: >= 620 Min. | E191: 1 | F191: < 60 days | G191: 3.85525 | H191: 2.00429
A192: 2232 | B192: >=2 | C192: 3 | D192: >= 620 Min. | E192: 2 | F192: < 120 days | G192: 4.1508 | H192: 1.9852
A193: 2233 | B193: >=2 | C193: 3 | D193: >= 620 Min. | E193: 3 | F193: < 180 days | G193: 3.31493 | H193: 2.02332
A194: 2234 | B194: >=2 | C194: 3 | D194: >= 620 Min. | E194: 4 | F194: < 240 days | G194: 2.47354 | H194: 2.0652
A195: 2235 | B195: >=2 | C195: 3 | D195: >= 620 Min. | E195: 5 | F195: < 300 days | G195: 1.68517 | H195: 2.08809
A196: 2236 | B196: >=2 | C196: 3 | D196: >= 620 Min. | E196: 6 | F196: < 360 days | G196: 1.316 | H196: 2.12714
A197: 2237 | B197: >=2 | C197: 3 | D197: >= 620 Min. | E197: 7 | F197: >= 360 days | G197: 0.4841 | H197: 2.20538
A198: 2241 | B198: >=2 | C198: 4 | D198: >= 640 Min. | E198: 1 | F198: < 60 days | G198: 2.82623 | H198: 2.01819
A199: 2242 | B199: >=2 | C199: 4 | D199: >= 640 Min. | E199: 2 | F199: < 120 days | G199: 3.24039 | H199: 1.9811
A200: 2243 | B200: >=2 | C200: 4 | D200: >= 640 Min. | E200: 3 | F200: < 180 days | G200: 2.4545 | H200: 2.03386
A201: 2244 | B201: >=2 | C201: 4 | D201: >= 640 Min. | E201: 4 | F201: < 240 days | G201: 2.46446 | H201: 2.01626
A202: 2245 | B202: >=2 | C202: 4 | D202: >= 640 Min. | E202: 5 | F202: < 300 days | G202: 2.11339 | H202: 2.00724
A203: 2246 | B203: >=2 | C203: 4 | D203: >= 640 Min. | E203: 6 | F203: < 360 days | G203: 1.51141 | H203: 2.04563
A204: 2247 | B204: >=2 | C204: 4 | D204: >= 640 Min. | E204: 7 | F204: >= 360 days | G204: 0.95936 | H204: 2.09963
... 28 more rows

Sheet fat 2018 (hidden)
B3: morning milking
A4: key | B4: Laktation nr | C4: Milkinginterval class | D4: milkinginterval description | E4: lactation stadium class | F4: days in milk description | G4: Intercept | H4: Regr.Koeff.
A5: 1111 | B5: 1 | C5: 1 | D5: < 720 Min. | E5: 1 | F5: < 60 Tage | G5: 0.27759 | H5: 1.55037
A6: 1112 | B6: 1 | C6: 1 | D6: < 720 Min. | E6: 2 | F6: < 120 Tage | G6: 0.2322 | H6: 1.58033
A7: 1113 | B7: 1 | C7: 1 | D7: < 720 Min. | E7: 3 | F7: < 180 Tage | G7: 0.25087 | H7: 1.52033
A8: 1114 | B8: 1 | C8: 1 | D8: < 720 Min. | E8: 4 | F8: < 240 Tage | G8: 0.20979 | H8: 1.60153
A9: 1115 | B9: 1 | C9: 1 | D9: < 720 Min. | E9: 5 | F9: < 300 Tage | G9: 0.15241 | H9: 1.70485
A10: 1116 | B10: 1 | C10: 1 | D10: < 720 Min. | E10: 6 | F10: < 360 Tage | G10: 0.09906 | H10: 1.80312
A11: 1117 | B11: 1 | C11: 1 | D11: < 720 Min. | E11: 7 | F11: >= 360 Tage | G11: 0.0593 | H11: 1.81589
A12: 1121 | B12: 1 | C12: 2 | D12: < 740 Min. | E12: 1 | F12: < 60 Tage | G12: 0.19226 | H12: 1.66567
A13: 1122 | B13: 1 | C13: 2 | D13: < 740 Min. | E13: 2 | F13: < 120 Tage | G13: 0.24314 | H13: 1.55652
A14: 1123 | B14: 1 | C14: 2 | D14: < 740 Min. | E14: 3 | F14: < 180 Tage | G14: 0.32717 | H14: 1.38452
A15: 1124 | B15: 1 | C15: 2 | D15: < 740 Min. | E15: 4 | F15: < 240 Tage | G15: 0.14575 | H15: 1.68355
A16: 1125 | B16: 1 | C16: 2 | D16: < 740 Min. | E16: 5 | F16: < 300 Tage | G16: 0.13926 | H16: 1.70623
A17: 1126 | B17: 1 | C17: 2 | D17: < 740 Min. | E17: 6 | F17: < 360 Tage | G17: 0.21052 | H17: 1.57508
A18: 1127 | B18: 1 | C18: 2 | D18: < 740 Min. | E18: 7 | F18: >= 360 Tage | G18: 0.08031 | H18: 1.78712
A19: 1131 | B19: 1 | C19: 3 | D19: < 760 Min. | E19: 1 | F19: < 60 Tage | G19: 0.18152 | H19: 1.73443
A20: 1132 | B20: 1 | C20: 3 | D20: < 760 Min. | E20: 2 | F20: < 120 Tage | G20: 0.19388 | H20: 1.66175
A21: 1133 | B21: 1 | C21: 3 | D21: < 760 Min. | E21: 3 | F21: < 180 Tage | G21: 0.14493 | H21: 1.68277
A22: 1134 | B22: 1 | C22: 3 | D22: < 760 Min. | E22: 4 | F22: < 240 Tage | G22: 0.12244 | H22: 1.71407
A23: 1135 | B23: 1 | C23: 3 | D23: < 760 Min. | E23: 5 | F23: < 300 Tage | G23: 0.08776 | H23: 1.76946
A24: 1136 | B24: 1 | C24: 3 | D24: < 760 Min. | E24: 6 | F24: < 360 Tage | G24: 0.09422 | H24: 1.76794
A25: 1137 | B25: 1 | C25: 3 | D25: < 760 Min. | E25: 7 | F25: >= 360 Tage | G25: 0.08039 | H25: 1.78306
A26: 1141 | B26: 1 | C26: 4 | D26: < 780 Min. | E26: 1 | F26: < 60 Tage | G26: 0.17271 | H26: 1.69379
A27: 1142 | B27: 1 | C27: 4 | D27: < 780 Min. | E27: 2 | F27: < 120 Tage | G27: 0.20701 | H27: 1.59429
A28: 1143 | B28: 1 | C28: 4 | D28: < 780 Min. | E28: 3 | F28: < 180 Tage | G28: 0.16828 | H28: 1.61962
A29: 1144 | B29: 1 | C29: 4 | D29: < 780 Min. | E29: 4 | F29: < 240 Tage | G29: 0.1446 | H29: 1.66357
A30: 1145 | B30: 1 | C30: 4 | D30: < 780 Min. | E30: 5 | F30: < 300 Tage | G30: 0.1172 | H30: 1.69234
A31: 1146 | B31: 1 | C31: 4 | D31: < 780 Min. | E31: 6 | F31: < 360 Tage | G31: 0.12562 | H31: 1.67603
A32: 1147 | B32: 1 | C32: 4 | D32: < 780 Min. | E32: 7 | F32: >= 360 Tage | G32: 0.07345 | H32: 1.75615
A33: 1151 | B33: 1 | C33: 5 | D33: < 800 Min. | E33: 1 | F33: < 60 Tage | G33: 0.24301 | H33: 1.59094
A34: 1152 | B34: 1 | C34: 5 | D34: < 800 Min. | E34: 2 | F34: < 120 Tage | G34: 0.1984 | H34: 1.5954
A35: 1153 | B35: 1 | C35: 5 | D35: < 800 Min. | E35: 3 | F35: < 180 Tage | G35: 0.13019 | H35: 1.67977
A36: 1154 | B36: 1 | C36: 5 | D36: < 800 Min. | E36: 4 | F36: < 240 Tage | G36: 0.11197 | H36: 1.70244
A37: 1155 | B37: 1 | C37: 5 | D37: < 800 Min. | E37: 5 | F37: < 300 Tage | G37: 0.13128 | H37: 1.65461
A38: 1156 | B38: 1 | C38: 5 | D38: < 800 Min. | E38: 6 | F38: < 360 Tage | G38: 0.07173 | H38: 1.75315
A39: 1157 | B39: 1 | C39: 5 | D39: < 800 Min. | E39: 7 | F39: >= 360 Tage | G39: 0.12298 | H39: 1.64761
A40: 1161 | B40: 1 | C40: 6 | D40: < 820 Min. | E40: 1 | F40: < 60 Tage | G40: 0.12918 | H40: 1.74026
A41: 1162 | B41: 1 | C41: 6 | D41: < 820 Min. | E41: 2 | F41: < 120 Tage | G41: 0.16606 | H41: 1.59943
A42: 1163 | B42: 1 | C42: 6 | D42: < 820 Min. | E42: 3 | F42: < 180 Tage | G42: 0.19988 | H42: 1.50821
A43: 1164 | B43: 1 | C43: 6 | D43: < 820 Min. | E43: 4 | F43: < 240 Tage | G43: 0.09674 | H43: 1.6838
A44: 1165 | B44: 1 | C44: 6 | D44: < 820 Min. | E44: 5 | F44: < 300 Tage | G44: 0.06413 | H44: 1.72559
A45: 1166 | B45: 1 | C45: 6 | D45: < 820 Min. | E45: 6 | F45: < 360 Tage | G45: 0.02598 | H45: 1.80138
A46: 1167 | B46: 1 | C46: 6 | D46: < 820 Min. | E46: 7 | F46: >= 360 Tage | G46: 0.03157 | H46: 1.78405
A47: 1171 | B47: 1 | C47: 7 | D47: < 840 Min. | E47: 1 | F47: < 60 Tage | G47: 0.2416 | H47: 1.49676
A48: 1172 | B48: 1 | C48: 7 | D48: < 840 Min. | E48: 2 | F48: < 120 Tage | G48: 0.2374 | H48: 1.43845
A49: 1173 | B49: 1 | C49: 7 | D49: < 840 Min. | E49: 3 | F49: < 180 Tage | G49: 0.15434 | H49: 1.55598
A50: 1174 | B50: 1 | C50: 7 | D50: < 840 Min. | E50: 4 | F50: < 240 Tage | G50: 0.13496 | H50: 1.56636
A51: 1175 | B51: 1 | C51: 7 | D51: < 840 Min. | E51: 5 | F51: < 300 Tage | G51: 0.10847 | H51: 1.613
A52: 1176 | B52: 1 | C52: 7 | D52: < 840 Min. | E52: 6 | F52: < 360 Tage | G52: 0.14267 | H52: 1.57525
A53: 1177 | B53: 1 | C53: 7 | D53: < 840 Min. | E53: 7 | F53: >= 360 Tage | G53: 0.10534 | H53: 1.60483
A54: 1181 | B54: 1 | C54: 8 | D54: >= 840 Min. | E54: 1 | F54: < 60 Tage | G54: 0.19225 | H54: 1.54631
A55: 1182 | B55: 1 | C55: 8 | D55: >= 840 Min. | E55: 2 | F55: < 120 Tage | G55: 0.15492 | H55: 1.53421
A56: 1183 | B56: 1 | C56: 8 | D56: >= 840 Min. | E56: 3 | F56: < 180 Tage | G56: 0.19835 | H56: 1.43309
A57: 1184 | B57: 1 | C57: 8 | D57: >= 840 Min. | E57: 4 | F57: < 240 Tage | G57: 0.11026 | H57: 1.58762
A58: 1185 | B58: 1 | C58: 8 | D58: >= 840 Min. | E58: 5 | F58: < 300 Tage | G58: 0.13322 | H58: 1.53166
A59: 1186 | B59: 1 | C59: 8 | D59: >= 840 Min. | E59: 6 | F59: < 360 Tage | G59: 0.11089 | H59: 1.54864
A60: 1187 | B60: 1 | C60: 8 | D60: >= 840 Min. | E60: 7 | F60: >= 360 Tage | G60: 0.066 | H60: 1.64659
A61: 1211 | B61: >=2 | C61: 1 | D61: < 720 Min. | E61: 1 | F61: < 60 Tage | G61: 0.28956 | H61: 1.68515
A62: 1212 | B62: >=2 | C62: 1 | D62: < 720 Min. | E62: 2 | F62: < 120 Tage | G62: 0.3725 | H62: 1.5045
A63: 1213 | B63: >=2 | C63: 1 | D63: < 720 Min. | E63: 3 | F63: < 180 Tage | G63: 0.40124 | H63: 1.40574
A64: 1214 | B64: >=2 | C64: 1 | D64: < 720 Min. | E64: 4 | F64: < 240 Tage | G64: 0.20332 | H64: 1.66994
A65: 1215 | B65: >=2 | C65: 1 | D65: < 720 Min. | E65: 5 | F65: < 300 Tage | G65: 0.13714 | H65: 1.7396
A66: 1216 | B66: >=2 | C66: 1 | D66: < 720 Min. | E66: 6 | F66: < 360 Tage | G66: 0.15415 | H66: 1.6725
A67: 1217 | B67: >=2 | C67: 1 | D67: < 720 Min. | E67: 7 | F67: >= 360 Tage | G67: 0.08811 | H67: 1.7823
A68: 1221 | B68: >=2 | C68: 2 | D68: < 740 Min. | E68: 1 | F68: < 60 Tage | G68: 0.28355 | H68: 1.64765
A69: 1222 | B69: >=2 | C69: 2 | D69: < 740 Min. | E69: 2 | F69: < 120 Tage | G69: 0.25972 | H69: 1.62799
A70: 1223 | B70: >=2 | C70: 2 | D70: < 740 Min. | E70: 3 | F70: < 180 Tage | G70: 0.29832 | H70: 1.53409
A71: 1224 | B71: >=2 | C71: 2 | D71: < 740 Min. | E71: 4 | F71: < 240 Tage | G71: 0.22694 | H71: 1.60101
A72: 1225 | B72: >=2 | C72: 2 | D72: < 740 Min. | E72: 5 | F72: < 300 Tage | G72: 0.10664 | H72: 1.79792
A73: 1226 | B73: >=2 | C73: 2 | D73: < 740 Min. | E73: 6 | F73: < 360 Tage | G73: 0.13659 | H73: 1.70935
A74: 1227 | B74: >=2 | C74: 2 | D74: < 740 Min. | E74: 7 | F74: >= 360 Tage | G74: 0.0548 | H74: 1.84688
A75: 1231 | B75: >=2 | C75: 3 | D75: < 760 Min. | E75: 1 | F75: < 60 Tage | G75: 0.21867 | H75: 1.74325
A76: 1232 | B76: >=2 | C76: 3 | D76: < 760 Min. | E76: 2 | F76: < 120 Tage | G76: 0.28196 | H76: 1.60868
A77: 1233 | B77: >=2 | C77: 3 | D77: < 760 Min. | E77: 3 | F77: < 180 Tage | G77: 0.27409 | H77: 1.56164
A78: 1234 | B78: >=2 | C78: 3 | D78: < 760 Min. | E78: 4 | F78: < 240 Tage | G78: 0.16076 | H78: 1.70107
A79: 1235 | B79: >=2 | C79: 3 | D79: < 760 Min. | E79: 5 | F79: < 300 Tage | G79: 0.11087 | H79: 1.75678
A80: 1236 | B80: >=2 | C80: 3 | D80: < 760 Min. | E80: 6 | F80: < 360 Tage | G80: 0.10048 | H80: 1.72933
A81: 1237 | B81: >=2 | C81: 3 | D81: < 760 Min. | E81: 7 | F81: >= 360 Tage | G81: 0.04052 | H81: 1.87101
A82: 1241 | B82: >=2 | C82: 4 | D82: < 780 Min. | E82: 1 | F82: < 60 Tage | G82: 0.28154 | H82: 1.66509
A83: 1242 | B83: >=2 | C83: 4 | D83: < 780 Min. | E83: 2 | F83: < 120 Tage | G83: 0.38311 | H83: 1.46839
A84: 1243 | B84: >=2 | C84: 4 | D84: < 780 Min. | E84: 3 | F84: < 180 Tage | G84: 0.26686 | H84: 1.55787
A85: 1244 | B85: >=2 | C85: 4 | D85: < 780 Min. | E85: 4 | F85: < 240 Tage | G85: 0.18333 | H85: 1.65612
A86: 1245 | B86: >=2 | C86: 4 | D86: < 780 Min. | E86: 5 | F86: < 300 Tage | G86: 0.12824 | H86: 1.71179
A87: 1246 | B87: >=2 | C87: 4 | D87: < 780 Min. | E87: 6 | F87: < 360 Tage | G87: 0.0763 | H87: 1.79314
A88: 1247 | B88: >=2 | C88: 4 | D88: < 780 Min. | E88: 7 | F88: >= 360 Tage | G88: 0.0797 | H88: 1.7577
A89: 1251 | B89: >=2 | C89: 5 | D89: < 800 Min. | E89: 1 | F89: < 60 Tage | G89: 0.32061 | H89: 1.60073
A90: 1252 | B90: >=2 | C90: 5 | D90: < 800 Min. | E90: 2 | F90: < 120 Tage | G90: 0.32787 | H90: 1.54675
A91: 1253 | B91: >=2 | C91: 5 | D91: < 800 Min. | E91: 3 | F91: < 180 Tage | G91: 0.20307 | H91: 1.64866
A92: 1254 | B92: >=2 | C92: 5 | D92: < 800 Min. | E92: 4 | F92: < 240 Tage | G92: 0.16795 | H92: 1.66491
A93: 1255 | B93: >=2 | C93: 5 | D93: < 800 Min. | E93: 5 | F93: < 300 Tage | G93: 0.14383 | H93: 1.68302
A94: 1256 | B94: >=2 | C94: 5 | D94: < 800 Min. | E94: 6 | F94: < 360 Tage | G94: 0.12721 | H94: 1.69231
A95: 1257 | B95: >=2 | C95: 5 | D95: < 800 Min. | E95: 7 | F95: >= 360 Tage | G95: 0.07882 | H95: 1.71706
A96: 1261 | B96: >=2 | C96: 6 | D96: < 820 Min. | E96: 1 | F96: < 60 Tage | G96: 0.20839 | H96: 1.67759
A97: 1262 | B97: >=2 | C97: 6 | D97: < 820 Min. | E97: 2 | F97: < 120 Tage | G97: 0.33676 | H97: 1.47797
A98: 1263 | B98: >=2 | C98: 6 | D98: < 820 Min. | E98: 3 | F98: < 180 Tage | G98: 0.19719 | H98: 1.62038
A99: 1264 | B99: >=2 | C99: 6 | D99: < 820 Min. | E99: 4 | F99: < 240 Tage | G99: 0.14854 | H99: 1.66225
A100: 1265 | B100: >=2 | C100: 6 | D100: < 820 Min. | E100: 5 | F100: < 300 Tage | G100: 0.10726 | H100: 1.69398
A101: 1266 | B101: >=2 | C101: 6 | D101: < 820 Min. | E101: 6 | F101: < 360 Tage | G101: 0.09376 | H101: 1.70285
A102: 1267 | B102: >=2 | C102: 6 | D102: < 820 Min. | E102: 7 | F102: >= 360 Tage | G102: 0.06454 | H102: 1.73063
A103: 1271 | B103: >=2 | C103: 7 | D103: < 840 Min. | E103: 1 | F103: < 60 Tage | G103: 0.30435 | H103: 1.5407
A104: 1272 | B104: >=2 | C104: 7 | D104: < 840 Min. | E104: 2 | F104: < 120 Tage | G104: 0.30098 | H104: 1.47963
A105: 1273 | B105: >=2 | C105: 7 | D105: < 840 Min. | E105: 3 | F105: < 180 Tage | G105: 0.24777 | H105: 1.47116
A106: 1274 | B106: >=2 | C106: 7 | D106: < 840 Min. | E106: 4 | F106: < 240 Tage | G106: 0.15663 | H106: 1.60109
A107: 1275 | B107: >=2 | C107: 7 | D107: < 840 Min. | E107: 5 | F107: < 300 Tage | G107: 0.11248 | H107: 1.64389
A108: 1276 | B108: >=2 | C108: 7 | D108: < 840 Min. | E108: 6 | F108: < 360 Tage | G108: 0.10289 | H108: 1.62419
A109: 1277 | B109: >=2 | C109: 7 | D109: < 840 Min. | E109: 7 | F109: >= 360 Tage | G109: 0.05545 | H109: 1.73388
A110: 1281 | B110: >=2 | C110: 8 | D110: >= 840 Min. | E110: 1 | F110: < 60 Tage | G110: 0.18369 | H110: 1.64385
A111: 1282 | B111: >=2 | C111: 8 | D111: >= 840 Min. | E111: 2 | F111: < 120 Tage | G111: 0.25461 | H111: 1.49037
A112: 1283 | B112: >=2 | C112: 8 | D112: >= 840 Min. | E112: 3 | F112: < 180 Tage | G112: 0.2393 | H112: 1.47673
A113: 1284 | B113: >=2 | C113: 8 | D113: >= 840 Min. | E113: 4 | F113: < 240 Tage | G113: 0.13759 | H113: 1.60108
A114: 1285 | B114: >=2 | C114: 8 | D114: >= 840 Min. | E114: 5 | F114: < 300 Tage | G114: 0.12547 | H114: 1.58988
A115: 1286 | B115: >=2 | C115: 8 | D115: >= 840 Min. | E115: 6 | F115: < 360 Tage | G115: 0.10031 | H115: 1.62813
A116: 1287 | B116: >=2 | C116: 8 | D116: >= 840 Min. | E116: 7 | F116: >= 360 Tage | G116: 0.02696 | H116: 1.7382
B119: evening milking
A120: key | B120: Laktation nr | C120: Milkinginterval class | D120: milkinginterval description | E120: lactation stadium class | F120: days in milk description | G120: Intercept | H120: Regr.Koeff.
A121: 2111 | B121: 1 | C121: 1 | D121: <=599 Min. | E121: 1 | F121: < 60 Tage | G121: 0.30911 | H121: 1.43518
A122: 2112 | B122: 1 | C122: 1 | D122: <=599 Min. | E122: 2 | F122: < 120 Tage | G122: 0.2803 | H122: 1.56914
A123: 2113 | B123: 1 | C123: 1 | D123: <=599 Min. | E123: 3 | F123: < 180 Tage | G123: 0.18826 | H123: 1.82468
A124: 2114 | B124: 1 | C124: 1 | D124: <=599 Min. | E124: 4 | F124: < 240 Tage | G124: 0.25025 | H124: 1.64707
A125: 2115 | B125: 1 | C125: 1 | D125: <=599 Min. | E125: 5 | F125: < 300 Tage | G125: 0.06578 | H125: 2.09515
A126: 2116 | B126: 1 | C126: 1 | D126: <=599 Min. | E126: 6 | F126: < 360 Tage | G126: 0.12854 | H126: 1.93892
A127: 2117 | B127: 1 | C127: 1 | D127: <=599 Min. | E127: 7 | F127: >= 360 Tage | G127: 0.06425 | H127: 2.06779
A128: 2121 | B128: 1 | C128: 2 | D128: >= 600 Min. | E128: 1 | F128: < 60 Tage | G128: 0.33193 | H128: 1.42953
A129: 2122 | B129: 1 | C129: 2 | D129: >= 600 Min. | E129: 2 | F129: < 120 Tage | G129: 0.32877 | H129: 1.43235
A130: 2123 | B130: 1 | C130: 2 | D130: >= 600 Min. | E130: 3 | F130: < 180 Tage | G130: 0.27155 | H130: 1.57017
A131: 2124 | B131: 1 | C131: 2 | D131: >= 600 Min. | E131: 4 | F131: < 240 Tage | G131: 0.18647 | H131: 1.79403
A132: 2125 | B132: 1 | C132: 2 | D132: >= 600 Min. | E132: 5 | F132: < 300 Tage | G132: 0.10435 | H132: 1.97206
A133: 2126 | B133: 1 | C133: 2 | D133: >= 600 Min. | E133: 6 | F133: < 360 Tage | G133: 0.1386 | H133: 1.83336
A134: 2127 | B134: 1 | C134: 2 | D134: >= 600 Min. | E134: 7 | F134: >= 360 Tage | G134: 0.06501 | H134: 2.0379
A135: 2131 | B135: 1 | C135: 3 | D135: >= 620 Min. | E135: 1 | F135: < 60 Tage | G135: 0.17663 | H135: 1.72438
A136: 2132 | B136: 1 | C136: 3 | D136: >= 620 Min. | E136: 2 | F136: < 120 Tage | G136: 0.2135 | H136: 1.6805
A137: 2133 | B137: 1 | C137: 3 | D137: >= 620 Min. | E137: 3 | F137: < 180 Tage | G137: 0.20754 | H137: 1.71868
A138: 2134 | B138: 1 | C138: 3 | D138: >= 620 Min. | E138: 4 | F138: < 240 Tage | G138: 0.21578 | H138: 1.6991
A139: 2135 | B139: 1 | C139: 3 | D139: >= 620 Min. | E139: 5 | F139: < 300 Tage | G139: 0.15418 | H139: 1.83151
A140: 2136 | B140: 1 | C140: 3 | D140: >= 620 Min. | E140: 6 | F140: < 360 Tage | G140: 0.11783 | H140: 1.89678
A141: 2137 | B141: 1 | C141: 3 | D141: >= 620 Min. | E141: 7 | F141: >= 360 Tage | G141: 0.13047 | H141: 1.86711
A142: 2141 | B142: 1 | C142: 4 | D142: >= 640 Min. | E142: 1 | F142: < 60 Tage | G142: 0.24794 | H142: 1.61741
A143: 2142 | B143: 1 | C143: 4 | D143: >= 640 Min. | E143: 2 | F143: < 120 Tage | G143: 0.20029 | H143: 1.71842
A144: 2143 | B144: 1 | C144: 4 | D144: >= 640 Min. | E144: 3 | F144: < 180 Tage | G144: 0.17021 | H144: 1.79996
A145: 2144 | B145: 1 | C145: 4 | D145: >= 640 Min. | E145: 4 | F145: < 240 Tage | G145: 0.1845 | H145: 1.76799
A146: 2145 | B146: 1 | C146: 4 | D146: >= 640 Min. | E146: 5 | F146: < 300 Tage | G146: 0.13433 | H146: 1.85893
A147: 2146 | B147: 1 | C147: 4 | D147: >= 640 Min. | E147: 6 | F147: < 360 Tage | G147: 0.08715 | H147: 1.96251
A148: 2147 | B148: 1 | C148: 4 | D148: >= 640 Min. | E148: 7 | F148: >= 360 Tage | G148: 0.1251 | H148: 1.86477
A149: 2151 | B149: 1 | C149: 5 | D149: >= 660 Min. | E149: 1 | F149: < 60 Tage | G149: 0.15754 | H149: 1.72474
A150: 2152 | B150: 1 | C150: 5 | D150: >= 660 Min. | E150: 2 | F150: < 120 Tage | G150: 0.2236 | H150: 1.64149
A151: 2153 | B151: 1 | C151: 5 | D151: >= 660 Min. | E151: 3 | F151: < 180 Tage | G151: 0.17614 | H151: 1.7474
A152: 2154 | B152: 1 | C152: 5 | D152: >= 660 Min. | E152: 4 | F152: < 240 Tage | G152: 0.17217 | H152: 1.74753
A153: 2155 | B153: 1 | C153: 5 | D153: >= 660 Min. | E153: 5 | F153: < 300 Tage | G153: 0.15965 | H153: 1.76134
A154: 2156 | B154: 1 | C154: 5 | D154: >= 660 Min. | E154: 6 | F154: < 360 Tage | G154: 0.11021 | H154: 1.85546
A155: 2157 | B155: 1 | C155: 5 | D155: >= 660 Min. | E155: 7 | F155: >= 360 Tage | G155: 0.07479 | H155: 1.92789
A156: 2161 | B156: 1 | C156: 6 | D156: >= 680 Min. | E156: 1 | F156: < 60 Tage | G156: 0.16548 | H156: 1.68143
A157: 2162 | B157: 1 | C157: 6 | D157: >= 680 Min. | E157: 2 | F157: < 120 Tage | G157: 0.25841 | H157: 1.52566
A158: 2163 | B158: 1 | C158: 6 | D158: >= 680 Min. | E158: 3 | F158: < 180 Tage | G158: 0.19036 | H158: 1.69013
A159: 2164 | B159: 1 | C159: 6 | D159: >= 680 Min. | E159: 4 | F159: < 240 Tage | G159: 0.17854 | H159: 1.72423
A160: 2165 | B160: 1 | C160: 6 | D160: >= 680 Min. | E160: 5 | F160: < 300 Tage | G160: 0.19579 | H160: 1.66419
A161: 2166 | B161: 1 | C161: 6 | D161: >= 680 Min. | E161: 6 | F161: < 360 Tage | G161: 0.14291 | H161: 1.75822
A162: 2167 | B162: 1 | C162: 6 | D162: >= 680 Min. | E162: 7 | F162: >= 360 Tage | G162: 0.1336 | H162: 1.76796
A163: 2171 | B163: 1 | C163: 7 | D163: >= 700 Min. | E163: 1 | F163: < 60 Tage | G163: 0.2359 | H163: 1.61894
A164: 2172 | B164: 1 | C164: 7 | D164: >= 700 Min. | E164: 2 | F164: < 120 Tage | G164: 0.24969 | H164: 1.5881
A165: 2173 | B165: 1 | C165: 7 | D165: >= 700 Min. | E165: 3 | F165: < 180 Tage | G165: 0.19228 | H165: 1.71802
A166: 2174 | B166: 1 | C166: 7 | D166: >= 700 Min. | E166: 4 | F166: < 240 Tage | G166: 0.1969 | H166: 1.71838
A167: 2175 | B167: 1 | C167: 7 | D167: >= 700 Min. | E167: 5 | F167: < 300 Tage | G167: 0.09893 | H167: 1.86309
A168: 2176 | B168: 1 | C168: 7 | D168: >= 700 Min. | E168: 6 | F168: < 360 Tage | G168: 0.25205 | H168: 1.56174
A169: 2177 | B169: 1 | C169: 7 | D169: >= 700 Min. | E169: 7 | F169: >= 360 Tage | G169: 0.09226 | H169: 1.85882
A170: 2181 | B170: 1 | C170: 8 | D170: >= 720 Min. | E170: 1 | F170: < 60 Tage | G170: 0.14321 | H170: 1.77423
A171: 2182 | B171: 1 | C171: 8 | D171: >= 720 Min. | E171: 2 | F171: < 120 Tage | G171: 0.26651 | H171: 1.58374
A172: 2183 | B172: 1 | C172: 8 | D172: >= 720 Min. | E172: 3 | F172: < 180 Tage | G172: 0.22918 | H172: 1.64925
A173: 2184 | B173: 1 | C173: 8 | D173: >= 720 Min. | E173: 4 | F173: < 240 Tage | G173: 0.18578 | H173: 1.73968
A174: 2185 | B174: 1 | C174: 8 | D174: >= 720 Min. | E174: 5 | F174: < 300 Tage | G174: 0.19374 | H174: 1.67929
A175: 2186 | B175: 1 | C175: 8 | D175: >= 720 Min. | E175: 6 | F175: < 360 Tage | G175: 0.09917 | H175: 1.82528
A176: 2187 | B176: 1 | C176: 8 | D176: >= 720 Min. | E176: 7 | F176: >= 360 Tage | G176: 0.05049 | H176: 1.95773
A177: 2211 | B177: >=2 | C177: 1 | D177: <=599 Min. | E177: 1 | F177: < 60 Tage | G177: 0.31102 | H177: 1.58962
A178: 2212 | B178: >=2 | C178: 1 | D178: <=599 Min. | E178: 2 | F178: < 120 Tage | G178: 0.26761 | H178: 1.64342
A179: 2213 | B179: >=2 | C179: 1 | D179: <=599 Min. | E179: 3 | F179: < 180 Tage | G179: 0.26221 | H179: 1.65088
A180: 2214 | B180: >=2 | C180: 1 | D180: <=599 Min. | E180: 4 | F180: < 240 Tage | G180: 0.18468 | H180: 1.80715
A181: 2215 | B181: >=2 | C181: 1 | D181: <=599 Min. | E181: 5 | F181: < 300 Tage | G181: 0.16011 | H181: 1.81257
A182: 2216 | B182: >=2 | C182: 1 | D182: <=599 Min. | E182: 6 | F182: < 360 Tage | G182: 0.15381 | H182: 1.79197
A183: 2217 | B183: >=2 | C183: 1 | D183: <=599 Min. | E183: 7 | F183: >= 360 Tage | G183: 0.13089 | H183: 1.83687
A184: 2221 | B184: >=2 | C184: 2 | D184: >= 600 Min. | E184: 1 | F184: < 60 Tage | G184: 0.23716 | H184: 1.6988
A185: 2222 | B185: >=2 | C185: 2 | D185: >= 600 Min. | E185: 2 | F185: < 120 Tage | G185: 0.3553 | H185: 1.46663
A186: 2223 | B186: >=2 | C186: 2 | D186: >= 600 Min. | E186: 3 | F186: < 180 Tage | G186: 0.29682 | H186: 1.57761
A187: 2224 | B187: >=2 | C187: 2 | D187: >= 600 Min. | E187: 4 | F187: < 240 Tage | G187: 0.16059 | H187: 1.79846
A188: 2225 | B188: >=2 | C188: 2 | D188: >= 600 Min. | E188: 5 | F188: < 300 Tage | G188: 0.10057 | H188: 1.90772
A189: 2226 | B189: >=2 | C189: 2 | D189: >= 600 Min. | E189: 6 | F189: < 360 Tage | G189: 0.07573 | H189: 1.94963
A190: 2227 | B190: >=2 | C190: 2 | D190: >= 600 Min. | E190: 7 | F190: >= 360 Tage | G190: 0.11472 | H190: 1.81148
A191: 2231 | B191: >=2 | C191: 3 | D191: >= 620 Min. | E191: 1 | F191: < 60 Tage | G191: 0.27991 | H191: 1.62403
A192: 2232 | B192: >=2 | C192: 3 | D192: >= 620 Min. | E192: 2 | F192: < 120 Tage | G192: 0.3635 | H192: 1.47515
A193: 2233 | B193: >=2 | C193: 3 | D193: >= 620 Min. | E193: 3 | F193: < 180 Tage | G193: 0.31131 | H193: 1.55183
A194: 2234 | B194: >=2 | C194: 3 | D194: >= 620 Min. | E194: 4 | F194: < 240 Tage | G194: 0.20828 | H194: 1.71637
A195: 2235 | B195: >=2 | C195: 3 | D195: >= 620 Min. | E195: 5 | F195: < 300 Tage | G195: 0.14418 | H195: 1.80246
A196: 2236 | B196: >=2 | C196: 3 | D196: >= 620 Min. | E196: 6 | F196: < 360 Tage | G196: 0.11206 | H196: 1.87179
A197: 2237 | B197: >=2 | C197: 3 | D197: >= 620 Min. | E197: 7 | F197: >= 360 Tage | G197: 0.04633 | H197: 2.02915
A198: 2241 | B198: >=2 | C198: 4 | D198: >= 640 Min. | E198: 1 | F198: < 60 Tage | G198: 0.25826 | H198: 1.69268
A199: 2242 | B199: >=2 | C199: 4 | D199: >= 640 Min. | E199: 2 | F199: < 120 Tage | G199: 0.36283 | H199: 1.50648
A200: 2243 | B200: >=2 | C200: 4 | D200: >= 640 Min. | E200: 3 | F200: < 180 Tage | G200: 0.19627 | H200: 1.75339
A201: 2244 | B201: >=2 | C201: 4 | D201: >= 640 Min. | E201: 4 | F201: < 240 Tage | G201: 0.17827 | H201: 1.76414
A202: 2245 | B202: >=2 | C202: 4 | D202: >= 640 Min. | E202: 5 | F202: < 300 Tage | G202: 0.14884 | H202: 1.77964
A203: 2246 | B203: >=2 | C203: 4 | D203: >= 640 Min. | E203: 6 | F203: < 360 Tage | G203: 0.11559 | H203: 1.82474
A204: 2247 | B204: >=2 | C204: 4 | D204: >= 640 Min. | E204: 7 | F204: >= 360 Tage | G204: 0.07044 | H204: 1.95281
... 28 more rows

Sheet protein 2018 (hidden)
B3: morning milking
A4: key | B4: Laktation nr | C4: Milkinginterval class | D4: milkinginterval description | E4: lactation stadium class | F4: days in milk description | G4: Intercept | H4: Regr.Koeff.
A5: 1111 | B5: 1 | C5: 1 | D5: < 720 Min. | E5: 1 | F5: < 60 Tage | G5: 0.13323 | H5: 1.68913
A6: 1112 | B6: 1 | C6: 1 | D6: < 720 Min. | E6: 2 | F6: < 120 Tage | G6: 0.17533 | H6: 1.62422
A7: 1113 | B7: 1 | C7: 1 | D7: < 720 Min. | E7: 3 | F7: < 180 Tage | G7: 0.14525 | H7: 1.66706
A8: 1114 | B8: 1 | C8: 1 | D8: < 720 Min. | E8: 4 | F8: < 240 Tage | G8: 0.13627 | H8: 1.68885
A9: 1115 | B9: 1 | C9: 1 | D9: < 720 Min. | E9: 5 | F9: < 300 Tage | G9: 0.06231 | H9: 1.81524
A10: 1116 | B10: 1 | C10: 1 | D10: < 720 Min. | E10: 6 | F10: < 360 Tage | G10: 0.03277 | H10: 1.89435
A11: 1117 | B11: 1 | C11: 1 | D11: < 720 Min. | E11: 7 | F11: >= 360 Tage | G11: 0.0407 | H11: 1.85002
A12: 1121 | B12: 1 | C12: 2 | D12: < 740 Min. | E12: 1 | F12: < 60 Tage | G12: 0.1237 | H12: 1.66453
A13: 1122 | B13: 1 | C13: 2 | D13: < 740 Min. | E13: 2 | F13: < 120 Tage | G13: 0.14361 | H13: 1.66251
A14: 1123 | B14: 1 | C14: 2 | D14: < 740 Min. | E14: 3 | F14: < 180 Tage | G14: 0.11056 | H14: 1.72312
A15: 1124 | B15: 1 | C15: 2 | D15: < 740 Min. | E15: 4 | F15: < 240 Tage | G15: 0.09038 | H15: 1.74138
A16: 1125 | B16: 1 | C16: 2 | D16: < 740 Min. | E16: 5 | F16: < 300 Tage | G16: 0.0597 | H16: 1.81378
A17: 1126 | B17: 1 | C17: 2 | D17: < 740 Min. | E17: 6 | F17: < 360 Tage | G17: 0.07244 | H17: 1.78566
A18: 1127 | B18: 1 | C18: 2 | D18: < 740 Min. | E18: 7 | F18: >= 360 Tage | G18: 0.05269 | H18: 1.81727
A19: 1131 | B19: 1 | C19: 3 | D19: < 760 Min. | E19: 1 | F19: < 60 Tage | G19: 0.07657 | H19: 1.78025
A20: 1132 | B20: 1 | C20: 3 | D20: < 760 Min. | E20: 2 | F20: < 120 Tage | G20: 0.05624 | H20: 1.80606
A21: 1133 | B21: 1 | C21: 3 | D21: < 760 Min. | E21: 3 | F21: < 180 Tage | G21: 0.05446 | H21: 1.7922
A22: 1134 | B22: 1 | C22: 3 | D22: < 760 Min. | E22: 4 | F22: < 240 Tage | G22: 0.06775 | H22: 1.75721
A23: 1135 | B23: 1 | C23: 3 | D23: < 760 Min. | E23: 5 | F23: < 300 Tage | G23: 0.04244 | H23: 1.79675
A24: 1136 | B24: 1 | C24: 3 | D24: < 760 Min. | E24: 6 | F24: < 360 Tage | G24: 0.04181 | H24: 1.80604
A25: 1137 | B25: 1 | C25: 3 | D25: < 760 Min. | E25: 7 | F25: >= 360 Tage | G25: 0.02347 | H25: 1.85596
A26: 1141 | B26: 1 | C26: 4 | D26: < 780 Min. | E26: 1 | F26: < 60 Tage | G26: 0.06511 | H26: 1.74985
A27: 1142 | B27: 1 | C27: 4 | D27: < 780 Min. | E27: 2 | F27: < 120 Tage | G27: 0.08178 | H27: 1.71455
A28: 1143 | B28: 1 | C28: 4 | D28: < 780 Min. | E28: 3 | F28: < 180 Tage | G28: 0.08598 | H28: 1.70516
A29: 1144 | B29: 1 | C29: 4 | D29: < 780 Min. | E29: 4 | F29: < 240 Tage | G29: 0.06856 | H29: 1.73201
A30: 1145 | B30: 1 | C30: 4 | D30: < 780 Min. | E30: 5 | F30: < 300 Tage | G30: 0.04624 | H30: 1.75806
A31: 1146 | B31: 1 | C31: 4 | D31: < 780 Min. | E31: 6 | F31: < 360 Tage | G31: 0.0629 | H31: 1.72333
A32: 1147 | B32: 1 | C32: 4 | D32: < 780 Min. | E32: 7 | F32: >= 360 Tage | G32: 0.02671 | H32: 1.79288
A33: 1151 | B33: 1 | C33: 5 | D33: < 800 Min. | E33: 1 | F33: < 60 Tage | G33: 0.07156 | H33: 1.73136
A34: 1152 | B34: 1 | C34: 5 | D34: < 800 Min. | E34: 2 | F34: < 120 Tage | G34: 0.06489 | H34: 1.73449
A35: 1153 | B35: 1 | C35: 5 | D35: < 800 Min. | E35: 3 | F35: < 180 Tage | G35: 0.06783 | H35: 1.71916
A36: 1154 | B36: 1 | C36: 5 | D36: < 800 Min. | E36: 4 | F36: < 240 Tage | G36: 0.05764 | H36: 1.73194
A37: 1155 | B37: 1 | C37: 5 | D37: < 800 Min. | E37: 5 | F37: < 300 Tage | G37: 0.04656 | H37: 1.7433
A38: 1156 | B38: 1 | C38: 5 | D38: < 800 Min. | E38: 6 | F38: < 360 Tage | G38: 0.04482 | H38: 1.7399
A39: 1157 | B39: 1 | C39: 5 | D39: < 800 Min. | E39: 7 | F39: >= 360 Tage | G39: 0.09175 | H39: 1.64669
A40: 1161 | B40: 1 | C40: 6 | D40: < 820 Min. | E40: 1 | F40: < 60 Tage | G40: 0.0328 | H40: 1.74802
A41: 1162 | B41: 1 | C41: 6 | D41: < 820 Min. | E41: 2 | F41: < 120 Tage | G41: 0.04535 | H41: 1.7106
A42: 1163 | B42: 1 | C42: 6 | D42: < 820 Min. | E42: 3 | F42: < 180 Tage | G42: 0.05229 | H42: 1.68986
A43: 1164 | B43: 1 | C43: 6 | D43: < 820 Min. | E43: 4 | F43: < 240 Tage | G43: 0.01696 | H43: 1.75787
A44: 1165 | B44: 1 | C44: 6 | D44: < 820 Min. | E44: 5 | F44: < 300 Tage | G44: 0.04936 | H44: 1.67757
A45: 1166 | B45: 1 | C45: 6 | D45: < 820 Min. | E45: 6 | F45: < 360 Tage | G45: 0.01591 | H45: 1.74082
A46: 1167 | B46: 1 | C46: 6 | D46: < 820 Min. | E46: 7 | F46: >= 360 Tage | G46: 0.02889 | H46: 1.71972
A47: 1171 | B47: 1 | C47: 7 | D47: < 840 Min. | E47: 1 | F47: < 60 Tage | G47: 0.06807 | H47: 1.63599
A48: 1172 | B48: 1 | C48: 7 | D48: < 840 Min. | E48: 2 | F48: < 120 Tage | G48: 0.06336 | H48: 1.6431
A49: 1173 | B49: 1 | C49: 7 | D49: < 840 Min. | E49: 3 | F49: < 180 Tage | G49: 0.04336 | H49: 1.68109
A50: 1174 | B50: 1 | C50: 7 | D50: < 840 Min. | E50: 4 | F50: < 240 Tage | G50: 0.02871 | H50: 1.6933
A51: 1175 | B51: 1 | C51: 7 | D51: < 840 Min. | E51: 5 | F51: < 300 Tage | G51: 0.03305 | H51: 1.67829
A52: 1176 | B52: 1 | C52: 7 | D52: < 840 Min. | E52: 6 | F52: < 360 Tage | G52: 0.04416 | H52: 1.6776
A53: 1177 | B53: 1 | C53: 7 | D53: < 840 Min. | E53: 7 | F53: >= 360 Tage | G53: 0.04216 | H53: 1.66444
A54: 1181 | B54: 1 | C54: 8 | D54: >= 840 Min. | E54: 1 | F54: < 60 Tage | G54: 0.03247 | H54: 1.69368
A55: 1182 | B55: 1 | C55: 8 | D55: >= 840 Min. | E55: 2 | F55: < 120 Tage | G55: 0.05922 | H55: 1.61411
A56: 1183 | B56: 1 | C56: 8 | D56: >= 840 Min. | E56: 3 | F56: < 180 Tage | G56: 0.05874 | H56: 1.61141
A57: 1184 | B57: 1 | C57: 8 | D57: >= 840 Min. | E57: 4 | F57: < 240 Tage | G57: 0.04019 | H57: 1.64574
A58: 1185 | B58: 1 | C58: 8 | D58: >= 840 Min. | E58: 5 | F58: < 300 Tage | G58: 0.05648 | H58: 1.59149
A59: 1186 | B59: 1 | C59: 8 | D59: >= 840 Min. | E59: 6 | F59: < 360 Tage | G59: 0.06258 | H59: 1.56912
A60: 1187 | B60: 1 | C60: 8 | D60: >= 840 Min. | E60: 7 | F60: >= 360 Tage | G60: 0.04748 | H60: 1.63282
A61: 1211 | B61: >=2 | C61: 1 | D61: < 720 Min. | E61: 1 | F61: < 60 Tage | G61: 0.15003 | H61: 1.72171
A62: 1212 | B62: >=2 | C62: 1 | D62: < 720 Min. | E62: 2 | F62: < 120 Tage | G62: 0.19774 | H62: 1.64659
A63: 1213 | B63: >=2 | C63: 1 | D63: < 720 Min. | E63: 3 | F63: < 180 Tage | G63: 0.17828 | H63: 1.65793
A64: 1214 | B64: >=2 | C64: 1 | D64: < 720 Min. | E64: 4 | F64: < 240 Tage | G64: 0.11075 | H64: 1.76221
A65: 1215 | B65: >=2 | C65: 1 | D65: < 720 Min. | E65: 5 | F65: < 300 Tage | G65: 0.09636 | H65: 1.75624
A66: 1216 | B66: >=2 | C66: 1 | D66: < 720 Min. | E66: 6 | F66: < 360 Tage | G66: 0.06549 | H66: 1.80013
A67: 1217 | B67: >=2 | C67: 1 | D67: < 720 Min. | E67: 7 | F67: >= 360 Tage | G67: 0.03467 | H67: 1.85275
A68: 1221 | B68: >=2 | C68: 2 | D68: < 740 Min. | E68: 1 | F68: < 60 Tage | G68: 0.06055 | H68: 1.83138
A69: 1222 | B69: >=2 | C69: 2 | D69: < 740 Min. | E69: 2 | F69: < 120 Tage | G69: 0.11238 | H69: 1.7646
A70: 1223 | B70: >=2 | C70: 2 | D70: < 740 Min. | E70: 3 | F70: < 180 Tage | G70: 0.09407 | H70: 1.78959
A71: 1224 | B71: >=2 | C71: 2 | D71: < 740 Min. | E71: 4 | F71: < 240 Tage | G71: 0.07273 | H71: 1.80371
A72: 1225 | B72: >=2 | C72: 2 | D72: < 740 Min. | E72: 5 | F72: < 300 Tage | G72: 0.06062 | H72: 1.8184
A73: 1226 | B73: >=2 | C73: 2 | D73: < 740 Min. | E73: 6 | F73: < 360 Tage | G73: 0.07335 | H73: 1.79213
A74: 1227 | B74: >=2 | C74: 2 | D74: < 740 Min. | E74: 7 | F74: >= 360 Tage | G74: 0.03414 | H74: 1.84213
A75: 1231 | B75: >=2 | C75: 3 | D75: < 760 Min. | E75: 1 | F75: < 60 Tage | G75: 0.05359 | H75: 1.83088
A76: 1232 | B76: >=2 | C76: 3 | D76: < 760 Min. | E76: 2 | F76: < 120 Tage | G76: 0.10823 | H76: 1.73763
A77: 1233 | B77: >=2 | C77: 3 | D77: < 760 Min. | E77: 3 | F77: < 180 Tage | G77: 0.11042 | H77: 1.71397
A78: 1234 | B78: >=2 | C78: 3 | D78: < 760 Min. | E78: 4 | F78: < 240 Tage | G78: 0.07372 | H78: 1.75906
A79: 1235 | B79: >=2 | C79: 3 | D79: < 760 Min. | E79: 5 | F79: < 300 Tage | G79: 0.03792 | H79: 1.81891
A80: 1236 | B80: >=2 | C80: 3 | D80: < 760 Min. | E80: 6 | F80: < 360 Tage | G80: 0.05342 | H80: 1.75745
A81: 1237 | B81: >=2 | C81: 3 | D81: < 760 Min. | E81: 7 | F81: >= 360 Tage | G81: 0.00787 | H81: 1.88753
A82: 1241 | B82: >=2 | C82: 4 | D82: < 780 Min. | E82: 1 | F82: < 60 Tage | G82: 0.10763 | H82: 1.71072
A83: 1242 | B83: >=2 | C83: 4 | D83: < 780 Min. | E83: 2 | F83: < 120 Tage | G83: 0.13243 | H83: 1.66523
A84: 1243 | B84: >=2 | C84: 4 | D84: < 780 Min. | E84: 3 | F84: < 180 Tage | G84: 0.1126 | H84: 1.68024
A85: 1244 | B85: >=2 | C85: 4 | D85: < 780 Min. | E85: 4 | F85: < 240 Tage | G85: 0.085 | H85: 1.71029
A86: 1245 | B86: >=2 | C86: 4 | D86: < 780 Min. | E86: 5 | F86: < 300 Tage | G86: 0.04845 | H86: 1.76628
A87: 1246 | B87: >=2 | C87: 4 | D87: < 780 Min. | E87: 6 | F87: < 360 Tage | G87: 0.03563 | H87: 1.78528
A88: 1247 | B88: >=2 | C88: 4 | D88: < 780 Min. | E88: 7 | F88: >= 360 Tage | G88: 0.03846 | H88: 1.77043
A89: 1251 | B89: >=2 | C89: 5 | D89: < 800 Min. | E89: 1 | F89: < 60 Tage | G89: 0.10455 | H89: 1.71058
A90: 1252 | B90: >=2 | C90: 5 | D90: < 800 Min. | E90: 2 | F90: < 120 Tage | G90: 0.11781 | H90: 1.69109
A91: 1253 | B91: >=2 | C91: 5 | D91: < 800 Min. | E91: 3 | F91: < 180 Tage | G91: 0.08315 | H91: 1.71378
A92: 1254 | B92: >=2 | C92: 5 | D92: < 800 Min. | E92: 4 | F92: < 240 Tage | G92: 0.06202 | H92: 1.73305
A93: 1255 | B93: >=2 | C93: 5 | D93: < 800 Min. | E93: 5 | F93: < 300 Tage | G93: 0.05338 | H93: 1.74562
A94: 1256 | B94: >=2 | C94: 5 | D94: < 800 Min. | E94: 6 | F94: < 360 Tage | G94: 0.06147 | H94: 1.72101
A95: 1257 | B95: >=2 | C95: 5 | D95: < 800 Min. | E95: 7 | F95: >= 360 Tage | G95: 0.04173 | H95: 1.73246
A96: 1261 | B96: >=2 | C96: 6 | D96: < 820 Min. | E96: 1 | F96: < 60 Tage | G96: 0.06001 | H96: 1.71779
A97: 1262 | B97: >=2 | C97: 6 | D97: < 820 Min. | E97: 2 | F97: < 120 Tage | G97: 0.09642 | H97: 1.6546
A98: 1263 | B98: >=2 | C98: 6 | D98: < 820 Min. | E98: 3 | F98: < 180 Tage | G98: 0.05324 | H98: 1.71254
A99: 1264 | B99: >=2 | C99: 6 | D99: < 820 Min. | E99: 4 | F99: < 240 Tage | G99: 0.05758 | H99: 1.69946
A100: 1265 | B100: >=2 | C100: 6 | D100: < 820 Min. | E100: 5 | F100: < 300 Tage | G100: 0.04565 | H100: 1.7096
A101: 1266 | B101: >=2 | C101: 6 | D101: < 820 Min. | E101: 6 | F101: < 360 Tage | G101: 0.04005 | H101: 1.70822
A102: 1267 | B102: >=2 | C102: 6 | D102: < 820 Min. | E102: 7 | F102: >= 360 Tage | G102: 0.0394 | H102: 1.69796
A103: 1271 | B103: >=2 | C103: 7 | D103: < 840 Min. | E103: 1 | F103: < 60 Tage | G103: 0.08673 | H103: 1.63673
A104: 1272 | B104: >=2 | C104: 7 | D104: < 840 Min. | E104: 2 | F104: < 120 Tage | G104: 0.06527 | H104: 1.67295
A105: 1273 | B105: >=2 | C105: 7 | D105: < 840 Min. | E105: 3 | F105: < 180 Tage | G105: 0.06594 | H105: 1.64834
A106: 1274 | B106: >=2 | C106: 7 | D106: < 840 Min. | E106: 4 | F106: < 240 Tage | G106: 0.04949 | H106: 1.67069
A107: 1275 | B107: >=2 | C107: 7 | D107: < 840 Min. | E107: 5 | F107: < 300 Tage | G107: 0.03402 | H107: 1.70215
A108: 1276 | B108: >=2 | C108: 7 | D108: < 840 Min. | E108: 6 | F108: < 360 Tage | G108: 0.03507 | H108: 1.67744
A109: 1277 | B109: >=2 | C109: 7 | D109: < 840 Min. | E109: 7 | F109: >= 360 Tage | G109: 0.02233 | H109: 1.72102
A110: 1281 | B110: >=2 | C110: 8 | D110: >= 840 Min. | E110: 1 | F110: < 60 Tage | G110: 0.06055 | H110: 1.63818
A111: 1282 | B111: >=2 | C111: 8 | D111: >= 840 Min. | E111: 2 | F111: < 120 Tage | G111: 0.04798 | H111: 1.66397
A112: 1283 | B112: >=2 | C112: 8 | D112: >= 840 Min. | E112: 3 | F112: < 180 Tage | G112: 0.08136 | H112: 1.6065
A113: 1284 | B113: >=2 | C113: 8 | D113: >= 840 Min. | E113: 4 | F113: < 240 Tage | G113: 0.0463 | H113: 1.64856
A114: 1285 | B114: >=2 | C114: 8 | D114: >= 840 Min. | E114: 5 | F114: < 300 Tage | G114: 0.06919 | H114: 1.5925
A115: 1286 | B115: >=2 | C115: 8 | D115: >= 840 Min. | E115: 6 | F115: < 360 Tage | G115: 0.07392 | H115: 1.58846
A116: 1287 | B116: >=2 | C116: 8 | D116: >= 840 Min. | E116: 7 | F116: >= 360 Tage | G116: 0.01982 | H116: 1.70519
B119: evening milking
A120: key | B120: Laktation nr | C120: Milkinginterval class | D120: milkinginterval description | E120: lactation stadium class | F120: days in milk description | G120: Intercept | H120: Regr.Koeff.
A121: 2111 | B121: 1 | C121: 1 | D121: <=599 Min. | E121: 1 | F121: < 60 Tage | G121: 0.18984 | H121: 1.77461
A122: 2112 | B122: 1 | C122: 1 | D122: <=599 Min. | E122: 2 | F122: < 120 Tage | G122: 0.12246 | H122: 2.00568
A123: 2113 | B123: 1 | C123: 1 | D123: <=599 Min. | E123: 3 | F123: < 180 Tage | G123: 0.12624 | H123: 2.0137
A124: 2114 | B124: 1 | C124: 1 | D124: <=599 Min. | E124: 4 | F124: < 240 Tage | G124: 0.12519 | H124: 1.99629
A125: 2115 | B125: 1 | C125: 1 | D125: <=599 Min. | E125: 5 | F125: < 300 Tage | G125: 0.05249 | H125: 2.24065
A126: 2116 | B126: 1 | C126: 1 | D126: <=599 Min. | E126: 6 | F126: < 360 Tage | G126: 0.11936 | H126: 2.00979
A127: 2117 | B127: 1 | C127: 1 | D127: <=599 Min. | E127: 7 | F127: >= 360 Tage | G127: 0.0569 | H127: 2.13851
A128: 2121 | B128: 1 | C128: 2 | D128: >= 600 Min. | E128: 1 | F128: < 60 Tage | G128: 0.20756 | H128: 1.7288
A129: 2122 | B129: 1 | C129: 2 | D129: >= 600 Min. | E129: 2 | F129: < 120 Tage | G129: 0.21332 | H129: 1.74001
A130: 2123 | B130: 1 | C130: 2 | D130: >= 600 Min. | E130: 3 | F130: < 180 Tage | G130: 0.16439 | H130: 1.84539
A131: 2124 | B131: 1 | C131: 2 | D131: >= 600 Min. | E131: 4 | F131: < 240 Tage | G131: 0.10803 | H131: 2.0193
A132: 2125 | B132: 1 | C132: 2 | D132: >= 600 Min. | E132: 5 | F132: < 300 Tage | G132: 0.07193 | H132: 2.10651
A133: 2126 | B133: 1 | C133: 2 | D133: >= 600 Min. | E133: 6 | F133: < 360 Tage | G133: 0.06892 | H133: 2.06532
A134: 2127 | B134: 1 | C134: 2 | D134: >= 600 Min. | E134: 7 | F134: >= 360 Tage | G134: 0.05569 | H134: 2.12881
A135: 2131 | B135: 1 | C135: 3 | D135: >= 620 Min. | E135: 1 | F135: < 60 Tage | G135: 0.11078 | H135: 1.96422
A136: 2132 | B136: 1 | C136: 3 | D136: >= 620 Min. | E136: 2 | F136: < 120 Tage | G136: 0.10471 | H136: 1.99092
A137: 2133 | B137: 1 | C137: 3 | D137: >= 620 Min. | E137: 3 | F137: < 180 Tage | G137: 0.1127 | H137: 1.98403
A138: 2134 | B138: 1 | C138: 3 | D138: >= 620 Min. | E138: 4 | F138: < 240 Tage | G138: 0.10802 | H138: 1.99517
A139: 2135 | B139: 1 | C139: 3 | D139: >= 620 Min. | E139: 5 | F139: < 300 Tage | G139: 0.07492 | H139: 2.07547
A140: 2136 | B140: 1 | C140: 3 | D140: >= 620 Min. | E140: 6 | F140: < 360 Tage | G140: 0.06457 | H140: 2.08391
A141: 2137 | B141: 1 | C141: 3 | D141: >= 620 Min. | E141: 7 | F141: >= 360 Tage | G141: 0.071 | H141: 2.06917
A142: 2141 | B142: 1 | C142: 4 | D142: >= 640 Min. | E142: 1 | F142: < 60 Tage | G142: 0.09248 | H142: 1.95376
A143: 2142 | B143: 1 | C143: 4 | D143: >= 640 Min. | E143: 2 | F143: < 120 Tage | G143: 0.09381 | H143: 1.97081
A144: 2143 | B144: 1 | C144: 4 | D144: >= 640 Min. | E144: 3 | F144: < 180 Tage | G144: 0.07631 | H144: 2.03167
A145: 2144 | B145: 1 | C145: 4 | D145: >= 640 Min. | E145: 4 | F145: < 240 Tage | G145: 0.10989 | H145: 1.95456
A146: 2145 | B146: 1 | C146: 4 | D146: >= 640 Min. | E146: 5 | F146: < 300 Tage | G146: 0.09432 | H146: 1.97755
A147: 2146 | B147: 1 | C147: 4 | D147: >= 640 Min. | E147: 6 | F147: < 360 Tage | G147: 0.07132 | H147: 2.04225
A148: 2147 | B148: 1 | C148: 4 | D148: >= 640 Min. | E148: 7 | F148: >= 360 Tage | G148: 0.06072 | H148: 2.04747
A149: 2151 | B149: 1 | C149: 5 | D149: >= 660 Min. | E149: 1 | F149: < 60 Tage | G149: 0.10187 | H149: 1.88749
A150: 2152 | B150: 1 | C150: 5 | D150: >= 660 Min. | E150: 2 | F150: < 120 Tage | G150: 0.12369 | H150: 1.8823
A151: 2153 | B151: 1 | C151: 5 | D151: >= 660 Min. | E151: 3 | F151: < 180 Tage | G151: 0.08019 | H151: 1.9782
A152: 2154 | B152: 1 | C152: 5 | D152: >= 660 Min. | E152: 4 | F152: < 240 Tage | G152: 0.0889 | H152: 1.94647
A153: 2155 | B153: 1 | C153: 5 | D153: >= 660 Min. | E153: 5 | F153: < 300 Tage | G153: 0.0896 | H153: 1.94575
A154: 2156 | B154: 1 | C154: 5 | D154: >= 660 Min. | E154: 6 | F154: < 360 Tage | G154: 0.0852 | H154: 1.94593
A155: 2157 | B155: 1 | C155: 5 | D155: >= 660 Min. | E155: 7 | F155: >= 360 Tage | G155: 0.05846 | H155: 2.00196
A156: 2161 | B156: 1 | C156: 6 | D156: >= 680 Min. | E156: 1 | F156: < 60 Tage | G156: 0.101 | H156: 1.85846
A157: 2162 | B157: 1 | C157: 6 | D157: >= 680 Min. | E157: 2 | F157: < 120 Tage | G157: 0.12097 | H157: 1.86061
A158: 2163 | B158: 1 | C158: 6 | D158: >= 680 Min. | E158: 3 | F158: < 180 Tage | G158: 0.08032 | H158: 1.9375
A159: 2164 | B159: 1 | C159: 6 | D159: >= 680 Min. | E159: 4 | F159: < 240 Tage | G159: 0.06863 | H159: 1.97582
A160: 2165 | B160: 1 | C160: 6 | D160: >= 680 Min. | E160: 5 | F160: < 300 Tage | G160: 0.08447 | H160: 1.93156
A161: 2166 | B161: 1 | C161: 6 | D161: >= 680 Min. | E161: 6 | F161: < 360 Tage | G161: 0.03845 | H161: 2.04562
A162: 2167 | B162: 1 | C162: 6 | D162: >= 680 Min. | E162: 7 | F162: >= 360 Tage | G162: 0.06449 | H162: 1.94829
A163: 2171 | B163: 1 | C163: 7 | D163: >= 700 Min. | E163: 1 | F163: < 60 Tage | G163: 0.15032 | H163: 1.76054
A164: 2172 | B164: 1 | C164: 7 | D164: >= 700 Min. | E164: 2 | F164: < 120 Tage | G164: 0.16909 | H164: 1.74794
A165: 2173 | B165: 1 | C165: 7 | D165: >= 700 Min. | E165: 3 | F165: < 180 Tage | G165: 0.12368 | H165: 1.8268
A166: 2174 | B166: 1 | C166: 7 | D166: >= 700 Min. | E166: 4 | F166: < 240 Tage | G166: 0.12282 | H166: 1.848
A167: 2175 | B167: 1 | C167: 7 | D167: >= 700 Min. | E167: 5 | F167: < 300 Tage | G167: 0.1044 | H167: 1.84257
A168: 2176 | B168: 1 | C168: 7 | D168: >= 700 Min. | E168: 6 | F168: < 360 Tage | G168: 0.14105 | H168: 1.76802
A169: 2177 | B169: 1 | C169: 7 | D169: >= 700 Min. | E169: 7 | F169: >= 360 Tage | G169: 0.04636 | H169: 1.96245
A170: 2181 | B170: 1 | C170: 8 | D170: >= 720 Min. | E170: 1 | F170: < 60 Tage | G170: 0.10703 | H170: 1.82306
A171: 2182 | B171: 1 | C171: 8 | D171: >= 720 Min. | E171: 2 | F171: < 120 Tage | G171: 0.15298 | H171: 1.76385
A172: 2183 | B172: 1 | C172: 8 | D172: >= 720 Min. | E172: 3 | F172: < 180 Tage | G172: 0.12924 | H172: 1.81061
A173: 2184 | B173: 1 | C173: 8 | D173: >= 720 Min. | E173: 4 | F173: < 240 Tage | G173: 0.13948 | H173: 1.79679
A174: 2185 | B174: 1 | C174: 8 | D174: >= 720 Min. | E174: 5 | F174: < 300 Tage | G174: 0.12377 | H174: 1.80944
A175: 2186 | B175: 1 | C175: 8 | D175: >= 720 Min. | E175: 6 | F175: < 360 Tage | G175: 0.08819 | H175: 1.84453
A176: 2187 | B176: 1 | C176: 8 | D176: >= 720 Min. | E176: 7 | F176: >= 360 Tage | G176: 0.02612 | H176: 1.99012
A177: 2211 | B177: >=2 | C177: 1 | D177: <=599 Min. | E177: 1 | F177: < 60 Tage | G177: 0.16637 | H177: 1.96686
A178: 2212 | B178: >=2 | C178: 1 | D178: <=599 Min. | E178: 2 | F178: < 120 Tage | G178: 0.16973 | H178: 1.94145
A179: 2213 | B179: >=2 | C179: 1 | D179: <=599 Min. | E179: 3 | F179: < 180 Tage | G179: 0.12245 | H179: 2.03857
A180: 2214 | B180: >=2 | C180: 1 | D180: <=599 Min. | E180: 4 | F180: < 240 Tage | G180: 0.15252 | H180: 1.94807
A181: 2215 | B181: >=2 | C181: 1 | D181: <=599 Min. | E181: 5 | F181: < 300 Tage | G181: 0.09892 | H181: 2.05493
A182: 2216 | B182: >=2 | C182: 1 | D182: <=599 Min. | E182: 6 | F182: < 360 Tage | G182: 0.08619 | H182: 2.04046
A183: 2217 | B183: >=2 | C183: 1 | D183: <=599 Min. | E183: 7 | F183: >= 360 Tage | G183: 0.09908 | H183: 1.96479
A184: 2221 | B184: >=2 | C184: 2 | D184: >= 600 Min. | E184: 1 | F184: < 60 Tage | G184: 0.19559 | H184: 1.88765
A185: 2222 | B185: >=2 | C185: 2 | D185: >= 600 Min. | E185: 2 | F185: < 120 Tage | G185: 0.1657 | H185: 1.92175
A186: 2223 | B186: >=2 | C186: 2 | D186: >= 600 Min. | E186: 3 | F186: < 180 Tage | G186: 0.12491 | H186: 2.00945
A187: 2224 | B187: >=2 | C187: 2 | D187: >= 600 Min. | E187: 4 | F187: < 240 Tage | G187: 0.06713 | H187: 2.12835
A188: 2225 | B188: >=2 | C188: 2 | D188: >= 600 Min. | E188: 5 | F188: < 300 Tage | G188: 0.05279 | H188: 2.14047
A189: 2226 | B189: >=2 | C189: 2 | D189: >= 600 Min. | E189: 6 | F189: < 360 Tage | G189: 0.04014 | H189: 2.17549
A190: 2227 | B190: >=2 | C190: 2 | D190: >= 600 Min. | E190: 7 | F190: >= 360 Tage | G190: 0.0676 | H190: 2.03957
A191: 2231 | B191: >=2 | C191: 3 | D191: >= 620 Min. | E191: 1 | F191: < 60 Tage | G191: 0.12863 | H191: 1.98973
A192: 2232 | B192: >=2 | C192: 3 | D192: >= 620 Min. | E192: 2 | F192: < 120 Tage | G192: 0.13952 | H192: 1.97074
A193: 2233 | B193: >=2 | C193: 3 | D193: >= 620 Min. | E193: 3 | F193: < 180 Tage | G193: 0.11703 | H193: 2.00696
A194: 2234 | B194: >=2 | C194: 3 | D194: >= 620 Min. | E194: 4 | F194: < 240 Tage | G194: 0.09402 | H194: 2.04147
A195: 2235 | B195: >=2 | C195: 3 | D195: >= 620 Min. | E195: 5 | F195: < 300 Tage | G195: 0.06917 | H195: 2.05808
A196: 2236 | B196: >=2 | C196: 3 | D196: >= 620 Min. | E196: 6 | F196: < 360 Tage | G196: 0.04723 | H196: 2.12486
A197: 2237 | B197: >=2 | C197: 3 | D197: >= 620 Min. | E197: 7 | F197: >= 360 Tage | G197: 0.02369 | H197: 2.18113
A198: 2241 | B198: >=2 | C198: 4 | D198: >= 640 Min. | E198: 1 | F198: < 60 Tage | G198: 0.11251 | H198: 1.97665
A199: 2242 | B199: >=2 | C199: 4 | D199: >= 640 Min. | E199: 2 | F199: < 120 Tage | G199: 0.11719 | H199: 1.96246
A200: 2243 | B200: >=2 | C200: 4 | D200: >= 640 Min. | E200: 3 | F200: < 180 Tage | G200: 0.09698 | H200: 2.00807
A201: 2244 | B201: >=2 | C201: 4 | D201: >= 640 Min. | E201: 4 | F201: < 240 Tage | G201: 0.08026 | H201: 2.02912
A202: 2245 | B202: >=2 | C202: 4 | D202: >= 640 Min. | E202: 5 | F202: < 300 Tage | G202: 0.07749 | H202: 2.00585
A203: 2246 | B203: >=2 | C203: 4 | D203: >= 640 Min. | E203: 6 | F203: < 360 Tage | G203: 0.06194 | H203: 2.02586
A204: 2247 | B204: >=2 | C204: 4 | D204: >= 640 Min. | E204: 7 | F204: >= 360 Tage | G204: 0.03645 | H204: 2.0993
... 28 more rows

Sheet smoothing (hidden)
A13: total | D13: fat % | H13: protein %
B14: limit milk | C14: comment | D14: Min | E14: Max | G14: comment | H14: Min | I14: Max | K14: comment
A15: =IF(C15="out of range","out of range",IF(G15="out of range","out of range",IF(K15="out of range","out of range"))) -> FALSE | B15: =IF(data!D19<5,IF(data!$E$9=1,data!D19*2,data!D19*2.5),1000) -> 1000 | C15: =IF(B15=0,"",IF(B15>results!D9,"","out of range")) ->  | D15: =IF(data!D19<5,data!E19*0.9,0) -> 0 | E15: =IF(data!D19<5,data!E19*1.1,0) -> 0 | F15: =IF(results!E9<smoothing!D15,D15,IF(results!E9>smoothing!E15,smoothing!E15,results!E9)) -> 0 | G15: =IF(F15=0,"",IF(results!E9<smoothing!D15,"out of range",IF(results!E9>smoothing!E15,"out of range",""))) ->  | H15: =IF(data!D19<5,data!F19*0.9,0) -> 0 | I15: =IF(data!D19<5,data!F19*1.1,0) -> 0 | J15: =IF(results!F9<smoothing!H15,H15,IF(results!F9>smoothing!I15,smoothing!I15,results!F9)) -> 0 | K15: =IF(J15=0,"",IF(results!F9<smoothing!H15,"out of range",IF(results!F9>smoothing!I15,"out of range",""))) -> 
A16: =IF(C16="out of range","out of range",IF(G16="out of range","out of range",IF(K16="out of range","out of range"))) -> FALSE | B16: =IF(data!D20<5,IF(data!$E$9=1,data!D20*2,data!D20*2.5),1000) -> 0 | C16: =IF(B16=0,"",IF(B16>results!D10,"","out of range")) ->  | D16: =IF(data!D20<5,data!E20*0.9,0) -> 0 | E16: =IF(data!D20<5,data!E20*1.1,0) -> 0 | F16: =IF(results!E10<smoothing!D16,D16,IF(results!E10>smoothing!E16,smoothing!E16,results!E10)) -> 0 | G16: =IF(F16=0,"",IF(results!E10<smoothing!D16,"out of range",IF(results!E10>smoothing!E16,"out of range",""))) ->  | H16: =IF(data!D20<5,data!F20*0.9,0) -> 0 | I16: =IF(data!D20<5,data!F20*1.1,0) -> 0 | J16: =IF(results!F10<smoothing!H16,H16,IF(results!F10>smoothing!I16,smoothing!I16,results!F10)) -> 0 | K16: =IF(J16=0,"",IF(results!F10<smoothing!H16,"out of range",IF(results!F10>smoothing!I16,"out of range",""))) -> 
A17: FALSE | B17: =IF(data!D21<5,IF(data!$E$9=1,data!D21*2,data!D21*2.5),1000) -> 0 | C17: =IF(B17=0,"",IF(B17>results!D11,"","out of range")) ->  | D17: =IF(data!D21<5,data!E21*0.9,0) -> 0 | E17: =IF(data!D21<5,data!E21*1.1,0) -> 0 | F17: =IF(results!E11<smoothing!D17,D17,IF(results!E11>smoothing!E17,smoothing!E17,results!E11)) -> 0 | G17: =IF(F17=0,"",IF(results!E11<smoothing!D17,"out of range",IF(results!E11>smoothing!E17,"out of range",""))) ->  | H17: =IF(data!D21<5,data!F21*0.9,0) -> 0 | I17: =IF(data!D21<5,data!F21*1.1,0) -> 0 | J17: =IF(results!F11<smoothing!H17,H17,IF(results!F11>smoothing!I17,smoothing!I17,results!F11)) -> 0 | K17: =IF(J17=0,"",IF(results!F11<smoothing!H17,"out of range",IF(results!F11>smoothing!I17,"out of range",""))) -> 
A18: FALSE | B18: =IF(data!D22<5,IF(data!$E$9=1,data!D22*2,data!D22*2.5),1000) -> 0 | C18: =IF(B18=0,"",IF(B18>results!D12,"","out of range")) ->  | D18: =IF(data!D22<5,data!E22*0.9,0) -> 0 | E18: =IF(data!D22<5,data!E22*1.1,0) -> 0 | F18: =IF(results!E12<smoothing!D18,D18,IF(results!E12>smoothing!E18,smoothing!E18,results!E12)) -> 0 | G18: =IF(F18=0,"",IF(results!E12<smoothing!D18,"out of range",IF(results!E12>smoothing!E18,"out of range",""))) ->  | H18: =IF(data!D22<5,data!F22*0.9,0) -> 0 | I18: =IF(data!D22<5,data!F22*1.1,0) -> 0 | J18: =IF(results!F12<smoothing!H18,H18,IF(results!F12>smoothing!I18,smoothing!I18,results!F12)) -> 0 | K18: =IF(J18=0,"",IF(results!F12<smoothing!H18,"out of range",IF(results!F12>smoothing!I18,"out of range",""))) -> 
A19: FALSE | B19: =IF(data!D23<5,IF(data!$E$9=1,data!D23*2,data!D23*2.5),1000) -> 0 | C19: =IF(B19=0,"",IF(B19>results!D13,"","out of range")) ->  | D19: =IF(data!D23<5,data!E23*0.9,0) -> 0 | E19: =IF(data!D23<5,data!E23*1.1,0) -> 0 | F19: =IF(results!E13<smoothing!D19,D19,IF(results!E13>smoothing!E19,smoothing!E19,results!E13)) -> 0 | G19: =IF(F19=0,"",IF(results!E13<smoothing!D19,"out of range",IF(results!E13>smoothing!E19,"out of range",""))) ->  | H19: =IF(data!D23<5,data!F23*0.9,0) -> 0 | I19: =IF(data!D23<5,data!F23*1.1,0) -> 0 | J19: =IF(results!F13<smoothing!H19,H19,IF(results!F13>smoothing!I19,smoothing!I19,results!F13)) -> 0 | K19: =IF(J19=0,"",IF(results!F13<smoothing!H19,"out of range",IF(results!F13>smoothing!I19,"out of range",""))) -> 
A20: FALSE | B20: =IF(data!D24<5,IF(data!$E$9=1,data!D24*2,data!D24*2.5),1000) -> 0 | C20: =IF(B20=0,"",IF(B20>results!D14,"","out of range")) ->  | D20: =IF(data!D24<5,data!E24*0.9,0) -> 0 | E20: =IF(data!D24<5,data!E24*1.1,0) -> 0 | F20: =IF(results!E14<smoothing!D20,D20,IF(results!E14>smoothing!E20,smoothing!E20,results!E14)) -> 0 | G20: =IF(F20=0,"",IF(results!E14<smoothing!D20,"out of range",IF(results!E14>smoothing!E20,"out of range",""))) ->  | H20: =IF(data!D24<5,data!F24*0.9,0) -> 0 | I20: =IF(data!D24<5,data!F24*1.1,0) -> 0 | J20: =IF(results!F14<smoothing!H20,H20,IF(results!F14>smoothing!I20,smoothing!I20,results!F14)) -> 0 | K20: =IF(J20=0,"",IF(results!F14<smoothing!H20,"out of range",IF(results!F14>smoothing!I20,"out of range",""))) -> 
A21: FALSE | B21: =IF(data!D25<5,IF(data!$E$9=1,data!D25*2,data!D25*2.5),1000) -> 0 | C21: =IF(B21=0,"",IF(B21>results!D15,"","out of range")) ->  | D21: =IF(data!D25<5,data!E25*0.9,0) -> 0 | E21: =IF(data!D25<5,data!E25*1.1,0) -> 0 | F21: =IF(results!E15<smoothing!D21,D21,IF(results!E15>smoothing!E21,smoothing!E21,results!E15)) -> 0 | G21: =IF(F21=0,"",IF(results!E15<smoothing!D21,"out of range",IF(results!E15>smoothing!E21,"out of range",""))) ->  | H21: =IF(data!D25<5,data!F25*0.9,0) -> 0 | I21: =IF(data!D25<5,data!F25*1.1,0) -> 0 | J21: =IF(results!F15<smoothing!H21,H21,IF(results!F15>smoothing!I21,smoothing!I21,results!F15)) -> 0 | K21: =IF(J21=0,"",IF(results!F15<smoothing!H21,"out of range",IF(results!F15>smoothing!I21,"out of range",""))) -> 
A22: FALSE | B22: =IF(data!D26<5,IF(data!$E$9=1,data!D26*2,data!D26*2.5),1000) -> 0 | C22: =IF(B22=0,"",IF(B22>results!D16,"","out of range")) ->  | D22: =IF(data!D26<5,data!E26*0.9,0) -> 0 | E22: =IF(data!D26<5,data!E26*1.1,0) -> 0 | F22: =IF(results!E16<smoothing!D22,D22,IF(results!E16>smoothing!E22,smoothing!E22,results!E16)) -> 0 | G22: =IF(F22=0,"",IF(results!E16<smoothing!D22,"out of range",IF(results!E16>smoothing!E22,"out of range",""))) ->  | H22: =IF(data!D26<5,data!F26*0.9,0) -> 0 | I22: =IF(data!D26<5,data!F26*1.1,0) -> 0 | J22: =IF(results!F16<smoothing!H22,H22,IF(results!F16>smoothing!I22,smoothing!I22,results!F16)) -> 0 | K22: =IF(J22=0,"",IF(results!F16<smoothing!H22,"out of range",IF(results!F16>smoothing!I22,"out of range",""))) -> 
A23: FALSE | B23: =IF(data!D27<5,IF(data!$E$9=1,data!D27*2,data!D27*2.5),1000) -> 0 | C23: =IF(B23=0,"",IF(B23>results!D17,"","out of range")) ->  | D23: =IF(data!D27<5,data!E27*0.9,0) -> 0 | E23: =IF(data!D27<5,data!E27*1.1,0) -> 0 | F23: =IF(results!E17<smoothing!D23,D23,IF(results!E17>smoothing!E23,smoothing!E23,results!E17)) -> 0 | G23: =IF(F23=0,"",IF(results!E17<smoothing!D23,"out of range",IF(results!E17>smoothing!E23,"out of range",""))) ->  | H23: =IF(data!D27<5,data!F27*0.9,0) -> 0 | I23: =IF(data!D27<5,data!F27*1.1,0) -> 0 | J23: =IF(results!F17<smoothing!H23,H23,IF(results!F17>smoothing!I23,smoothing!I23,results!F17)) -> 0 | K23: =IF(J23=0,"",IF(results!F17<smoothing!H23,"out of range",IF(results!F17>smoothing!I23,"out of range",""))) -> 
A24: FALSE | B24: =IF(data!D28<5,IF(data!$E$9=1,data!D28*2,data!D28*2.5),1000) -> 0 | C24: =IF(B24=0,"",IF(B24>results!D18,"","out of range")) ->  | D24: =IF(data!D28<5,data!E28*0.9,0) -> 0 | E24: =IF(data!D28<5,data!E28*1.1,0) -> 0 | F24: =IF(results!E18<smoothing!D24,D24,IF(results!E18>smoothing!E24,smoothing!E24,results!E18)) -> 0 | G24: =IF(F24=0,"",IF(results!E18<smoothing!D24,"out of range",IF(results!E18>smoothing!E24,"out of range",""))) ->  | H24: =IF(data!D28<5,data!F28*0.9,0) -> 0 | I24: =IF(data!D28<5,data!F28*1.1,0) -> 0 | J24: =IF(results!F18<smoothing!H24,H24,IF(results!F18>smoothing!I24,smoothing!I24,results!F18)) -> 0 | K24: =IF(J24=0,"",IF(results!F18<smoothing!H24,"out of range",IF(results!F18>smoothing!I24,"out of range",""))) -> 
A25: FALSE | B25: =IF(data!D29<5,IF(data!$E$9=1,data!D29*2,data!D29*2.5),1000) -> 0 | C25: =IF(B25=0,"",IF(B25>results!D19,"","out of range")) ->  | D25: =IF(data!D29<5,data!E29*0.9,0) -> 0 | E25: =IF(data!D29<5,data!E29*1.1,0) -> 0 | F25: =IF(results!E19<smoothing!D25,D25,IF(results!E19>smoothing!E25,smoothing!E25,results!E19)) -> 0 | G25: =IF(F25=0,"",IF(results!E19<smoothing!D25,"out of range",IF(results!E19>smoothing!E25,"out of range",""))) ->  | H25: =IF(data!D29<5,data!F29*0.9,0) -> 0 | I25: =IF(data!D29<5,data!F29*1.1,0) -> 0 | J25: =IF(results!F19<smoothing!H25,H25,IF(results!F19>smoothing!I25,smoothing!I25,results!F19)) -> 0 | K25: =IF(J25=0,"",IF(results!F19<smoothing!H25,"out of range",IF(results!F19>smoothing!I25,"out of range",""))) -> 
A26: FALSE | B26: =IF(data!D30<5,IF(data!$E$9=1,data!D30*2,data!D30*2.5),1000) -> 0 | C26: =IF(B26=0,"",IF(B26>results!D20,"","out of range")) ->  | D26: =IF(data!D30<5,data!E30*0.9,0) -> 0 | E26: =IF(data!D30<5,data!E30*1.1,0) -> 0 | F26: =IF(results!E20<smoothing!D26,D26,IF(results!E20>smoothing!E26,smoothing!E26,results!E20)) -> 0 | G26: =IF(F26=0,"",IF(results!E20<smoothing!D26,"out of range",IF(results!E20>smoothing!E26,"out of range",""))) ->  | H26: =IF(data!D30<5,data!F30*0.9,0) -> 0 | I26: =IF(data!D30<5,data!F30*1.1,0) -> 0 | J26: =IF(results!F20<smoothing!H26,H26,IF(results!F20>smoothing!I26,smoothing!I26,results!F20)) -> 0 | K26: =IF(J26=0,"",IF(results!F20<smoothing!H26,"out of range",IF(results!F20>smoothing!I26,"out of range",""))) -> 
A27: FALSE | B27: =IF(data!D31<5,IF(data!$E$9=1,data!D31*2,data!D31*2.5),1000) -> 0 | C27: =IF(B27=0,"",IF(B27>results!D21,"","out of range")) ->  | D27: =IF(data!D31<5,data!E31*0.9,0) -> 0 | E27: =IF(data!D31<5,data!E31*1.1,0) -> 0 | F27: =IF(results!E21<smoothing!D27,D27,IF(results!E21>smoothing!E27,smoothing!E27,results!E21)) -> 0 | G27: =IF(F27=0,"",IF(results!E21<smoothing!D27,"out of range",IF(results!E21>smoothing!E27,"out of range",""))) ->  | H27: =IF(data!D31<5,data!F31*0.9,0) -> 0 | I27: =IF(data!D31<5,data!F31*1.1,0) -> 0 | J27: =IF(results!F21<smoothing!H27,H27,IF(results!F21>smoothing!I27,smoothing!I27,results!F21)) -> 0 | K27: =IF(J27=0,"",IF(results!F21<smoothing!H27,"out of range",IF(results!F21>smoothing!I27,"out of range",""))) -> 
A28: FALSE | B28: =IF(data!D32<5,IF(data!$E$9=1,data!D32*2,data!D32*2.5),1000) -> 0 | C28: =IF(B28=0,"",IF(B28>results!D22,"","out of range")) ->  | D28: =IF(data!D32<5,data!E32*0.9,0) -> 0 | E28: =IF(data!D32<5,data!E32*1.1,0) -> 0 | F28: =IF(results!E22<smoothing!D28,D28,IF(results!E22>smoothing!E28,smoothing!E28,results!E22)) -> 0 | G28: =IF(F28=0,"",IF(results!E22<smoothing!D28,"out of range",IF(results!E22>smoothing!E28,"out of range",""))) ->  | H28: =IF(data!D32<5,data!F32*0.9,0) -> 0 | I28: =IF(data!D32<5,data!F32*1.1,0) -> 0 | J28: =IF(results!F22<smoothing!H28,H28,IF(results!F22>smoothing!I28,smoothing!I28,results!F22)) -> 0 | K28: =IF(J28=0,"",IF(results!F22<smoothing!H28,"out of range",IF(results!F22>smoothing!I28,"out of range",""))) -> 
A29: FALSE | B29: =IF(data!D33<5,IF(data!$E$9=1,data!D33*2,data!D33*2.5),1000) -> 0 | C29: =IF(B29=0,"",IF(B29>results!D23,"","out of range")) ->  | D29: =IF(data!D33<5,data!E33*0.9,0) -> 0 | E29: =IF(data!D33<5,data!E33*1.1,0) -> 0 | F29: =IF(results!E23<smoothing!D29,D29,IF(results!E23>smoothing!E29,smoothing!E29,results!E23)) -> 0 | G29: =IF(F29=0,"",IF(results!E23<smoothing!D29,"out of range",IF(results!E23>smoothing!E29,"out of range",""))) ->  | H29: =IF(data!D33<5,data!F33*0.9,0) -> 0 | I29: =IF(data!D33<5,data!F33*1.1,0) -> 0 | J29: =IF(results!F23<smoothing!H29,H29,IF(results!F23>smoothing!I29,smoothing!I29,results!F23)) -> 0 | K29: =IF(J29=0,"",IF(results!F23<smoothing!H29,"out of range",IF(results!F23>smoothing!I29,"out of range",""))) -> 
A30: FALSE | B30: =IF(data!D34<5,IF(data!$E$9=1,data!D34*2,data!D34*2.5),1000) -> 0 | C30: =IF(B30=0,"",IF(B30>results!D24,"","out of range")) ->  | D30: =IF(data!D34<5,data!E34*0.9,0) -> 0 | E30: =IF(data!D34<5,data!E34*1.1,0) -> 0 | F30: =IF(results!E24<smoothing!D30,D30,IF(results!E24>smoothing!E30,smoothing!E30,results!E24)) -> 0 | G30: =IF(F30=0,"",IF(results!E24<smoothing!D30,"out of range",IF(results!E24>smoothing!E30,"out of range",""))) ->  | H30: =IF(data!D34<5,data!F34*0.9,0) -> 0 | I30: =IF(data!D34<5,data!F34*1.1,0) -> 0 | J30: =IF(results!F24<smoothing!H30,H30,IF(results!F24>smoothing!I30,smoothing!I30,results!F24)) -> 0 | K30: =IF(J30=0,"",IF(results!F24<smoothing!H30,"out of range",IF(results!F24>smoothing!I30,"out of range",""))) -> 
A31: FALSE | B31: =IF(data!D35<5,IF(data!$E$9=1,data!D35*2,data!D35*2.5),1000) -> 0 | C31: =IF(B31=0,"",IF(B31>results!D25,"","out of range")) ->  | D31: =IF(data!D35<5,data!E35*0.9,0) -> 0 | E31: =IF(data!D35<5,data!E35*1.1,0) -> 0 | F31: =IF(results!E25<smoothing!D31,D31,IF(results!E25>smoothing!E31,smoothing!E31,results!E25)) -> 0 | G31: =IF(F31=0,"",IF(results!E25<smoothing!D31,"out of range",IF(results!E25>smoothing!E31,"out of range",""))) ->  | H31: =IF(data!D35<5,data!F35*0.9,0) -> 0 | I31: =IF(data!D35<5,data!F35*1.1,0) -> 0 | J31: =IF(results!F25<smoothing!H31,H31,IF(results!F25>smoothing!I31,smoothing!I31,results!F25)) -> 0 | K31: =IF(J31=0,"",IF(results!F25<smoothing!H31,"out of range",IF(results!F25>smoothing!I31,"out of range",""))) -> 
A32: FALSE | B32: =IF(data!D36<5,IF(data!$E$9=1,data!D36*2,data!D36*2.5),1000) -> 0 | C32: =IF(B32=0,"",IF(B32>results!D26,"","out of range")) ->  | D32: =IF(data!D36<5,data!E36*0.9,0) -> 0 | E32: =IF(data!D36<5,data!E36*1.1,0) -> 0 | F32: =IF(results!E26<smoothing!D32,D32,IF(results!E26>smoothing!E32,smoothing!E32,results!E26)) -> 0 | G32: =IF(F32=0,"",IF(results!E26<smoothing!D32,"out of range",IF(results!E26>smoothing!E32,"out of range",""))) ->  | H32: =IF(data!D36<5,data!F36*0.9,0) -> 0 | I32: =IF(data!D36<5,data!F36*1.1,0) -> 0 | J32: =IF(results!F26<smoothing!H32,H32,IF(results!F26>smoothing!I32,smoothing!I32,results!F26)) -> 0 | K32: =IF(J32=0,"",IF(results!F26<smoothing!H32,"out of range",IF(results!F26>smoothing!I32,"out of range",""))) -> 
A33: FALSE | B33: =IF(data!D37<5,IF(data!$E$9=1,data!D37*2,data!D37*2.5),1000) -> 0 | C33: =IF(B33=0,"",IF(B33>results!D27,"","out of range")) ->  | D33: =IF(data!D37<5,data!E37*0.9,0) -> 0 | E33: =IF(data!D37<5,data!E37*1.1,0) -> 0 | F33: =IF(results!E27<smoothing!D33,D33,IF(results!E27>smoothing!E33,smoothing!E33,results!E27)) -> 0 | G33: =IF(F33=0,"",IF(results!E27<smoothing!D33,"out of range",IF(results!E27>smoothing!E33,"out of range",""))) ->  | H33: =IF(data!D37<5,data!F37*0.9,0) -> 0 | I33: =IF(data!D37<5,data!F37*1.1,0) -> 0 | J33: =IF(results!F27<smoothing!H33,H33,IF(results!F27>smoothing!I33,smoothing!I33,results!F27)) -> 0 | K33: =IF(J33=0,"",IF(results!F27<smoothing!H33,"out of range",IF(results!F27>smoothing!I33,"out of range",""))) -> 
A34: FALSE | B34: =IF(data!D38<5,IF(data!$E$9=1,data!D38*2,data!D38*2.5),1000) -> 0 | C34: =IF(B34=0,"",IF(B34>results!D28,"","out of range")) ->  | D34: =IF(data!D38<5,data!E38*0.9,0) -> 0 | E34: =IF(data!D38<5,data!E38*1.1,0) -> 0 | F34: =IF(results!E28<smoothing!D34,D34,IF(results!E28>smoothing!E34,smoothing!E34,results!E28)) -> 0 | G34: =IF(F34=0,"",IF(results!E28<smoothing!D34,"out of range",IF(results!E28>smoothing!E34,"out of range",""))) ->  | H34: =IF(data!D38<5,data!F38*0.9,0) -> 0 | I34: =IF(data!D38<5,data!F38*1.1,0) -> 0 | J34: =IF(results!F28<smoothing!H34,H34,IF(results!F28>smoothing!I34,smoothing!I34,results!F28)) -> 0 | K34: =IF(J34=0,"",IF(results!F28<smoothing!H34,"out of range",IF(results!F28>smoothing!I34,"out of range",""))) -> 
